Workbook

Sheet TRM Spreadsheet
A1: Evergy MEEIA 3 Technical Resource Manual - 2021-01-01 Update
A2: Measures updated with final Cycle 2 PY4 EM&V results | AO2: Link to CDD | AP2: Link to HDD
A3: New Measures
A4: Measure Description | H4: Gross Measure Values | AA4: Efficiency Values | AI4: Algorithms | AM4: Start/End Dates | AO4: Quantities
A5: Program | B5: Measure Name | C5: Primary Key | D5: Segment | E5: End Use | F5: Notes | G5: Unit Definition | H5: Incremental Measure Cost ($/Unit) | I5: Incremental Measure Cost Source | J5: Incremental Measure Cost Source Page Number | K5: Electric Energy Savings (Annual kWh/unit) | L5: Electric Energy Savings (Annual kWh/unit) Source | M5: Electric Energy Savings (Annual kWh/unit) Source Page Number | N5: Nameplate Demand Savings (kW/unit) | O5: Peak Coincidence Factor | P5: Peak Coincident Factor Source | Q5: Peak Coincident Factor Source Page Number | R5: Coincident Peak Demand Savings (kW/unit) | S5: Coincident Peak Demand Savings (kW/unit) Source | T5: Coincident Peak Demand Savings (kW/unit) Source Page Number | U5: Annual Operating Hours | V5: Annual Operating Hours Source | W5: Annual Operating Hours Source Page Number | X5: Measure Life (Years) | Y5: Measure Life (Years) Source | Z5: Measure Life (Years) Source Page Number | AA5: Measure Definition | AB5: Measure Efficiency Value | AC5: Measure Efficiency Value Source | AD5: Measure Efficiency Value Source Page Number | AE5: Baseline Definition | AF5: Baseline Efficiency Value | AG5: Baseline Efficiency Value Source | AH5: Baseline Efficiency Value Source Page Number | AI5: Electric Energy Savings Algorithm | AJ5: Electric Demand Savings Algorithm | AK5: Savings Algorithms Source | AL5: Savings Algorithms Source Page Number | AM5: Effective Start Date | AN5: Effective End Date | AO5: Cooling Degree Days (CDD) | AP5: Heating Degree Days (HDD) | AQ5: Degree Days Source | AR5: Degree Days Source Page Number | AS5: Quantity 1 | AT5: Quantity 1 Description | AU5: Quantity 1 Source | AV5: Quantity 1 Source Page Number | AW5: Quantity 2 | AX5: Quantity 2 Description | AY5: Quantity 2 Source | AZ5: Quantity 2 Source Page Number | BA5: Quantity 3 | BB5: Quantity 3 Description | BC5: Quantity 3 Source | BD5: Quantity 3 Source Page Number | BE5: Quantity 4 | BF5: Quantity 4 Description | BG5: Quantity 4 Source | BH5: Quantity 4 Source Page Number | BI5: Quantity 5 | BJ5: Quantity 5 Description | BK5: Quantity 5 Source | BL5: Quantity 5 Source Page Number | BM5: Quantity 6 | BN5: Quantity 6 Description | BO5: Quantity 6 Source | BP5: Quantity 6 Source Page Number | BQ5: Quantity 7 | BR5: Quantity 7 Description | BS5: Quantity 7 Source | BT5: Quantity 7 Source Page Number | BU5: Quantity 8 | BV5: Quantity 8 Description | BW5: Quantity 8 Source | BX5: Quantity 8 Source Page Number | BY5: Quantity 9 | BZ5: Quantity 9 Description | CA5: Quantity 9 Source | CB5: Quantity 9 Source Page Number | CC5: Quantity 10 | CD5: Quantity 10 Description | CE5: Quantity 10 Source | CF5: Quantity 10 Source Page Number | CG5: Quantity 11 | CH5: Quantity 11 Description | CI5: Quantity 11 Source | CJ5: Quantity 11 Source Page Number | CK5: Quantity 12 | CL5: Quantity 12 Description | CM5: Quantity 12 Source | CN5: Quantity 12 Source Page Number | CO5: Quantity 13 | CP5: Quantity 13 Description | CQ5: Quantity 13 Source | CR5: Quantity 13 Source Page Number | CS5: Quantity 14 | CT5: Quantity 14 Description | CU5: Quantity 14 Source | CV5: Quantity 14 Source Page Number | CW5: Quantity 15 | CX5: Quantity 15 Description | CY5: Quantity 15 Source | CZ5: Quantity 15 Source Page Number | DA5: Quantity 16 | DB5: Quantity 16 Description | DC5: Quantity 16 Source | DD5: Quantity 16 Source Page Number | DE5: Quantity 17 | DF5: Quantity 17 Description | DG5: Quantity 17 Source | DH5: Quantity 17 Source Page Number | DI5: Quantity 18 | DJ5: Quantity 18 Description | DK5: Quantity 18 Source | DL5: Quantity 18 Source Page Number | DM5: Quantity 19 | DN5: Quantity 19 Description | DO5: Quantity 19 Source | DP5: Quantity 19 Source Page Number
A6: Energy Saving Products | B6: Screw In - LEDs | C6: 2.2 | D6: All | E6: Lighting | G6: per lamp | H6: 3.93 | I6: Program Tracking Data | K6: =ROUND(($AF6-$AB6)/1000*$U6*$AS6*$BA6,4) -> 39.0136 | L6: Calculated Value | N6: =K6/U6 -> 0.03366143227 | O6: 0.135 | P6: IL TRM v7 vol3 - blended interior/exterior value | Q6: 274 | R6: =ROUND(($AF6-$AB6)/1000*O6*$AW6*$BA6,4) -> 0.0047 | S6: Calculated Value | U6: 1159 | V6: IL TRM v7 vol3 - blended interior/exterior value | W6: 271 | X6: 10 | Y6: IL TRM v7 vol3 | Z6: 268 | AA6: Screw In - LEDs | AB6: 9 | AC6: Program Tracking Data | AE6: 43 watts based on halogen equivalent to average of bulbs sold in program | AF6: 43 | AG6: Program Tracking Database | AI6: =cellformula(K6) -> =ROUND(($AF6-$AB6)/1000*$U6*$AS6*$BA6,4) | AJ6: =cellformula(R6) -> =ROUND(($AF6-$AB6)/1000*O6*$AW6*$BA6,4) | AK6: IL TRM v7 vol3 | AL6: 269, 273 | AM6: 2020-01-01 | AN6: 2020-04-30 | AS6: 1.051 | AT6: Waste Heat Factor, Energy | AU6: IL TRM v7 vol3 - blended interior/exterior value | AV6: 279 | AW6: 1.093 | AX6: Waste Heat Factor, Demand | AY6: IL TRM v7 vol3 - blended interior/exterior value | AZ6: 271 | BA6: 0.942 | BB6: ISR | BC6: Navigant MEEIA Cycle 1 Research
A7: Energy Saving Products | B7: Screw In - LEDs | C7: 2.3 | D7: All | E7: Lighting | G7: per lamp | H7: 1.45 | I7: IL TRM v7 vol3 | J7: 269 | K7: =ROUND(($AF7-$AB7)/1000*$U7*$AS7*$BA7,4) -> 36.1182 | L7: Calculated Value | N7: =K7/U7 -> 0.03316639118 | O7: 0.128 | P7: IL TRM v7 vol3 | Q7: 274 | R7: =ROUND(($AF7-$AB7)/1000*O7*$AW7*$BA7,4) -> 0.0044 | S7: Calculated Value | U7: 1089 | V7: IL TRM v7 vol3 - Assumes interior installation for all standard bulbs. | W7: 271 | X7: 10 | Y7: IL TRM v7 vol3 | Z7: 268 | AA7: Screw In - LEDs | AB7: 9.5 | AC7: Program Tracking Data | AE7: 43 watts based on halogen equivalent to average of bulbs sold in program | AF7: 43 | AG7: Program Tracking Database | AI7: =cellformula(K7) -> =ROUND(($AF7-$AB7)/1000*$U7*$AS7*$BA7,4) | AJ7: =cellformula(R7) -> =ROUND(($AF7-$AB7)/1000*O7*$AW7*$BA7,4) | AK7: IL TRM v7 vol3 | AL7: 269, 273 | AM7: 2020-05-01 | AS7: 1.051 | AT7: Waste Heat Factor, Energy | AU7: IL TRM v7 vol3 - blended interior/exterior value | AV7: 271 | AW7: 1.093 | AX7: Waste Heat Factor, Demand | AY7: IL TRM v7 vol3 - blended interior/exterior value | AZ7: 274 | BA7: 0.942 | BB7: ISR | BC7: Navigant MEEIA Cycle 2 Research
A8: Energy Saving Products | B8: Screw In - Specialty LEDs | C8: 244.2 | D8: All | E8: Lighting | G8: per lamp | H8: 7.39 | I8: IL TRM v5 vol3 | J8: 265 | K8: =ROUND((AF8-AB8)/1000*U8*AS8*BA8,4) -> 34.075 | L8: Calculated Value | N8: =K8/U8 -> 0.03455882353 | O8: 0.08 | P8: IL TRM v5 vol3 | Q8: 258 | R8: =ROUND(($AF8-$AB8)/1000*$O8*$AW8*$BA8,4) -> 0.0029 | S8: Calculated Value | U8: 986 | V8: IL TRM v5 vol3 | W8: 208 | X8: 10 | Y8: IL TRM v5 vol3 | Z8: 205 | AA8: Screw In - Specialty LEDs | AB8: 8.39 | AC8: Program Tracking Data | AE8: 43 watts based on halogen equivalent to average of bulbs sold in program | AF8: 43 | AG8: IL TRM v5 vol3 | AH8: 265 | AI8: =ROUND((AF8-AB8)/1000*U8*AS8*BA8,4) | AJ8: =ROUND(($AF8-$AB8)/1000*$O8*$AW8*$BA8,4) | AK8: IL TRM v7 vol3 | AL8: 250, 259 | AM8: 2020-01-01 | AN8: 2020-04-30 | AS8: 1.06 | AT8: Waste Heat Factor, Energy | AU8: IL TRM v5 vol3 | AV8: 249 | AW8: 1.11 | AX8: Waste Heat Factor, Demand | AY8: IL TRM v5 vol3 | AZ8: 251 | BA8: 0.942 | BB8: ISR | BC8: Navigant MEEIA Cycle 1 Research
A9: Energy Saving Products | B9: Screw In - Specialty LEDs | C9: 244.3 | D9: All | E9: Lighting | G9: per lamp | H9: 1.66 | I9: IL TRM v7 vol3 | J9: 251 | K9: =ROUND((AF9-AB9)/1000*U9*AS9*BA9,4) -> 44.701 | L9: Calculated Value | N9: =K9/U9 -> 0.04589425051 | O9: 0.128 | P9: IL TRM v7 vol3 - Weighted to program sales by bulb shape, and assumes exterior installation of all reflector bulbs over 900 lumens | Q9: 274 | R9: =ROUND(($AF9-$AB9)/1000*$O9*$AW9*$BA9,4) -> 0.0062 | S9: Calculated Value | U9: 974 | V9: IL TRM v7 vol3 - Weighted to program sales by bulb shape, and assumes exterior installation of all reflector bulbs over 900 lumens | X9: 10 | Y9: IL TRM v7 vol3 | Z9: 205 | AA9: Screw In - Specialty LEDs | AB9: 7.6 | AC9: Program Tracking Data | AE9: 54 watts weighted to program sales by bulb shape and lumens. | AF9: 54 | AG9: Program Tracking Data | AI9: =ROUND((AF9-AB9)/1000*U9*AS9*BA9,4) | AJ9: =ROUND(($AF9-$AB9)/1000*$O9*$AW9*$BA9,4) | AK9: IL TRM v7 vol3 | AL9: 250, 259 | AM9: 2020-05-01 | AN9: 2020-12-31 | AS9: 1.05 | AT9: Waste Heat Factor, Energy | AU9: Program Tracking Data | AW9: 1.1 | AX9: Waste Heat Factor, Demand | AY9: Program Tracking Data | BA9: 0.942 | BB9: ISR | BC9: Navigant MEEIA Cycle 2 Research
A10: Energy Saving Products | B10: Screw In - Specialty LEDs | C10: 244.4 | D10: All | E10: Lighting | G10: per lamp | H10: 4 | I10: Evergy 2019/2020 historic specialty LED data analysis. | K10: =ROUND((AF10-AB10)/1000*U10*AS10*BA10,4) -> 44.701 | L10: Calculated Value | N10: =K10/U10 -> 0.04589425051 | O10: 0.128 | P10: IL TRM v7 vol3 - Weighted to program sales by bulb shape, and assumes exterior installation of all reflector bulbs over 900 lumens | Q10: 274 | R10: =ROUND(($AF10-$AB10)/1000*$O10*$AW10*$BA10,4) -> 0.0062 | S10: Calculated Value | U10: 974 | V10: IL TRM v7 vol3 - Weighted to program sales by bulb shape, and assumes exterior installation of all reflector bulbs over 900 lumens | X10: 10 | Y10: IL TRM v7 vol3 | Z10: 205 | AA10: Screw In - Specialty LEDs | AB10: 7.6 | AC10: Program Tracking Data | AE10: 54 watts weighted to program sales by bulb shape and lumens. | AF10: 54 | AG10: Program Tracking Data | AI10: =ROUND((AF10-AB10)/1000*U10*AS10*BA10,4) | AJ10: =ROUND(($AF10-$AB10)/1000*$O10*$AW10*$BA10,4) | AK10: IL TRM v7 vol3 | AL10: 250, 259 | AM10: 2021-01-01 | AS10: 1.05 | AT10: Waste Heat Factor, Energy | AU10: Program Tracking Data | AW10: 1.1 | AX10: Waste Heat Factor, Demand | AY10: Program Tracking Data | BA10: 0.942 | BB10: ISR | BC10: Navigant MEEIA Cycle 2 Research
A11: Energy Saving Products | B11: Dehumidifiers | C11: 270 | D11: All | E11: Misc | G11: per unit | H11: 60 | I11: IL TRM v6 vol3 | J11: 14 | K11: =ROUND(140,4) -> 140 | L11: Calculated Value | O11: 0.37 | P11: IL TRM v6 vol3 | Q11: 16 | R11: =ROUND(0.032,4) -> 0.032 | S11: Calculated Value | U11: 1632 | V11: IL TRM v6 vol3 | W11: 16 | X11: 12 | Y11: IL TRM v6 vol2 | Z11: 14 | AA11: Dehumidifier that meets ENERGY STAR criteria | AE11: Non-ENERGY STAR dehumidifier | AI11: =ROUND(140,4) | AJ11: =ROUND(0.032,4) | AK11: IL TRM v6 vol3 | AL11: 15,16 | AM11: 2020-01-01
A12: Energy Saving Products | B12: Room AC Units | C12: 271 | D12: All | E12: HVAC | G12: per unit | H12: 40 | I12: IL TRM v6 vol3 | J12: 34 | K12: =ROUND((AS12*AW12*((1/BA12)-(1/BE12)))/1000,4) -> 14.6387 | L12: Calculated Value | N12: =K12/U12 -> 0.03420257009 | O12: 0.3 | P12: IL TRM v6 vol3 | Q12: 34 | R12: =ROUND(AW12*(((1/(BA12*1.01))-(1/(BE12*1.01))))/1000*O12,4) -> 0.0102 | S12: Calculated Value | U12: 428 | V12: IL TRM v6 vol3 | W12: 35 | X12: 12 | Y12: IL TRM v6 vol3 | Z12: 34 | AA12: Room AC unit that meets ENERGY STAR criteria | AC12: IL TRM v6 vol3 | AD12: 33 | AE12: Non-ENERGY STAR room AC | AG12: IL TRM v6 vol3 | AH12: 34 | AI12: =ROUND((AS12*AW12*((1/BA12)-(1/BE12)))/1000,4) | AJ12: =ROUND(AW12*(((1/(BA12*1.01))-(1/(BE12*1.01))))/1000*O12,4) | AK12: IL TRM v6 vol3 | AL12: 34 | AM12: 2020-01-01 | AS12: 428 | AT12: FLH_RoomAC | AU12: IL TRM v6 vol3 | AV12: 35 | AW12: 8500 | AX12: Btu/H | AY12: IL TRM v6 vol3 | AZ12: 35 | BA12: 10.9 | BB12: CEERbase | BC12: IL TRM v6 vol3 | BD12: 33 | BE12: 11.4 | BF12: CEERee | BG12: IL TRM v6 vol3 | BH12: 33
A13: Energy Saving Products | B13: Room Air Purifiers - CADR 51-100 | C13: 272 | D13: All | E13: Misc | G13: per unit | H13: 70 | I13: IL TRM v6 vol3 | J13: 5 | K13: =ROUND(AS13-AW13,4) -> 293 | L13: Calculated Value | N13: 0.05013689254 | O13: 0.667 | P13: IL TRM v6 vol3 | Q13: 6 | R13: =ROUND(K13/U13*O13,4) -> 0.0334 | S13: Calculated Value | U13: 5844 | V13: IL TRM v6 vol3 | W13: 6 | X13: 9 | Y13: IL TRM v6 vol3 | Z13: 5 | AA13: Air purifier that meets ENERGY STAR criteria | AE13: Non-ENERGY STAR air purifier | AI13: =ROUND(AS13-AW13,4) | AJ13: =ROUND(K13/U13*O13,4) | AK13: IL TRM v6 vol3 | AL13: 6 | AM13: 2020-01-01 | AS13: 441 | AT13: Baseline Unit Energy Consumption | AU13: IL TRM v6 vol3 | AV13: 6 | AW13: 148 | AX13: Energy Star Unit Energy Consumption | AY13: IL TRM v6 vol3 | AZ13: 6
A14: Energy Saving Products | B14: Room Air Purifiers - CADR 101-150 | C14: 412 | D14: All | E14: Misc | G14: per unit | H14: 70 | I14: IL TRM v6 vol3 | J14: 5 | K14: 488 | L14: Calculated Value | N14: 0.08350444901 | O14: 0.667 | P14: IL TRM v6 vol3 | Q14: 6 | R14: 0.0557 | S14: Calculated Value | U14: 5844 | V14: IL TRM v6 vol3 | W14: 6 | X14: 9 | Y14: IL TRM v6 vol3 | Z14: 5 | AA14: Air purifier that meets ENERGY STAR criteria | AE14: Non-ENERGY STAR air purifier | AI14: =ROUND(AS14-AW14,4) | AJ14: =ROUND(K14/U14*O14,4) | AK14: IL TRM v6 vol3 | AL14: 6 | AM14: 2020-01-01 | AS14: 733 | AT14: Baseline Unit Energy Consumption | AU14: IL TRM v6 vol3 | AV14: 6 | AW14: 245 | AX14: Energy Star Unit Energy Consumption | AY14: IL TRM v6 vol3 | AZ14: 6
A15: Energy Saving Products | B15: Room Air Purifiers - CADR 151-200 | C15: 413 | D15: All | E15: Misc | G15: per unit | H15: 70 | I15: IL TRM v6 vol3 | J15: 5 | K15: 683 | L15: Calculated Value | N15: 0.1168720055 | O15: 0.667 | P15: IL TRM v6 vol3 | Q15: 6 | R15: 0.078 | S15: Calculated Value | U15: 5844 | V15: IL TRM v6 vol3 | W15: 6 | X15: 9 | Y15: IL TRM v6 vol3 | Z15: 5 | AA15: Air purifier that meets ENERGY STAR criteria | AE15: Non-ENERGY STAR air purifier | AI15: =ROUND(AS15-AW15,4) | AJ15: =ROUND(K15/U15*O15,4) | AK15: IL TRM v6 vol3 | AL15: 6 | AM15: 2020-01-01 | AS15: 1025 | AT15: Baseline Unit Energy Consumption | AU15: IL TRM v6 vol3 | AV15: 6 | AW15: 342 | AX15: Energy Star Unit Energy Consumption | AY15: IL TRM v6 vol3 | AZ15: 6
A16: Energy Saving Products | B16: Room Air Purifiers - CADR 201-250 | C16: 414 | D16: All | E16: Misc | G16: per unit | H16: 70 | I16: IL TRM v6 vol3 | J16: 5 | K16: 877 | L16: Calculated Value | N16: 0.1500684463 | O16: 0.667 | P16: IL TRM v6 vol3 | Q16: 6 | R16: 0.1001 | S16: Calculated Value | U16: 5844 | V16: IL TRM v6 vol3 | W16: 6 | X16: 9 | Y16: IL TRM v6 vol3 | Z16: 5 | AA16: Air purifier that meets ENERGY STAR criteria | AE16: Non-ENERGY STAR air purifier | AI16: =ROUND(AS16-AW16,4) | AJ16: =ROUND(K16/U16*O16,4) | AK16: IL TRM v6 vol3 | AL16: 6 | AM16: 2020-01-01 | AS16: 1317 | AT16: Baseline Unit Energy Consumption | AU16: IL TRM v6 vol3 | AV16: 6 | AW16: 440 | AX16: Energy Star Unit Energy Consumption | AY16: IL TRM v6 vol3 | AZ16: 6
A17: Energy Saving Products | B17: Room Air Purifiers - CADR Over 250 | C17: 415 | D17: All | E17: Misc | G17: per unit | H17: 70 | I17: IL TRM v6 vol3 | J17: 5 | K17: 1169 | L17: Calculated Value | N17: 0.2000342231 | O17: 0.667 | P17: IL TRM v6 vol3 | Q17: 6 | R17: 0.1334 | S17: Calculated Value | U17: 5844 | V17: IL TRM v6 vol3 | W17: 6 | X17: 9 | Y17: IL TRM v6 vol3 | Z17: 5 | AA17: Air purifier that meets ENERGY STAR criteria | AE17: Non-ENERGY STAR air purifier | AI17: =ROUND(AS17-AW17,4) | AJ17: =ROUND(K17/U17*O17,4) | AK17: IL TRM v6 vol3 | AL17: 6 | AM17: 2020-01-01 | AS17: 1755 | AT17: Baseline Unit Energy Consumption | AU17: IL TRM v6 vol3 | AV17: 6 | AW17: 586 | AX17: Energy Star Unit Energy Consumption | AY17: IL TRM v6 vol3 | AZ17: 6
A18: Energy Saving Products | B18: Smart Thermostat - ASHP heating / cooling SF | C18: 273 | D18: Single Family | E18: HVAC | G18: per unit | H18: 175 | I18: IL TRM v6 vol3 | J18: 160 | K18: =ROUND((AS18*AW18*BA18*BE18*BI18)+(BM18*((BQ18*BU18*(1/BY18))/1000)*CC18*BI18),4) -> 862.7238 | L18: Calculated Value | O18: 0.34 | P18: Calculated Value | R18: =ROUND(BM18*(CC18*BU18*(1/CG18))/1000*BI18*O18,4) -> 0.093 | S18: Calculated Value | X18: 10 | Y18: IL TRM v6 vol3 | Z18: 160 | AA18: Smart thermostat | AC18: IL TRM v6 vol3 | AD18: 160 | AE18: Actual thermostat replaced by smart thermostat, or 44% programmable and 56% manual thermostats may be assumed | AG18: IL TRM v6 vol3 | AH18: 160 | AI18: =ROUND((AS18*AW18*BA18*BE18*BI18)+(BM18*((BQ18*BU18*(1/BY18))/1000)*CC18*BI18),4) | AJ18: =ROUND(BM18*(CC18*BU18*(1/CG18))/1000*BI18*O18,4) | AK18: IL TRM v6 vol3 | AL18: 161, 164 | AM18: 2020-01-01 | AS18: 1 | AT18: %ElectricHeat | AU18: IL TRM v6 vol3 | AV18: 161 | AW18: 8072 | AX18: Elec_Heating_Consumption | AY18: IL TRM v6 vol3 | AZ18: 161 | BA18: 0.074 | BB18: Heating_Reduction | BC18: IL TRM v6 vol3 | BD18: 162 | BE18: 1 | BF18: HF | BG18: IL TRM v6 vol3 | BH18: 162 | BI18: 1 | BJ18: Eff_ISR | BK18: IL TRM v6 vol3 | BL18: 162 | BM18: 0.87 | BN18: %AC | BO18: IL TRM v6 vol3 | BP18: 163 | BQ18: 1035 | BR18: FLH | BS18: IL TRM v6 vol3 | BT18: 163 | BU18: 33600 | BV18: BTU/hr | BW18: IL TRM v6 vol3 | BX18: 163 | BY18: 9.12 | BZ18: SEER | CA18: IL TRM v6 vol3 | CB18: 163 | CC18: 0.08 | CD18: Cooling_Reduction | CE18: IL TRM v6 vol3 | CF18: 163 | CG18: 8.55 | CH18: EER | CI18: IL TRM v6 vol3 | CJ18: 164
A19: Energy Saving Products | B19: Smart Thermostat - ASHP heating / cooling MF | C19: 416 | D19: Multi-Family | E19: HVAC | G19: per unit | H19: 175 | I19: IL TRM v6 vol3 | J19: 160 | K19: 515.7074 | L19: Calculated Value | O19: 0.34 | P19: IL TRM v6 vol3 | Q19: 164 | R19: 0.0492 | S19: Calculated Value | X19: 10 | Y19: IL TRM v6 vol3 | Z19: 160 | AA19: Smart thermostat | AC19: IL TRM v6 vol3 | AD19: 160 | AE19: Actual thermostat replaced by smart thermostat, or 44% programmable and 56% manual thermostats may be assumed | AG19: IL TRM v6 vol3 | AH19: 160 | AI19: =ROUND((AS19*AW19*BA19*BE19*BI19)+(BM19*((BQ19*BU19*(1/BY19))/1000)*CC19*BI19),4) | AJ19: =ROUND(BM19*(CC19*BU19*(1/CG19))/1000*BI19*O19,4) | AK19: IL TRM v6 vol3 | AL19: 161, 164 | AM19: 2020-01-01 | AS19: 1 | AT19: %ElectricHeat | AU19: IL TRM v6 vol3 | AV19: 161 | AW19: 8072 | AX19: Elec_Heating_Consumption | AY19: IL TRM v6 vol3 | AZ19: 161 | BA19: 0.074 | BB19: Heating_Reduction | BC19: IL TRM v6 vol3 | BD19: 162 | BE19: 0.65 | BF19: HF | BG19: IL TRM v6 vol3 | BH19: 162 | BI19: 1 | BJ19: Eff_ISR | BK19: IL TRM v6 vol3 | BL19: 162 | BM19: 0.46 | BN19: %AC | BO19: IL TRM v6 vol3 | BP19: 163 | BQ19: 940 | BR19: FLH | BS19: IL TRM v6 vol3 | BT19: 163 | BU19: 33600 | BV19: BTU/hr | BW19: IL TRM v6 vol3 | BX19: 163 | BY19: 9.12 | BZ19: SEER | CA19: IL TRM v6 vol3 | CB19: 163 | CC19: 0.08 | CD19: Cooling_Reduction | CE19: IL TRM v6 vol3 | CF19: 163 | CG19: 8.55 | CH19: EER | CI19: IL TRM v6 vol3 | CJ19: 164
A20: Energy Saving Products | B20: Smart Thermostat - electric furnace heating / CAC SF | C20: 417 | D20: Single Family | E20: HVAC | G20: per unit | H20: 175 | I20: IL TRM v6 vol3 | J20: 160 | K20: 1296.871 | L20: Calculated Value | O20: 0.34 | P20: IL TRM v6 vol3 | Q20: 164 | R20: 0.0976 | S20: Calculated Value | X20: 10 | Y20: IL TRM v6 vol3 | Z20: 160 | AA20: Smart thermostat | AC20: IL TRM v6 vol3 | AD20: 160 | AE20: Actual thermostat replaced by smart thermostat, or 44% programmable and 56% manual thermostats may be assumed | AG20: IL TRM v6 vol3 | AH20: 160 | AI20: =ROUND((AS20*AW20*BA20*BE20*BI20)+(BM20*((BQ20*BU20*(1/BY20))/1000)*CC20*BI20),4) | AJ20: =ROUND(BM20*(CC20*BU20*(1/CG20))/1000*BI20*O20,4) | AK20: IL TRM v6 vol3 | AL20: 161, 164 | AM20: 2020-01-01 | AS20: 1 | AT20: %ElectricHeat | AU20: IL TRM v6 vol3 | AV20: 161 | AW20: 13722 | AX20: Elec_Heating_Consumption | AY20: IL TRM v6 vol3 | AZ20: 161 | BA20: 0.074 | BB20: Heating_Reduction | BC20: IL TRM v6 vol3 | BD20: 162 | BE20: 1 | BF20: HF | BG20: IL TRM v6 vol3 | BH20: 162 | BI20: 1 | BJ20: Eff_ISR | BK20: IL TRM v6 vol3 | BL20: 162 | BM20: 0.87 | BN20: %AC | BO20: IL TRM v6 vol3 | BP20: 163 | BQ20: 1035 | BR20: FLH | BS20: IL TRM v6 vol3 | BT20: 163 | BU20: 33600 | BV20: BTU/hr | BW20: IL TRM v6 vol3 | BX20: 163 | BY20: 8.6 | BZ20: SEER | CA20: IL TRM v6 vol3 | CB20: 163 | CC20: 0.08 | CD20: Cooling_Reduction | CE20: IL TRM v6 vol3 | CF20: 163 | CG20: 8.15 | CH20: EER | CI20: IL TRM v6 vol3 | CJ20: 164
A21: Energy Saving Products | B21: Smart Thermostat - electric furnace heating / CAC MF | C21: 418 | D21: Multi-Family | E21: HVAC | G21: per unit | H21: 175 | I21: IL TRM v6 vol3 | J21: 160 | K21: 795.1783 | L21: Calculated Value | O21: 0.34 | P21: IL TRM v6 vol3 | Q21: 164 | R21: 0.0516 | S21: Calculated Value | X21: 10 | Y21: IL TRM v6 vol3 | Z21: 160 | AA21: Smart thermostat | AC21: IL TRM v6 vol3 | AD21: 160 | AE21: Actual thermostat replaced by smart thermostat, or 44% programmable and 56% manual thermostats may be assumed | AG21: IL TRM v6 vol3 | AH21: 160 | AI21: =ROUND((AS21*AW21*BA21*BE21*BI21)+(BM21*((BQ21*BU21*(1/BY21))/1000)*CC21*BI21),4) | AJ21: =ROUND(BM21*(CC21*BU21*(1/CG21))/1000*BI21*O21,4) | AK21: IL TRM v6 vol3 | AL21: 161, 164 | AM21: 2020-01-01 | AS21: 1 | AT21: %ElectricHeat | AU21: IL TRM v6 vol3 | AV21: 161 | AW21: 13722 | AX21: Elec_Heating_Consumption | AY21: IL TRM v6 vol3 | AZ21: 161 | BA21: 0.074 | BB21: Heating_Reduction | BC21: IL TRM v6 vol3 | BD21: 162 | BE21: 0.65 | BF21: HF | BG21: IL TRM v6 vol3 | BH21: 162 | BI21: 1 | BJ21: Eff_ISR | BK21: IL TRM v6 vol3 | BL21: 162 | BM21: 0.46 | BN21: %AC | BO21: IL TRM v6 vol3 | BP21: 163 | BQ21: 940 | BR21: FLH | BS21: IL TRM v6 vol3 | BT21: 163 | BU21: 33600 | BV21: BTU/hr | BW21: IL TRM v6 vol3 | BX21: 163 | BY21: 8.6 | BZ21: SEER | CA21: IL TRM v6 vol3 | CB21: 163 | CC21: 0.08 | CD21: Cooling_Reduction | CE21: IL TRM v6 vol3 | CF21: 163 | CG21: 8.15 | CH21: EER | CI21: IL TRM v6 vol3 | CJ21: 164
A22: Energy Saving Products | B22: Smart Thermostat - Gas Heated / CAC SF | C22: 419 | D22: Single Family | E22: HVAC | G22: per unit | H22: 175 | I22: IL TRM v6 vol3 | J22: 160 | K22: =ROUND((AS22*AW22*BA22*BE22*BI22)+(CO22*CK22*29.3)+(BM22*((BQ22*BU22*(1/BY22))/1000)*CC22*BI22),4) -> 326.6491 | L22: Calculated Value | O22: 0.34 | P22: Calculated Value | R22: 0.0976 | S22: Calculated Value | X22: 10 | Y22: IL TRM v6 vol3 | Z22: 160 | AA22: Smart thermostat | AC22: IL TRM v6 vol3 | AD22: 160 | AE22: Actual thermostat replaced by smart thermostat, or 44% programmable and 56% manual thermostats may be assumed | AG22: IL TRM v6 vol3 | AH22: 160 | AI22: =ROUND((AS22*AW22*BA22*BE22*BI22)+(CO22*CK22*29.3)+(BM22*((BQ22*BU22*(1/BY22))/1000)*CC22*BI22),4) | AJ22: =ROUND(BM22*(CC22*BU22*(1/CG22))/1000*BI22*O22,4) | AK22: IL TRM v6 vol3 | AL22: 161, 164 | AM22: 2020-01-01 | AS22: 0 | AT22: %ElectricHeat | AU22: IL TRM v6 vol3 | AV22: 161 | BA22: 0.074 | BB22: Heating_Reduction | BC22: IL TRM v6 vol3 | BD22: 162 | BE22: 1 | BF22: HF | BG22: IL TRM v6 vol3 | BH22: 162 | BI22: 1 | BJ22: Eff_ISR | BK22: IL TRM v6 vol3 | BL22: 162 | BM22: 0.87 | BN22: %AC | BO22: IL TRM v6 vol3 | BP22: 163 | BQ22: 1035 | BR22: FLH | BS22: IL TRM v6 vol3 | BT22: 163 | BU22: 33600 | BV22: BTU/hr | BW22: IL TRM v6 vol3 | BX22: 163 | BY22: 8.6 | BZ22: SEER | CA22: IL TRM v6 vol3 | CB22: 163 | CC22: 0.08 | CD22: Cooling_Reduction | CE22: IL TRM v6 vol3 | CF22: 163 | CG22: 8.15 | CH22: EER | CI22: IL TRM v6 vol3 | CJ22: 164 | CK22: 0.0314 | CL22: Fe | CM22: IL TRM v6 vol3 | CN22: 162 | CO22: =CS22*CW22*BA22*BE22*BI22 -> 49.136 | CP22: Therms difference | CQ22: IL TRM v6 vol3 | CR22: Calculated | CS22: 1 | CT22: %FossilHeat | CU22: IL TRM v6 vol3 | CV22: 165 | CW22: 664 | CX22: Gas Heating Consumption | CY22: IL TRM v6 vol3 | CZ22: 165
A23: Energy Saving Products | B23: Smart Thermostat - Gas Heated / CAC MF | C23: 420 | D23: Multi-Family | E23: HVAC | G23: per unit | H23: 175 | I23: IL TRM v6 vol3 | J23: 160 | K23: =ROUND((AS23*AW23*BA23*BE23*BI23)+(CO23*CK23*29.3)+(BM23*((BQ23*BU23*(1/BY23))/1000)*CC23*BI23),4) -> 164.5341 | L23: Calculated Value | O23: 0.34 | P23: Calculated Value | R23: 0.0516 | S23: Calculated Value | X23: 10 | Y23: IL TRM v6 vol3 | Z23: 160 | AA23: Smart thermostat | AC23: IL TRM v6 vol3 | AD23: 160 | AE23: Actual thermostat replaced by smart thermostat, or 44% programmable and 56% manual thermostats may be assumed | AG23: IL TRM v6 vol3 | AH23: 160 | AI23: =ROUND((AS23*AW23*BA23*BE23*BI23)+(CO23*CK23*29.3)+(BM23*((BQ23*BU23*(1/BY23))/1000)*CC23*BI23),4) | AJ23: =ROUND(BM23*(CC23*BU23*(1/CG23))/1000*BI23*O23,4) | AK23: IL TRM v6 vol3 | AL23: 161, 164 | AM23: 2020-01-01 | AS23: 0 | AT23: %ElectricHeat | AU23: IL TRM v6 vol3 | AV23: 161 | BA23: 0.074 | BB23: Heating_Reduction | BC23: IL TRM v6 vol3 | BD23: 162 | BE23: 0.65 | BF23: HF | BG23: IL TRM v6 vol3 | BH23: 162 | BI23: 1 | BJ23: Eff_ISR | BK23: IL TRM v6 vol3 | BL23: 162 | BM23: 0.46 | BN23: %AC | BO23: IL TRM v6 vol3 | BP23: 163 | BQ23: 940 | BR23: FLH | BS23: IL TRM v6 vol3 | BT23: 163 | BU23: 33600 | BV23: BTU/hr | BW23: IL TRM v6 vol3 | BX23: 163 | BY23: 8.6 | BZ23: SEER | CA23: IL TRM v6 vol3 | CB23: 163 | CC23: 0.08 | CD23: Cooling_Reduction | CE23: IL TRM v6 vol3 | CF23: 163 | CG23: 8.15 | CH23: EER | CI23: IL TRM v6 vol3 | CJ23: 164 | CK23: 0.0314 | CL23: Fe | CM23: IL TRM v6 vol3 | CN23: 162 | CO23: =CS23*CW23*BA23*BE23*BI23 -> 31.9384 | CP23: Therms difference | CQ23: IL TRM v6 vol3 | CR23: Calculated | CS23: 1 | CT23: %FossilHeat | CU23: IL TRM v6 vol3 | CV23: 165 | CW23: 664 | CX23: Gas Heating Consumption | CY23: IL TRM v6 vol3 | CZ23: 165
A24: Energy Saving Products | B24: Smart Power Strip - Wh7-Plug | C24: 312 | D24: All | E24: Electronics | G24: per unit | H24: 26 | I24: IL TRM v5 vol3 | J24: 52 | K24: =ROUND(103,4) -> 103 | L24: IL TRM v5 vol3 | M24: 53 | N24: =ROUND(K24/U24,4) -> 0.0144 | O24: 0.8 | P24: IL TRM v5 vol3 | Q24: 55 | R24: =ROUND(0.0115,4) -> 0.0115 | S24: IL TRM v5 vol3 | T24: 53 | U24: 7129 | V24: IL TRM v5 vol3 | W24: 53 | X24: 4 | Y24: IL TRM v5 vol3 | Z24: 52 | AA24: Smart strip | AC24: IL TRM v5 vol3 | AD24: 52 | AE24: Standard outlet strip | AG24: IL TRM v5 vol3 | AH24: 52 | AI24: =ROUND(103,4) | AJ24: =ROUND(0.0115,4) | AK24: IL TRM v5 vol3 | AL24: 53 | AM24: 2020-01-01
A25: Energy Saving Products | B25: ENERGY STAR Refrigerators | C25: 399 | D25: All | E25: Appliances | G25: per unit | H25: 40 | I25: IL TRM v6 vol3 | J25: 28 | K25: =ROUND(AS25-AW25,4) -> 43.14 | L25: Calculated Value | R25: =ROUND(K25/U25*BE25*BI25,4) -> 0.0065 | S25: Calculated Value | U25: 8766 | V25: IL TRM v6 vol3 | W25: 30 | X25: 12 | Y25: IL TRM v6 vol3 | Z25: 28 | AA25: A refrigerator meeting the efficiency specifications of Energy Star | AC25: IL TRM v6 vol3 | AD25: 27 | AE25: A refrigerator meeting the minimum federal efficiency standard for refrigerator efficiency | AG25: IL TRM v6 vol3 | AH25: 27 | AI25: =ROUND(AS25-AW25,4) | AJ25: =ROUND(K25/U25*BE25*BI25,4) | AK25: IL TRM v6 vol3 | AL25: 28, 30 | AM25: 2020-01-01 | AS25: =7.99*BA25+225 -> 431.142 | AT25: Federal Baseline Maximum Energy Usage in kWh/year | AU25: IL TRM v6 vol3 | AV25: 26 | AW25: =7.19*BA25+202.5 -> 388.002 | AX25: Federal Energy Star Maximum Energy Usage in kWh/YEAR | AY25: IL TRM v6 vol3 | AZ25: 26 | BA25: 25.8 | BB25: Adjusted volume | BC25: Program Tracking Data | BE25: 1.25 | BF25: Temperature Adjustment Factor | BG25: IL TRM v6 vol3 | BH25: 31 | BI25: 1.057 | BJ25: Load Shape Adjustment Factor | BK25: IL TRM v6 vol3 | BL25: 31
A26: Energy Saving Products | B26: ENERGY STAR Freezers | C26: 400 | D26: All | E26: Appliances | G26: per unit | H26: 35 | I26: IL TRM v6 vol3 | J26: 23 | K26: =ROUND(AS26-AW26,4) -> 34.3305 | L26: Calculated Value | O26: 0.95 | P26: IL TRM v6 vol3 | Q26: 23 | R26: =ROUND(K26/U26*O26,4) -> 0.0055 | S26: Calculated Value | U26: 5890 | V26: IL TRM v6 vol3 | W26: 24 | X26: 11 | Y26: IL TRM v6 vol3 | Z26: 23 | AA26: A freezer meeting the efficiency specifications of Energy Star | AC26: IL TRM v6 vol3 | AD26: 22 | AE26: A freezer meeting the federal minimum standard efficiency | AG26: IL TRM v6 vol3 | AH26: 23 | AI26: =ROUND(AS26-AW26,4) | AJ26: =ROUND(K26/U26*O26,4) | AK26: IL TRM v6 vol3 | AL26: 23, 24 | AM26: 2020-01-01 | AS26: =8.62*BA26+228.3 -> 343.87265 | AT26: Federal Baseline Maximum Energy Usage in kWh/year | AU26: IL TRM v6 vol3 | AV26: 22 | AW26: =7.76*BA26+205.5 -> 309.5422 | AX26: Federal Energy Star Maximum Energy Usage in kWh/YEAR | AY26: IL TRM v6 vol3 | AZ26: 22 | BA26: =1.73*7.75 -> 13.4075 | BB26: Adjusted volume | BC26: Program Tracking Data
A27: Energy Saving Products | B27: LED String Lights | C27: 401 | D27: All | E27: Lighting | G27: per unit | H27: 10 | I27: MN TRM v2.2 | J27: 324 | K27: =ROUND((AF27-AB27)/1000*AS27*AW27*U27,4) -> 29.7518 | L27: Calculated Value | O27: 0 | P27: MN TRM v2.2 | Q27: 324 | R27: =ROUND(0,4) -> 0 | S27: Calculated Value | U27: 150 | V27: MN TRM v2.2 | W27: 324 | X27: 8 | Y27: MN TRM v2.2 | Z27: 324 | AA27: LED string lights | AB27: =50%*0.043+25%*2+25%*0.48 -> 0.6415 | AC27: MN TRM v2.2 | AD27: 324 | AE27: Incandescent holiday light strings | AF27: =50%*0.45+25%*7+25%*6 -> 3.475 | AG27: MN TRM v2.2 | AH27: 324 | AI27: =ROUND((AF27-AB27)/1000*AS27*AW27*U27,4) | AJ27: =ROUND(0,4) | AK27: MN TRM v2.2 | AL27: 324 | AM27: 2020-01-01 | AS27: 1 | AT27: Number of light strings | AU27: MN TRM v2.2 | AV27: 324 | AW27: 70 | AX27: Number of lights in string | AY27: MN TRM v2.2 | AZ27: 324
A28: Energy Saving Products | B28: SMART Home Products (Alexa, Google Home, etc.) | C28: 402 | D28: Single Family | E28: Misc | G28: per unit | H28: 440.9629286 | I28: Navigant energy model analysis | K28: =ROUND(1305.85412860453,4) -> 1305.8541 | L28: Navigant energy model analysis | R28: =ROUND(0,4) -> 0 | S28: Navigant energy model analysis | X28: 8 | Y28: Navigant energy model analysis | AA28: Smart Home Products | AE28: No Smart Home Products | AI28: =ROUND(1305.85412860453,4) | AJ28: =ROUND(0,4) | AK28: Navigant energy model analysis | AM28: 2020-01-01
A29: Energy Saving Products | B29: ENERGY STAR Pool Pump and motor w/ auto controls - multi speed | C29: 403 | D29: All | E29: Misc | G29: per unit | H29: 235 | I29: IL TRM v6 vol3 | J29: 296 | K29: =ROUND(((AS29*AW29*60)/BA29-((BE29*BI29*60)/BM29+(BQ29*BU29*60)/BY29))/1000*CC29,4) -> 1596.0278 | L29: Calculated Value | N29: =ROUND(CG29/AS29-CK29/CO29,4) -> 1.3765 | O29: 0.831 | P29: Calculated Value | R29: =ROUND((CG29/AS29-CK29/CO29)*O29,4) -> 1.1439 | S29: Calculated Value | X29: 10 | Y29: IL TRM v6 vol3 | Z29: 296 | AA29: Two speed pool pump | AE29: Single speed residential pool pump | AI29: =ROUND(((AS29*AW29*60)/BA29-((BE29*BI29*60)/BM29+(BQ29*BU29*60)/BY29))/1000*CC29,4) | AJ29: =ROUND((CG29/AS29-CK29/CO29)*O29,4) | AK29: IL TRM v6 vol3 | AL29: 297, 298 | AM29: 2020-01-01 | AS29: 11.4 | AT29: Hours/Daybase | AU29: IL TRM v6 vol3 | AV29: 297 | AW29: 64.4 | AX29: GPMbase | AY29: IL TRM v6 vol3 | AZ29: 297 | BA29: 2.1 | BB29: EFbase | BC29: IL TRM v6 vol3 | BD29: 297 | BE29: 2 | BF29: Hours/Day2spH | BG29: IL TRM v6 vol3 | BH29: 297 | BI29: 56 | BJ29: GPM2spH | BK29: IL TRM v6 vol3 | BL29: 297 | BM29: 2.4 | BN29: EF2spH | BO29: IL TRM v6 vol3 | BP29: 297 | BQ29: 15.7 | BR29: Hours/Day2spL | BS29: IL TRM v6 vol3 | BT29: 297 | BU29: 31 | BV29: GPM2spL | BW29: IL TRM v6 vol3 | BX29: 297 | BY29: 5.4 | BZ29: EF2spL | CA29: IL TRM v6 vol3 | CB29: 297 | CC29: 125 | CD29: Days | CE29: IL TRM v6 vol3 | CF29: 297 | CG29: 20.98 | CH29: kWh/daybase | CI29: IL TRM v6 vol3 | CJ29: 298 | CK29: 8.21 | CL29: kWh/day2sp | CM29: IL TRM v6 vol3 | CN29: 298 | CO29: 17.7 | CP29: Hours/day2sp | CQ29: IL TRM v6 vol3 | CR29: 298
A30: Energy Saving Products | B30: ENERGY STAR VFDs on Residential Swimming Pool Pumps | C30: 404 | D30: All | E30: Misc | G30: per unit | H30: 549 | I30: IL TRM v6 vol3 | J30: 296 | K30: =ROUND(((AS30*AW30*60)/BA30-((BE30*BI30*60)/BM30+(BQ30*BU30*60)/BY30))/1000*CC30,4) -> 1921.6179 | L30: Calculated Value | N30: =ROUND((CG30/AS30)-(CK30/CO30),4) -> 1.5292 | O30: 0.831 | P30: Calculated Value | R30: =ROUND(((CG30/AS30)-(CK30/CO30))*O30,4) -> 1.2708 | S30: Calculated Value | X30: 10 | Y30: IL TRM v6 vol3 | Z30: 296 | AA30: Variable speed pool pump | AE30: Single speed residential pool pump | AI30: =ROUND(((AS30*AW30*60)/BA30-((BE30*BI30*60)/BM30+(BQ30*BU30*60)/BY30))/1000*CC30,4) | AJ30: =ROUND(((CG30/AS30)-(CK30/CO30))*O30,4) | AK30: IL TRM v6 vol3 | AL30: 297, 298 | AM30: 2020-01-01 | AS30: 11.4 | AT30: Hours/Daybase | AU30: IL TRM v6 vol3 | AV30: 297 | AW30: 64.4 | AX30: GPMbase | AY30: IL TRM v6 vol3 | AZ30: 297 | BA30: 2.1 | BB30: EFbase | BC30: IL TRM v6 vol3 | BD30: 297 | BE30: 2 | BF30: Hours/DayvsH | BG30: IL TRM v6 vol3 | BH30: 297 | BI30: 50 | BJ30: GPMvsH | BK30: IL TRM v6 vol3 | BL30: 297 | BM30: 3.8 | BN30: EFvsH | BO30: IL TRM v6 vol3 | BP30: 298 | BQ30: 16 | BR30: Hours/DayvsL | BS30: IL TRM v6 vol3 | BT30: 298 | BU30: 30.6 | BV30: GPMvsL | BW30: IL TRM v6 vol3 | BX30: 298 | BY30: 7.3 | BZ30: EFvsL | CA30: IL TRM v6 vol3 | CB30: 298 | CC30: 125 | CD30: Days | CE30: IL TRM v6 vol3 | CF30: 298 | CG30: 20.98 | CH30: kWh/daybase | CI30: IL TRM v6 vol3 | CJ30: 298 | CK30: 5.6 | CL30: kWh/dayvar | CM30: IL TRM v6 vol3 | CN30: 298 | CO30: 18 | CP30: Hours/dayvar | CQ30: IL TRM v6 vol3 | CR30: 298
A31: Heating, Cooling & Home Comfort | B31: Screw In - LEDs | C31: 8.4 | D31: Single Family | E31: Lighting | F31: Kits | G31: per lamp | H31: 3.93 | I31: Program Tracking Data | K31: =ROUND(($AF31-$AB31)/1000*$U31*$AS31*$BA31,4) -> 39.0136 | L31: Calculated Value | N31: =K31/U31 -> 0.03366143227 | O31: 0.128 | P31: IL TRM v7 vol3 | Q31: 274 | R31: =ROUND(($AF31-$AB31)/1000*O31*$AW31*$BA31,4) -> 0.0045 | S31: Calculated Value | U31: 1159 | V31: IL TRM v7 vol3 - blended interior/exterior value | W31: 271 | X31: 10 | Y31: IL TRM v7 vol3 | Z31: 268 | AA31: Screw In - LEDs | AB31: 9 | AC31: Program Tracking Data | AE31: 43 watts based on halogen equivalent to average of bulbs sold in program | AF31: 43 | AG31: Program Tracking Database | AI31: =ROUND(($AF31-$AB31)/1000*$U31*$AS31*$BA31,4) | AJ31: =ROUND(($AF31-$AB31)/1000*O31*$AW31*$BA31,4) | AK31: IL TRM v7 vol3 | AL31: 269, 273 | AM31: 2020-01-01 | AN31: 2020-04-30 | AS31: 1.051 | AT31: Waste Heat Factor, Energy | AU31: IL TRM v7 vol3 - blended interior/exterior value | AV31: 271 | AW31: 1.093 | AX31: Waste Heat Factor, Demand | AY31: IL TRM v7 vol3 - blended interior/exterior value | AZ31: 271 | BA31: 0.942 | BB31: ISR | BC31: Navigant MEEIA Cycle 1 Research
A32: Heating, Cooling & Home Comfort | B32: Screw In - LEDs | C32: 8.5 | D32: Single Family | E32: Lighting | F32: Kits | G32: per lamp | H32: 1.45 | I32: Program Tracking Data | K32: =ROUND(($AF32-$AB32)/1000*$U32*$AS32*$BA32,4) -> 36.1182 | L32: Calculated Value | N32: 0.03316639118 | O32: 0.128 | P32: IL TRM v7 vol3 | Q32: 274 | R32: =ROUND(($AF32-$AB32)/1000*O32*$AW32*$BA32,4) -> 0.0044 | S32: Calculated Value | U32: 1089 | V32: IL TRM v7 vol3 - Assumes interior installation for all standard bulbs. | W32: 271 | X32: 10 | Y32: IL TRM v7 vol3 | Z32: 268 | AA32: Screw In - LEDs | AB32: 9.5 | AC32: Program Tracking Data | AE32: 43 watts based on halogen equivalent to average of bulbs sold in program | AF32: 43 | AG32: Program Tracking Database | AI32: =ROUND(($AF32-$AB32)/1000*$U32*$AS32*$BA32,4) | AJ32: =ROUND(($AF32-$AB32)/1000*O32*$AW32*$BA32,4) | AK32: IL TRM v7 vol3 | AL32: 269, 273 | AM32: 2020-05-01 | AS32: 1.051 | AT32: Waste Heat Factor, Energy | AU32: IL TRM v7 vol3 - blended interior/exterior value | AV32: 271 | AW32: 1.093 | AX32: Waste Heat Factor, Demand | AY32: IL TRM v7 vol3 - blended interior/exterior value | AZ32: 273, 274 | BA32: 0.942 | BB32: ISR | BC32: Navigant MEEIA Cycle 1 Research
A33: Heating, Cooling & Home Comfort | B33: Low Flow Faucet Aerator-Bathroom | C33: 245.2 | D33: Single Family | E33: Hot Water | F33: Kits | G33: per unit | H33: 8 | I33: IL TRM v5 vol3 | J33: 174 | K33: =ROUND(((AF33-AB33)*AW33*BA33*365.25)*AS33*BE33,4) -> 43.1199 | L33: Calculated Value | N33: 3.079992857 | O33: 0.022 | P33: IL TRM v5 vol3 | Q33: 179 | R33: =ROUND((((AF33-AB33)*AW33*BA33*365.25)*AS33*BE33)/U33*O33,4) -> 0.0678 | S33: Calculated Value | U33: 14 | V33: IL TRM v5 vol3 | W33: 179 | X33: 9 | Y33: IL TRM v5 vol3 | Z33: 174 | AA33: Low Flow (GPM) | AB33: 1 | AC33: Program Tracking Data | AE33: Standard (GPM) | AF33: 2.2 | AG33: Federal Baseline | AI33: =ROUND(((AF33-AB33)*AW33*BA33*365.25)*AS33*BE33,4) | AJ33: =ROUND((((AF33-AB33)*AW33*BA33*365.25)*AS33*BE33)/U33*O33,4) | AK33: IL TRM v5 vol3 | AL33: 175, 179 | AM33: 2020-01-01 | AN33: 2020-12-31 | AS33: 0.0795 | AT33: kWh per gallon hot water, bathroom | AU33: IL TRM v5 vol3 | AV33: 177 | AW33: 0.5088339223 | AX33: Faucet Coefficient, Bathroom: Minutes/day * Drain Factor / Faucets per Household | AY33: IL TRM v5 vol3 | AZ33: 176177 | BA33: 2.56 | BB33: Persons per household | BC33: IL TRM v5 vol3 | BD33: 176 | BE33: 0.95 | BF33: Installation Rate | BG33: IL TRM v5 vol3 | BH33: 178
A34: Heating, Cooling & Home Comfort | B34: Low Flow Faucet Aerator-Bathroom | C34: 245.3 | D34: Single Family | E34: Hot Water | F34: Kits | G34: per unit | H34: 8 | I34: IL TRM v7 vol3 | J34: 184 | K34: =ROUND(((AF34*AS34-AB34*AS34)*BA34*365.25*BI34/AW34)*BM34*BE34,4) -> 19.0446 | L34: Calculated Value | N34: 1.360328571 | O34: 0.022 | P34: IL TRM v7 vol3 | Q34: 190193 | R34: =ROUND(((AF34*AS34-AB34*AS34)*BA34*365.25*BI34/AW34)*BM34*BE34/U34*O34,4) -> 0.0299 | S34: Calculated Value | U34: 14 | V34: IL TRM v7 vol3 | W34: 190, 197 | X34: 10 | Y34: IL TRM v7 vol3 | Z34: 184 | AA34: Low Flow (GPM) | AB34: 1 | AC34: Program Tracking Data | AE34: Standard (GPM) | AF34: 1.53 | AG34: IL TRM v7 vol3 | AH34: 185194 | AI34: =ROUND(((AF34*AS34-AB34*AS34)*BA34*365.25*BI34/AW34)*BM34*BE34,4) | AJ34: =ROUND(((AF34*AS34-AB34*AS34)*BA34*365.25*BI34/AW34)*BM34*BE34/U34*O34,4) | AK34: IL TRM v7 vol3 | AL34: 175, 179 | AM34: 2021-01-01 | AS34: 1.6 | AT34: L_base = L_ee | AU34: IL TRM v7 vol3 | AV34: 186195 | AW34: 2.83 | AX34: FPH | AY34: IL TRM v7 vol3 | AZ34: 187 | BA34: 2.56 | BB34: Persons per household | BC34: IL TRM v7 vol3 | BD34: 187, 195 | BE34: 0.95 | BF34: Installation Rate | BG34: IL TRM v7 vol3 | BH34: 189, 196 | BI34: 0.9 | BJ34: DF | BK34: IL TRM v7 vol3 | BL34: 187 | BM34: 0.0795 | BN34: EPG_electric | BO34: IL TRM v7 vol3 | BP34: 188, 196
A35: Heating, Cooling & Home Comfort | B35: Low Flow Faucet Aerator-Kitchen | C35: 246.1 | D35: Single Family | E35: Hot Water | F35: Kits | G35: per unit | H35: 8 | I35: IL TRM v5 vol3 | J35: 174 | K35: =ROUND(((AF35-AB35)*AW35*BA35*365.25)*AS35*BE35,4) -> 203.3524 | L35: Calculated Value | N35: 2.163323404 | O35: 0.022 | P35: IL TRM v5 vol3 | Q35: 179 | R35: =ROUND((((AF35-AB35)*AW35*BA35*365.25)*AS35*BE35)/U35*O35,4) -> 0.0476 | S35: Calculated Value | U35: 94 | V35: IL TRM v5 vol3 | W35: 179 | X35: 9 | Y35: IL TRM v5 vol3 | Z35: 174 | AA35: Low Flow (GPM) | AB35: 1.5 | AC35: Program Tracking Data | AE35: Standard (GPM) | AF35: 2.2 | AG35: Federal Baseline | AI35: =ROUND(((AF35-AB35)*AW35*BA35*365.25)*AS35*BE35,4) | AJ35: =ROUND((((AF35-AB35)*AW35*BA35*365.25)*AS35*BE35)/U35*O35,4) | AK35: IL TRM v5 vol3 | AL35: 175, 179 | AM35: 2020-01-01 | AN35: 2020-12-31 | AS35: 0.0969 | AT35: kWh per gallon hot water, kitchen | AU35: IL TRM v5 vol3 | AV35: 177 | AW35: 3.375 | AX35: Faucet Coefficient, Kitchen | AY35: IL TRM v5 vol3 | AZ35: 176177 | BA35: 2.56 | BB35: Persons per household | BC35: IL TRM v5 vol3 | BD35: 176 | BE35: 0.95 | BF35: Installation Rate | BG35: IL TRM v5 vol3 | BH35: 178
A36: Heating, Cooling & Home Comfort | B36: Low Flow Faucet Aerator-Kitchen | C36: 246.2 | D36: Single Family | E36: Hot Water | F36: Kits | G36: per unit | H36: 8 | I36: IL TRM v7 vol3 | J36: 184 | K36: =ROUND(((AF36*AS36-AB36*AS36)*BA36*365.25*BI36/AW36)*BM36*BE36,4) -> 37.7655 | L36: Calculated Value | N36: 0.37025 | O36: 0.022 | P36: IL TRM v7 vol3 | Q36: 190193 | R36: =ROUND(((AF36*AS36-AB36*AS36)*BA36*365.25*BI36/AW36)*BM36*BE36/U36*O36,4) -> 0.0081 | S36: Calculated Value | U36: 102 | V36: IL TRM v7 vol3 | W36: 190, 197 | X36: 10 | Y36: IL TRM v7 vol3 | Z36: 184 | AA36: Low Flow (GPM) | AB36: 1.5 | AC36: Program Tracking Data | AE36: Standard (GPM) | AF36: 1.63 | AG36: IL TRM v7 vol3 | AH36: 185194 | AI36: =ROUND(((AF36*AS36-AB36*AS36)*BA36*365.25*BI36/AW36)*BM36*BE36,4) | AJ36: =ROUND(((AF36*AS36-AB36*AS36)*BA36*365.25*BI36/AW36)*BM36*BE36/U36*O36,4) | AK36: IL TRM v7 vol3 | AL36: 175, 179 | AM36: 2021-01-01 | AS36: 4.5 | AT36: L_base = L_ee | AU36: IL TRM v7 vol3 | AV36: 186195 | AW36: 1 | AX36: FPH | AY36: IL TRM v7 vol3 | AZ36: 187 | BA36: 2.56 | BB36: Persons per household | BC36: IL TRM v7 vol3 | BD36: 187, 195 | BE36: 0.95 | BF36: Installation Rate | BG36: IL TRM v7 vol3 | BH36: 189, 196 | BI36: 0.75 | BJ36: DF | BK36: IL TRM v7 vol3 | BL36: 187 | BM36: 0.0969 | BN36: EPG_electric | BO36: IL TRM v7 vol3 | BP36: 188, 196
A37: Heating, Cooling & Home Comfort | B37: Pipe Insulated | C37: 10.2 | D37: Single Family | E37: Hot Water | F37: Kits | G37: per unit | H37: 18 | I37: IL TRM v5 vol3 | J37: 160 | K37: =ROUND(((((AS37*PI()*BA37)/AF37) - ((AW37*PI()*BA37)/AB37))*BE37)/BI37/3412,4) -> 72.065 | L37: Calculated Value | N37: =K37/8766 -> 0.008220967374 | O37: 1 | P37: Calculated Value | R37: =ROUND(K37/8766,4) -> 0.0082 | S37: Calculated Value | U37: 8766 | V37: IL TRM v5 vol3 | W37: 161 | X37: 15 | Y37: IL TRM v5 vol3 | Z37: 160 | AA37: Efficient R-Value due to added insulation | AB37: =1+5 -> 6 | AC37: Program Tracking Data | AE37: R-Value of bare pipe | AF37: 1 | AG37: IL TRM v5 vol3 | AH37: 161 | AI37: =ROUND(((((AS37*PI()*BA37)/AF37) - ((AW37*PI()*BA37)/AB37))*BE37)/BI37/3412,4) | AJ37: =ROUND(K37/8766,4) | AK37: IL TRM v5 vol3 | AL37: 161162 | AM37: 2020-01-01 | AN37: 2020-12-31 | AS37: =0.75/12 -> 0.0625 | AT37: Dbase = Pipe Diameter (ft) | AU37: IL TRM v5 vol3 | AV37: 161 | AW37: =(0.75+1*2)/12 -> 0.2291666667 | AX37: Dee = Updated Pipe Diameter, due to added insulation (ft) | AY37: IL TRM v5 vol3 | AZ37: 161 | BA37: 6 | BB37: Length of added pipe insulation | BC37: Program Tracking Data | BE37: =60*8766 -> 525960 | BF37: Pipe Insulated Coefficient 1 = ∆T * Hours = 60 * 8766 | BG37: IL TRM v5 vol3 | BH37: 161 | BI37: 0.98 | BJ37: Recovery efficiency of electric water heater | BK37: IL TRM v5 vol3 | BL37: 161
A38: Heating, Cooling & Home Comfort | B38: Pipe Insulated | C38: 10.3 | D38: Single Family | E38: Hot Water | F38: Kits | G38: per unit | H38: 18 | I38: IL TRM v7 vol3 | J38: 171 | K38: =ROUND(((AS38/AF38) - (AW38/AB38))*BA38*BE38*U38/BI38/3412,4) -> 123.1628 | L38: Calculated Value | N38: =K38/8766 -> 0.01405005704 | O38: 1 | P38: Calculated Value | R38: =ROUND(K38/8766,4) -> 0.0141 | S38: Calculated Value | U38: 8766 | V38: IL TRM v7 vol3 | W38: 172 | X38: 15 | Y38: IL TRM v7 vol3 | Z38: 171 | AA38: Efficient R-Value due to added insulation (R_new) | AB38: =1+5 -> 6 | AC38: Program Tracking Data | AE38: R-Value of bare pipe (R_exist) | AF38: 1 | AG38: IL TRM v7 vol3 | AH38: 172 | AI38: =ROUND(((AS38/AF38) - (AW38/AB38))*BA38*BE38*U38/BI38/3412,4) | AJ38: =ROUND(K38/8766,4) | AK38: IL TRM v7 vol3 | AL38: 171172 | AM38: 2021-01-01 | AS38: 0.196 | AT38: C_exist | AU38: IL TRM v7 vol3 | AV38: 172 | AW38: 0.393 | AX38: C_new | AY38: IL TRM v7 vol3 | AZ38: 172 | BA38: 6 | BB38: Length of added pipe insulation | BC38: Program Tracking Data | BE38: 60 | BF38: Temperature Difference | BG38: IL TRM v7 vol3 | BH38: 172 | BI38: 0.98 | BJ38: Water heater efficiency | BK38: IL TRM v7 vol3 | BL38: 172
A39: Heating, Cooling & Home Comfort | B39: Low Flow Showerhead | C39: 11.2 | D39: Single Family | E39: Hot Water | F39: Kits | G39: per unit | H39: 12 | I39: IL TRM v5 vol3 | J39: 183 | K39: =ROUND(((AF39-AB39)*AW39*BA39*365.25)*AS39*BE39,4) -> 327.9599 | L39: Calculated Value | N39: =K39/U39 -> 1.085959934 | O39: 0.0278 | P39: IL TRM v5 vol3 | Q39: 183 | R39: =ROUND((((AF39-AB39)*AW39*BA39*365.25)*AS39*BE39)/U39*O39,4) -> 0.0302 | S39: Calculated Value | U39: 302 | V39: IL TRM v5 vol3 | W39: 187 | X39: 10 | Y39: IL TRM v5 vol3 | Z39: 183 | AA39: Low Flow (GPM) | AB39: 1.5 | AC39: Program Tracking Data | AE39: Standard (GPM) | AF39: 2.67 | AG39: IL TRM v5 vol3 | AH39: 184 | AI39: =ROUND(((AF39-AB39)*AW39*BA39*365.25)*AS39*BE39,4) | AJ39: =ROUND((((AF39-AB39)*AW39*BA39*365.25)*AS39*BE39)/U39*O39,4) | AK39: IL TRM v5 vol3 | AL39: 184186 | AM39: 2020-01-01 | AN39: 2020-12-31 | AS39: 0.117 | AT39: kWh per gallon hot water | AU39: IL TRM v5 vol3 | AV39: 185 | AW39: 2.61452514 | AX39: Showerhead Coefficient: Minutes per day * Showers per day / Showers per household | AY39: IL TRM v5 vol3 | AZ39: 185 | BA39: 2.56 | BB39: Persons per household | BC39: IL TRM v5 vol3 | BD39: 185 | BE39: 0.98 | BF39: Installation Rate | BG39: IL TRM v5 vol3 | BH39: 186
A40: Heating, Cooling & Home Comfort | B40: Low Flow Showerhead | C40: 11.3 | D40: Single Family | E40: Hot Water | F40: Kits | G40: per unit | H40: 7 | I40: IL TRM v7 vol3 | J40: 193 | K40: =ROUND(((AF40*AS40-AB40*AS40)*BA40*365.25*AW40/BI40)*BM40*BE40,4) -> 207.4277 | L40: Calculated Value | N40: =K40/U40 -> 0.8134419608 | O40: 0.0278 | P40: IL TRM v7 vol3 | Q40: 190, 193 | R40: =ROUND(((AF40*AS40-AB40*AS40)*BA40*365.25*AW40/BI40)*BM40*BE40/U40*O40,4) -> 0.0226 | S40: Calculated Value | U40: 255 | V40: IL TRM v7 vol3 | W40: 190, 197 | X40: 10 | Y40: IL TRM v7 vol3 | Z40: 193 | AA40: Low Flow (GPM) | AB40: 1.5 | AC40: Program Tracking Data | AE40: Standard (GPM) | AF40: 2.24 | AG40: IL TRM v7 vol3 | AH40: 185, 194 | AI40: =ROUND(((AF40*AS40-AB40*AS40)*BA40*365.25*AW40/BI40)*BM40*BE40,4) | AJ40: =ROUND(((AF40*AS40-AB40*AS40)*BA40*365.25*AW40/BI40)*BM40*BE40/U40*O40,4) | AK40: IL TRM v7 vol3 | AL40: 194,197 | AM40: 2021-01-01 | AS40: 7.8 | AT40: L_base = L_ee | AU40: IL TRM v7 vol3 | AV40: 186195 | AW40: 0.6 | AX40: SCPD | AY40: IL TRM v7 vol3 | AZ40: 195 | BA40: 2.56 | BB40: Persons per household | BC40: IL TRM v7 vol3 | BD40: 187, 195 | BE40: 0.98 | BF40: Installation Rate | BG40: IL TRM v7 vol3 | BH40: 189, 196 | BI40: 1.79 | BJ40: SPH | BK40: IL TRM v7 vol3 | BL40: 195 | BM40: 0.117 | BN40: EPG_electric | BO40: IL TRM v7 vol3 | BP40: 188, 196
A41: Heating, Cooling & Home Comfort | B41: Water Heater Tank Wrap | C41: 12.1 | D41: Single Family | E41: Hot Water | F41: Kits | G41: per unit | H41: 20 | I41: Program Tracking Data | K41: =ROUND((AS41/AW41-BA41/BE41)*BI41*BM41/BQ41/BU41,4) -> 134.0948 | L41: Calculated Value | N41: =ROUND(0.0153,4) -> 0.0153 | O41: 1 | P41: IL TRM v7 vol3 | Q41: 203 | R41: =ROUND(K41/U41,4) -> 0.0153 | S41: Calculated Value | U41: 8766 | V41: IL TRM v7 vol3 | W41: 204 | X41: 5 | Y41: IL TRM v7 vol3 | Z41: 203 | AA41: Water heater insulation increased from R12 to R22, 50gal | AC41: IL TRM v7 vol3 | AD41: 204 | AE41: R12, 50-gal water heater insulation (no wrap) | AG41: IL TRM v7 vol3 | AH41: 204 | AI41: =ROUND((AS41/AW41-BA41/BE41)*BI41*BM41/BQ41/BU41,4) | AJ41: =ROUND(K41/U41,4) | AK41: IL TRM v7 vol3 | AL41: 203, 205 | AM41: 2020-01-01 | AS41: 24.99 | AT41: Abase | AU41: IL TRM v7 vol3 | AV41: 204 | AW41: 12 | AX41: Rbase | AY41: IL TRM v7 vol3 | AZ41: 204 | BA41: 27.06 | BB41: Ainsul | BC41: IL TRM v7 vol3 | BD41: 204 | BE41: 22 | BF41: Rinsul | BG41: IL TRM v7 vol3 | BH41: 204 | BI41: 60 | BJ41: deltaT | BK41: IL TRM v7 vol3 | BL41: 204 | BM41: 8766 | BN41: Hours | BO41: IL TRM v7 vol3 | BP41: 204 | BQ41: 0.98 | BR41: eta DHW | BS41: IL TRM v7 vol3 | BT41: 204 | BU41: 3412 | BV41: Conversion from BTU to kWh | BW41: IL TRM v7 vol3 | BX41: 204
A42: Heating, Cooling & Home Comfort | B42: Smart Power Strip - Wh7-Plug | C42: 13.2 | D42: Single Family | E42: Electronics | F42: Kits | G42: per unit | H42: 16 | I42: Program Tracking Data | K42: =ROUND(103,4) -> 103 | L42: Calculated Value | N42: =K42/U42 -> 0.01444802918 | O42: 0.8 | P42: IL TRM v7 vol3 | Q42: 59 | R42: =ROUND(0.0115,4) -> 0.0115 | S42: Calculated Value | U42: 7129 | V42: IL TRM v7 vol3 | W42: 58 | X42: 7 | Y42: IL TRM v7 vol3 | Z42: 57 | AA42: Smart strip | AC42: IL TRM v7 vol3 | AD42: 57 | AE42: Standard outlet strip | AG42: IL TRM v7 vol3 | AH42: 57 | AI42: =ROUND(103,4) | AJ42: =ROUND(0.0115,4) | AK42: IL TRM v7 vol3 | AL42: 57 | AM42: 2020-01-01
A43: Heating, Cooling & Home Comfort | B43: Air Sealing | C43: 14.3 | D43: Single Family | E43: HVAC - Shell | G43: per sq ft (floor area) | H43: 0.12 | I43: Program Tracking Data, with 50% co-delivery costs shared with Spire Missouri | K43: =ROUND((BQ43*((AF43-AB43)/BE43*AS43*BM43*AO43)/BA43)/BU43+(((AF43-AB43)/BI43*AS43*AP43)/AW43)/BU43,4) -> 0.4337 | L43: Calculated Value | N43: 0.0005876693767 | O43: 0.72 | P43: IL TRM v5 vol3 | Q43: 268 | R43: =ROUND((((BQ43*((AF43-AB43)/BE43*AS43*BM43*AO43)/BA43)/BU43)/U43)*O43,8) -> 8.182e-05 | S43: Calculated Value | U43: 738 | V43: EFLHcool, from 2017 MO TRM | W43: 122 | X43: 15 | Y43: IL TRM v5 vol3 | Z43: 267 | AA43: Efficient CFM | AB43: 3083.594156 | AC43: IL TRM v5 vol3 | AD43: 268 | AE43: Baseline CFM | AF43: 4342.996753 | AG43: IL TRM v5 vol3 | AH43: 268 | AI43: =ROUND((BQ43*((AF43-AB43)/BE43*AS43*BM43*AO43)/BA43)/BU43+(((AF43-AB43)/BI43*AS43*AP43)/AW43)/BU43,4) | AJ43: =ROUND((((BQ43*((AF43-AB43)/BE43*AS43*BM43*AO43)/BA43)/BU43)/U43)*O43,8) | AK43: IL TRM v5 vol3 | AL43: 268, 273 | AM43: 2020-01-01 | AN43: 2020-12-31 | AO43: 1445 | AP43: 5155 | AQ43: MO TRM and Navigant Analysis | AS43: 25.92 | AT43: Air Sealing Coefficient: 60 * 24 * 0.018 | AU43: IL TRM v5 vol3 | AV43: 269 | AW43: 6551.04 | AX43: Heating Coefficient: COP * 3,412 COP = 1.7 for units before 2006 COP = 1.92 for units between 2006-2014 COP = 2.4 for units after 2014 | AY43: IL TRM v5 vol3 | AZ43: 269 | BA43: 13000 | BB43: Cooling Coefficient | BC43: IL TRM v5 vol3: SEER * 1,000. SEER 10 for units before 2006 SEER 13 for units after 2006 | BD43: 269 | BE43: 35.8 | BF43: Ncool: Infiltration conversion factor | BG43: IL TRM v5 vol3 | BH43: 268 | BI43: 22.5 | BJ43: Nheat: Infiltration conversion factor | BK43: IL TRM v5 vol3 | BL43: 270 | BM43: 0.75 | BN43: DUA: Discretionary Use Adjustment | BO43: IL TRM v5 vol3 | BP43: 269 | BQ43: 3.6 | BR43: LM: Latent Cooling Multiplier | BS43: IL TRM v5 vol3 | BT43: 270 | BU43: 3263 | BV43: Square footage installed | BW43: Program tracking Data
A44: Heating, Cooling & Home Comfort | B44: Air Sealing | C44: 14.4 | D44: Single Family | E44: HVAC - Shell | G44: per sq ft (floor area) | H44: 0.12 | I44: Program Tracking Data, with 50% co-delivery costs shared with Spire Missouri | K44: =ROUND((BQ44*BY44*((AF44-AB44)/BE44*AS44*BM44*AO44)/BA44)/BU44+(((AF44-AB44)/BI44*AS44*AP44)/AW44)/BU44,4) -> 0.3857 | L44: Calculated Value | N44: 0.0005226287263 | O44: 0.68 | P44: IL TRM v7 vol3 | Q44: 296 | R44: =ROUND(((BQ44*BY44*((AF44-AB44)/BE44*AS44*BM44*AO44)/BA44)/BU44)/U44*O44,8) -> 6.872e-05 | S44: Calculated Value | U44: 738 | V44: EFLHcool, from 2017 MO TRM | W44: 122 | X44: 20 | Y44: IL TRM v7 vol3 | Z44: 295 | AA44: Efficient CFM | AB44: 3014 | AC44: Program Tracking Data | AE44: Baseline CFM | AF44: 4134 | AG44: Program Tracking Data | AI44: =ROUND((BQ44*BY44*((AF44-AB44)/BE44*AS44*BM44*AO44)/BA44)/BU44+(((AF44-AB44)/BI44*AS44*AP44)/AW44)/BU44,4) | AJ44: =ROUND(((BQ44*BY44*((AF44-AB44)/BE44*AS44*BM44*AO44)/BA44)/BU44)/U44*O44,8) | AK44: IL TRM v7 vol3 | AL44: 296, 301 | AM44: 2021-01-01 | AO44: 1445 | AP44: 5155 | AQ44: MO TRM and Navigant Analysis | AS44: =60*24*0.018 -> 25.92 | AT44: Air Sealing Coefficient: 60 * 24 * 0.018 | AU44: IL TRM v7 vol3 | AV44: 297 | AW44: =1.92*3412 -> 6551.04 | AX44: Heating Coefficient: COP * 3,412 COP = 1.7 for units before 2006 COP = 1.92 for units between 2006-2014 COP = 2.4 for units after 2014 | AY44: IL TRM v7 vol3 | AZ44: 299 | BA44: 13000 | BB44: Cooling Coefficient: SEER * 1,000. | BC44: IL TRM v7 vol3 SEER 10 for units before 2006 SEER 13 for units after 2006 | BD44: 296 | BE44: 35.8 | BF44: Ncool: Infiltration conversion factor | BG44: IL TRM v7 vol3 | BH44: 296 | BI44: 22.5 | BJ44: Nheat: Infiltration conversion factor | BK44: IL TRM v7 vol3 | BL44: 298 | BM44: 0.75 | BN44: DUA: Discretionary Use Adjustment | BO44: IL TRM v7 vol3 | BP44: 297 | BQ44: 3.6 | BR44: LM: Latent Cooling Multiplier | BS44: IL TRM v7 vol3 | BT44: 297 | BU44: 3263 | BV44: Square footage installed | BW44: Program tracking Data | BY44: 1 | BZ44: ADJ Air Sealing Cool | CA44: IL TRM v7 vol3 | CB44: 298
A45: Heating, Cooling & Home Comfort | B45: Increased Ceiling Insulation | C45: 15.3 | D45: Single Family | E45: HVAC - Shell | G45: per sq ft (ceiling area) | H45: 0.76 | I45: Program Tracking Data, with 50% co-delivery costs shared with Spire Missouri | K45: =ROUND(((((1/AF45-1/AB45)*(1-BE45)*24*AO45*BA45)/AW45)*BI45)+((((1/AF45-1/AB45)*(1-BE45)*24*AP45)/AS45)*BM45),4) -> 0.4028 | L45: Calculated Value | N45: 0.000545799458 | O45: 0.7 | P45: IL TRM v5 vol3 | Q45: 293 | R45: =ROUND((((((1/AF45-1/AB45)*(1-BE45)*24*AO45*BA45)/AW45)*BI45)/U45)*O45,8) -> 4.728e-05 | S45: Calculated Value | U45: 738 | V45: EFLHcool, from 2017 MO TRM | W45: 122 | X45: 25 | Y45: IL TRM v5 vol3 | Z45: 293 | AA45: Final R-value | AB45: 41.03164557 | AC45: Program Tracking Data | AE45: Previous R-value | AF45: 17.28280255 | AG45: Program Tracking Data | AI45: =ROUND(((((1/AF45-1/AB45)*(1-BE45)*24*AO45*BA45)/AW45)*BI45)+((((1/AF45-1/AB45)*(1-BE45)*24*AP45)/AS45)*BM45),4) | AJ45: =ROUND((((((1/AF45-1/AB45)*(1-BE45)*24*AO45*BA45)/AW45)*BI45)/U45)*O45,8) | AK45: IL TRM v5 vol3 | AL45: 294, 297 | AM45: 2020-01-01 | AN45: 2020-12-31 | AO45: 1445 | AP45: 5155 | AQ45: MO TRM and Navigant Analysis | AS45: 6551.04 | AT45: Heating Coefficient: COP * 3,412 COP = 1.7 for units before 2006 COP = 1.92 for units between 2006-2014 COP = 2.4 for units after 2014 | AU45: IL TRM v5 vol3 | AV45: 296 | AW45: 13000 | AX45: Cooling Coefficient | AY45: IL TRM v5 vol3: SEER * 1,000. SEER 10 for units before 2006 SEER 13 for units after 2006 | AZ45: 295 | BA45: 0.75 | BB45: DUA: Discretionary Use Adjustment | BC45: IL TRM v5 vol3 | BD45: 295 | BE45: 0.07 | BF45: Framing Factor, Ceiling | BG45: IL TRM v5 vol3 | BH45: 294 | BI45: 0.8 | BJ45: ADJcool: adjustment for cooling savings from basement wall insulation | BK45: IL TRM v5 vol3 | BL45: 295 | BM45: 0.6 | BN45: ADJheat: adjustment for wall and attic insulation | BO45: IL TRM v5 vol3 | BP45: 296
A46: Heating, Cooling & Home Comfort | B46: Increased Ceiling Insulation | C46: 15.4 | D46: Single Family | E46: HVAC - Shell | G46: per sq ft (ceiling area) | H46: 0.76 | I46: Program Tracking Data, with 50% co-delivery costs shared with Spire Missouri | K46: =ROUND(((((1/AF46-1/AB46)*(1-BE46)*24*AO46*BA46)/AW46)*BI46)+((((1/AF46-1/AB46)*(1-BE46)*24*AP46)/AS46)*BM46),4) -> 0.4283 | L46: Calculated Value | N46: 0.0005803523035 | O46: 0.7 | P46: IL TRM v7 vol3 | Q46: 327 | R46: =ROUND((((((1/AF46-1/AB46)*(1-BE46)*24*AO46*BA46)/AW46)*BI46)/U46)*O46,8) -> 7.152e-05 | S46: Calculated Value | U46: 738 | V46: EFLHcool, from 2017 MO TRM | W46: 122 | X46: 20 | Y46: IL TRM v7 vol3 | Z46: 327 | AA46: Final R-value | AB46: 41.03164557 | AC46: Program Tracking Data | AE46: Previous R-value | AF46: 17.28280255 | AG46: Program Tracking Data | AI46: =ROUND(((((1/AF46-1/AB46)*(1-BE46)*24*AO46*BA46)/AW46)*BI46)+((((1/AF46-1/AB46)*(1-BE46)*24*AP46)/AS46)*BM46),4) | AJ46: =ROUND((((((1/AF46-1/AB46)*(1-BE46)*24*AO46*BA46)/AW46)*BI46)/U46)*O46,8) | AK46: IL TRM v7 vol3 | AL46: 328331 | AM46: 2021-01-01 | AO46: 1445 | AP46: 5155 | AQ46: MO TRM and Navigant Analysis | AS46: =1.92*3412 -> 6551.04 | AT46: Heating Coefficient: COP * 3,412 COP = 1.7 for units before 2006 COP = 1.92 for units between 2006-2014 COP = 2.4 for units after 2014 | AU46: IL TRM v7 vol3 | AV46: 330 | AW46: 13000 | AX46: Cooling Coefficient | AY46: IL TRM v7 vol3: SEER * 1,000. SEER 10 for units before 2006 SEER 13 for units after 2006 | AZ46: 329 | BA46: 0.75 | BB46: DUA: Discretionary Use Adjustment | BC46: IL TRM v7 vol3 | BD46: 329 | BE46: 0.07 | BF46: Framing Factor, Ceiling | BG46: IL TRM v7 vol3 | BH46: 328 | BI46: 1.21 | BJ46: ADJcool: adjustment for cooling savings from basement wall insulation | BK46: IL TRM v7 vol3 | BL46: 329 | BM46: 0.6 | BN46: ADJheat: adjustment for wall and attic insulation | BO46: IL TRM v7 vol3 | BP46: 330
A47: Heating, Cooling & Home Comfort | B47: Increased Wall Insulation | C47: 16.3 | D47: Single Family | E47: HVAC - Shell | G47: per sq ft (wall area) | H47: 1.32 | I47: Program Tracking Data, with 50% co-delivery costs shared with Spire Missouri | K47: =ROUND(((((1/AF47-1/AB47)*(1-BE47)*24*AO47*BA47)/AW47)*BI47)+((((1/AF47-1/AB47)*(1-BE47)*24*AP47)/AS47)*BM47),4) -> 0.8476 | L47: Calculated Value | N47: 0.001148509485 | O47: 0.7 | P47: IL TRM v5 vol3 | Q47: 293 | R47: =ROUND((((((1/AF47-1/AB47)*(1-BE47)*24*AO47*BA47)/AW47)*BI47)/U47)*O47,8) -> 9.951e-05 | S47: Calculated Value | U47: 738 | V47: EFLHcool, from 2017 MO TRM | W47: 122 | X47: 25 | Y47: IL TRM v5 vol3 | Z47: 293 | AA47: Final R-value | AB47: 17.23484848 | AC47: Program Tracking Data | AE47: Previous R-value | AF47: 6.876923077 | AG47: Program Tracking Data | AI47: =ROUND(((((1/AF47-1/AB47)*(1-BE47)*24*AO47*BA47)/AW47)*BI47)+((((1/AF47-1/AB47)*(1-BE47)*24*AP47)/AS47)*BM47),4) | AJ47: =ROUND((((((1/AF47-1/AB47)*(1-BE47)*24*AO47*BA47)/AW47)*BI47)/U47)*O47,8) | AK47: IL TRM v5 vol3 | AL47: 294, 297 | AM47: 2020-01-01 | AN47: 2020-12-31 | AO47: 1445 | AP47: 5155 | AQ47: MO TRM and Navigant Analysis | AS47: 6551.04 | AT47: Heating Coefficient: COP * 3,412 COP = 1.7 for units before 2006 COP = 1.92 for units between 2006-2014 COP = 2.4 for units after 2014 | AU47: IL TRM v5 vol3 | AV47: 296 | AW47: 13000 | AX47: Cooling Coefficient | AY47: IL TRM v5 vol3: SEER * 1,000. SEER 10 for units before 2006 SEER 13 for units after 2006 | AZ47: 295 | BA47: 0.75 | BB47: DUA: Discretionary Use Adjustment | BC47: IL TRM v5 vol3 | BD47: 295 | BE47: 0.25 | BF47: Framing Factor, Wall | BG47: IL TRM v5 vol3 | BH47: 294 | BI47: 0.8 | BJ47: ADJcool: adjustment for cooling savings from basement wall insulation | BK47: IL TRM v5 vol3 | BL47: 295 | BM47: 0.6 | BN47: ADJheat: adjustment for wall and attic insulation | BO47: IL TRM v5 vol3 | BP47: 296
A48: Heating, Cooling & Home Comfort | B48: Increased Wall Insulation | C48: 16.4 | D48: Single Family | E48: HVAC - Shell | G48: per sq ft (wall area) | H48: 1.32 | I48: Program Tracking Data, with 50% co-delivery costs shared with Spire Missouri | K48: =ROUND(((((1/AF48-1/AB48)*(1-BE48)*24*AO48*BA48)/AW48)*BI48)+((((1/AF48-1/AB48)*(1-BE48)*24*AP48)/AS48)*BM48),4) -> 0.8476 | L48: Calculated Value | N48: 0.001148509485 | O48: 0.7 | P48: IL TRM v7 vol3 | Q48: 320 | R48: =ROUND((((((1/AF48-1/AB48)*(1-BE48)*24*AO48*BA48)/AW48)*BI48)/U48)*O48,8) -> 9.951e-05 | S48: Calculated Value | U48: 738 | V48: EFLHcool, from 2017 MO TRM | W48: 122 | X48: 20 | Y48: IL TRM v7 vol3 | Z48: 320 | AA48: Final R-value | AB48: 17.23484848 | AC48: Program Tracking Data | AE48: Previous R-value | AF48: 6.876923077 | AG48: Program Tracking Data | AI48: =ROUND(((((1/AF48-1/AB48)*(1-BE48)*24*AO48*BA48)/AW48)*BI48)+((((1/AF48-1/AB48)*(1-BE48)*24*AP48)/AS48)*BM48),4) | AJ48: =ROUND((((((1/AF48-1/AB48)*(1-BE48)*24*AO48*BA48)/AW48)*BI48)/U48)*O48,8) | AK48: IL TRM v7 vol3 | AL48: 321324 | AM48: 2021-01-01 | AO48: 1445 | AP48: 5155 | AQ48: MO TRM and Navigant Analysis | AS48: =1.92*3412 -> 6551.04 | AT48: Heating Coefficient: COP * 3,412 COP = 1.7 for units before 2006 COP = 1.92 for units between 2006-2014 COP = 2.4 for units after 2014 | AU48: IL TRM v7 vol3 | AV48: 323 | AW48: 13000 | AX48: Cooling Coefficient | AY48: IL TRM v7 vol3: SEER * 1,000. SEER 10 for units before 2006 SEER 13 for units after 2006 | AZ48: 322 | BA48: 0.75 | BB48: DUA: Discretionary Use Adjustment | BC48: IL TRM v7 vol3 | BD48: 322 | BE48: 0.25 | BF48: Framing Factor, Wall | BG48: IL TRM v7 vol3 | BH48: 321 | BI48: 0.8 | BJ48: ADJcool: adjustment for cooling savings from basement wall insulation | BK48: IL TRM v7 vol3 | BL48: 322 | BM48: 0.6 | BN48: ADJheat: adjustment for wall and attic insulation | BO48: IL TRM v7 vol3 | BP48: 323
A49: Heating, Cooling & Home Comfort | B49: Heat Pump Ductless Mini Split | C49: 20.3 | D49: Single Family | E49: All | G49: per unit | H49: 3787.974684 | I49: IL TRM v5 vol3 | J49: 134 | K49: =ROUND((BM49*AS49*(1/AF49-1/AB49))/1000+(BQ49*AS49*(1/BA49-1/AW49)/1000),4) -> 2135.9704 | L49: Calculated Value | N49: 2.894268835 | O49: 0.43 | P49: IL TRM v5 vol3 | Q49: 135 | R49: =ROUND((AS49*(1/BI49-1/BE49)/1000)*O49,4) -> 0.1999 | S49: Calculated Value | U49: 738 | V49: MO TRM 2017 vol 3 | W49: 85 | X49: 18 | Y49: IL TRM v5 vol3 | Z49: 134 | AA49: SEER | AB49: 22.94 | AC49: per PY2018 Metadata | AE49: SEER | AF49: 9.12 | AG49: IL TRM v5 vol3 | AH49: 137 | AI49: =ROUND((BM49*AS49*(1/AF49-1/AB49))/1000+(BQ49*AS49*(1/BA49-1/AW49)/1000),4) | AJ49: =ROUND((AS49*(1/BI49-1/BE49)/1000)*O49,4) | AK49: IL TRM v5 vol3 | AL49: 136138 | AM49: 2020-01-01 | AN49: 2020-04-30 | AS49: 12000 | AT49: Allows for Capacity input in Tons; converts tons to BTUs | AW49: 11.12424242 | AX49: HSPFee | AY49: Calculated per PY2018 Metadata | BA49: 5.44 | BB49: HSPFbase | BC49: IL TRM v5 vol3 | BD49: 136 | BE49: 12.78461538 | BF49: EERee | BG49: Calculated per PY2016 Metadata | BI49: 8.55 | BJ49: EERbase | BK49: IL TRM v5 vol3 | BL49: 138 | BM49: 738 | BN49: EFLHcool | BO49: 2017 MO TRM, vol 3 | BP49: 85 | BQ49: 1376 | BR49: EFLHheat | BS49: The EFLH Cooling and Heating hours are based on a EnergyStar study that was normalized (based on HDD and CDD) to Kansas City. This was for both AC and HP units.
A50: Heating, Cooling & Home Comfort | B50: Heat Pump Ductless Mini Split | C50: 20.4 | D50: Single Family | E50: All | G50: per unit | H50: 3787.974684 | I50: IL TRM v7 vol3 | J50: 138 | K50: =ROUND((BM50*AS50*(1/AF50-1/AB50))/1000+(BQ50*AS50*(1/BA50-1/AW50)/1000),4) -> 1655.2989 | L50: Calculated Value | N50: 2.242952439 | O50: 0.43 | P50: IL TRM v7 vol3 | Q50: 139 | R50: =ROUND((AS50*(1/BI50-1/BE50)/1000)*O50,4) -> 0.0655 | S50: Calculated Value | U50: 738 | V50: MO TRM 2017 vol 3 | W50: 85 | X50: 15 | Y50: IL TRM v7 vol3 | Z50: 138 | AA50: SEER | AB50: 22.94 | AC50: per PY2018 Metadata | AE50: SEER | AF50: 13 | AG50: IL TRM v7 vol3 | AH50: 142 | AI50: =ROUND((BM50*AS50*(1/AF50-1/AB50))/1000+(BQ50*AS50*(1/BA50-1/AW50)/1000),4) | AJ50: =ROUND((AS50*(1/BI50-1/BE50)/1000)*O50,4) | AK50: IL TRM v7 vol3 | AL50: 140143 | AM50: 2020-05-01 | AS50: 12000 | AT50: Allows for Capacity input in Tons; converts tons to BTUs | AW50: 11.12424242 | AX50: HSPFee | AY50: Calculated per PY2018 Metadata | BA50: =(8.2+3.41)/2 -> 5.805 | BB50: HSPFbase | BC50: IL TRM v7 vol3 | BD50: 141 (average of two unit types) | BE50: 12.78461538 | BF50: EERee | BG50: Calculated per PY2016 Metadata | BI50: 11 | BJ50: EERbase | BK50: IL TRM v7 vol3 | BL50: 143 | BM50: 738 | BN50: EFLHcool | BO50: 2017 MO TRM, vol 3 | BP50: 85 | BQ50: 1376 | BR50: EFLHheat | BS50: The EFLH Cooling and Heating hours are based on a EnergyStar study that was normalized (based on HDD and CDD) to Kansas City. This was for both AC and HP units.
A51: Heating, Cooling & Home Comfort | B51: CAC SEER 15 | C51: 21.3 | D51: Single Family | E51: HVAC | G51: per ton | H51: 238 | I51: IL TRM v7 vol3 | J51: 77 | K51: =ROUND((BE51*AW51*(1/AF51-1/AB51))/1000,4) -> 95.5165 | L51: Calculated Value | N51: 0.1294261518 | O51: 0.68 | P51: IL TRM v7 vol3 | Q51: 81 | R51: =ROUND(((AW51*((1/BA51)-(1/AS51)))/1000)*O51,4) -> 0.0685 | S51: Calculated Value | U51: 738 | V51: EFLHcool, from 2017 MO TRM | W51: 122 | X51: 18 | Y51: IL TRM v7 vol3 | Z51: 77 | AA51: SEER | AB51: 15.12 | AC51: Based on SEER value of efficient equipment | AE51: SEER | AF51: 13 | AG51: IL TRM v7 vol3 | AH51: 79 | AI51: =ROUND((BE51*AW51*(1/AF51-1/AB51))/1000,4) | AJ51: =ROUND(((AW51*((1/BA51)-(1/AS51)))/1000)*O51,4) | AK51: IL TRM v7 vol3 | AL51: 78 | AM51: 2020-01-01 | AN51: 2020-04-30 | AS51: 12.362112 | AT51: EERee | AU51: Based on calculation from SEER of installed equipment | AW51: 12000 | AX51: Allows for Capacity input in Tons; converts tons to BTUs | BA51: 11.2 | BB51: EERbase | BC51: IL TRM v7 vol3 | BD51: 81 | BE51: 738 | BF51: EFLHcool | BG51: EFLHcool, from 2017 MO TRM | BH51: 122 | BI51: 1376 | BJ51: EFLHheat | BK51: The EFLH Cooling and Heating hours are based on a EnergyStar study that was normalized (based on HDD and CDD) to Kansas City. This was for both AC and HP units.
A52: Heating, Cooling & Home Comfort | B52: CAC SEER 15 | C52: 21.4 | D52: Single Family | E52: HVAC | G52: per ton | H52: =108/3.5 -> 30.85714286 | I52: IL TRM v7 vol3 | J52: 77 | K52: =ROUND((BE52*AW52*(1/((1-BU52)*AF52)-1/((1-BY52)*(CC52)*AB52)))/1000,4) -> 122.1065 | L52: Calculated Value | N52: 0.1654559621 | O52: 0.68 | P52: IL TRM v7 vol3 | Q52: 81 | R52: =ROUND(((AW52*((1/((1-BU52)*BA52))-(1/((1-BY52)*AS52))))/1000)*O52,4) -> 0.1301 | S52: Calculated Value | U52: 738 | V52: EFLHcool, from 2017 MO TRM Vol. 3 | W52: 122 | X52: 18 | Y52: IL TRM v7 vol3 | Z52: 77 | AA52: SEERee | AB52: 15.12 | AC52: Average SEER value of equipment installed in portfolio | AE52: SEERbase | AF52: 13 | AG52: IL TRM v7 vol3 | AH52: 79 | AI52: =ROUND((BE52*AW52*(1/((1-BU52)*AF52)-1/((1-BY52)*(CC52)*AB52)))/1000,4) | AJ52: =ROUND(((AW52*((1/((1-BU52)*BA52))-(1/((1-BY52)*AS52))))/1000)*O52,4) | AK52: IL TRM v7 vol3 | AL52: 78, 80 | AM52: 2020-05-01 | AS52: =1.12*AB52-0.02*AB52^2 -> 12.362112 | AT52: EERee | AU52: Calculated value | AW52: 12000 | AX52: Allows for Capacity input in Tons; converts tons to BTUs | BA52: 10.5 | BB52: EERbase | BC52: IL TRM v7 vol3 | BD52: 81 | BE52: 738 | BF52: EFLHcool | BG52: EFLHcool, from 2017 MO TRM Vol. 3 | BH52: 122 | BI52: 1376 | BJ52: EFLHheat | BK52: The EFLH Cooling and Heating hours are based on a EnergyStar study that was normalized (based on HDD and CDD) to Kansas City. This was for both AC and HP units. | BU52: 0.1 | BV52: DeratingCoolBase | BW52: IL TRM v7 vol3 | BX52: 80 | BY52: 0.1 | BZ52: DeratingCoolEff | CA52: IL TRM v7 vol3 | CB52: 80 | CC52: =0.805*(AS52/AB52)+0.367 -> 1.025168 | CD52: SEERadj | CE52: Caclulated value, using alhgorthim from IL TRM v7 vol3 | CF52: 79,80
A53: Heating, Cooling & Home Comfort | B53: CAC SEER 15 - Early Replacement | C53: 22.3 | D53: Single Family | E53: HVAC | G53: per ton | H53: =DA53+DE53/DM53-DI53/DM53*(1+CW53)^(-X53) -> 231.514124 | I53: IL TRM v7 vol3 | J53: 77 | K53: =ROUND((BE53*AW53*(1/AF53-1/AB53))/1000,4) -> 301.0455 | L53: Calculated Value | N53: 0.4079207317 | O53: 0.68 | P53: IL TRM v7 vol3 | Q53: 81 | R53: =ROUND(((AW53*((1/BA53)-(1/AS53)))/1000)*O53,4) -> 0.2277 | S53: Calculated Value | U53: 738 | V53: EFLHcool, from 2017 MO TRM | W53: 122 | X53: 6 | Y53: IL TRM v7 vol3 | Z53: 77 | AA53: SEER | AB53: 15.15 | AC53: Based on SEER value of efficient equipment | AE53: SEER | AF53: 10 | AG53: IL TRM v7 vol3 | AH53: 79 | AI53: =ROUND((BE53*AW53*(1/AF53-1/AB53))/1000,4) | AJ53: =ROUND(((AW53*((1/BA53)-(1/AS53)))/1000)*O53,4) | AK53: IL TRM v7 vol3 | AL53: 78 | AM53: 2020-01-01 | AN53: 2020-04-30 | AS53: 12.37755 | AT53: EERee | AU53: Based on calculation from SEER of installed equipment | AW53: 12000 | AX53: Allows for Capacity input in Tons; converts tons to BTUs | BA53: 9.2 | BB53: EERexist | BC53: IL TRM v7 vol3 | BD53: 81 | BE53: 738 | BF53: EFLHcool | BG53: EFLHcool, from 2017 MO TRM | BH53: 122 | BI53: 1376 | BJ53: EFLHheat | BK53: The EFLH Cooling and Heating hours are based on a EnergyStar study that was normalized (based on HDD and CDD) to Kansas City. This was for both AC and HP units. | CW53: 0.03 | CX53: Societal Discount Rate | CY53: Evergy Standard | DA53: 952 | DB53: First Cost $/ton | DC53: IL TRM v7 vol3 | DD53: 77 | DE53: 108 | DF53: One-time per-system labor cost | DG53: IL TRM v7 vol3 | DH53: 77 | DI53: 3140 | DJ53: Deferred cost savings, per UNIT | DK53: IL TRM v7 vol3 | DL53: 78 | DM53: 3.5 | DN53: Assumed average system tons | DO53: Tracking Data
A54: Heating, Cooling & Home Comfort | B54: CAC SEER 15 - Early Replacement | C54: 22.4 | D54: Single Family | E54: HVAC | G54: per ton | H54: =DA54+DE54/DM54-DI54/DM54*(1+CW54)^(-X54) -> 231.514124 | I54: IL TRM v7 vol3 | J54: 77 | K54: =ROUND((BE54*AW54*(1/((1-BU54)*AF54)-1/((1-BY54)*(CC54)*AB54)))/1000,4) -> 424.2064 | L54: Calculated Value | N54: 0.5748054201 | O54: 0.68 | P54: IL TRM v7 vol3 | Q54: 78 | R54: =ROUND(((AW54*((1/((1-BU54)*BA54))-(1/((1-BY54)*AS54))))/1000)*O54,4) -> 0.4764 | S54: Calculated Value | U54: 738 | V54: EFLHcool, from 2017 MO TRM Vol. 3 | W54: 122 | X54: 6 | Y54: IL TRM v7 vol3 | Z54: 77 | AA54: SEERee | AB54: 15.15 | AC54: Average SEER value of equipment installed in portfolio | AE54: SEERexist | AF54: 9.3 | AG54: IL TRM v7 vol3 | AH54: 79 | AI54: =ROUND((BE54*AW54*(1/((1-BU54)*AF54)-1/((1-BY54)*(CC54)*AB54)))/1000,4) | AJ54: =ROUND(((AW54*((1/((1-BU54)*BA54))-(1/((1-BY54)*AS54))))/1000)*O54,4) | AK54: IL TRM v7 vol3 | AL54: 78, 80 | AM54: 2020-05-01 | AS54: =1.12*AB54-0.02*AB54^2 -> 12.37755 | AT54: EERee | AU54: Calculated value | AW54: 12000 | AX54: Allows for Capacity input in Tons; converts tons to BTUs | BA54: 7.5 | BB54: EERexist | BC54: IL TRM v7 vol3 | BD54: 81 | BE54: 738 | BF54: EFLHcool | BG54: EFLHcool, from 2017 MO TRM Vol. 3 | BH54: 122 | BI54: 1376 | BJ54: EFLHheat | BK54: The EFLH Cooling and Heating hours are based on a EnergyStar study that was normalized (based on HDD and CDD) to Kansas City. This was for both AC and HP units. | BU54: 0.1 | BV54: DeratingCoolBase | BW54: IL TRM v7 vol3 | BX54: 80 | BY54: 0.1 | BZ54: DeratingCoolEff | CA54: IL TRM v7 vol3 | CB54: 80 | CC54: =0.805*(AS54/AB54)+0.367 -> 1.024685 | CD54: SEERadj | CE54: Caclulated value, using alhgorthim from IL TRM v7 vol3 | CF54: 79,80 | CW54: 0.03 | CX54: Societal Discount Rate | CY54: Evergy Standard | DA54: 952 | DB54: First Cost $/ton | DC54: IL TRM v7 vol3 | DD54: 77 | DE54: 108 | DF54: One-time per-system labor cost | DG54: IL TRM v7 vol3 | DH54: 77 | DI54: 3140 | DJ54: Deferred cost savings, per UNIT | DK54: IL TRM v7 vol3 | DL54: 78 | DM54: 3.5 | DN54: Assumed average system tons | DO54: Tracking Data
A55: Heating, Cooling & Home Comfort | B55: CAC SEER 15 - Early Replacement (future) | C55: 23.3 | D55: Single Family | E55: HVAC | G55: per ton | H55: 0 | I55: IL TRM v7 vol3 | J55: 77 | K55: =ROUND((BM55*AW55*(1/BE55-1/AB55))/1000,4) -> 96.6763 | L55: Calculated Value | N55: 0.1309976965 | O55: 0.68 | P55: IL TRM v7 vol3 | Q55: 81 | R55: =ROUND(((AW55*((1/BI55)-(1/AS55)))/1000)*O55,4) -> 0.0693 | S55: Calculated Value | U55: 738 | V55: EFLHcool, from 2017 MO TRM | W55: 122 | X55: 12 | Y55: IL TRM v7 vol3 | Z55: 77 | AA55: SEER | AB55: 15.15 | AC55: Based on SEER value of efficient equipment | AE55: =BF55 -> SEERbase | AF55: =BE55 -> 13 | AG55: IL TRM v7 vol3 | AH55: 79 | AI55: =ROUND((BM55*AW55*(1/BE55-1/AB55))/1000,4) | AJ55: =ROUND(((AW55*((1/BI55)-(1/AS55)))/1000)*O55,4) | AK55: IL TRM v7 vol3 | AL55: 78 | AM55: 2020-01-01 | AN55: 2020-04-30 | AS55: 12.37755 | AT55: EERee | AU55: Based on calculation from SEER of installed equipment | AW55: 12000 | AX55: Allows for Capacity input in Tons; converts tons to BTUs | BE55: 13 | BF55: SEERbase | BG55: IL TRM v7 vol3 | BH55: 79 | BI55: 11.2 | BJ55: EERbase | BK55: IL TRM v7 vol3 | BL55: 81 | BM55: 738 | BN55: EFLHcool | BO55: EFLHcool, from 2017 MO TRM | BP55: 122 | BQ55: 1376 | BR55: EFLHheat | BS55: The EFLH Cooling and Heating hours are based on a EnergyStar study that was normalized (based on HDD and CDD) to Kansas City. This was for both AC and HP units. | CW55: 0.03 | CX55: Societal Discount Rate | CY55: Evergy Standard | DA55: 952 | DB55: First Cost $/ton | DC55: IL TRM v7 vol3 | DD55: 77 | DE55: 108 | DF55: One-time per-system labor cost | DG55: IL TRM v7 vol3 | DH55: 77 | DI55: 3140 | DJ55: Deferred cost savings, per UNIT | DK55: IL TRM v7 vol3 | DL55: 78 | DM55: 3.5 | DN55: Assumed average system tons | DO55: Tracking Data
A56: Heating, Cooling & Home Comfort | B56: CAC SEER 15 - Early Replacement (future) | C56: 23.4 | D56: Single Family | E56: HVAC | G56: per ton | H56: 0 | I56: IL TRM v7 vol3 | J56: 77 | K56: =ROUND((BM56*AW56*(1/((1-BU56)*BE56)-1/((1-BY56)*(CC56)*AB56)))/1000,4) -> 123.0649 | L56: Calculated Value | N56: 0.166754607 | O56: 0.68 | P56: IL TRM v7 vol3 | Q56: 78 | R56: =ROUND(((AW56*((1/((1-BU56)*BI56))-(1/((1-BY56)*AS56))))/1000)*O56,4) -> 0.131 | S56: Calculated Value | U56: 738 | V56: EFLHcool, from 2017 MO TRM Vol. 3 | W56: 122 | X56: 12 | Y56: IL TRM v7 vol3 | Z56: 77 | AA56: SEERee | AB56: 15.15 | AC56: Average SEER value of equipment installed in portfolio | AE56: =BF56 -> SEERbase | AF56: =BE56 -> 13 | AG56: IL TRM v7 vol3 | AH56: 79 | AI56: =ROUND((BM56*AW56*(1/((1-BU56)*BE56)-1/((1-BY56)*(CC56)*AB56)))/1000,4) | AJ56: =ROUND(((AW56*((1/((1-BU56)*BI56))-(1/((1-BY56)*AS56))))/1000)*O56,4) | AK56: IL TRM v7 vol3 | AL56: 78, 80, 81 | AM56: 2020-05-01 | AS56: =1.12*AB56-0.02*AB56^2 -> 12.37755 | AT56: EERee | AU56: Calculated value | AW56: 12000 | AX56: Allows for Capacity input in Tons; converts tons to BTUs | BE56: 13 | BF56: SEERbase | BG56: IL TRM v7 vol3 | BH56: 79 | BI56: 10.5 | BJ56: EERbase | BK56: IL TRM v7 vol3 | BL56: 81 | BM56: 738 | BN56: EFLHcool | BO56: EFLHcool, from 2017 MO TRM Vol. 3 | BP56: 122 | BQ56: 1376 | BR56: EFLHheat | BS56: The EFLH Cooling and Heating hours are based on a EnergyStar study that was normalized (based on HDD and CDD) to Kansas City. This was for both AC and HP units. | BU56: 0.1 | BV56: DeratingCoolBase | BW56: IL TRM v7 vol3 | BX56: 80 | BY56: 0.1 | BZ56: DeratingCoolEff | CA56: IL TRM v7 vol3 | CB56: 80 | CC56: =0.805*(AS56/AB56)+0.367 -> 1.024685 | CD56: SEERadj | CE56: Caclulated value, using alhgorthim from IL TRM v7 vol3 | CF56: 79,80 | CW56: 0.03 | CX56: Societal Discount Rate | CY56: Evergy Standard | DA56: 952 | DB56: First Cost $/ton | DC56: IL TRM v7 vol3 | DD56: 77 | DE56: 108 | DF56: One-time per-system labor cost | DG56: IL TRM v7 vol3 | DH56: 77 | DI56: 3140 | DJ56: Deferred cost savings, per UNIT | DK56: IL TRM v7 vol3 | DL56: 78 | DM56: 3.5 | DN56: Assumed average system tons | DO56: Tracking Data
A57: Heating, Cooling & Home Comfort | B57: CAC SEER 16 | C57: 24.3 | D57: Single Family | E57: HVAC | G57: per ton | H57: 357 | I57: IL TRM v7 vol3 | J57: 77 | K57: =ROUND((BE57*AW57*(1/AF57-1/AB57))/1000,4) -> 144.5035 | L57: Calculated Value | N57: 0.1958042005 | O57: 0.68 | P57: IL TRM v7 vol3 | Q57: 81 | R57: =ROUND(((AW57*((1/BA57)-(1/AS57)))/1000)*O57,4) -> 0.1026 | S57: Calculated Value | U57: 738 | V57: EFLHcool, from 2017 MO TRM | W57: 122 | X57: 18 | Y57: IL TRM v7 vol3 | Z57: 77 | AA57: SEER | AB57: 16.5 | AC57: Based on SEER value of efficient equipment | AE57: SEER | AF57: 13 | AG57: IL TRM v7 vol3 | AH57: 79 | AI57: =ROUND((BE57*AW57*(1/AF57-1/AB57))/1000,4) | AJ57: =ROUND(((AW57*((1/BA57)-(1/AS57)))/1000)*O57,4) | AK57: IL TRM v7 vol3 | AL57: 78 | AM57: 2020-01-01 | AN57: 2020-04-30 | AS57: 13.035 | AT57: EERee | AU57: Based on calculation from SEER of installed equipment | AW57: 12000 | AX57: Allows for Capacity input in Tons; converts tons to BTUs | BA57: 11.2 | BB57: EERbase | BC57: IL TRM v7 vol3 | BD57: 81 | BE57: 738 | BF57: EFLHcool | BG57: EFLHcool, from 2017 MO TRM | BH57: 122 | BI57: 1376 | BJ57: EFLHheat | BK57: The EFLH Cooling and Heating hours are based on a EnergyStar study that was normalized (based on HDD and CDD) to Kansas City. This was for both AC and HP units.
A58: Heating, Cooling & Home Comfort | B58: CAC SEER 16 | C58: 24.4 | D58: Single Family | E58: HVAC | G58: per ton | H58: =221/3.5 -> 63.14285714 | I58: IL TRM v7 vol3 | J58: 77 | K58: =ROUND((BE58*AW58*(1/((1-BU58)*AF58)-1/((1-BY58)*(CC58)*AB58)))/1000,4) -> 162.3135 | L58: Calculated Value | N58: 0.2199369919 | O58: 0.68 | P58: IL TRM v7 vol3 | Q58: 78 | R58: =ROUND(((AW58*((1/((1-BU58)*BA58))-(1/((1-BY58)*AS58))))/1000)*O58,4) -> 0.1679 | S58: Calculated Value | U58: 738 | V58: EFLHcool, from 2017 MO TRM Vol. 3 | W58: 122 | X58: 18 | Y58: IL TRM v7 vol3 | Z58: 77 | AA58: SEERee | AB58: 16.5 | AC58: Average SEER value of equipment installed in portfolio | AE58: SEERbase | AF58: 13 | AG58: IL TRM v7 vol3 | AH58: 79 | AI58: =ROUND((BE58*AW58*(1/((1-BU58)*AF58)-1/((1-BY58)*(CC58)*AB58)))/1000,4) | AJ58: =ROUND(((AW58*((1/((1-BU58)*BA58))-(1/((1-BY58)*AS58))))/1000)*O58,4) | AK58: IL TRM v7 vol3 | AL58: 78, 80 | AM58: 2020-05-01 | AS58: =1.12*AB58-0.02*AB58^2 -> 13.035 | AT58: EERee | AU58: Calculated value | AW58: 12000 | AX58: Allows for Capacity input in Tons; converts tons to BTUs | BA58: 10.5 | BB58: EERbase | BC58: IL TRM v7 vol3 | BD58: 81 | BE58: 738 | BF58: EFLHcool | BG58: EFLHcool, from 2017 MO TRM Vol. 3 | BH58: 122 | BI58: 1376 | BJ58: EFLHheat | BK58: The EFLH Cooling and Heating hours are based on a EnergyStar study that was normalized (based on HDD and CDD) to Kansas City. This was for both AC and HP units. | BU58: 0.1 | BV58: DeratingCoolBase | BW58: IL TRM v7 vol3 | BX58: 80 | BY58: 0.1 | BZ58: DeratingCoolEff | CA58: IL TRM v7 vol3 | CB58: 80 | CC58: =0.805*(AS58/AB58)+0.367 -> 1.00295 | CD58: SEERadj | CE58: Caclulated value, using alhgorthim from IL TRM v7 vol3 | CF58: 79,80
A59: Heating, Cooling & Home Comfort | B59: CAC SEER 16 - Early Replacement | C59: 25.3 | D59: Single Family | E59: HVAC | G59: per ton | H59: =DA59+DE59/DM59-DI59/DM59*(1+CW59)^(-X59) -> 263.7998383 | I59: IL TRM v7 vol3 | J59: 77 | K59: =ROUND((BE59*AW59*(1/AF59-1/AB59))/1000,4) -> 349.8468 | L59: Calculated Value | N59: 0.4740471545 | O59: 0.68 | P59: IL TRM v7 vol3 | Q59: 81 | R59: =ROUND(((AW59*((1/BA59)-(1/AS59)))/1000)*O59,4) -> 0.2616 | S59: Calculated Value | U59: 738 | V59: EFLHcool, from 2017 MO TRM | W59: 122 | X59: 6 | Y59: IL TRM v7 vol3 | Z59: 77 | AA59: SEER | AB59: 16.53 | AC59: Based on SEER value of efficient equipment | AE59: SEER | AF59: 10 | AG59: IL TRM v7 vol3 | AH59: 79 | AI59: =ROUND((BE59*AW59*(1/AF59-1/AB59))/1000,4) | AJ59: =ROUND(((AW59*((1/BA59)-(1/AS59)))/1000)*O59,4) | AK59: IL TRM v7 vol3 | AL59: 78 | AM59: 2020-01-01 | AN59: 2020-04-30 | AS59: 13.048782 | AT59: EERee | AU59: Based on calculation from SEER of installed equipment | AW59: 12000 | AX59: Allows for Capacity input in Tons; converts tons to BTUs | BA59: 9.2 | BB59: EERexist | BC59: IL TRM v7 vol3 | BD59: 81 | BE59: 738 | BF59: EFLHcool | BG59: EFLHcool, from 2017 MO TRM | BH59: 122 | BI59: 1376 | BJ59: EFLHheat | BK59: The EFLH Cooling and Heating hours are based on a EnergyStar study that was normalized (based on HDD and CDD) to Kansas City. This was for both AC and HP units. | CW59: 0.03 | CX59: Societal Discount Rate | CY59: Evergy Standard | DA59: 952 | DB59: First Cost $/ton | DC59: IL TRM v7 vol3 | DD59: 77 | DE59: 221 | DF59: One-time per-system labor cost | DG59: IL TRM v7 vol3 | DH59: 77 | DI59: 3140 | DJ59: Deferred cost savings, per UNIT | DK59: IL TRM v7 vol3 | DL59: 78 | DM59: 3.5 | DN59: Assumed average system tons | DO59: Tracking Data
A60: Heating, Cooling & Home Comfort | B60: CAC SEER 16 - Early Replacement | C60: 25.4 | D60: Single Family | E60: HVAC | G60: per ton | H60: =DA60+DE60/DM60-DI60/DM60*(1+CW60)^(-X60) -> 263.7998383 | I60: IL TRM v7 vol3 | J60: 77 | K60: =ROUND((BE60*AW60*(1/((1-BU60)*AF60)-1/((1-BY60)*(CC60)*AB60)))/1000,4) -> 464.2482 | L60: Calculated Value | N60: 0.6290626016 | O60: 0.68 | P60: IL TRM v7 vol3 | Q60: 78 | R60: =ROUND(((AW60*((1/((1-BU60)*BA60))-(1/((1-BY60)*AS60))))/1000)*O60,4) -> 0.5141 | S60: Calculated Value | U60: 738 | V60: EFLHcool, from 2017 MO TRM Vol. 3 | W60: 122 | X60: 6 | Y60: IL TRM v7 vol3 | Z60: 77 | AA60: SEERee | AB60: 16.53 | AC60: Average SEER value of equipment installed in portfolio | AE60: SEERexist | AF60: 9.3 | AG60: IL TRM v7 vol3 | AH60: 79 | AI60: =ROUND((BE60*AW60*(1/((1-BU60)*AF60)-1/((1-BY60)*(CC60)*AB60)))/1000,4) | AJ60: =ROUND(((AW60*((1/((1-BU60)*BA60))-(1/((1-BY60)*AS60))))/1000)*O60,4) | AK60: IL TRM v7 vol3 | AL60: 78, 80 | AM60: 2020-05-01 | AS60: =1.12*AB60-0.02*AB60^2 -> 13.048782 | AT60: EERee | AU60: Calculated value | AW60: 12000 | AX60: Allows for Capacity input in Tons; converts tons to BTUs | BA60: 7.5 | BB60: EERexist | BC60: IL TRM v7 vol3 | BD60: 81 | BE60: 738 | BF60: EFLHcool | BG60: EFLHcool, from 2017 MO TRM Vol. 3 | BH60: 122 | BI60: 1376 | BJ60: EFLHheat | BK60: The EFLH Cooling and Heating hours are based on a EnergyStar study that was normalized (based on HDD and CDD) to Kansas City. This was for both AC and HP units. | BU60: 0.1 | BV60: DeratingCoolBase | BW60: IL TRM v7 vol3 | BX60: 80 | BY60: 0.1 | BZ60: DeratingCoolEff | CA60: IL TRM v7 vol3 | CB60: 80 | CC60: =0.805*(AS60/AB60)+0.367 -> 1.002467 | CD60: SEERadj | CE60: Caclulated value, using alhgorthim from IL TRM v7 vol3 | CF60: 79,80 | CW60: 0.03 | CX60: Societal Discount Rate | CY60: Evergy Standard | DA60: 952 | DB60: First Cost $/ton | DC60: IL TRM v7 vol3 | DD60: 77 | DE60: 221 | DF60: One-time per-system labor cost | DG60: IL TRM v7 vol3 | DH60: 77 | DI60: 3140 | DJ60: Deferred cost savings, per UNIT | DK60: IL TRM v7 vol3 | DL60: 78 | DM60: 3.5 | DN60: Assumed average system tons | DO60: Tracking Data
A61: Heating, Cooling & Home Comfort | B61: CAC SEER 16 - Early Replacement (future) | C61: 26.3 | D61: Single Family | E61: HVAC | G61: per ton | H61: 0 | I61: IL TRM v7 vol3 | J61: 77 | K61: =ROUND((BM61*AW61*(1/BE61-1/AB61))/1000,4) -> 145.4776 | L61: Calculated Value | N61: 0.1971241192 | O61: 0.68 | P61: IL TRM v7 vol3 | Q61: 81 | R61: =ROUND(((AW61*((1/BI61)-(1/AS61)))/1000)*O61,4) -> 0.1032 | S61: Calculated Value | U61: 738 | V61: EFLHcool, from 2017 MO TRM | W61: 122 | X61: 12 | Y61: IL TRM v7 vol3 | Z61: 77 | AA61: SEER | AB61: 16.53 | AC61: Based on SEER value of efficient equipment | AE61: =BF61 -> SEERbase | AF61: =BE61 -> 13 | AG61: IL TRM v7 vol3 | AH61: 79 | AI61: =ROUND((BM61*AW61*(1/BE61-1/AB61))/1000,4) | AJ61: =ROUND(((AW61*((1/BI61)-(1/AS61)))/1000)*O61,4) | AK61: IL TRM v7 vol3 | AL61: 78 | AM61: 2020-01-01 | AN61: 2020-04-30 | AS61: 13.048782 | AT61: EERee | AU61: Based on calculation from SEER of installed equipment | AW61: 12000 | AX61: Allows for Capacity input in Tons; converts tons to BTUs | BE61: 13 | BF61: SEERbase | BG61: IL TRM v7 vol3 | BH61: 79 | BI61: 11.2 | BJ61: EERbase | BK61: IL TRM v7 vol3 | BL61: 81 | BM61: 738 | BN61: EFLHcool | BO61: EFLHcool, from 2017 MO TRM | BP61: 122 | BQ61: 1376 | BR61: EFLHheat | BS61: The EFLH Cooling and Heating hours are based on a EnergyStar study that was normalized (based on HDD and CDD) to Kansas City. This was for both AC and HP units. | CW61: 0.03 | CX61: Societal Discount Rate | CY61: Evergy Standard | DA61: 952 | DB61: First Cost $/ton | DC61: IL TRM v7 vol3 | DD61: 77 | DE61: 221 | DF61: One-time per-system labor cost | DG61: IL TRM v7 vol3 | DH61: 77 | DI61: 3140 | DJ61: Deferred cost savings, per UNIT | DK61: IL TRM v7 vol3 | DL61: 78 | DM61: 3.5 | DN61: Assumed average system tons | DO61: Tracking Data
A62: Heating, Cooling & Home Comfort | B62: CAC SEER 16 - Early Replacement (future) | C62: 26.4 | D62: Single Family | E62: HVAC | G62: per ton | H62: 0 | I62: IL TRM v7 vol3 | J62: 77 | K62: =ROUND((BM62*AW62*(1/((1-BU62)*BE62)-1/((1-BY62)*(CC62)*AB62)))/1000,4) -> 163.1067 | L62: Calculated Value | N62: 0.2210117886 | O62: 0.68 | P62: IL TRM v7 vol3 | Q62: 78 | R62: =ROUND(((AW62*((1/((1-BU62)*BI62))-(1/((1-BY62)*AS62))))/1000)*O62,4) -> 0.1687 | S62: Calculated Value | U62: 738 | V62: EFLHcool, from 2017 MO TRM Vol. 3 | W62: 122 | X62: 12 | Y62: IL TRM v7 vol3 | Z62: 77 | AA62: SEERee | AB62: 16.53 | AC62: Average SEER value of equipment installed in portfolio | AE62: SEERbase | AF62: =BE62 -> 13 | AG62: IL TRM v7 vol3 | AH62: 79 | AI62: =ROUND((BM62*AW62*(1/((1-BU62)*BE62)-1/((1-BY62)*(CC62)*AB62)))/1000,4) | AJ62: =ROUND(((AW62*((1/((1-BU62)*BI62))-(1/((1-BY62)*AS62))))/1000)*O62,4) | AK62: IL TRM v7 vol3 | AL62: 78, 80, 81 | AM62: 2020-05-01 | AS62: =1.12*AB62-0.02*AB62^2 -> 13.048782 | AT62: EERee | AU62: Calculated value | AW62: 12000 | AX62: Allows for Capacity input in Tons; converts tons to BTUs | BE62: 13 | BF62: SEERbase | BG62: IL TRM v7 vol3 | BH62: 79 | BI62: 10.5 | BJ62: EERbase | BK62: IL TRM v7 vol3 | BL62: 81 | BM62: 738 | BN62: EFLHcool | BO62: EFLHcool, from 2017 MO TRM Vol. 3 | BP62: 122 | BQ62: 1376 | BR62: EFLHheat | BS62: The EFLH Cooling and Heating hours are based on a EnergyStar study that was normalized (based on HDD and CDD) to Kansas City. This was for both AC and HP units. | BU62: 0.1 | BV62: DeratingCoolBase | BW62: IL TRM v7 vol3 | BX62: 80 | BY62: 0.1 | BZ62: DeratingCoolEff | CA62: IL TRM v7 vol3 | CB62: 80 | CC62: =0.805*(AS62/AB62)+0.367 -> 1.002467 | CD62: SEERadj | CE62: Caclulated value, using alhgorthim from IL TRM v7 vol3 | CF62: 79,80 | CW62: 0.03 | CX62: Societal Discount Rate | CY62: Evergy Standard | DA62: 952 | DB62: First Cost $/ton | DC62: IL TRM v7 vol3 | DD62: 77 | DE62: 221 | DF62: One-time per-system labor cost | DG62: IL TRM v7 vol3 | DH62: 77 | DI62: 3140 | DJ62: Deferred cost savings, per UNIT | DK62: IL TRM v7 vol3 | DL62: 78 | DM62: 3.5 | DN62: Assumed average system tons | DO62: Tracking Data
A63: Heating, Cooling & Home Comfort | B63: CAC SEER 17 | C63: 27.3 | D63: Single Family | E63: HVAC | G63: per ton | H63: 368.51 | I63: IL TRM v7 vol3 | J63: 77 | K63: =ROUND((BE63*AW63*(1/AF63-1/AB63))/1000,4) -> 160.2896 | L63: Calculated Value | N63: 0.2171945799 | O63: 0.68 | P63: IL TRM v7 vol3 | Q63: 81 | R63: =ROUND(((AW63*((1/BA63)-(1/AS63)))/1000)*O63,4) -> 0.1132 | S63: Calculated Value | U63: 738 | V63: EFLHcool, from 2017 MO TRM | W63: 122 | X63: 18 | Y63: IL TRM v7 vol3 | Z63: 77 | AA63: SEER | AB63: 17 | AC63: Based on SEER value of efficient equipment | AE63: SEER | AF63: 13 | AG63: IL TRM v7 vol3 | AH63: 79 | AI63: =ROUND((BE63*AW63*(1/AF63-1/AB63))/1000,4) | AJ63: =ROUND(((AW63*((1/BA63)-(1/AS63)))/1000)*O63,4) | AK63: IL TRM v7 vol3 | AL63: 78 | AM63: 2020-01-01 | AN63: 2020-04-30 | AS63: 13.26 | AT63: EERee | AU63: Based on calculation from SEER of installed equipment | AW63: 12000 | AX63: Allows for Capacity input in Tons; converts tons to BTUs | BA63: 11.2 | BB63: EERbase | BC63: IL TRM v7 vol3 | BD63: 81 | BE63: 738 | BF63: EFLHcool | BG63: EFLHcool, from 2017 MO TRM | BH63: 122 | BI63: 1376 | BJ63: EFLHheat | BK63: The EFLH Cooling and Heating hours are based on a EnergyStar study that was normalized (based on HDD and CDD) to Kansas City. This was for both AC and HP units.
A64: Heating, Cooling & Home Comfort | B64: CAC SEER 17 | C64: 27.4 | D64: Single Family | E64: HVAC | G64: per ton | H64: =620/3.5 -> 177.1428571 | I64: IL TRM v7 vol3 | J64: 77 | K64: =ROUND((BE64*AW64*(1/((1-BU64)*AF64)-1/((1-BY64)*(CC64)*AB64)))/1000,4) -> 175.1324 | L64: Calculated Value | N64: 0.2373067751 | O64: 0.68 | P64: IL TRM v7 vol3 | Q64: 78 | R64: =ROUND(((AW64*((1/((1-BU64)*BA64))-(1/((1-BY64)*AS64))))/1000)*O64,4) -> 0.1797 | S64: Calculated Value | U64: 738 | V64: EFLHcool, from 2017 MO TRM Vol. 3 | W64: 122 | X64: 18 | Y64: IL TRM v7 vol3 | Z64: 77 | AA64: SEERee | AB64: 17 | AC64: Average SEER value of equipment installed in portfolio | AE64: SEERbase | AF64: 13 | AG64: IL TRM v7 vol3 | AH64: 79 | AI64: =ROUND((BE64*AW64*(1/((1-BU64)*AF64)-1/((1-BY64)*(CC64)*AB64)))/1000,4) | AJ64: =ROUND(((AW64*((1/((1-BU64)*BA64))-(1/((1-BY64)*AS64))))/1000)*O64,4) | AK64: IL TRM v7 vol3 | AL64: 78, 80 | AM64: 2020-05-01 | AS64: =1.12*AB64-0.02*AB64^2 -> 13.26 | AT64: EERee | AU64: Calculated value | AW64: 12000 | AX64: Allows for Capacity input in Tons; converts tons to BTUs | BA64: 10.5 | BB64: EERbase | BC64: IL TRM v7 vol3 | BD64: 81 | BE64: 738 | BF64: EFLHcool | BG64: EFLHcool, from 2017 MO TRM Vol. 3 | BH64: 122 | BI64: 1376 | BJ64: EFLHheat | BK64: The EFLH Cooling and Heating hours are based on a EnergyStar study that was normalized (based on HDD and CDD) to Kansas City. This was for both AC and HP units. | BU64: 0.1 | BV64: DeratingCoolBase | BW64: IL TRM v7 vol3 | BX64: 80 | BY64: 0.1 | BZ64: DeratingCoolEff | CA64: IL TRM v7 vol3 | CB64: 80 | CC64: =0.805*(AS64/AB64)+0.367 -> 0.9949 | CD64: SEERadj | CE64: Caclulated value, using alhgorthim from IL TRM v7 vol3 | CF64: 79,80
A65: Heating, Cooling & Home Comfort | B65: CAC SEER 17 - Early Replacement | C65: 28.3 | D65: Single Family | E65: HVAC | G65: per ton | H65: =DA65+DE65/DM65-DI65/DM65*(1+CW65)^(-X65) -> 377.7998383 | I65: IL TRM v7 vol3 | J65: 77 | K65: =ROUND((BE65*AW65*(1/AF65-1/AB65))/1000,4) -> 364.6588 | L65: Calculated Value | N65: 0.4941176152 | O65: 0.68 | P65: IL TRM v7 vol3 | Q65: 81 | R65: =ROUND(((AW65*((1/BA65)-(1/AS65)))/1000)*O65,4) -> 0.2716 | S65: Calculated Value | U65: 738 | V65: EFLHcool, from 2017 MO TRM | W65: 122 | X65: 6 | Y65: IL TRM v7 vol3 | Z65: 77 | AA65: SEER | AB65: 17 | AC65: Based on SEER value of efficient equipment | AE65: SEER | AF65: 10 | AG65: IL TRM v7 vol3 | AH65: 79 | AI65: =ROUND((BE65*AW65*(1/AF65-1/AB65))/1000,4) | AJ65: =ROUND(((AW65*((1/BA65)-(1/AS65)))/1000)*O65,4) | AK65: IL TRM v7 vol3 | AL65: 78 | AM65: 2020-01-01 | AN65: 2020-04-30 | AS65: 13.26 | AT65: EERee | AU65: Based on calculation from SEER of installed equipment | AW65: 12000 | AX65: Allows for Capacity input in Tons; converts tons to BTUs | BA65: 9.2 | BB65: EERexist | BC65: IL TRM v7 vol3 | BD65: 81 | BE65: 738 | BF65: EFLHcool | BG65: EFLHcool, from 2017 MO TRM | BH65: 122 | BI65: 1376 | BJ65: EFLHheat | BK65: The EFLH Cooling and Heating hours are based on a EnergyStar study that was normalized (based on HDD and CDD) to Kansas City. This was for both AC and HP units. | CW65: 0.03 | CX65: Societal Discount Rate | CY65: Evergy Standard | DA65: 952 | DB65: First Cost $/ton | DC65: IL TRM v7 vol3 | DD65: 77 | DE65: 620 | DF65: One-time per-system labor cost | DG65: IL TRM v7 vol3 | DH65: 77 | DI65: 3140 | DJ65: Deferred cost savings, per UNIT | DK65: IL TRM v7 vol3 | DL65: 78 | DM65: 3.5 | DN65: Assumed average system tons | DO65: Tracking Data
A66: Heating, Cooling & Home Comfort | B66: CAC SEER 17 - Early Replacement | C66: 28.4 | D66: Single Family | E66: HVAC | G66: per ton | H66: =DA66+DE66/DM66-DI66/DM66*(1+CW66)^(-X66) -> 377.7998383 | I66: IL TRM v7 vol3 | J66: 77 | K66: =ROUND((BE66*AW66*(1/((1-BU66)*AF66)-1/((1-BY66)*(CC66)*AB66)))/1000,4) -> 476.2739 | L66: Calculated Value | N66: 0.6453575881 | O66: 0.68 | P66: IL TRM v7 vol3 | Q66: 78 | R66: =ROUND(((AW66*((1/((1-BU66)*BA66))-(1/((1-BY66)*AS66))))/1000)*O66,4) -> 0.5251 | S66: Calculated Value | U66: 738 | V66: EFLHcool, from 2017 MO TRM Vol. 3 | W66: 122 | X66: 6 | Y66: IL TRM v7 vol3 | Z66: 77 | AA66: SEERee | AB66: 17 | AC66: Average SEER value of equipment installed in portfolio | AE66: SEERexist | AF66: 9.3 | AG66: IL TRM v7 vol3 | AH66: 79 | AI66: =ROUND((BE66*AW66*(1/((1-BU66)*AF66)-1/((1-BY66)*(CC66)*AB66)))/1000,4) | AJ66: =ROUND(((AW66*((1/((1-BU66)*BA66))-(1/((1-BY66)*AS66))))/1000)*O66,4) | AK66: IL TRM v7 vol3 | AL66: 78, 80 | AM66: 2020-05-01 | AS66: =1.12*AB66-0.02*AB66^2 -> 13.26 | AT66: EERee | AU66: Calculated value | AW66: 12000 | AX66: Allows for Capacity input in Tons; converts tons to BTUs | BA66: 7.5 | BB66: EERexist | BC66: IL TRM v7 vol3 | BD66: 81 | BE66: 738 | BF66: EFLHcool | BG66: EFLHcool, from 2017 MO TRM Vol. 3 | BH66: 122 | BI66: 1376 | BJ66: EFLHheat | BK66: The EFLH Cooling and Heating hours are based on a EnergyStar study that was normalized (based on HDD and CDD) to Kansas City. This was for both AC and HP units. | BU66: 0.1 | BV66: DeratingCoolBase | BW66: IL TRM v7 vol3 | BX66: 80 | BY66: 0.1 | BZ66: DeratingCoolEff | CA66: IL TRM v7 vol3 | CB66: 80 | CC66: =0.805*(AS66/AB66)+0.367 -> 0.9949 | CD66: SEERadj | CE66: Caclulated value, using alhgorthim from IL TRM v7 vol3 | CF66: 79,80 | CW66: 0.03 | CX66: Societal Discount Rate | CY66: Evergy Standard | DA66: 952 | DB66: First Cost $/ton | DC66: IL TRM v7 vol3 | DD66: 77 | DE66: 620 | DF66: One-time per-system labor cost | DG66: IL TRM v7 vol3 | DH66: 77 | DI66: 3140 | DJ66: Deferred cost savings, per UNIT | DK66: IL TRM v7 vol3 | DL66: 78 | DM66: 3.5 | DN66: Assumed average system tons | DO66: Tracking Data
A67: Heating, Cooling & Home Comfort | B67: CAC SEER 17 - Early Replacement (future) | C67: 29.3 | D67: Single Family | E67: HVAC | G67: per ton | H67: 0 | I67: IL TRM v7 vol3 | J67: 77 | K67: =ROUND((BM67*AW67*(1/BE67-1/AB67))/1000,4) -> 160.2896 | L67: Calculated Value | N67: 0.2171945799 | O67: 0.68 | P67: IL TRM v7 vol3 | Q67: 81 | R67: =ROUND(((AW67*((1/BI67)-(1/AS67)))/1000)*O67,4) -> 0.1132 | S67: Calculated Value | U67: 738 | V67: EFLHcool, from 2017 MO TRM | W67: 122 | X67: 12 | Y67: IL TRM v7 vol3 | Z67: 77 | AA67: SEER | AB67: 17 | AC67: Based on SEER value of efficient equipment | AE67: =BF67 -> SEERbase | AF67: =BE67 -> 13 | AG67: IL TRM v7 vol3 | AH67: 79 | AI67: =ROUND((BM67*AW67*(1/BE67-1/AB67))/1000,4) | AJ67: =ROUND(((AW67*((1/BI67)-(1/AS67)))/1000)*O67,4) | AK67: IL TRM v7 vol3 | AL67: 78 | AM67: 2020-01-01 | AN67: 2020-04-30 | AS67: 13.26 | AT67: EERee | AU67: Based on calculation from SEER of installed equipment | AW67: 12000 | AX67: Allows for Capacity input in Tons; converts tons to BTUs | BE67: 13 | BF67: SEERbase | BG67: IL TRM v7 vol3 | BH67: 79 | BI67: 11.2 | BJ67: EERbase | BK67: IL TRM v7 vol3 | BL67: 81 | BM67: 738 | BN67: EFLHcool | BO67: EFLHcool, from 2017 MO TRM | BP67: 122 | BQ67: 1376 | BR67: EFLHheat | BS67: The EFLH Cooling and Heating hours are based on a EnergyStar study that was normalized (based on HDD and CDD) to Kansas City. This was for both AC and HP units. | CW67: 0.03 | CX67: Societal Discount Rate | CY67: Evergy Standard | DA67: 952 | DB67: First Cost $/ton | DC67: IL TRM v7 vol3 | DD67: 77 | DE67: 620 | DF67: One-time per-system labor cost | DG67: IL TRM v7 vol3 | DH67: 77 | DI67: 3140 | DJ67: Deferred cost savings, per UNIT | DK67: IL TRM v7 vol3 | DL67: 78 | DM67: 3.5 | DN67: Assumed average system tons | DO67: Tracking Data
A68: Heating, Cooling & Home Comfort | B68: CAC SEER 17 - Early Replacement (future) | C68: 29.4 | D68: Single Family | E68: HVAC | G68: per ton | H68: 0 | I68: IL TRM v7 vol3 | J68: 77 | K68: =ROUND((BM68*AW68*(1/((1-BU68)*BE68)-1/((1-BY68)*(CC68)*AB68)))/1000,4) -> 175.1324 | L68: Calculated Value | N68: 0.2373067751 | O68: 0.68 | P68: IL TRM v7 vol3 | Q68: 78 | R68: =ROUND(((AW68*((1/((1-BU68)*BI68))-(1/((1-BY68)*AS68))))/1000)*O68,4) -> 0.1797 | S68: Calculated Value | U68: 738 | V68: EFLHcool, from 2017 MO TRM Vol. 3 | W68: 122 | X68: 12 | Y68: IL TRM v7 vol3 | Z68: 77 | AA68: SEERee | AB68: 17 | AC68: Average SEER value of equipment installed in portfolio | AE68: SEERbase | AF68: =BE68 -> 13 | AG68: IL TRM v7 vol3 | AH68: 79 | AI68: =ROUND((BM68*AW68*(1/((1-BU68)*BE68)-1/((1-BY68)*(CC68)*AB68)))/1000,4) | AJ68: =ROUND(((AW68*((1/((1-BU68)*BI68))-(1/((1-BY68)*AS68))))/1000)*O68,4) | AK68: IL TRM v7 vol3 | AL68: 78, 80, 81 | AM68: 2020-05-01 | AS68: =1.12*AB68-0.02*AB68^2 -> 13.26 | AT68: EERee | AU68: Calculated value | AW68: 12000 | AX68: Allows for Capacity input in Tons; converts tons to BTUs | BE68: 13 | BF68: SEERbase | BG68: IL TRM v7 vol3 | BH68: 79 | BI68: 10.5 | BJ68: EERbase | BK68: IL TRM v7 vol3 | BL68: 81 | BM68: 738 | BN68: EFLHcool | BO68: EFLHcool, from 2017 MO TRM Vol. 3 | BP68: 122 | BQ68: 1376 | BR68: EFLHheat | BS68: The EFLH Cooling and Heating hours are based on a EnergyStar study that was normalized (based on HDD and CDD) to Kansas City. This was for both AC and HP units. | BU68: 0.1 | BV68: DeratingCoolBase | BW68: IL TRM v7 vol3 | BX68: 80 | BY68: 0.1 | BZ68: DeratingCoolEff | CA68: IL TRM v7 vol3 | CB68: 80 | CC68: =0.805*(AS68/AB68)+0.367 -> 0.9949 | CD68: SEERadj | CE68: Caclulated value, using alhgorthim from IL TRM v7 vol3 | CF68: 79,80 | CW68: 0.03 | CX68: Societal Discount Rate | CY68: Evergy Standard | DA68: 952 | DB68: First Cost $/ton | DC68: IL TRM v7 vol3 | DD68: 77 | DE68: 620 | DF68: One-time per-system labor cost | DG68: IL TRM v7 vol3 | DH68: 77 | DI68: 3140 | DJ68: Deferred cost savings, per UNIT | DK68: IL TRM v7 vol3 | DL68: 78 | DM68: 3.5 | DN68: Assumed average system tons | DO68: Tracking Data
A69: Heating, Cooling & Home Comfort | B69: CAC Dual-Speed Compressor | C69: 395 | D69: Single Family | E69: HVAC | G69: per ton | H69: =(952*(AW69/12000)+620)/BU69 -> 1262 | I69: IL TRM v6 vol3 | J69: 72 | K69: =ROUND((AS69*AW69*(1/BA69-1/BE69))/1000/BU69,4) -> 265.3846 | L69: Calculated Value | N69: =ROUND(R69/O69,4) -> 0.2143 | O69: 0.68 | P69: Calculated Value | R69: =ROUND((AW69*(1/BI69-1/BM69))/1000*BQ69/BU69,4) -> 0.1457 | S69: Calculated Value | U69: 1035 | V69: IL TRM v6 vol3 | W69: 74 | X69: 18 | Y69: IL TRM v6 vol3 | Z69: 72 | AA69: SEER | AB69: 18 | AC69: Daikin DX18TC Series Indoor Model Number: DV29PTCB14A | AE69: SEER | AF69: 13 | AG69: IL TRM v6 vol3 | AH69: 72 | AI69: =ROUND((AS69*AW69*(1/BA69-1/BE69))/1000/BU69,4) | AJ69: =ROUND((AW69*(1/BI69-1/BM69))/1000*BQ69/BU69,4) | AK69: IL TRM v6 vol3 | AL69: 73, 75 | AM69: 2020-01-01 | AS69: 1035 | AT69: FLHcool | AU69: IL TRM v6 vol3 | AV69: 74 | AW69: 24000 | AX69: Capacity (Btu/hr) | AY69: Daikin DX18TC Series Indoor Model Number: DV29PTCB14A | BA69: 13 | BB69: SEERbase | BC69: IL TRM v6 vol3 | BD69: 74 | BE69: 18 | BF69: SEERee | BG69: Daikin DX18TC Series Indoor Model Number: DV29PTCB14A | BI69: 11.2 | BJ69: EERbase | BK69: IL TRM v6 vol3 | BL69: 75 | BM69: 14 | BN69: EERee | BO69: Daikin DX18TC Series Indoor Model Number: DV29PTCB14A | BQ69: 0.68 | BR69: CF | BS69: IL TRM v6 vol3 | BT69: 75 | BU69: =AW69/12000 -> 2 | BV69: Tons | BW69: IL TRM v6 vol3 | BY69: Daikin DX18TC Series Indoor Model Number: DV29PTCB14A
A70: Heating, Cooling & Home Comfort | B70: CAC Variable-Speed Compressor | C70: 396 | D70: Single Family | E70: HVAC | G70: per ton | H70: =(952*(AW70/12000)+620)/BU70 -> 1278.315789 | I70: IL TRM v6 vol3 | J70: 72 | K70: =ROUND((AS70*AW70*(1/BA70-1/BE70))/1000/BU70,4) -> 415.3846 | L70: Calculated Value | N70: =ROUND(R70/O70,4) -> 0.2143 | O70: 0.68 | P70: Calculated Value | R70: =ROUND((AW70*(1/BI70-1/BM70))/1000*BQ70/BU70,4) -> 0.1457 | S70: Calculated Value | U70: 1035 | V70: IL TRM v6 vol3 | W70: 74 | X70: 18 | Y70: IL TRM v6 vol3 | Z70: 72 | AA70: SEER | AB70: 23 | AC70: Amana AVXC20 Indoor Model Number: AVPVC24C14A | AE70: SEER | AF70: 13 | AG70: IL TRM v6 vol3 | AH70: 72 | AI70: =ROUND((AS70*AW70*(1/BA70-1/BE70))/1000/BU70,4) | AJ70: =ROUND((AW70*(1/BI70-1/BM70))/1000*BQ70/BU70,4) | AK70: IL TRM v6 vol3 | AL70: 73, 75 | AM70: 2020-01-01 | AS70: 1035 | AT70: FLHcool | AU70: IL TRM v6 vol3 | AV70: 74 | AW70: 22800 | AX70: Capacity (Btu/hr) | AY70: Amana AVXC20 Indoor Model Number: AVPVC24C14A | BA70: 13 | BB70: SEERbase | BC70: IL TRM v6 vol3 | BD70: 74 | BE70: 23 | BF70: SEERee | BG70: Amana AVXC20 Indoor Model Number: AVPVC24C14A | BI70: 11.2 | BJ70: EERbase | BK70: IL TRM v6 vol3 | BL70: 75 | BM70: 14 | BN70: EERee | BO70: Amana AVXC20 Indoor Model Number: AVPVC24C14A | BQ70: 0.68 | BR70: CF | BS70: IL TRM v6 vol3 | BT70: 75 | BU70: =AW70/12000 -> 1.9 | BV70: Tons | BW70: IL TRM v6 vol3 | BY70: Amana AVXC20 Indoor Model Number: AVPVC24C14A
A71: Heating, Cooling & Home Comfort | B71: ASHP SEER 15 | C71: 30.3 | D71: Single Family | E71: HVAC | G71: per ton | H71: =303/3.5 -> 86.57142857 | I71: IL TRM v7 vol3 | J71: 64 | K71: =ROUND(((U71*AS71*(1/(AF71*(1-BY71))-1/(AB71*CC71*(1-CG71))))/1000)+((BQ71*AS71*(1/(BA71*(1-CK71))-1/(AW71*CO71*(1-CS71))))/1000),4) -> 163.324 | L71: Calculated Value | N71: =R71 -> 0.1047 | O71: 0.72 | P71: IL TRM v7 vol3 | Q71: 65 | R71: =ROUND((AS71*(1/(BI71*(1-BY71))-1/(BE71*(1-CG71))))/1000*O71,4) -> 0.1047 | S71: Calculated Value | U71: 738 | V71: EFLHcool, from 2017 MO TRM | W71: 85 | X71: 16 | Y71: IL TRM v7 vol3 | Z71: 64 | AA71: SEERee | AB71: 15.17 | AC71: per PY2018 Metadata WHE | AE71: SEERbase | AF71: 14 | AG71: IL TRM v7 vol3 | AH71: 67 | AI71: =cellformula(K71) -> =ROUND(((U71*AS71*(1/(AF71*(1-BY71))-1/(AB71*CC71*(1-CG71))))/1000)+((BQ71*AS71*(1/(BA71*(1-CK71))-1/(AW71*CO71*(1-CS71))))/1000),4) | AJ71: =cellformula(R71) -> =ROUND((AS71*(1/(BI71*(1-BY71))-1/(BE71*(1-CG71))))/1000*O71,4) | AK71: IL TRM v7 vol3 | AL71: 65, 69 | AM71: 2020-01-01 | AN71: 2020-04-30 | AS71: 12000 | AT71: Allows for Capacity input in Tons; converts tons to BTUs | AW71: 8.583333333 | AX71: HSPFee | AY71: per PY2018 Metadata WHE | BA71: 8.2 | BB71: HSPFbase | BC71: IL TRM v7 vol3 | BD71: 68 | BE71: 12.5 | BF71: EERee | BG71: Calculated per PY2018 Metadata WHE | BI71: 11 | BJ71: EERbase | BK71: IL TRM v7 vol3 | BL71: 70 | BM71: 738 | BN71: EFLHcool | BO71: EFLHcool, from 2017 MO TRM | BP71: 85 | BQ71: 1376 | BR71: EFLHheat | BS71: The EFLH Cooling and Heating hours are based on a EnergyStar study that was normalized (based on HDD and CDD) to Kansas City. This was for both AC and HP units. | BU71: 8.2 | BV71: HSPFbase | BW71: IL TRM v7 vol3 | BX71: 68 | BY71: 0.1 | BZ71: Derating_Cool_Base | CA71: IL TRM v7 vol3 | CB71: 67 | CC71: 1.011 | CD71: SEERadj | CE71: IL TRM v7 vol3 | CF71: 69 (example) | CG71: 0.1 | CH71: Derating_Cool_Eff | CI71: IL TRM v7 vol3 | CJ71: 67 | CK71: 0.1 | CL71: Derating_Heat_Base | CM71: IL TRM v7 vol3 | CN71: 68 | CO71: 1.001 | CP71: HSPFadj | CQ71: IL TRM v7 vol3 | CR71: 69 (example) | CS71: 0.1 | CT71: Derating_Heat_Eff | CU71: IL TRM v7 vol3 | CV71: 68
A72: Heating, Cooling & Home Comfort | B72: ASHP SEER 15 | C72: 30.4 | D72: Single Family | E72: HVAC | G72: per ton | H72: =303/3.5 -> 86.57142857 | I72: IL TRM v7 vol3 | J72: 64 | K72: 171.6937 | L72: Calculated Value | N72: =K72/U72 -> 0.23264729 | O72: 0.72 | P72: IL TRM v7 vol3 | Q72: 65 | R72: 0.0978 | S72: Calculated Value | U72: 738 | V72: EFLHcool, from 2017 MO TRM Vol. 3 | W72: 85 | X72: 16 | Y72: IL TRM v7 vol3 | Z72: 64 | AA72: SEERee | AB72: 15.17 | AC72: per PY2018 Metadata WHE | AE72: SEERbase | AF72: 14 | AG72: IL TRM v7 vol3 | AH72: 67 | AI72: =ROUND(((U72*AS72*(1/(AF72*(1-BY72))-1/(AB72*CC72*(1-CG72))))/1000)+((BQ72*AS72*(1/(BA72*(1-CK72))-1/(AW72*CO72*(1-CS72))))/1000),4) | AJ72: =ROUND((AS72*(1/(BI72*(1-BY72))-1/(BE72*(1-CG72))))/1000*O72,4) | AK72: IL TRM v7 vol3 | AL72: 65, 66, 69 | AM72: 2020-05-01 | AS72: 12000 | AT72: Allows for Capacity input in Tons; converts tons to BTUs | AU72: IL TRM v7 vol3 | AV72: 66 | AW72: 8.583333333 | AX72: HSPFee | AY72: per PY2018 Metadata WHE | BA72: 8.2 | BB72: HSPFbase | BC72: IL TRM v7 vol3 | BD72: 68 | BE72: =1.12*AB72-0.02*AB72^2 -> 12.387822 | BF72: EERee | BG72: Calculated value | BI72: 11 | BJ72: EERbase | BK72: IL TRM v7 vol3 | BL72: 70 | BM72: 738 | BN72: EFLHcool | BO72: EFLHcool, from 2017 MO TRM Vol. 3 | BP72: 85 | BQ72: 1376 | BR72: EFLHheat | BS72: The EFLH Cooling and Heating hours are based on a EnergyStar study that was normalized (based on HDD and CDD) to Kansas City. This was for both AC and HP units. | BU72: 8.2 | BV72: HSPFbase | BW72: IL TRM v7 vol3 | BX72: 68 | BY72: 0.1 | BZ72: Derating_Cool_Base | CA72: IL TRM v7 vol3 | CB72: 67 | CC72: =0.805*(BE72/AB72)+0.367 -> 1.024363 | CD72: SEERadj | CE72: IL TRM v7 vol3 | CF72: 69 (example) | CG72: 0.1 | CH72: Derating_Cool_Eff | CI72: IL TRM v7 vol3 | CJ72: 67 | CK72: 0.1 | CL72: Derating_Heat_Base | CM72: IL TRM v7 vol3 | CN72: 68 | CO72: 1.001 | CP72: HSPFadj | CQ72: IL TRM v7 vol3 | CR72: 69 (example) | CS72: 0.1 | CT72: Derating_Heat_Eff | CU72: IL TRM v7 vol3 | CV72: 68
A73: Heating, Cooling & Home Comfort | B73: ASHP SEER 15 - Early Replacement | C73: 31.3 | D73: Single Family | E73: HVAC | G73: per ton | H73: =DA73+DE73/DM73-DI73*(1+CW73)^(-X73) -> 196.2703269 | I73: IL TRM v7 vol3 | J73: 64 | K73: 1685.2531 | L73: Calculated Value | N73: =K73/U73 -> 2.283540786 | O73: 0.72 | P73: IL TRM v7 vol3 | Q73: 70 | R73: 0.505 | S73: Calculated Value | U73: 738 | V73: EFLHcool, from 2017 MO TRM | W73: 85 | X73: 6 | Y73: IL TRM v7 vol3 | Z73: 64 | AA73: SEERee | AB73: 15.17 | AC73: per PY2018 Metadata WHE | AE73: SEERexist | AF73: 9.3 | AG73: IL TRM v7 vol3 | AH73: 66 | AI73: =ROUND(((U73*AS73*(1/(AF73*(1-BY73))-1/(AB73*CC73*(1-CG73))))/1000)+((BQ73*AS73*(1/(BA73*(1-CK73))-1/(AW73*CO73*(1-CS73))))/1000),4) | AJ73: =ROUND((AS73*(1/(BI73*(1-BY73))-1/(BE73*(1-CG73))))/1000*O73,4) | AK73: IL TRM v7 vol3 | AL73: 65, 69 | AM73: 2020-01-01 | AN73: 2020-04-30 | AS73: 12000 | AT73: Allows for Capacity input in Tons; converts tons to BTUs | AW73: 8.712142857 | AX73: HSPFee | AY73: per PY2018 Metadata WHE | BA73: 5.44 | BB73: HSPFbase | BC73: IL TRM v7 vol3 | BD73: 68 | BE73: =(-0.02*AB73^2)+(1.12*AB73) -> 12.387822 | BF73: EERee | BG73: Calculated per PY2018 Metadata WHE | BI73: 7.5 | BJ73: EERexist | BK73: IL TRM v7 vol3 | BL73: 70 | BM73: 738 | BN73: EFLHcool | BO73: EFLHcool, from 2017 MO TRM | BP73: 85 | BQ73: 1376 | BR73: EFLHheat | BS73: The EFLH Cooling and Heating hours are based on a EnergyStar study that was normalized (based on HDD and CDD) to Kansas City. This was for both AC and HP units. | BU73: 5.54 | BV73: HSPFexist | BW73: IL TRM v7 vol3 | BX73: 68 | BY73: 0.1 | BZ73: Derating_Cool_Base | CA73: IL TRM v7 vol3 | CB73: 67 | CC73: 1.011 | CD73: SEERadj | CE73: IL TRM v7 vol3 | CF73: 69 (example) | CG73: 0.1 | CH73: Derating_Cool_Eff | CI73: IL TRM v7 vol3 | CJ73: 67 | CK73: 0.1 | CL73: Derating_Heat_Base | CM73: IL TRM v7 vol3 | CN73: 68 | CO73: 1.001 | CP73: HSPFadj | CQ73: IL TRM v7 vol3 | CR73: 69 (example) | CS73: 0.1 | CT73: Derating_Heat_Eff | CU73: IL TRM v7 vol3 | CV73: 68 | CW73: 0.03 | CX73: Societal Discount Rate | CY73: Evergy Standard | DA73: 1381 | DB73: First Cost $/ton | DC73: IL TRM v7 vol3 | DD73: 64 | DE73: 303 | DF73: One-time per-system labor cost | DG73: IL TRM v7 vol3 | DH73: 64 | DI73: 1518 | DJ73: Deferred cost savings | DK73: IL TRM v7 vol3 | DL73: 65 | DM73: 3.5 | DN73: Assumed average system tons | DO73: Tracking Data
A74: Heating, Cooling & Home Comfort | B74: ASHP SEER 15 - Early Replacement | C74: 31.4 | D74: Single Family | E74: HVAC | G74: per ton | H74: =DA74+DE74/DM74-DI74*(1+CW74)^(-X74) -> 196.2703269 | I74: IL TRM v7 vol3 | J74: 64 | K74: 1693.6228 | L74: Calculated Value | N74: =K78/U78 -> 0.3159800813 | O74: 0.72 | P74: IL TRM v7 vol3 | Q74: 65 | R74: 0.505 | S74: Calculated Value | U74: 738 | V74: EFLHcool, from 2017 MO TRM Vol. 3 | W74: 85 | X74: 6 | Y74: IL TRM v7 vol3 | Z74: 64 | AA74: SEERee | AB74: 15.17 | AC74: per PY2018 Metadata WHE | AE74: SEERexist | AF74: 9.3 | AG74: IL TRM v7 vol3 | AH74: 66 | AI74: =ROUND(((U74*AS74*(1/(AF74*(1-BY74))-1/(AB74*CC74*(1-CG74))))/1000)+((BQ74*AS74*(1/(BA74*(1-CK74))-1/(AW74*CO74*(1-CS74))))/1000),4) | AJ74: =ROUND((AS74*(1/(BI74*(1-BY74))-1/(BE74*(1-CG74))))/1000*O74,4) | AK74: IL TRM v7 vol3 | AL74: 65, 66, 69 | AM74: 2020-05-01 | AN74: 2020-12-31 | AS74: 12000 | AT74: Allows for Capacity input in Tons; converts tons to BTUs | AU74: IL TRM v7 vol3 | AV74: 66 | AW74: 8.712142857 | AX74: HSPFee | AY74: per PY2018 Metadata WHE | BA74: 5.44 | BB74: HSPFexist | BC74: IL TRM v7 vol3 | BD74: 68 | BE74: =1.12*AB74-0.02*AB74^2 -> 12.387822 | BF74: EERee | BG74: Calculated value | BI74: 7.5 | BJ74: EERexist | BK74: IL TRM v7 vol3 | BL74: 69,70 | BM74: 738 | BN74: EFLHcool | BO74: EFLHcool, from 2017 MO TRM Vol. 3 | BP74: 85 | BQ74: 1376 | BR74: EFLHheat | BS74: The EFLH Cooling and Heating hours are based on a EnergyStar study that was normalized (based on HDD and CDD) to Kansas City. This was for both AC and HP units. | BU74: 5.54 | BV74: HSPFexist | BW74: IL TRM v7 vol3 | BX74: 68 | BY74: 0.1 | BZ74: Derating_Cool_Base | CA74: IL TRM v7 vol3 | CB74: 67 | CC74: =0.805*(BE74/AB74)+0.367 -> 1.024363 | CD74: SEERadj | CE74: IL TRM v7 vol3 | CF74: 69 (example) | CG74: 0.1 | CH74: Derating_Cool_Eff | CI74: IL TRM v7 vol3 | CJ74: 67 | CK74: 0.1 | CL74: Derating_Heat_Base | CM74: IL TRM v7 vol3 | CN74: 68 | CO74: 1.001 | CP74: HSPFadj | CQ74: IL TRM v7 vol3 | CR74: 69 (example) | CS74: 0.1 | CT74: Derating_Heat_Eff | CU74: IL TRM v7 vol3 | CV74: 68 | CW74: 0.03 | CX74: Societal Discount Rate | CY74: Evergy Standard | DA74: 1381 | DB74: First Cost $/ton | DC74: IL TRM v7 vol3 | DD74: 64 | DE74: 303 | DF74: One-time per-system labor cost | DG74: IL TRM v7 vol3 | DH74: 64 | DI74: 1518 | DJ74: Deferred cost savings | DK74: IL TRM v7 vol3 | DL74: 65 | DM74: 3.5 | DN74: Assumed average system tons | DO74: Tracking Data
A75: Heating, Cooling & Home Comfort | B75: ASHP SEER 15 - Early Replacement | C75: 31.5 | D75: Single Family | E75: HVAC | G75: per ton | H75: =DA75+DE75/DM75-DI75*(1+CW75)^(-X75) -> 196.2703269 | I75: IL TRM v7 vol3 | J75: 64 | K75: 1632.7465 | L75: Calculated Value | N75: =K75/U75 -> 2.212393631 | O75: 0.72 | P75: IL TRM v7 vol3 | Q75: 65 | R75: 0.505 | S75: Calculated Value | U75: 738 | V75: EFLHcool, from 2017 MO TRM Vol. 3 | W75: 85 | X75: 6 | Y75: IL TRM v7 vol3 | Z75: 64 | AA75: SEERee | AB75: 15.17 | AC75: per PY2018 Metadata WHE | AE75: SEERexist | AF75: 9.3 | AG75: IL TRM v7 vol3 | AH75: 66 | AI75: =ROUND(((U75*AS75*(1/(AF75*(1-BY75))-1/(AB75*CC75*(1-CG75))))/1000)+((BQ75*AS75*(1/(BA75*(1-CK75))-1/(AW75*CO75*(1-CS75))))/1000),4) | AJ75: =ROUND((AS75*(1/(BI75*(1-BY75))-1/(BE75*(1-CG75))))/1000*O75,4) | AK75: IL TRM v7 vol3 | AL75: 65, 66, 69 | AM75: 2021-01-01 | AS75: 12000 | AT75: Allows for Capacity input in Tons; converts tons to BTUs | AU75: IL TRM v7 vol3 | AV75: 66 | AW75: 8.712142857 | AX75: HSPFee | AY75: per PY2018 Metadata WHE | BA75: 5.54 | BB75: HSPFexist | BC75: IL TRM v7 vol3 | BD75: 68 | BE75: =1.12*AB75-0.02*AB75^2 -> 12.387822 | BF75: EERee | BG75: Calculated value | BI75: 7.5 | BJ75: EERexist | BK75: IL TRM v7 vol3 | BL75: 69,70 | BM75: 738 | BN75: EFLHcool | BO75: EFLHcool, from 2017 MO TRM Vol. 3 | BP75: 85 | BQ75: 1376 | BR75: EFLHheat | BS75: The EFLH Cooling and Heating hours are based on a EnergyStar study that was normalized (based on HDD and CDD) to Kansas City. This was for both AC and HP units. | BU75: 5.54 | BV75: HSPFexist | BW75: IL TRM v7 vol3 | BX75: 68 | BY75: 0.1 | BZ75: Derating_Cool_Base | CA75: IL TRM v7 vol3 | CB75: 67 | CC75: =0.805*(BE75/AB75)+0.367 -> 1.024363 | CD75: SEERadj | CE75: IL TRM v7 vol3 | CF75: 69 (example) | CG75: 0.1 | CH75: Derating_Cool_Eff | CI75: IL TRM v7 vol3 | CJ75: 67 | CK75: 0.1 | CL75: Derating_Heat_Base | CM75: IL TRM v7 vol3 | CN75: 68 | CO75: 1.001 | CP75: HSPFadj | CQ75: IL TRM v7 vol3 | CR75: 69 (example) | CS75: 0.1 | CT75: Derating_Heat_Eff | CU75: IL TRM v7 vol3 | CV75: 68 | CW75: 0.03 | CX75: Societal Discount Rate | CY75: Evergy Standard | DA75: 1381 | DB75: First Cost $/ton | DC75: IL TRM v7 vol3 | DD75: 64 | DE75: 303 | DF75: One-time per-system labor cost | DG75: IL TRM v7 vol3 | DH75: 64 | DI75: 1518 | DJ75: Deferred cost savings | DK75: IL TRM v7 vol3 | DL75: 65 | DM75: 3.5 | DN75: Assumed average system tons | DO75: Tracking Data
A76: Heating, Cooling & Home Comfort | B76: ASHP SEER 15 - Early Replacement (future) | C76: 32.3 | D76: Single Family | E76: HVAC | G76: per ton | H76: 0 | I76: IL TRM v7 vol3 | J76: 64 | K76: 194.8951 | L76: Calculated Value | N76: =K76/U76 -> 0.2640855014 | O76: 0.72 | P76: IL TRM v7 vol3 | Q76: 70 | R76: 0.0978 | S76: Calculated Value | U76: 738 | V76: EFLHcool, from 2017 MO TRM | W76: 85 | X76: 10 | Y76: IL TRM v7 vol3 | Z76: 64 | AA76: SEERee | AB76: 15.17 | AC76: per PY2018 Metadata WHE | AE76: SEERbase | AF76: 14 | AG76: IL TRM v7 vol3 | AH76: 66 | AI76: =ROUND(((U76*AS76*(1/(AF76*(1-BY76))-1/(AB76*CC76*(1-CG76))))/1000)+((BQ76*AS76*(1/(BA76*(1-CK76))-1/(AW76*CO76*(1-CS76))))/1000),4) | AJ76: =ROUND((AS76*(1/(BI76*(1-BY76))-1/(BE76*(1-CG76))))/1000*O76,4) | AK76: IL TRM v7 vol3 | AL76: 65, 69 | AM76: 2020-01-01 | AN76: 2020-04-30 | AS76: 12000 | AT76: Allows for Capacity input in Tons; converts tons to BTUs | AW76: 8.712142857 | AX76: HSPFee | AY76: per PY2018 Metadata WHE | BA76: 8.2 | BB76: HSPFexist | BC76: IL TRM v7 vol3 | BD76: 68 | BE76: =(-0.02*AB76^2)+(1.12*AB76) -> 12.387822 | BF76: EERee | BG76: Calculated per PY2018 Metadata WHE | BI76: 11 | BJ76: EERbase | BK76: IL TRM v7 vol3 | BL76: 70 | BM76: 738 | BN76: EFLHcool | BO76: EFLHcool, from 2017 MO TRM | BP76: 85 | BQ76: 1376 | BR76: EFLHheat | BS76: The EFLH Cooling and Heating hours are based on a EnergyStar study that was normalized (based on HDD and CDD) to Kansas City. This was for both AC and HP units. | BU76: 8.2 | BV76: HSPFbase | BW76: IL TRM v7 vol3 | BX76: 68 | BY76: 0.1 | BZ76: Derating_Cool_Base | CA76: IL TRM v7 vol3 | CB76: 67 | CC76: 1.011 | CD76: SEERadj | CE76: IL TRM v7 vol3 | CF76: 69 (example) | CG76: 0.1 | CH76: Derating_Cool_Eff | CI76: IL TRM v7 vol3 | CJ76: 67 | CK76: 0.1 | CL76: Derating_Heat_Base | CM76: IL TRM v7 vol3 | CN76: 68 | CO76: 1.001 | CP76: HSPFadj | CQ76: IL TRM v7 vol3 | CR76: 69 (example) | CS76: 0.1 | CT76: Derating_Heat_Eff | CU76: IL TRM v7 vol3 | CV76: 68 | CW76: 0.03 | CX76: Societal Discount Rate | CY76: Evergy Standard | DA76: 1381 | DB76: First Cost $/ton | DC76: IL TRM v7 vol3 | DD76: 64 | DE76: 303 | DF76: One-time per-system labor cost | DG76: IL TRM v7 vol3 | DH76: 64 | DI76: 1518 | DJ76: Deferred cost savings | DK76: IL TRM v7 vol3 | DL76: 65 | DM76: 3.5 | DN76: Assumed average system tons | DO76: Tracking Data
A77: Heating, Cooling & Home Comfort | B77: ASHP SEER 15 - Early Replacement (future) | C77: 32.4 | D77: Single Family | E77: HVAC | G77: per ton | H77: 0 | I77: IL TRM v7 vol3 | J77: 64 | K77: 203.2648 | L77: Calculated Value | N77: =K77/U77 -> 0.2754265583 | O77: 0.72 | P77: IL TRM v7 vol3 | Q77: 65 | R77: 0.0978 | S77: Calculated Value | U77: 738 | V77: EFLHcool, from 2017 MO TRM Vol. 3 | W77: 85 | X77: 10 | Y77: IL TRM v7 vol3 | Z77: 64 | AA77: SEERee | AB77: 15.17 | AC77: per PY2018 Metadata WHE | AE77: SEERbase | AF77: 14 | AG77: IL TRM v7 vol3 | AH77: 67 | AI77: =ROUND(((U77*AS77*(1/(AF77*(1-BY77))-1/(AB77*CC77*(1-CG77))))/1000)+((BQ77*AS77*(1/(BA77*(1-CK77))-1/(AW77*CO77*(1-CS77))))/1000),4) | AJ77: =ROUND((AS77*(1/(BI77*(1-BY77))-1/(BE77*(1-CG77))))/1000*O77,4) | AK77: IL TRM v7 vol3 | AL77: 65, 66, 69 | AM77: 2020-05-01 | AS77: 12000 | AT77: Allows for Capacity input in Tons; converts tons to BTUs | AU77: IL TRM v7 vol3 | AV77: 66 | AW77: 8.712142857 | AX77: HSPFee | AY77: per PY2018 Metadata WHE | BA77: 8.2 | BB77: HSPFexist | BC77: IL TRM v7 vol3 | BD77: 68 | BE77: =1.12*AB77-0.02*AB77^2 -> 12.387822 | BF77: EERee | BG77: Calculated value | BI77: 11 | BJ77: EERbase | BK77: IL TRM v7 vol3 | BL77: 70 | BM77: 738 | BN77: EFLHcool | BO77: EFLHcool, from 2017 MO TRM Vol. 3 | BP77: 85 | BQ77: 1376 | BR77: EFLHheat | BS77: The EFLH Cooling and Heating hours are based on a EnergyStar study that was normalized (based on HDD and CDD) to Kansas City. This was for both AC and HP units. | BU77: 8.2 | BV77: HSPFbase | BW77: IL TRM v7 vol3 | BX77: 68 | BY77: 0.1 | BZ77: Derating_Cool_Base | CA77: IL TRM v7 vol3 | CB77: 67 | CC77: =0.805*(BE77/AB77)+0.367 -> 1.024363 | CD77: SEERadj | CE77: IL TRM v7 vol3 | CF77: 69 (example) | CG77: 0.1 | CH77: Derating_Cool_Eff | CI77: IL TRM v7 vol3 | CJ77: 67 | CK77: 0.1 | CL77: Derating_Heat_Base | CM77: IL TRM v7 vol3 | CN77: 68 | CO77: 1.001 | CP77: HSPFadj | CQ77: IL TRM v7 vol3 | CR77: 69 (example) | CS77: 0.1 | CT77: Derating_Heat_Eff | CU77: IL TRM v7 vol3 | CV77: 68 | CW77: 0.03 | CX77: Societal Discount Rate | CY77: Evergy Standard | DA77: 1381 | DB77: First Cost $/ton | DC77: IL TRM v7 vol3 | DD77: 64 | DE77: 303 | DF77: One-time per-system labor cost | DG77: IL TRM v7 vol3 | DH77: 64 | DI77: 1518 | DJ77: Deferred cost savings | DK77: IL TRM v7 vol3 | DL77: 65 | DM77: 3.5 | DN77: Assumed average system tons | DO77: Tracking Data
A78: Heating, Cooling & Home Comfort | B78: ASHP SEER 15 - Replace Electric Resistance Heat | C78: 33.3 | D78: Single Family | E78: HVAC | G78: per ton | H78: =303/3.5 -> 86.57142857 | I78: IL TRM v7 vol3 | J78: 64 | K78: 233.1933 | L78: Calculated Value | N78: =R78 -> 0.1198 | O78: 0.72 | P78: IL TRM v7 vol3 | Q78: 65 | R78: 0.1198 | S78: Calculated Value | U78: 738 | V78: EFLHcool, from 2017 MO TRM | W78: 85 | X78: 16 | Y78: IL TRM v7 vol3 | Z78: 64 | AA78: SEERee | AB78: 15.17 | AC78: per PY2018 Metadata WHE | AE78: SEERbase | AF78: 14 | AG78: IL TRM v7 vol3 | AH78: 67 | AI78: =ROUND(((U78*AS78*(1/(AF78*(1-BY78))-1/(AB78*CC78*(1-CG78))))/1000)+((BQ78*AS78*(1/(BA78*(1-CK78))-1/(AW78*CO78*(1-CS78))))/1000),4) | AJ78: =ROUND((AS78*(1/(BI78*(1-BY78))-1/(BE78*(1-CG78))))/1000*O78,4) | AK78: IL TRM v7 vol3 | AL78: 65, 69 | AM78: 2020-01-01 | AN78: 2020-04-30 | AS78: 12000 | AT78: Allows for Capacity input in Tons; converts tons to BTUs | AW78: 8.873684211 | AX78: HSPFee | AY78: per PY2018 Metadata WHE | BA78: 8.2 | BB78: HSPFbase | BC78: IL TRM v7 vol3 | BD78: 68 | BE78: 12.75 | BF78: EERee | BG78: Calculated per PY2018 Metadata WHE | BI78: 11 | BJ78: EERbase | BK78: IL TRM v7 vol3 | BL78: 70 | BM78: 738 | BN78: EFLHcool | BO78: EFLHcool, from 2017 MO TRM | BP78: 85 | BQ78: 1376 | BR78: EFLHheat | BS78: The EFLH Cooling and Heating hours are based on a EnergyStar study that was normalized (based on HDD and CDD) to Kansas City. This was for both AC and HP units. | BU78: 8.2 | BV78: HSPFbase | BW78: IL TRM v7 vol3 | BX78: 68 | BY78: 0.1 | BZ78: Derating_Cool_Base | CA78: IL TRM v7 vol3 | CB78: 67 | CC78: 1.011 | CD78: SEERadj | CE78: IL TRM v7 vol3 | CF78: 69 (example) | CG78: 0.1 | CH78: Derating_Cool_Eff | CI78: IL TRM v7 vol3 | CJ78: 67 | CK78: 0.1 | CL78: Derating_Heat_Base | CM78: IL TRM v7 vol3 | CN78: 68 | CO78: 1.001 | CP78: HSPFadj | CQ78: IL TRM v7 vol3 | CR78: 69 (example) | CS78: 0.1 | CT78: Derating_Heat_Eff | CU78: IL TRM v7 vol3 | CV78: 68
A79: Heating, Cooling & Home Comfort | B79: ASHP SEER 15 - Replace Electric Resistance Heat | C79: 33.4 | D79: Single Family | E79: HVAC | G79: per ton | H79: =303/3.5 -> 86.57142857 | I79: IL TRM v7 vol3 | J79: 64 | K79: 596.7703 | L79: Calculated Value | N79: =K79/U79 -> 0.8086318428 | O79: 0.72 | P79: IL TRM v7 vol3 | Q79: 65 | R79: 0.0978 | S79: Calculated Value | U79: 738 | V79: EFLHcool, from 2017 MO TRM Vol. 3 | W79: 85 | X79: 16 | Y79: IL TRM v7 vol3 | Z79: 64 | AA79: SEERee | AB79: 15.17 | AC79: per PY2018 Metadata WHE | AE79: SEERbase | AF79: 9.3 | AG79: IL TRM v7 vol3 | AH79: 66 | AI79: =ROUND(((U79*AS79*(1/(AF79*(1-BY79))-1/(AB79*CC79*(1-CG79))))/1000)+((BQ79*AS79*(1/(BA79*(1-CK79))-1/(AW79*CO79*(1-CS79))))/1000),4) | AJ79: =ROUND((AS79*(1/(BI79*(1-BY79))-1/(BE79*(1-CG79))))/1000*O79,4) | AK79: IL TRM v7 vol3 | AL79: 65, 66, 69 | AM79: 2020-05-01 | AN79: 2020-12-31 | AS79: 12000 | AT79: Allows for Capacity input in Tons; converts tons to BTUs | AU79: IL TRM v7 vol3 | AV79: 66 | AW79: 8.873684211 | AX79: HSPFee | AY79: per PY2018 Metadata WHE | BA79: 8.2 | BB79: HSPFbase | BC79: IL TRM v7 vol3 | BD79: 68 | BE79: =1.12*AB79-0.02*AB79^2 -> 12.387822 | BF79: EERee | BG79: Calculated value | BI79: 11 | BJ79: EERbase | BK79: IL TRM v7 vol3 | BL79: 70 | BM79: 738 | BN79: EFLHcool | BO79: EFLHcool, from 2017 MO TRM Vol. 3 | BP79: 85 | BQ79: 1376 | BR79: EFLHheat | BS79: The EFLH Cooling and Heating hours are based on a EnergyStar study that was normalized (based on HDD and CDD) to Kansas City. This was for both AC and HP units. | BU79: 8.2 | BV79: HSPFbase | BW79: IL TRM v7 vol3 | BX79: 68 | BY79: 0.1 | BZ79: Derating_Cool_Base | CA79: IL TRM v7 vol3 | CB79: 67 | CC79: =0.805*(BE79/AB79)+0.367 -> 1.024363 | CD79: SEERadj | CE79: IL TRM v7 vol3 | CF79: 69 (example) | CG79: 0.1 | CH79: Derating_Cool_Eff | CI79: IL TRM v7 vol3 | CJ79: 67 | CK79: 0.1 | CL79: Derating_Heat_Base | CM79: IL TRM v7 vol3 | CN79: 68 | CO79: 1.001 | CP79: HSPFadj | CQ79: IL TRM v7 vol3 | CR79: 69 (example) | CS79: 0.1 | CT79: Derating_Heat_Eff | CU79: IL TRM v7 vol3 | CV79: 68
A80: Heating, Cooling & Home Comfort | B80: ASHP SEER 15 - Replace Electric Resistance Heat | C80: 33.5 | D80: Single Family | E80: HVAC | G80: per ton | H80: =303/3.5 -> 86.57142857 | I80: IL TRM v7 vol3 | J80: 64 | K80: 241.5629 | L80: Calculated Value | N80: =K80/U80 -> 0.3273210027 | O80: 0.72 | P80: IL TRM v7 vol3 | Q80: 65 | R80: 0.0978 | S80: Calculated Value | U80: 738 | V80: EFLHcool, from 2017 MO TRM Vol. 3 | W80: 85 | X80: 16 | Y80: IL TRM v7 vol3 | Z80: 64 | AA80: SEERee | AB80: 15.17 | AC80: per PY2018 Metadata WHE | AE80: SEERbase | AF80: 14 | AG80: IL TRM v7 vol3 | AH80: 66 | AI80: =ROUND(((U80*AS80*(1/(AF80*(1-BY80))-1/(AB80*CC80*(1-CG80))))/1000)+((BQ80*AS80*(1/(BA80*(1-CK80))-1/(AW80*CO80*(1-CS80))))/1000),4) | AJ80: =ROUND((AS80*(1/(BI80*(1-BY80))-1/(BE80*(1-CG80))))/1000*O80,4) | AK80: IL TRM v7 vol3 | AL80: 65, 66, 69 | AM80: 2021-01-01 | AS80: 12000 | AT80: Allows for Capacity input in Tons; converts tons to BTUs | AU80: IL TRM v7 vol3 | AV80: 66 | AW80: 8.873684211 | AX80: HSPFee | AY80: per PY2018 Metadata WHE | BA80: 8.2 | BB80: HSPFbase | BC80: IL TRM v7 vol3 | BD80: 68 | BE80: =1.12*AB80-0.02*AB80^2 -> 12.387822 | BF80: EERee | BG80: Calculated value | BI80: 11 | BJ80: EERbase | BK80: IL TRM v7 vol3 | BL80: 70 | BM80: 738 | BN80: EFLHcool | BO80: EFLHcool, from 2017 MO TRM Vol. 3 | BP80: 85 | BQ80: 1376 | BR80: EFLHheat | BS80: The EFLH Cooling and Heating hours are based on a EnergyStar study that was normalized (based on HDD and CDD) to Kansas City. This was for both AC and HP units. | BU80: 8.2 | BV80: HSPFbase | BW80: IL TRM v7 vol3 | BX80: 68 | BY80: 0.1 | BZ80: Derating_Cool_Base | CA80: IL TRM v7 vol3 | CB80: 67 | CC80: =0.805*(BE80/AB80)+0.367 -> 1.024363 | CD80: SEERadj | CE80: IL TRM v7 vol3 | CF80: 69 (example) | CG80: 0.1 | CH80: Derating_Cool_Eff | CI80: IL TRM v7 vol3 | CJ80: 67 | CK80: 0.1 | CL80: Derating_Heat_Base | CM80: IL TRM v7 vol3 | CN80: 68 | CO80: 1.001 | CP80: HSPFadj | CQ80: IL TRM v7 vol3 | CR80: 69 (example) | CS80: 0.1 | CT80: Derating_Heat_Eff | CU80: IL TRM v7 vol3 | CV80: 68
A81: Heating, Cooling & Home Comfort | B81: ASHP SEER 15 - Replace Electric Resistance Heat - Early Replacement | C81: 314.2 | D81: Single Family | E81: HVAC | G81: per ton | H81: =DA81+DE81/DM81-DI81*(1+CW81)^(-X81) -> 196.2703269 | I81: IL TRM v7 vol3 | J81: 64 | K81: 3692.9583 | L81: Calculated Value | N81: =R81 -> 0.505 | O81: 0.72 | P81: IL TRM v7 vol3 | Q81: 65 | R81: 0.505 | S81: Calculated Value | U81: 738 | V81: EFLHcool, from 2017 MO TRM | W81: 85 | X81: 6 | Y81: IL TRM v7 vol3 | Z81: 64 | AA81: SEERee | AB81: 15.17 | AC81: per PY2018 Metadata WHE | AE81: SEERexist | AF81: 9.3 | AG81: IL TRM v7 vol3 | AH81: 66 | AI81: =ROUND(((U81*AS81*(1/(AF81*(1-BY81))-1/(AB81*CC81*(1-CG81))))/1000)+((BQ81*AS81*(1/(BA81*(1-CK81))-1/(AW81*CO81*(1-CS81))))/1000),4) | AJ81: =ROUND((AS81*(1/(BI81*(1-BY81))-1/(BE81*(1-CG81))))/1000*O81,4) | AK81: IL TRM v7 vol3 | AL81: 65, 69 | AM81: 2020-01-01 | AN81: 2020-04-30 | AS81: 12000 | AT81: Allows for Capacity input in Tons; converts tons to BTUs | AW81: 8.712142857 | AX81: HSPFee | AY81: per PY2018 Metadata WHE | BA81: 3.41 | BB81: HSPFexist | BC81: IL TRM v7 vol3 | BD81: 68 | BE81: =(-0.02*AB81^2)+(1.12*AB81) -> 12.387822 | BF81: EERee | BG81: Calculated per PY2018 Metadata WHE | BI81: 7.5 | BJ81: EERexist | BK81: IL TRM v7 vol3 | BL81: 70 | BM81: 738 | BN81: EFLHcool | BO81: EFLHcool, from 2017 MO TRM | BP81: 85 | BQ81: 1376 | BR81: EFLHheat | BS81: The EFLH Cooling and Heating hours are based on a EnergyStar study that was normalized (based on HDD and CDD) to Kansas City. This was for both AC and HP units. | BU81: 3.41 | BV81: HSPFexist | BW81: IL TRM v7 vol3 | BX81: 68 | BY81: 0.1 | BZ81: Derating_Cool_Base | CA81: IL TRM v7 vol3 | CB81: 67 | CC81: 1.011 | CD81: SEERadj | CE81: IL TRM v7 vol3 | CF81: 69 (example) | CG81: 0.1 | CH81: Derating_Cool_Eff | CI81: IL TRM v7 vol3 | CJ81: 67 | CK81: 0.1 | CL81: Derating_Heat_Base | CM81: IL TRM v7 vol3 | CN81: 68 | CO81: 1.001 | CP81: HSPFadj | CQ81: IL TRM v7 vol3 | CR81: 69 (example) | CS81: 0.1 | CT81: Derating_Heat_Eff | CU81: IL TRM v7 vol3 | CV81: 68 | CW81: 0.03 | CX81: Societal Discount Rate | CY81: Evergy Standard | DA81: 1381 | DB81: First Cost $/ton | DC81: IL TRM v7 vol3 | DD81: 64 | DE81: 303 | DF81: One-time per-system labor cost | DG81: IL TRM v7 vol3 | DH81: 64 | DI81: 1518 | DJ81: Deferred cost savings | DK81: IL TRM v7 vol3 | DL81: 65 | DM81: 3.5 | DN81: Assumed average system tons | DO81: Tracking Data
A82: Heating, Cooling & Home Comfort | B82: ASHP SEER 15 - Replace Electric Resistance Heat - Early Replacement | C82: 314.3 | D82: Single Family | E82: HVAC | G82: per ton | H82: =DA82+DE82/DM82-DI82*(1+CW82)^(-X82) -> 196.2703269 | I82: IL TRM v7 vol3 | J82: 64 | K82: 3701.3279 | L82: Calculated Value | N82: =K82/U82 -> 5.015349458 | O82: 0.72 | P82: IL TRM v7 vol3 | Q82: 65 | R82: 0.505 | S82: Calculated Value | U82: 738 | V82: EFLHcool, from 2017 MO TRM | W82: 85 | X82: 6 | Y82: IL TRM v7 vol3 | Z82: 64 | AA82: SEERee | AB82: 15.17 | AC82: per PY2018 Metadata WHE | AE82: SEERexist | AF82: 9.3 | AG82: IL TRM v7 vol3 | AH82: 66 | AI82: =ROUND(((U82*AS82*(1/(AF82*(1-BY82))-1/(AB82*CC82*(1-CG82))))/1000)+((BQ82*AS82*(1/(BA82*(1-CK82))-1/(AW82*CO82*(1-CS82))))/1000),4) | AJ82: =ROUND((AS82*(1/(BI82*(1-BY82))-1/(BE82*(1-CG82))))/1000*O82,4) | AK82: IL TRM v7 vol3 | AL82: 65, 69 | AM82: 2020-05-01 | AS82: 12000 | AT82: Allows for Capacity input in Tons; converts tons to BTUs | AW82: 8.712142857 | AX82: HSPFee | AY82: per PY2018 Metadata WHE | BA82: 3.41 | BB82: HSPFexist | BC82: IL TRM v7 vol3 | BD82: 68 | BE82: =(-0.02*AB82^2)+(1.12*AB82) -> 12.387822 | BF82: EERee | BG82: Calculated per PY2018 Metadata WHE | BI82: 7.5 | BJ82: EERexist | BK82: IL TRM v7 vol3 | BL82: 70 | BM82: 738 | BN82: EFLHcool | BO82: EFLHcool, from 2017 MO TRM | BP82: 85 | BQ82: 1376 | BR82: EFLHheat | BS82: The EFLH Cooling and Heating hours are based on a EnergyStar study that was normalized (based on HDD and CDD) to Kansas City. This was for both AC and HP units. | BU82: 3.41 | BV82: HSPFexist | BW82: IL TRM v7 vol3 | BX82: 68 | BY82: 0.1 | BZ82: Derating_Cool_Base | CA82: IL TRM v7 vol3 | CB82: 67 | CC82: =0.805*(BE82/AB82)+0.367 -> 1.024363 | CD82: SEERadj | CE82: IL TRM v7 vol3 | CF82: 69 (example) | CG82: 0.1 | CH82: Derating_Cool_Eff | CI82: IL TRM v7 vol3 | CJ82: 67 | CK82: 0.1 | CL82: Derating_Heat_Base | CM82: IL TRM v7 vol3 | CN82: 68 | CO82: 1.001 | CP82: HSPFadj | CQ82: IL TRM v7 vol3 | CR82: 69 (example) | CS82: 0.1 | CT82: Derating_Heat_Eff | CU82: IL TRM v7 vol3 | CV82: 68 | CW82: 0.03 | CX82: Societal Discount Rate | CY82: Evergy Standard | DA82: 1381 | DB82: First Cost $/ton | DC82: IL TRM v7 vol3 | DD82: 64 | DE82: 303 | DF82: One-time per-system labor cost | DG82: IL TRM v7 vol3 | DH82: 64 | DI82: 1518 | DJ82: Deferred cost savings | DK82: IL TRM v7 vol3 | DL82: 65 | DM82: 3.5 | DN82: Assumed average system tons | DO82: Tracking Data
A83: Heating, Cooling & Home Comfort | B83: ASHP SEER 15 - Replace Electric Resistance Heat - Early Replacement (future) | C83: 315.2 | D83: Single Family | E83: HVAC | G83: per ton | H83: 0 | I83: IL TRM v7 vol3 | J83: 65 | K83: 194.8951 | L83: Calculated Value | N83: =R83 -> 0.0978 | O83: 0.72 | P83: IL TRM v7 vol3 | Q83: 65 | R83: 0.0978 | S83: Calculated Value | U83: 738 | V83: EFLHcool, from 2017 MO TRM | W83: 85 | X83: 10 | Y83: IL TRM v7 vol3 | Z83: 64 | AA83: SEERee | AB83: 15.17 | AC83: per PY2018 Metadata WHE | AE83: SEERbase | AF83: 14 | AG83: IL TRM v7 vol3 | AH83: 67 | AI83: =ROUND(((U83*AS83*(1/(AF83*(1-BY83))-1/(AB83*CC83*(1-CG83))))/1000)+((BQ83*AS83*(1/(BA83*(1-CK83))-1/(AW83*CO83*(1-CS83))))/1000),4) | AJ83: =ROUND((AS83*(1/(BI83*(1-BY83))-1/(BE83*(1-CG83))))/1000*O83,4) | AK83: IL TRM v7 vol3 | AL83: 65, 69 | AM83: 2020-01-01 | AN83: 2020-04-30 | AS83: 12000 | AT83: Allows for Capacity input in Tons; converts tons to BTUs | AW83: 8.712142857 | AX83: HSPFee | AY83: per PY2018 Metadata WHE | BA83: 8.2 | BB83: HSPFbase | BC83: IL TRM v7 vol3 | BD83: 68 | BE83: =(-0.02*AB83^2)+(1.12*AB83) -> 12.387822 | BF83: EERee | BG83: Calculated per PY2018 Metadata WHE | BI83: 11 | BJ83: EERbase | BK83: IL TRM v7 vol3 | BL83: 70 | BM83: 738 | BN83: EFLHcool | BO83: EFLHcool, from 2017 MO TRM | BP83: 85 | BQ83: 1376 | BR83: EFLHheat | BS83: The EFLH Cooling and Heating hours are based on a EnergyStar study that was normalized (based on HDD and CDD) to Kansas City. This was for both AC and HP units. | BU83: 8.2 | BV83: HSPFbase | BW83: IL TRM v7 vol3 | BX83: 68 | BY83: 0.1 | BZ83: Derating_Cool_Base | CA83: IL TRM v7 vol3 | CB83: 67 | CC83: 1.011 | CD83: SEERadj | CE83: IL TRM v7 vol3 | CF83: 69 (example) | CG83: 0.1 | CH83: Derating_Cool_Eff | CI83: IL TRM v7 vol3 | CJ83: 67 | CK83: 0.1 | CL83: Derating_Heat_Base | CM83: IL TRM v7 vol3 | CN83: 68 | CO83: 1.001 | CP83: HSPFadj | CQ83: IL TRM v7 vol3 | CR83: 69 (example) | CS83: 0.1 | CT83: Derating_Heat_Eff | CU83: IL TRM v7 vol3 | CV83: 68 | CW83: 0.03 | CX83: Societal Discount Rate | CY83: Evergy Standard | DA83: 1381 | DB83: First Cost $/ton | DC83: IL TRM v7 vol3 | DD83: 64 | DE83: 303 | DF83: One-time per-system labor cost | DG83: IL TRM v7 vol3 | DH83: 64 | DI83: 1518 | DJ83: Deferred cost savings | DK83: IL TRM v7 vol3 | DL83: 65 | DM83: 3.5 | DN83: Assumed average system tons | DO83: Tracking Data
A84: Heating, Cooling & Home Comfort | B84: ASHP SEER 15 - Replace Electric Resistance Heat - Early Replacement (future) | C84: 315.3 | D84: Single Family | E84: HVAC | G84: per ton | H84: 0 | I84: IL TRM v7 vol3 | J84: 64 | K84: 203.2648 | L84: Calculated Value | N84: =K84/U84 -> 0.2754265583 | O84: 0.72 | P84: IL TRM v7 vol3 | Q84: 65 | R84: 0.0978 | S84: Calculated Value | U84: 738 | V84: EFLHcool, from 2017 MO TRM | W84: 85 | X84: 10 | Y84: IL TRM v7 vol3 | Z84: 64 | AA84: SEERee | AB84: 15.17 | AC84: per PY2018 Metadata WHE | AE84: SEERbase | AF84: 14 | AG84: IL TRM v7 vol3 | AH84: 67 | AI84: =ROUND(((U84*AS84*(1/(AF84*(1-BY84))-1/(AB84*CC84*(1-CG84))))/1000)+((BQ84*AS84*(1/(BA84*(1-CK84))-1/(AW84*CO84*(1-CS84))))/1000),4) | AJ84: =ROUND((AS84*(1/(BI84*(1-BY84))-1/(BE84*(1-CG84))))/1000*O84,4) | AK84: IL TRM v7 vol3 | AL84: 65, 69 | AM84: 2020-05-01 | AS84: 12000 | AT84: Allows for Capacity input in Tons; converts tons to BTUs | AW84: 8.712142857 | AX84: HSPFee | AY84: per PY2018 Metadata WHE | BA84: 8.2 | BB84: HSPFbase | BC84: IL TRM v7 vol3 | BD84: 68 | BE84: =(-0.02*AB84^2)+(1.12*AB84) -> 12.387822 | BF84: EERee | BG84: Calculated per PY2018 Metadata WHE | BI84: 11 | BJ84: EERbase | BK84: IL TRM v7 vol3 | BL84: 70 | BM84: 738 | BN84: EFLHcool | BO84: EFLHcool, from 2017 MO TRM | BP84: 85 | BQ84: 1376 | BR84: EFLHheat | BS84: The EFLH Cooling and Heating hours are based on a EnergyStar study that was normalized (based on HDD and CDD) to Kansas City. This was for both AC and HP units. | BU84: 8.2 | BV84: HSPFbase | BW84: IL TRM v7 vol3 | BX84: 68 | BY84: 0.1 | BZ84: Derating_Cool_Base | CA84: IL TRM v7 vol3 | CB84: 67 | CC84: =0.805*(BE84/AB84)+0.367 -> 1.024363 | CD84: SEERadj | CE84: IL TRM v7 vol3 | CF84: 69 (example) | CG84: 0.1 | CH84: Derating_Cool_Eff | CI84: IL TRM v7 vol3 | CJ84: 67 | CK84: 0.1 | CL84: Derating_Heat_Base | CM84: IL TRM v7 vol3 | CN84: 68 | CO84: 1.001 | CP84: HSPFadj | CQ84: IL TRM v7 vol3 | CR84: 69 (example) | CS84: 0.1 | CT84: Derating_Heat_Eff | CU84: IL TRM v7 vol3 | CV84: 68 | CW84: 0.03 | CX84: Societal Discount Rate | CY84: Evergy Standard | DA84: 1381 | DB84: First Cost $/ton | DC84: IL TRM v7 vol3 | DD84: 64 | DE84: 303 | DF84: One-time per-system labor cost | DG84: IL TRM v7 vol3 | DH84: 64 | DI84: 1518 | DJ84: Deferred cost savings | DK84: IL TRM v7 vol3 | DL84: 65 | DM84: 3.5 | DN84: Assumed average system tons | DO84: Tracking Data
A85: Heating, Cooling & Home Comfort | B85: ASHP SEER 16 | C85: 34.3 | D85: Single Family | E85: HVAC | G85: per ton | H85: =438/3.5 -> 125.1428571 | I85: IL TRM v7 vol3 | J85: 64 | K85: 314.7392 | L85: Calculated Value | N85: =R85 -> 0.1307 | O85: 0.72 | P85: IL TRM v7 vol3 | Q85: 65 | R85: 0.1307 | S85: Calculated Value | U85: 738 | V85: EFLHcool, from 2017 MO TRM | W85: 85 | X85: 16 | Y85: IL TRM v7 vol3 | Z85: 64 | AA85: SEERee | AB85: 16.04 | AC85: per PY2018 Metadata WHE | AE85: SEERbase | AF85: 14 | AG85: IL TRM v7 vol3 | AH85: 67 | AI85: =ROUND(((U85*AS85*(1/(AF85*(1-BY85))-1/(AB85*CC85*(1-CG85))))/1000)+((BQ85*AS85*(1/(BA85*(1-CK85))-1/(AW85*CO85*(1-CS85))))/1000),4) | AJ85: =ROUND((AS85*(1/(BI85*(1-BY85))-1/(BE85*(1-CG85))))/1000*O85,4) | AK85: IL TRM v7 vol3 | AL85: 65, 69 | AM85: 2020-01-01 | AN85: 2020-04-30 | AS85: 12000 | AT85: Allows for Capacity input in Tons; converts tons to BTUs | AW85: 9.079166667 | AX85: HSPFee | AY85: per PY2018 Metadata WHE | BA85: 8.2 | BB85: HSPFbase | BC85: IL TRM v7 vol3 | BD85: 68 | BE85: 12.9375 | BF85: EERee | BG85: Calculated per PY2018 Metadata WHE | BI85: 11 | BJ85: EERbase | BK85: IL TRM v7 vol3 | BL85: 70 | BM85: 738 | BN85: EFLHcool | BO85: EFLHcool, from 2017 MO TRM | BP85: 85 | BQ85: 1376 | BR85: EFLHheat | BS85: The EFLH Cooling and Heating hours are based on a EnergyStar study that was normalized (based on HDD and CDD) to Kansas City. This was for both AC and HP units. | BU85: 8.2 | BV85: HSPFbase | BW85: IL TRM v7 vol3 | BX85: 68 | BY85: 0.1 | BZ85: Derating_Cool_Base | CA85: IL TRM v7 vol3 | CB85: 67 | CC85: 1.011 | CD85: SEERadj | CE85: IL TRM v7 vol3 | CF85: 69 (example) | CG85: 0.1 | CH85: Derating_Cool_Eff | CI85: IL TRM v7 vol3 | CJ85: 67 | CK85: 0.1 | CL85: Derating_Heat_Base | CM85: IL TRM v7 vol3 | CN85: 68 | CO85: 1.001 | CP85: HSPFadj | CQ85: IL TRM v7 vol3 | CR85: 69 (example) | CS85: 0.1 | CT85: Derating_Heat_Eff | CU85: IL TRM v7 vol3 | CV85: 68
A86: Heating, Cooling & Home Comfort | B86: ASHP SEER 16 | C86: 34.4 | D86: Single Family | E86: HVAC | G86: per ton | H86: =438/3.5 -> 125.1428571 | I86: IL TRM v7 vol3 | J86: 64 | K86: 314.3524 | L86: Calculated Value | N86: =K86/U86 -> 0.4259517615 | O86: 0.72 | P86: IL TRM v7 vol3 | Q86: 65 | R86: 0.1238 | S86: Calculated Value | U86: 738 | V86: EFLHcool, from 2017 MO TRM Vol. 3 | W86: 85 | X86: 16 | Y86: IL TRM v7 vol3 | Z86: 64 | AA86: SEERee | AB86: 16.04 | AC86: per PY2018 Metadata WHE | AE86: SEERbase | AF86: 14 | AG86: IL TRM v7 vol3 | AH86: 67 | AI86: =ROUND(((U86*AS86*(1/(AF86*(1-BY86))-1/(AB86*CC86*(1-CG86))))/1000)+((BQ86*AS86*(1/(BA86*(1-CK86))-1/(AW86*CO86*(1-CS86))))/1000),4) | AJ86: =ROUND((AS86*(1/(BI86*(1-BY86))-1/(BE86*(1-CG86))))/1000*O86,4) | AK86: IL TRM v7 vol3 | AL86: 65, 66, 69 | AM86: 2020-05-01 | AS86: 12000 | AT86: Allows for Capacity input in Tons; converts tons to BTUs | AU86: IL TRM v7 vol3 | AV86: 66 | AW86: 9.079166667 | AX86: HSPFee | AY86: per PY2018 Metadata WHE | BA86: 8.2 | BB86: HSPFbase | BC86: IL TRM v7 vol3 | BD86: 68 | BE86: =1.12*AB86-0.02*AB86^2 -> 12.819168 | BF86: EERee | BG86: Calculated value | BI86: 11 | BJ86: EERbase | BK86: IL TRM v7 vol3 | BL86: 70 | BM86: 738 | BN86: EFLHcool | BO86: EFLHcool, from 2017 MO TRM Vol. 3 | BP86: 85 | BQ86: 1376 | BR86: EFLHheat | BS86: The EFLH Cooling and Heating hours are based on a EnergyStar study that was normalized (based on HDD and CDD) to Kansas City. This was for both AC and HP units. | BU86: 8.2 | BV86: HSPFbase | BW86: IL TRM v7 vol3 | BX86: 68 | BY86: 0.1 | BZ86: Derating_Cool_Base | CA86: IL TRM v7 vol3 | CB86: 67 | CC86: =0.805*(BE86/AB86)+0.367 -> 1.010356 | CD86: SEERadj | CE86: IL TRM v7 vol3 | CF86: 69 (example) | CG86: 0.1 | CH86: Derating_Cool_Eff | CI86: IL TRM v7 vol3 | CJ86: 67 | CK86: 0.1 | CL86: Derating_Heat_Base | CM86: IL TRM v7 vol3 | CN86: 68 | CO86: 1.001 | CP86: HSPFadj | CQ86: IL TRM v7 vol3 | CR86: 69 (example) | CS86: 0.1 | CT86: Derating_Heat_Eff | CU86: IL TRM v7 vol3 | CV86: 68
A87: Heating, Cooling & Home Comfort | B87: ASHP SEER 16 - Early Replacement | C87: 35.3 | D87: Single Family | E87: HVAC | G87: per ton | H87: =DA87+DE87/DM87-DI87*(1+CW87)^(-X87) -> 196.2703269 | I87: IL TRM v7 vol3 | J87: 64 | K87: 1804.8718 | L87: Calculated Value | N87: 2.445625745 | O87: 0.72 | P87: IL TRM v7 vol3 | Q87: 70 | R87: 0.5322 | S87: Calculated Value | U87: 738 | V87: EFLHcool, from 2017 MO TRM | W87: 85 | X87: 6 | Y87: IL TRM v7 vol3 | Z87: 64 | AA87: SEER | AB87: 16.08 | AC87: per PY2018 Metadata WHE | AE87: SEER | AF87: 9.12 | AG87: IL TRM v7 vol3 | AH87: 66 | AI87: =ROUND(((U87*AS87*(1/(AF87*(1-BY87))-1/(AB87*CC87*(1-CG87))))/1000)+((BQ87*AS87*(1/(BA87*(1-CK87))-1/(AW87*CO87*(1-CS87))))/1000),4) | AJ87: =ROUND((AS87*(1/(BI87*(1-BY87))-1/(BE87*(1-CG87))))/1000*O87,4) | AK87: IL TRM v7 vol3 | AL87: 65, 69 | AM87: 2020-01-01 | AN87: 2020-04-30 | AS87: 12000 | AT87: Allows for Capacity input in Tons; converts tons to BTUs | AW87: 8.978571429 | AX87: HSPFee | AY87: per PY2018 Metadata WHE | BA87: 5.44 | BB87: HSPFbase | BC87: IL TRM v7 vol3 | BD87: 68 | BE87: =(-0.02*AB87^2)+(1.12*AB87) -> 12.838272 | BF87: EERee | BG87: Calculated per PY2018 Metadata WHE | BI87: 7.5 | BJ87: EERexist | BK87: IL TRM v7 vol3 | BL87: 70 | BM87: 738 | BN87: EFLHcool | BO87: EFLHcool, from 2017 MO TRM | BP87: 85 | BQ87: 1376 | BR87: EFLHheat | BS87: The EFLH Cooling and Heating hours are based on a EnergyStar study that was normalized (based on HDD and CDD) to Kansas City. This was for both AC and HP units. | BU87: 5.54 | BV87: HSPFexist | BW87: IL TRM v7 vol3 | BX87: 68 | BY87: 0.1 | BZ87: Derating_Cool_Base | CA87: IL TRM v7 vol3 | CB87: 67 | CC87: 1.011 | CD87: SEERadj | CE87: IL TRM v7 vol3 | CF87: 69 (example) | CG87: 0.1 | CH87: Derating_Cool_Eff | CI87: IL TRM v7 vol3 | CJ87: 67 | CK87: 0.1 | CL87: Derating_Heat_Base | CM87: IL TRM v7 vol3 | CN87: 68 | CO87: 1.001 | CP87: HSPFadj | CQ87: IL TRM v7 vol3 | CR87: 69 (example) | CS87: 0.1 | CT87: Derating_Heat_Eff | CU87: IL TRM v7 vol3 | CV87: 68 | CW87: 0.03 | CX87: Societal Discount Rate | CY87: Evergy Standard | DA87: 1381 | DB87: First Cost $/ton | DC87: IL TRM v7 vol3 | DD87: 64 | DE87: 303 | DF87: One-time per-system labor cost | DG87: IL TRM v7 vol3 | DH87: 64 | DI87: 1518 | DJ87: Deferred cost savings | DK87: IL TRM v7 vol3 | DL87: 65 | DM87: 3.5 | DN87: Assumed average system tons | DO87: Tracking Data
A88: Heating, Cooling & Home Comfort | B88: ASHP SEER 16 - Early Replacement | C88: 35.4 | D88: Single Family | E88: HVAC | G88: per ton | H88: =DA88+DE88/DM88-DI88*(1+CW88)^(-X88) -> 196.2703269 | I88: IL TRM v7 vol3 | J88: 64 | K88: 1783.2169 | L88: Calculated Value | N88: 2.416283062 | O88: 0.72 | P88: IL TRM v7 vol3 | Q88: 65 | R88: 0.5322 | S88: Calculated Value | U88: 738 | V88: EFLHcool, from 2017 MO TRM Vol. 3 | W88: 85 | X88: 6 | Y88: IL TRM v7 vol3 | Z88: 64 | AA88: SEERee | AB88: 16.08 | AC88: per PY2018 Metadata WHE | AE88: SEERexist | AF88: 9.3 | AG88: IL TRM v7 vol3 | AH88: 66 | AI88: =ROUND(((U88*AS88*(1/(AF88*(1-BY88))-1/(AB88*CC88*(1-CG88))))/1000)+((BQ88*AS88*(1/(BA88*(1-CK88))-1/(AW88*CO88*(1-CS88))))/1000),4) | AJ88: =ROUND((AS88*(1/(BI88*(1-BY88))-1/(BE88*(1-CG88))))/1000*O88,4) | AK88: IL TRM v7 vol3 | AL88: 65, 66, 69 | AM88: 2020-05-01 | AN88: 2020-12-31 | AS88: 12000 | AT88: Allows for Capacity input in Tons; converts tons to BTUs | AU88: IL TRM v7 vol3 | AV88: 66 | AW88: 8.978571429 | AX88: HSPFee | AY88: per PY2018 Metadata WHE | BA88: 5.44 | BB88: HSPFbase | BC88: IL TRM v7 vol3 | BD88: 68 | BE88: =1.12*AB88-0.02*AB88^2 -> 12.838272 | BF88: EERee | BG88: Calculated value | BI88: 7.5 | BJ88: EERexist | BK88: IL TRM v7 vol3 | BL88: 69,70 | BM88: 738 | BN88: EFLHcool | BO88: EFLHcool, from 2017 MO TRM Vol. 3 | BP88: 85 | BQ88: 1376 | BR88: EFLHheat | BS88: The EFLH Cooling and Heating hours are based on a EnergyStar study that was normalized (based on HDD and CDD) to Kansas City. This was for both AC and HP units. | BU88: 5.54 | BV88: HSPFexist | BW88: IL TRM v7 vol3 | BX88: 68 | BY88: 0.1 | BZ88: Derating_Cool_Base | CA88: IL TRM v7 vol3 | CB88: 67 | CC88: =0.805*(BE88/AB88)+0.367 -> 1.009712 | CD88: SEERadj | CE88: IL TRM v7 vol3 | CF88: 69 (example) | CG88: 0.1 | CH88: Derating_Cool_Eff | CI88: IL TRM v7 vol3 | CJ88: 67 | CK88: 0.1 | CL88: Derating_Heat_Base | CM88: IL TRM v7 vol3 | CN88: 68 | CO88: 1.001 | CP88: HSPFadj | CQ88: IL TRM v7 vol3 | CR88: 69 (example) | CS88: 0.1 | CT88: Derating_Heat_Eff | CU88: IL TRM v7 vol3 | CV88: 68 | CW88: 0.03 | CX88: Societal Discount Rate | CY88: Evergy Standard | DA88: 1381 | DB88: First Cost $/ton | DC88: IL TRM v7 vol3 | DD88: 64 | DE88: 303 | DF88: One-time per-system labor cost | DG88: IL TRM v7 vol3 | DH88: 64 | DI88: 1518 | DJ88: Deferred cost savings | DK88: IL TRM v7 vol3 | DL88: 65 | DM88: 3.5 | DN88: Assumed average system tons | DO88: Tracking Data
A89: Heating, Cooling & Home Comfort | B89: ASHP SEER 16 - Early Replacement | C89: 35.5 | D89: Single Family | E89: HVAC | G89: per ton | H89: =DA89+DE89/DM89-DI89*(1+CW89)^(-X89) -> 196.2703269 | I89: IL TRM v7 vol3 | J89: 64 | K89: 1722.3405 | L89: Calculated Value | N89: 2.333794715 | O89: 0.72 | P89: IL TRM v7 vol3 | Q89: 65 | R89: 0.5322 | S89: Calculated Value | U89: 738 | V89: EFLHcool, from 2017 MO TRM Vol. 3 | W89: 85 | X89: 6 | Y89: IL TRM v7 vol3 | Z89: 64 | AA89: SEERee | AB89: 16.08 | AC89: per PY2018 Metadata WHE | AE89: SEERexist | AF89: 9.3 | AG89: IL TRM v7 vol3 | AH89: 66 | AI89: =ROUND(((U89*AS89*(1/(AF89*(1-BY89))-1/(AB89*CC89*(1-CG89))))/1000)+((BQ89*AS89*(1/(BA89*(1-CK89))-1/(AW89*CO89*(1-CS89))))/1000),4) | AJ89: =ROUND((AS89*(1/(BI89*(1-BY89))-1/(BE89*(1-CG89))))/1000*O89,4) | AK89: IL TRM v7 vol3 | AL89: 65, 66, 69 | AM89: 2021-01-01 | AS89: 12000 | AT89: Allows for Capacity input in Tons; converts tons to BTUs | AU89: IL TRM v7 vol3 | AV89: 66 | AW89: 8.978571429 | AX89: HSPFee | AY89: per PY2018 Metadata WHE | BA89: 5.54 | BB89: HSPFbase | BC89: IL TRM v7 vol3 | BD89: 68 | BE89: =1.12*AB89-0.02*AB89^2 -> 12.838272 | BF89: EERee | BG89: Calculated value | BI89: 7.5 | BJ89: EERexist | BK89: IL TRM v7 vol3 | BL89: 69,70 | BM89: 738 | BN89: EFLHcool | BO89: EFLHcool, from 2017 MO TRM Vol. 3 | BP89: 85 | BQ89: 1376 | BR89: EFLHheat | BS89: The EFLH Cooling and Heating hours are based on a EnergyStar study that was normalized (based on HDD and CDD) to Kansas City. This was for both AC and HP units. | BU89: 5.54 | BV89: HSPFexist | BW89: IL TRM v7 vol3 | BX89: 68 | BY89: 0.1 | BZ89: Derating_Cool_Base | CA89: IL TRM v7 vol3 | CB89: 67 | CC89: =0.805*(BE89/AB89)+0.367 -> 1.009712 | CD89: SEERadj | CE89: IL TRM v7 vol3 | CF89: 69 (example) | CG89: 0.1 | CH89: Derating_Cool_Eff | CI89: IL TRM v7 vol3 | CJ89: 67 | CK89: 0.1 | CL89: Derating_Heat_Base | CM89: IL TRM v7 vol3 | CN89: 68 | CO89: 1.001 | CP89: HSPFadj | CQ89: IL TRM v7 vol3 | CR89: 69 (example) | CS89: 0.1 | CT89: Derating_Heat_Eff | CU89: IL TRM v7 vol3 | CV89: 68 | CW89: 0.03 | CX89: Societal Discount Rate | CY89: Evergy Standard | DA89: 1381 | DB89: First Cost $/ton | DC89: IL TRM v7 vol3 | DD89: 64 | DE89: 303 | DF89: One-time per-system labor cost | DG89: IL TRM v7 vol3 | DH89: 64 | DI89: 1518 | DJ89: Deferred cost savings | DK89: IL TRM v7 vol3 | DL89: 65 | DM89: 3.5 | DN89: Assumed average system tons | DO89: Tracking Data
A90: Heating, Cooling & Home Comfort | B90: ASHP SEER 16 - Early Replacement (future) | C90: 36.3 | D90: Single Family | E90: HVAC | G90: per ton | H90: 0 | I90: IL TRM v7 vol3 | J90: 64 | K90: 108.9521 | L90: Calculated Value | N90: 0.1476315718 | O90: 0.72 | P90: IL TRM v7 vol3 | Q90: 70 | R90: 0.125 | S90: Calculated Value | U90: 738 | V90: EFLHcool, from 2017 MO TRM | W90: 85 | X90: 10 | Y90: IL TRM v7 vol3 | Z90: 64 | AA90: SEER | AB90: 16.08 | AC90: per PY2018 Metadata WHE | AE90: =BN90 -> SEERbase | AF90: =BM90 -> 14 | AG90: IL TRM v7 vol3 | AH90: 66 | AI90: =ROUND(((U90*AS90*(1/(AF90*(1-BY90))-1/(AB90*CC90*(1-CG90))))/1000)+((BQ90*AS90*(1/(BA90*(1-CK90))-1/(AW90*CO90*(1-CS90))))/1000),4) | AJ90: =ROUND((AS90*(1/(BI90*(1-BY90))-1/(BE90*(1-CG90))))/1000*O90,4) | AK90: IL TRM v7 vol3 | AL90: 65, 69 | AM90: 2020-01-01 | AN90: 2020-04-30 | AS90: 12000 | AT90: Allows for Capacity input in Tons; converts tons to BTUs | AW90: 8.978571429 | AX90: HSPFee | AY90: per PY2018 Metadata WHE | BA90: 5.44 | BB90: HSPFexist | BC90: IL TRM v7 vol3 | BD90: 68 | BE90: =(-0.02*AB90^2)+(1.12*AB90) -> 12.838272 | BF90: EERee | BG90: Calculated per PY2018 Metadata WHE | BI90: 11 | BJ90: EERbase | BK90: IL TRM v7 vol3 | BL90: 70 | BM90: 14 | BN90: SEERbase | BO90: EFLHcool, from 2017 MO TRM | BP90: 85 | BQ90: =(-0.02*BM90^2)+(1.12*BM90) -> 11.76 | BR90: EERbase | BS90: Based on SEER base | BU90: 8.2 | BV90: HSPFbase | BW90: IL TRM v7 vol3 | BX90: 68 | BY90: 0.1 | BZ90: Derating_Cool_Base | CA90: IL TRM v7 vol3 | CB90: 67 | CC90: 1.011 | CD90: SEERadj | CE90: IL TRM v7 vol3 | CF90: 69 (example) | CG90: 0.1 | CH90: Derating_Cool_Eff | CI90: IL TRM v7 vol3 | CJ90: 67 | CK90: 0.1 | CL90: Derating_Heat_Base | CM90: IL TRM v7 vol3 | CN90: 68 | CO90: 1.001 | CP90: HSPFadj | CQ90: IL TRM v7 vol3 | CR90: 69 (example) | CS90: 0.1 | CT90: Derating_Heat_Eff | CU90: IL TRM v7 vol3 | CV90: 68 | CW90: 0.03 | CX90: Societal Discount Rate | CY90: Evergy Standard | DA90: 1381 | DB90: First Cost $/ton | DC90: IL TRM v7 vol3 | DD90: 64 | DE90: 303 | DF90: One-time per-system labor cost | DG90: IL TRM v7 vol3 | DH90: 64 | DI90: 1518 | DJ90: Deferred cost savings | DK90: IL TRM v7 vol3 | DL90: 65 | DM90: 3.5 | DN90: Assumed average system tons | DO90: Tracking Data
A91: Heating, Cooling & Home Comfort | B91: ASHP SEER 16 - Early Replacement (future) | C91: 36.4 | D91: Single Family | E91: HVAC | G91: per ton | H91: 0 | I91: IL TRM v7 vol3 | J91: 64 | K91: 107.4448 | L91: Calculated Value | N91: 0.1455891599 | O91: 0.72 | P91: IL TRM v7 vol3 | Q91: 65 | R91: 0.125 | S91: Calculated Value | U91: 738 | V91: EFLHcool, from 2017 MO TRM Vol. 3 | W91: 85 | X91: 10 | Y91: IL TRM v7 vol3 | Z91: 64 | AA91: SEERee | AB91: 16.08 | AC91: per PY2018 Metadata WHE | AE91: =BN91 -> SEERbase | AF91: =BM91 -> 14 | AG91: IL TRM v7 vol3 | AH91: 67 | AI91: =ROUND(((U91*AS91*(1/(AF91*(1-BY91))-1/(AB91*CC91*(1-CG91))))/1000)+((BQ91*AS91*(1/(BA91*(1-CK91))-1/(AW91*CO91*(1-CS91))))/1000),4) | AJ91: =ROUND((AS91*(1/(BI91*(1-BY91))-1/(BE91*(1-CG91))))/1000*O91,4) | AK91: IL TRM v7 vol3 | AL91: 65, 66, 69 | AM91: 2020-05-01 | AN91: 2020-12-31 | AS91: 12000 | AT91: Allows for Capacity input in Tons; converts tons to BTUs | AU91: IL TRM v7 vol3 | AV91: 66 | AW91: 8.978571429 | AX91: HSPFee | AY91: per PY2018 Metadata WHE | BA91: 5.44 | BB91: HSPFexist | BC91: IL TRM v7 vol3 | BD91: 68 | BE91: =1.12*AB91-0.02*AB91^2 -> 12.838272 | BF91: EERee | BG91: Calculated value | BI91: 11 | BJ91: EERbase | BK91: IL TRM v7 vol3 | BL91: 70 | BM91: 14 | BN91: SEERbase | BO91: IL TRM v7 vol3 | BP91: 67 | BQ91: 11 | BR91: EERbase | BS91: IL TRM v7 vol3 | BT91: 70 | BU91: 8.2 | BV91: HSPFbase | BW91: IL TRM v7 vol3 | BX91: 68 | BY91: 0.1 | BZ91: Derating_Cool_Base | CA91: IL TRM v7 vol3 | CB91: 67 | CC91: =0.805*(BE91/AB91)+0.367 -> 1.009712 | CD91: SEERadj | CE91: IL TRM v7 vol3 | CF91: 69 (example) | CG91: 0.1 | CH91: Derating_Cool_Eff | CI91: IL TRM v7 vol3 | CJ91: 67 | CK91: 0.1 | CL91: Derating_Heat_Base | CM91: IL TRM v7 vol3 | CN91: 68 | CO91: 1.001 | CP91: HSPFadj | CQ91: IL TRM v7 vol3 | CR91: 69 (example) | CS91: 0.1 | CT91: Derating_Heat_Eff | CU91: IL TRM v7 vol3 | CV91: 68 | CW91: 0.03 | CX91: Societal Discount Rate | CY91: Evergy Standard | DA91: 1381 | DB91: First Cost $/ton | DC91: IL TRM v7 vol3 | DD91: 64 | DE91: 303 | DF91: One-time per-system labor cost | DG91: IL TRM v7 vol3 | DH91: 64 | DI91: 1518 | DJ91: Deferred cost savings | DK91: IL TRM v7 vol3 | DL91: 65 | DM91: 3.5 | DN91: Assumed average system tons | DO91: Tracking Data
A92: Heating, Cooling & Home Comfort | B92: ASHP SEER 16 - Early Replacement (future) | C92: 36.5 | D92: Single Family | E92: HVAC | G92: per ton | H92: 0 | I92: IL TRM v7 vol3 | J92: 64 | K92: 106.9581 | L92: Calculated Value | N92: 0.1449296748 | O92: 0.72 | P92: IL TRM v7 vol3 | Q92: 65 | R92: 0.125 | S92: Calculated Value | U92: 738 | V92: EFLHcool, from 2017 MO TRM Vol. 3 | W92: 85 | X92: 10 | Y92: IL TRM v7 vol3 | Z92: 64 | AA92: SEERee | AB92: 16.08 | AC92: per PY2018 Metadata WHE | AE92: =BN92 -> SEERbase | AF92: =BM92 -> 14 | AG92: IL TRM v7 vol3 | AH92: 67 | AI92: =ROUND(((U92*AS92*(1/(AF92*(1-BY92))-1/(AB92*CC92*(1-CG92))))/1000)+((BQ92*AS92*(1/(BA92*(1-CK92))-1/(AW92*CO92*(1-CS92))))/1000),4) | AJ92: =ROUND((AS92*(1/(BI92*(1-BY92))-1/(BE92*(1-CG92))))/1000*O92,4) | AK92: IL TRM v7 vol3 | AL92: 65, 66, 69 | AM92: 2021-01-01 | AS92: 12000 | AT92: Allows for Capacity input in Tons; converts tons to BTUs | AU92: IL TRM v7 vol3 | AV92: 66 | AW92: 8.978571429 | AX92: HSPFee | AY92: per PY2018 Metadata WHE | BA92: 5.54 | BB92: HSPFexist | BC92: IL TRM v7 vol3 | BD92: 68 | BE92: =1.12*AB92-0.02*AB92^2 -> 12.838272 | BF92: EERee | BG92: Calculated value | BI92: 11 | BJ92: EERbase | BK92: IL TRM v7 vol3 | BL92: 70 | BM92: 14 | BN92: SEERbase | BO92: IL TRM v7 vol3 | BP92: 67 | BQ92: 11 | BR92: EERbase | BS92: IL TRM v7 vol3 | BT92: 70 | BU92: 8.2 | BV92: HSPFbase | BW92: IL TRM v7 vol3 | BX92: 68 | BY92: 0.1 | BZ92: Derating_Cool_Base | CA92: IL TRM v7 vol3 | CB92: 67 | CC92: =0.805*(BE92/AB92)+0.367 -> 1.009712 | CD92: SEERadj | CE92: IL TRM v7 vol3 | CF92: 69 (example) | CG92: 0.1 | CH92: Derating_Cool_Eff | CI92: IL TRM v7 vol3 | CJ92: 67 | CK92: 0.1 | CL92: Derating_Heat_Base | CM92: IL TRM v7 vol3 | CN92: 68 | CO92: 1.001 | CP92: HSPFadj | CQ92: IL TRM v7 vol3 | CR92: 69 (example) | CS92: 0.1 | CT92: Derating_Heat_Eff | CU92: IL TRM v7 vol3 | CV92: 68 | CW92: 0.03 | CX92: Societal Discount Rate | CY92: Evergy Standard | DA92: 1381 | DB92: First Cost $/ton | DC92: IL TRM v7 vol3 | DD92: 64 | DE92: 303 | DF92: One-time per-system labor cost | DG92: IL TRM v7 vol3 | DH92: 64 | DI92: 1518 | DJ92: Deferred cost savings | DK92: IL TRM v7 vol3 | DL92: 65 | DM92: 3.5 | DN92: Assumed average system tons | DO92: Tracking Data
A93: Heating, Cooling & Home Comfort | B93: ASHP SEER 16 - Replace Electric Resistance Heat | C93: 37.3 | D93: Single Family | E93: HVAC | G93: per ton | H93: 793.1578947 | I93: IL TRM v5 | J93: 59 | K93: =ROUND((BM93*AS93*(1/AF93-1/AB93))/1000+(BQ93*AS93*(1/BA93-1/AW93)/1000),4) -> 273.2928 | L93: Calculated Value | N93: 0.3703154472 | O93: 0.72 | P93: Calculated Value | R93: =ROUND((AS93*(1/BI93-1/BE93)/1000)*O93,4) -> 0.0478 | S93: Calculated Value | U93: 738 | V93: EFLHcool, from 2017 MO TRM | W93: 85 | X93: 18 | Y93: IL TRM v5 vol3 | Z93: 59 | AA93: SEER | AB93: 16.11 | AC93: per PY2018 Metadata | AE93: SEERbase | AF93: 14 | AG93: IL TRM v5 vol3 | AH93: 62 | AI93: =ROUND((BM93*AS93*(1/AF93-1/AB93))/1000+(BQ93*AS93*(1/BA93-1/AW93)/1000),4) | AJ93: =ROUND((AS93*(1/BI93-1/BE93)/1000)*O93,4) | AK93: IL TRM v5 vol3 | AL93: 60, 63 | AM93: 2020-01-01 | AN93: 2020-04-30 | AS93: 12000 | AT93: Allows for Capacity input in Tons; converts tons to BTUs | AW93: 9.056521739 | AX93: HSPFee | AY93: Calculated per PY2016 Metadata | BA93: 8.2 | BB93: HSPFbase | BC93: IL TRM v5 vol3 | BD93: 63 | BE93: 12.625 | BF93: EERee | BG93: Calculated per PY2016 Metadata | BI93: 11.8 | BJ93: EERbase | BK93: IL TRM v5 vol3 | BL93: 64 | BM93: 738 | BN93: EFLHcool | BO93: EFLHcool, from 2017 MO TRM | BP93: 85 | BQ93: 1376 | BR93: EFLHheat | BS93: The EFLH Cooling and Heating hours are based on a EnergyStar study that was normalized (based on HDD and CDD) to Kansas City. This was for both AC and HP units.
A94: Heating, Cooling & Home Comfort | B94: ASHP SEER 16 - Replace Electric Resistance Heat | C94: 37.4 | D94: Single Family | E94: HVAC | G94: per ton | H94: =438/3.5 -> 125.1428571 | I94: IL TRM v7 vol3 | J94: 64 | K94: =ROUND((BM94*AS94*(1/((1-BU94)*AF94)-1/((1-CC94)*(BY94)*AB94)))/1000+(BQ94*AS94*(1/((1-CG94)*BA94)-1/((1-CO94)*(CK94)*AW94))/1000),4) -> 666.4753 | L94: Calculated Value | N94: 0.9030830623 | O94: 0.72 | P94: IL TRM v7 vol3 | Q94: 65 | R94: =ROUND((AS94*(1/((1-BU94)*BI94)-1/((1-CC94)*BE94))/1000)*O94,4) -> 0.1258 | S94: Calculated Value | U94: 738 | V94: EFLHcool, from 2017 MO TRM Vol. 3 | W94: 85 | X94: 16 | Y94: IL TRM v7 vol3 | Z94: 64 | AA94: SEERee | AB94: 16.11 | AC94: per PY2018 Metadata WHE | AE94: SEERbase | AF94: 9.3 | AG94: IL TRM v7 vol3 | AH94: 66 | AI94: =ROUND((BM94*AS94*(1/((1-BU94)*AF94)-1/((1-CC94)*(BY94)*AB94)))/1000+(BQ94*AS94*(1/((1-CG94)*BA94)-1/((1-CO94)*(CK94)*AW94))/1000),4) | AJ94: =ROUND((AS94*(1/((1-BU94)*BI94)-1/((1-CC94)*BE94))/1000)*O94,4) | AK94: IL TRM v7 vol3 | AL94: 65, 66, 69 | AM94: 2020-05-01 | AN94: 2020-12-31 | AS94: 12000 | AT94: Allows for Capacity input in Tons; converts tons to BTUs | AU94: IL TRM v7 vol3 | AV94: 66 | AW94: 9.056521739 | AX94: HSPFee | AY94: per PY2018 Metadata WHE | BA94: 8.2 | BB94: HSPFbase | BC94: IL TRM v5 vol3 | BD94: 68 | BE94: =1.12*AB94-0.02*AB94^2 -> 12.852558 | BF94: EERee | BG94: Calculated value | BI94: 11 | BJ94: EERbase | BK94: IL TRM v7 vol3 | BL94: 70 | BM94: 738 | BN94: EFLHcool | BO94: EFLHcool, from 2017 MO TRM Vol. 3 | BP94: 85 | BQ94: 1376 | BR94: EFLHheat | BS94: The EFLH Cooling and Heating hours are based on a EnergyStar study that was normalized (based on HDD and CDD) to Kansas City. This was for both AC and HP units. | BU94: 0.1 | BV94: Derating_Cool_Base | BW94: IL TRM v7 vol3 | BX94: 67 | BY94: =0.805*(BE94/AB94)+0.367 -> 1.009229 | BZ94: SEERadj | CA94: IL TRM v7 vol3 | CB94: 69 (example) | CC94: 0.1 | CD94: Derating_Cool_Eff | CE94: IL TRM v7 vol3 | CF94: 67 | CG94: 0.1 | CH94: Derating_Heat_Base | CI94: IL TRM v7 vol3 | CJ94: 68 | CK94: 1.001 | CL94: HSPFadj | CM94: IL TRM v7 vol3 | CN94: 69 (example) | CO94: 0.1 | CP94: Derating_Heat_Eff | CQ94: IL TRM v7 vol3 | CR94: 68
A95: Heating, Cooling & Home Comfort | B95: ASHP SEER 16 - Replace Electric Resistance Heat | C95: 37.5 | D95: Single Family | E95: HVAC | G95: per ton | H95: =438/3.5 -> 125.1428571 | I95: IL TRM v7 vol3 | J95: 64 | K95: =ROUND((BM95*AS95*(1/((1-BU95)*AF95)-1/((1-CC95)*(BY95)*AB95)))/1000+(BQ95*AS95*(1/((1-CG95)*BA95)-1/((1-CO95)*(CK95)*AW95))/1000),4) -> 311.2679 | L95: Calculated Value | N95: 0.4217722222 | O95: 0.72 | P95: IL TRM v7 vol3 | Q95: 65 | R95: =ROUND((AS95*(1/((1-BU95)*BI95)-1/((1-CC95)*BE95))/1000)*O95,4) -> 0.1258 | S95: Calculated Value | U95: 738 | V95: EFLHcool, from 2017 MO TRM Vol. 3 | W95: 85 | X95: 16 | Y95: IL TRM v7 vol3 | Z95: 64 | AA95: SEERee | AB95: 16.11 | AC95: per PY2018 Metadata WHE | AE95: SEERbase | AF95: 14 | AG95: IL TRM v7 vol3 | AH95: 66 | AI95: =ROUND((BM95*AS95*(1/((1-BU95)*AF95)-1/((1-CC95)*(BY95)*AB95)))/1000+(BQ95*AS95*(1/((1-CG95)*BA95)-1/((1-CO95)*(CK95)*AW95))/1000),4) | AJ95: =ROUND((AS95*(1/((1-BU95)*BI95)-1/((1-CC95)*BE95))/1000)*O95,4) | AK95: IL TRM v7 vol3 | AL95: 65, 66, 69 | AM95: 2021-01-01 | AS95: 12000 | AT95: Allows for Capacity input in Tons; converts tons to BTUs | AU95: IL TRM v7 vol3 | AV95: 66 | AW95: 9.056521739 | AX95: HSPFee | AY95: per PY2018 Metadata WHE | BA95: 8.2 | BB95: HSPFbase | BC95: IL TRM v5 vol3 | BD95: 68 | BE95: =1.12*AB95-0.02*AB95^2 -> 12.852558 | BF95: EERee | BG95: Calculated value | BI95: 11 | BJ95: EERbase | BK95: IL TRM v7 vol3 | BL95: 70 | BM95: 738 | BN95: EFLHcool | BO95: EFLHcool, from 2017 MO TRM Vol. 3 | BP95: 85 | BQ95: 1376 | BR95: EFLHheat | BS95: The EFLH Cooling and Heating hours are based on a EnergyStar study that was normalized (based on HDD and CDD) to Kansas City. This was for both AC and HP units. | BU95: 0.1 | BV95: Derating_Cool_Base | BW95: IL TRM v7 vol3 | BX95: 67 | BY95: =0.805*(BE95/AB95)+0.367 -> 1.009229 | BZ95: SEERadj | CA95: IL TRM v7 vol3 | CB95: 69 (example) | CC95: 0.1 | CD95: Derating_Cool_Eff | CE95: IL TRM v7 vol3 | CF95: 67 | CG95: 0.1 | CH95: Derating_Heat_Base | CI95: IL TRM v7 vol3 | CJ95: 68 | CK95: 1.001 | CL95: HSPFadj | CM95: IL TRM v7 vol3 | CN95: 69 (example) | CO95: 0.1 | CP95: Derating_Heat_Eff | CQ95: IL TRM v7 vol3 | CR95: 68
A96: Heating, Cooling & Home Comfort | B96: ASHP SEER 16 - Replace Electric Resistance Heat - Early Replacement | C96: 316.2 | D96: Single Family | E96: HVAC | G96: per ton | H96: =DA96+DE96/DM96-DI96*(1+CW96)^(-X96) -> 234.8417555 | I96: IL TRM v7 vol3 | J96: 64 | K96: =ROUND(((U96*AS96*(1/(AF96*(1-BY96))-1/(AB96*CC96*(1-CG96))))/1000)+((BQ96*AS96*(1/(BA96*(1-CK96))-1/(AW96*CO96*(1-CS96))))/1000),4) -> 3791.6941 | L96: Calculated Value | N96: =R96 -> 0.5322 | O96: 0.72 | P96: IL TRM v7 vol3 | Q96: 65 | R96: =ROUND((AS96*(1/(BI96*(1-BY96))-1/(BE96*(1-CG96))))/1000*O96,4) -> 0.5322 | S96: Calculated Value | U96: 738 | V96: EFLHcool, from 2017 MO TRM | W96: 85 | X96: 6 | Y96: IL TRM v7 vol3 | Z96: 64 | AA96: SEERee | AB96: 16.08 | AC96: per PY2018 Metadata WHE | AE96: SEERexist | AF96: 9.3 | AG96: IL TRM v7 vol3 | AH96: 66 | AI96: =ROUND(((U96*AS96*(1/(AF96*(1-BY96))-1/(AB96*CC96*(1-CG96))))/1000)+((BQ96*AS96*(1/(BA96*(1-CK96))-1/(AW96*CO96*(1-CS96))))/1000),4) | AJ96: =ROUND((AS96*(1/(BI96*(1-BY96))-1/(BE96*(1-CG96))))/1000*O96,4) | AK96: IL TRM v7 vol3 | AL96: 65, 69 | AM96: 2020-01-01 | AS96: 12000 | AT96: Allows for Capacity input in Tons; converts tons to BTUs | AW96: 8.978571429 | AX96: HSPFee | AY96: per PY2018 Metadata WHE | BA96: 3.41 | BB96: HSPFexist | BC96: IL TRM v7 vol3 | BD96: 68 | BE96: =(-0.02*AB96^2)+(1.12*AB96) -> 12.838272 | BF96: EERee | BG96: Calculated per PY2018 Metadata WHE | BI96: 7.5 | BJ96: EERexist | BK96: IL TRM v7 vol3 | BL96: 70 | BM96: 738 | BN96: EFLHcool | BO96: EFLHcool, from 2017 MO TRM | BP96: 85 | BQ96: 1376 | BR96: EFLHheat | BS96: The EFLH Cooling and Heating hours are based on a EnergyStar study that was normalized (based on HDD and CDD) to Kansas City. This was for both AC and HP units. | BU96: 3.41 | BV96: HSPFexist | BW96: IL TRM v7 vol3 | BX96: 68 | BY96: 0.1 | BZ96: Derating_Cool_Base | CA96: IL TRM v7 vol3 | CB96: 67 | CC96: 1.011 | CD96: SEERadj | CE96: IL TRM v7 vol3 | CF96: 69 (example) | CG96: 0.1 | CH96: Derating_Cool_Eff | CI96: IL TRM v7 vol3 | CJ96: 67 | CK96: 0.1 | CL96: Derating_Heat_Base | CM96: IL TRM v7 vol3 | CN96: 68 | CO96: 1.001 | CP96: HSPFadj | CQ96: IL TRM v7 vol3 | CR96: 69 (example) | CS96: 0.1 | CT96: Derating_Heat_Eff | CU96: IL TRM v7 vol3 | CV96: 68 | CW96: 0.03 | CX96: Societal Discount Rate | CY96: Evergy Standard | DA96: 1381 | DB96: First Cost $/ton | DC96: IL TRM v7 vol3 | DD96: 64 | DE96: 438 | DF96: One-time per-system labor cost | DG96: IL TRM v7 vol3 | DH96: 64 | DI96: 1518 | DJ96: Deferred cost savings | DK96: IL TRM v7 vol3 | DL96: 65 | DM96: 3.5 | DN96: Assumed average system tons | DO96: Tracking Data
A97: Heating, Cooling & Home Comfort | B97: ASHP SEER 16 - Replace Electric Resistance Heat - Early Replacement (future) | C97: 317.2 | D97: Single Family | E97: HVAC | G97: per ton | H97: 0 | I97: IL TRM v7 vol3 | J97: 65 | K97: =ROUND(((U97*AS97*(1/(AF97*(1-BY97))-1/(AB97*CC97*(1-CG97))))/1000)+((BQ97*AS97*(1/(BA97*(1-CK97))-1/(AW97*CO97*(1-CS97))))/1000),4) -> 293.6309 | L97: Calculated Value | N97: =R97 -> 0.125 | O97: 0.72 | P97: IL TRM v7 vol3 | Q97: 65 | R97: =ROUND((AS97*(1/(BI97*(1-BY97))-1/(BE97*(1-CG97))))/1000*O97,4) -> 0.125 | S97: Calculated Value | U97: 738 | V97: EFLHcool, from 2017 MO TRM | W97: 85 | X97: 10 | Y97: IL TRM v7 vol3 | Z97: 64 | AA97: SEERee | AB97: 16.08 | AC97: per PY2018 Metadata WHE | AE97: SEERbase | AF97: 14 | AG97: IL TRM v7 vol3 | AH97: 67 | AI97: =ROUND(((U97*AS97*(1/(AF97*(1-BY97))-1/(AB97*CC97*(1-CG97))))/1000)+((BQ97*AS97*(1/(BA97*(1-CK97))-1/(AW97*CO97*(1-CS97))))/1000),4) | AJ97: =ROUND((AS97*(1/(BI97*(1-BY97))-1/(BE97*(1-CG97))))/1000*O97,4) | AK97: IL TRM v7 vol3 | AL97: 65, 69 | AM97: 2020-01-01 | AS97: 12000 | AT97: Allows for Capacity input in Tons; converts tons to BTUs | AW97: 8.978571429 | AX97: HSPFee | AY97: per PY2018 Metadata WHE | BA97: 8.2 | BB97: HSPFbase | BC97: IL TRM v7 vol3 | BD97: 68 | BE97: =(-0.02*AB97^2)+(1.12*AB97) -> 12.838272 | BF97: EERee | BG97: Calculated per PY2018 Metadata WHE | BI97: 11 | BJ97: EERbase | BK97: IL TRM v7 vol3 | BL97: 70 | BM97: 738 | BN97: EFLHcool | BO97: EFLHcool, from 2017 MO TRM | BP97: 85 | BQ97: 1376 | BR97: EFLHheat | BS97: The EFLH Cooling and Heating hours are based on a EnergyStar study that was normalized (based on HDD and CDD) to Kansas City. This was for both AC and HP units. | BU97: 8.2 | BV97: HSPFbase | BW97: IL TRM v7 vol3 | BX97: 68 | BY97: 0.1 | BZ97: Derating_Cool_Base | CA97: IL TRM v7 vol3 | CB97: 67 | CC97: 1.011 | CD97: SEERadj | CE97: IL TRM v7 vol3 | CF97: 69 (example) | CG97: 0.1 | CH97: Derating_Cool_Eff | CI97: IL TRM v7 vol3 | CJ97: 67 | CK97: 0.1 | CL97: Derating_Heat_Base | CM97: IL TRM v7 vol3 | CN97: 68 | CO97: 1.001 | CP97: HSPFadj | CQ97: IL TRM v7 vol3 | CR97: 69 (example) | CS97: 0.1 | CT97: Derating_Heat_Eff | CU97: IL TRM v7 vol3 | CV97: 68 | CW97: 0.03 | CX97: Societal Discount Rate | CY97: Evergy Standard | DA97: 1381 | DB97: First Cost $/ton | DC97: IL TRM v7 vol3 | DD97: 64 | DE97: 438 | DF97: One-time per-system labor cost | DG97: IL TRM v7 vol3 | DH97: 64 | DI97: 1518 | DJ97: Deferred cost savings | DK97: IL TRM v7 vol3 | DL97: 65 | DM97: 3.5 | DN97: Assumed average system tons | DO97: Tracking Data
A98: Heating, Cooling & Home Comfort | B98: ASHP SEER 17 | C98: 38.3 | D98: Single Family | E98: HVAC | G98: per ton | H98: 411 | I98: IL TRM v5 | J98: 59 | K98: =ROUND((BM98*AS98*(1/AF98-1/AB98))/1000+(BQ98*AS98*(1/BA98-1/AW98)/1000),4) -> 318.3332 | L98: Calculated Value | N98: =K98/U98 -> 0.4313457995 | O98: 0.72 | P98: Calculated Value | R98: =ROUND((AS98*(1/BI98-1/BE98)/1000)*O98,4) -> 0.041 | S98: Calculated Value | U98: 738 | V98: EFLHcool, from 2017 MO TRM | W98: 85 | X98: 18 | Y98: IL TRM v5 vol3 | Z98: 59 | AA98: SEER | AB98: 17.25 | AC98: per PY2018 Metadata | AE98: SEER | AF98: 14 | AG98: IL TRM v5 vol3 | AH98: 62 | AI98: =ROUND((BM98*AS98*(1/AF98-1/AB98))/1000+(BQ98*AS98*(1/BA98-1/AW98)/1000),4) | AJ98: =ROUND((AS98*(1/BI98-1/BE98)/1000)*O98,4) | AK98: IL TRM v5 vol3 | AL98: 60, 63 | AM98: 2020-01-01 | AN98: 2020-04-30 | AS98: 12000 | AT98: Allows for Capacity input in Tons; converts tons to BTUs | AW98: 9.1 | AX98: HSPFee | AY98: Calculated per PY2016 Metadata | BA98: 8.2 | BB98: HSPFbase | BC98: IL TRM v5 vol3 | BD98: 63 | BE98: 12.5 | BF98: EERee | BG98: Calculated per PY2016 Metadata | BI98: 11.8 | BJ98: EERbase | BK98: IL TRM v5 vol3 | BL98: 64 | BM98: 738 | BN98: EFLHcool | BO98: EFLHcool, from 2017 MO TRM | BP98: 85 | BQ98: 1376 | BR98: EFLHheat | BS98: The EFLH Cooling and Heating hours are based on a EnergyStar study that was normalized (based on HDD and CDD) to Kansas City. This was for both AC and HP units.
A99: Heating, Cooling & Home Comfort | B99: ASHP SEER 17 | C99: 38.4 | D99: Single Family | E99: HVAC | G99: per ton | H99: =724/3.5 -> 206.8571429 | I99: IL TRM v7 vol3 | J99: 64 | K99: =ROUND((BM99*AS99*(1/((1-BU99)*AF99)-1/((1-CC99)*(BY99)*AB99)))/1000+(BQ99*AS99*(1/((1-CG99)*BA99)-1/((1-CO99)*(CK99)*AW99))/1000),4) -> 350.4645 | L99: Calculated Value | N99: 0.4748841463 | O99: 0.72 | P99: IL TRM v7 vol3 | Q99: 65 | R99: =ROUND((AS99*(1/((1-BU99)*BI99)-1/((1-CC99)*BE99))/1000)*O99,4) -> 0.1546 | S99: Calculated Value | U99: 738 | V99: EFLHcool, from 2017 MO TRM Vol. 3 | W99: 85 | X99: 16 | Y99: IL TRM v7 vol3 | Z99: 64 | AA99: SEERee | AB99: 17.25 | AC99: per PY2018 Metadata WHE | AE99: SEERbase | AF99: 14 | AG99: IL TRM v7 vol3 | AH99: 67 | AI99: =ROUND((BM99*AS99*(1/((1-BU99)*AF99)-1/((1-CC99)*(BY99)*AB99)))/1000+(BQ99*AS99*(1/((1-CG99)*BA99)-1/((1-CO99)*(CK99)*AW99))/1000),4) | AJ99: =ROUND((AS99*(1/((1-BU99)*BI99)-1/((1-CC99)*BE99))/1000)*O99,4) | AK99: IL TRM v7 vol3 | AL99: 65, 66, 69 | AM99: 2020-05-01 | AS99: 12000 | AT99: Allows for Capacity input in Tons; converts tons to BTUs | AU99: IL TRM v7 vol3 | AV99: 66 | AW99: 9.1 | AX99: HSPFee | AY99: per PY2018 Metadata WHE | BA99: 8.2 | BB99: HSPFbase | BC99: IL TRM v7 vol3 | BD99: 68 | BE99: =1.12*AB99-0.02*AB99^2 -> 13.36875 | BF99: EERee | BG99: Calculated value | BI99: 11 | BJ99: EERbase | BK99: IL TRM v7 vol3 | BL99: 70 | BM99: 738 | BN99: EFLHcool | BO99: EFLHcool, from 2017 MO TRM Vol. 3 | BP99: 85 | BQ99: 1376 | BR99: EFLHheat | BS99: The EFLH Cooling and Heating hours are based on a EnergyStar study that was normalized (based on HDD and CDD) to Kansas City. This was for both AC and HP units. | BU99: 0.1 | BV99: Derating_Cool_Base | BW99: IL TRM v7 vol3 | BX99: 67 | BY99: =0.805*(BE99/AB99)+0.367 -> 0.990875 | BZ99: SEERadj | CA99: IL TRM v7 vol3 | CB99: 69 (example) | CC99: 0.1 | CD99: Derating_Cool_Eff | CE99: IL TRM v7 vol3 | CF99: 67 | CG99: 0.1 | CH99: Derating_Heat_Base | CI99: IL TRM v7 vol3 | CJ99: 68 | CK99: 1.001 | CL99: HSPFadj | CM99: IL TRM v7 vol3 | CN99: 69 (example) | CO99: 0.1 | CP99: Derating_Heat_Eff | CQ99: IL TRM v7 vol3 | CR99: 68
A100: Heating, Cooling & Home Comfort | B100: ASHP SEER 17 - Early Replacement | C100: 39.3 | D100: Single Family | E100: HVAC | G100: per ton | H100: =DA100+DE100/DM100-DI100*(1+CW100)^(-X100) -> 196.2703269 | I100: IL TRM v7 vol3 | J100: 64 | K100: =ROUND(((U100*AS100*(1/(AF100*(1-BY100))-1/(AB100*CC100*(1-CG100))))/1000)+((BQ100*AS100*(1/(BA100*(1-CK100))-1/(AW100*CO100*(1-CS100))))/1000),4) -> 2003.7332 | L100: Calculated Value | N100: 2.715085637 | O100: 0.72 | P100: IL TRM v7 vol3 | Q100: 70 | R100: =ROUND((AS100*(1/(BI100*(1-BY100))-1/(BE100*(1-CG100))))/1000*O100,4) -> 0.585 | S100: Calculated Value | U100: 738 | V100: EFLHcool, from 2017 MO TRM | W100: 85 | X100: 6 | Y100: IL TRM v7 vol3 | Z100: 64 | AA100: SEER | AB100: 18.34 | AC100: per PY2018 Metadata WHE | AE100: SEER | AF100: 9.12 | AG100: IL TRM v7 vol3 | AH100: 66 | AI100: =ROUND(((U100*AS100*(1/(AF100*(1-BY100))-1/(AB100*CC100*(1-CG100))))/1000)+((BQ100*AS100*(1/(BA100*(1-CK100))-1/(AW100*CO100*(1-CS100))))/1000),4) | AJ100: =ROUND((AS100*(1/(BI100*(1-BY100))-1/(BE100*(1-CG100))))/1000*O100,4) | AK100: IL TRM v7 vol3 | AL100: 65, 69 | AM100: 2020-01-01 | AN100: 2020-04-30 | AS100: 12000 | AT100: Allows for Capacity input in Tons; converts tons to BTUs | AW100: 9.560606061 | AX100: HSPFee | AY100: per PY2018 Metadata WHE | BA100: 5.44 | BB100: HSPFbase | BC100: IL TRM v7 vol3 | BD100: 68 | BE100: =(-0.02*AB100^2)+(1.12*AB100) -> 13.813688 | BF100: EERee | BG100: Calculated per PY2018 Metadata WHE | BI100: 7.5 | BJ100: EERexist | BK100: IL TRM v7 vol3 | BL100: 70 | BM100: 738 | BN100: EFLHcool | BO100: EFLHcool, from 2017 MO TRM | BP100: 85 | BQ100: 1376 | BR100: EFLHheat | BS100: The EFLH Cooling and Heating hours are based on a EnergyStar study that was normalized (based on HDD and CDD) to Kansas City. This was for both AC and HP units. | BU100: 5.54 | BV100: HSPFexist | BW100: IL TRM v7 vol3 | BX100: 68 | BY100: 0.1 | BZ100: Derating_Cool_Base | CA100: IL TRM v7 vol3 | CB100: 67 | CC100: 1.011 | CD100: SEERadj | CE100: IL TRM v7 vol3 | CF100: 69 (example) | CG100: 0.1 | CH100: Derating_Cool_Eff | CI100: IL TRM v7 vol3 | CJ100: 67 | CK100: 0.1 | CL100: Derating_Heat_Base | CM100: IL TRM v7 vol3 | CN100: 68 | CO100: 1.001 | CP100: HSPFadj | CQ100: IL TRM v7 vol3 | CR100: 69 (example) | CS100: 0.1 | CT100: Derating_Heat_Eff | CU100: IL TRM v7 vol3 | CV100: 68 | CW100: 0.03 | CX100: Societal Discount Rate | CY100: Evergy Standard | DA100: 1381 | DB100: First Cost $/ton | DC100: IL TRM v7 vol3 | DD100: 64 | DE100: 303 | DF100: One-time per-system labor cost | DG100: IL TRM v7 vol3 | DH100: 64 | DI100: 1518 | DJ100: Deferred cost savings | DK100: IL TRM v7 vol3 | DL100: 65 | DM100: 3.5 | DN100: Assumed average system tons | DO100: Tracking Data
A101: Heating, Cooling & Home Comfort | B101: ASHP SEER 17 - Early Replacement | C101: 39.4 | D101: Single Family | E101: HVAC | G101: per ton | H101: =DA101+DE101/DM101-DI101*(1+CW101)^(-X101) -> 196.2703269 | I101: IL TRM v7 vol3 | J101: 64 | K101: 1962.309 | L101: Calculated Value | N101: 2.658955285 | O101: 0.72 | P101: IL TRM v7 vol3 | Q101: 65 | R101: 0.585 | S101: Calculated Value | U101: 738 | V101: EFLHcool, from 2017 MO TRM Vol. 3 | W101: 85 | X101: 6 | Y101: IL TRM v7 vol3 | Z101: 64 | AA101: SEERee | AB101: 18.34 | AC101: per PY2018 Metadata WHE | AE101: SEERexist | AF101: 9.3 | AG101: IL TRM v7 vol3 | AH101: 66 | AI101: =ROUND(((U101*AS101*(1/(AF101*(1-BY101))-1/(AB101*CC101*(1-CG101))))/1000)+((BQ101*AS101*(1/(BA101*(1-CK101))-1/(AW101*CO101*(1-CS101))))/1000),4) | AJ101: =ROUND((AS101*(1/(BI101*(1-BY101))-1/(BE101*(1-CG101))))/1000*O101,4) | AK101: IL TRM v7 vol3 | AL101: 65, 66, 69 | AM101: 2020-05-01 | AN101: 2020-12-31 | AS101: 12000 | AT101: Allows for Capacity input in Tons; converts tons to BTUs | AU101: IL TRM v7 vol3 | AV101: 66 | AW101: 9.560606061 | AX101: HSPFee | AY101: per PY2018 Metadata WHE | BA101: 5.44 | BB101: HSPFbase | BC101: IL TRM v7 vol3 | BD101: 68 | BE101: =1.12*AB101-0.02*AB101^2 -> 13.813688 | BF101: EERee | BG101: Calculated value | BI101: 7.5 | BJ101: EERexist | BK101: IL TRM v7 vol3 | BL101: 69,70 | BM101: 738 | BN101: EFLHcool | BO101: EFLHcool, from 2017 MO TRM Vol. 3 | BP101: 85 | BQ101: 1376 | BR101: EFLHheat | BS101: The EFLH Cooling and Heating hours are based on a EnergyStar study that was normalized (based on HDD and CDD) to Kansas City. This was for both AC and HP units. | BU101: 5.54 | BV101: HSPFexist | BW101: IL TRM v7 vol3 | BX101: 68 | BY101: 0.1 | BZ101: Derating_Cool_Base | CA101: IL TRM v7 vol3 | CB101: 67 | CC101: =0.805*(BE101/AB101)+0.367 -> 0.973326 | CD101: SEERadj | CE101: IL TRM v7 vol3 | CF101: 69 (example) | CG101: 0.1 | CH101: Derating_Cool_Eff | CI101: IL TRM v7 vol3 | CJ101: 67 | CK101: 0.1 | CL101: Derating_Heat_Base | CM101: IL TRM v7 vol3 | CN101: 68 | CO101: 1.001 | CP101: HSPFadj | CQ101: IL TRM v7 vol3 | CR101: 69 (example) | CS101: 0.1 | CT101: Derating_Heat_Eff | CU101: IL TRM v7 vol3 | CV101: 68 | CW101: 0.03 | CX101: Societal Discount Rate | CY101: Evergy Standard | DA101: 1381 | DB101: First Cost $/ton | DC101: IL TRM v7 vol3 | DD101: 64 | DE101: 303 | DF101: One-time per-system labor cost | DG101: IL TRM v7 vol3 | DH101: 64 | DI101: 1518 | DJ101: Deferred cost savings | DK101: IL TRM v7 vol3 | DL101: 65 | DM101: 3.5 | DN101: Assumed average system tons | DO101: Tracking Data
A102: Heating, Cooling & Home Comfort | B102: ASHP SEER 17 - Early Replacement | C102: 39.5 | D102: Single Family | E102: HVAC | G102: per ton | H102: =DA102+DE102/DM102-DI102*(1+CW102)^(-X102) -> 196.2703269 | I102: IL TRM v7 vol3 | J102: 64 | K102: 1901.4327 | L102: Calculated Value | N102: 2.576467073 | O102: 0.72 | P102: IL TRM v7 vol3 | Q102: 65 | R102: 0.585 | S102: Calculated Value | U102: 738 | V102: EFLHcool, from 2017 MO TRM Vol. 3 | W102: 85 | X102: 6 | Y102: IL TRM v7 vol3 | Z102: 64 | AA102: SEERee | AB102: 18.34 | AC102: per PY2018 Metadata WHE | AE102: SEERexist | AF102: 9.3 | AG102: IL TRM v7 vol3 | AH102: 66 | AI102: =ROUND(((U102*AS102*(1/(AF102*(1-BY102))-1/(AB102*CC102*(1-CG102))))/1000)+((BQ102*AS102*(1/(BA102*(1-CK102))-1/(AW102*CO102*(1-CS102))))/1000),4) | AJ102: =ROUND((AS102*(1/(BI102*(1-BY102))-1/(BE102*(1-CG102))))/1000*O102,4) | AK102: IL TRM v7 vol3 | AL102: 65, 66, 69 | AM102: 2021-01-01 | AS102: 12000 | AT102: Allows for Capacity input in Tons; converts tons to BTUs | AU102: IL TRM v7 vol3 | AV102: 66 | AW102: 9.560606061 | AX102: HSPFee | AY102: per PY2018 Metadata WHE | BA102: 5.54 | BB102: HSPFbase | BC102: IL TRM v7 vol3 | BD102: 68 | BE102: =1.12*AB102-0.02*AB102^2 -> 13.813688 | BF102: EERee | BG102: Calculated value | BI102: 7.5 | BJ102: EERexist | BK102: IL TRM v7 vol3 | BL102: 69,70 | BM102: 738 | BN102: EFLHcool | BO102: EFLHcool, from 2017 MO TRM Vol. 3 | BP102: 85 | BQ102: 1376 | BR102: EFLHheat | BS102: The EFLH Cooling and Heating hours are based on a EnergyStar study that was normalized (based on HDD and CDD) to Kansas City. This was for both AC and HP units. | BU102: 5.54 | BV102: HSPFexist | BW102: IL TRM v7 vol3 | BX102: 68 | BY102: 0.1 | BZ102: Derating_Cool_Base | CA102: IL TRM v7 vol3 | CB102: 67 | CC102: =0.805*(BE102/AB102)+0.367 -> 0.973326 | CD102: SEERadj | CE102: IL TRM v7 vol3 | CF102: 69 (example) | CG102: 0.1 | CH102: Derating_Cool_Eff | CI102: IL TRM v7 vol3 | CJ102: 67 | CK102: 0.1 | CL102: Derating_Heat_Base | CM102: IL TRM v7 vol3 | CN102: 68 | CO102: 1.001 | CP102: HSPFadj | CQ102: IL TRM v7 vol3 | CR102: 69 (example) | CS102: 0.1 | CT102: Derating_Heat_Eff | CU102: IL TRM v7 vol3 | CV102: 68 | CW102: 0.03 | CX102: Societal Discount Rate | CY102: Evergy Standard | DA102: 1381 | DB102: First Cost $/ton | DC102: IL TRM v7 vol3 | DD102: 64 | DE102: 303 | DF102: One-time per-system labor cost | DG102: IL TRM v7 vol3 | DH102: 64 | DI102: 1518 | DJ102: Deferred cost savings | DK102: IL TRM v7 vol3 | DL102: 65 | DM102: 3.5 | DN102: Assumed average system tons | DO102: Tracking Data
A103: Heating, Cooling & Home Comfort | B103: ASHP SEER 17 - Early Replacement (future) | C103: 40.3 | D103: Single Family | E103: HVAC | G103: per ton | H103: 0 | I103: IL TRM v7 vol3 | J103: 64 | K103: 184.6019 | L103: Calculated Value | N103: 0.2501380759 | O103: 0.72 | P103: IL TRM v7 vol3 | Q103: 70 | R103: 0.1778 | S103: Calculated Value | U103: 738 | V103: EFLHcool, from 2017 MO TRM | W103: 85 | X103: 10 | Y103: IL TRM v7 vol3 | Z103: 64 | AA103: SEER | AB103: 18.34 | AC103: per PY2018 Metadata WHE | AE103: =BN103 -> SEERbase | AF103: =BM103 -> 14 | AG103: IL TRM v7 vol3 | AH103: 66 | AI103: =ROUND(((U103*AS103*(1/(AF103*(1-BY103))-1/(AB103*CC103*(1-CG103))))/1000)+((BQ103*AS103*(1/(BA103*(1-CK103))-1/(AW103*CO103*(1-CS103))))/1000),4) | AJ103: =ROUND((AS103*(1/(BI103*(1-BY103))-1/(BE103*(1-CG103))))/1000*O103,4) | AK103: IL TRM v7 vol3 | AL103: 65, 69 | AM103: 2020-01-01 | AN103: 2020-04-30 | AS103: 12000 | AT103: Allows for Capacity input in Tons; converts tons to BTUs | AW103: 9.560606061 | AX103: HSPFee | AY103: per PY2018 Metadata WHE | BA103: 5.44 | BB103: HSPFexist | BC103: IL TRM v7 vol3 | BD103: 68 | BE103: =(-0.02*AB103^2)+(1.12*AB103) -> 13.813688 | BF103: EERee | BG103: Calculated per PY2018 Metadata WHE | BI103: 11 | BJ103: EERbase | BK103: IL TRM v7 vol3 | BL103: 70 | BM103: 14 | BN103: SEERbase | BO103: EFLHcool, from 2017 MO TRM | BP103: 85 | BQ103: =(-0.02*BM103^2)+(1.12*BM103) -> 11.76 | BR103: EERbase | BS103: Based on SEER base | BU103: 8.2 | BV103: HSPFbase | BW103: IL TRM v7 vol3 | BX103: 68 | BY103: 0.1 | BZ103: Derating_Cool_Base | CA103: IL TRM v7 vol3 | CB103: 67 | CC103: 1.011 | CD103: SEERadj | CE103: IL TRM v7 vol3 | CF103: 69 (example) | CG103: 0.1 | CH103: Derating_Cool_Eff | CI103: IL TRM v7 vol3 | CJ103: 67 | CK103: 0.1 | CL103: Derating_Heat_Base | CM103: IL TRM v7 vol3 | CN103: 68 | CO103: 1.001 | CP103: HSPFadj | CQ103: IL TRM v7 vol3 | CR103: 69 (example) | CS103: 0.1 | CT103: Derating_Heat_Eff | CU103: IL TRM v7 vol3 | CV103: 68 | CW103: 0.03 | CX103: Societal Discount Rate | CY103: Evergy Standard | DA103: 1381 | DB103: First Cost $/ton | DC103: IL TRM v7 vol3 | DD103: 64 | DE103: 303 | DF103: One-time per-system labor cost | DG103: IL TRM v7 vol3 | DH103: 64 | DI103: 1518 | DJ103: Deferred cost savings | DK103: IL TRM v7 vol3 | DL103: 65 | DM103: 3.5 | DN103: Assumed average system tons | DO103: Tracking Data
A104: Heating, Cooling & Home Comfort | B104: ASHP SEER 17 - Early Replacement (future) | C104: 40.4 | D104: Single Family | E104: HVAC | G104: per ton | H104: 0 | I104: IL TRM v7 vol3 | J104: 64 | K104: 163.2567 | L104: Calculated Value | N104: 0.2212150407 | O104: 0.72 | P104: IL TRM v7 vol3 | Q104: 65 | R104: 0.1778 | S104: Calculated Value | U104: 738 | V104: EFLHcool, from 2017 MO TRM Vol. 3 | W104: 85 | X104: 10 | Y104: IL TRM v7 vol3 | Z104: 64 | AA104: SEERee | AB104: 18.34 | AC104: per PY2018 Metadata WHE | AE104: =BN104 -> SEERbase | AF104: =BM104 -> 14 | AG104: IL TRM v7 vol3 | AH104: 67 | AI104: =ROUND(((U104*AS104*(1/(AF104*(1-BY104))-1/(AB104*CC104*(1-CG104))))/1000)+((BQ104*AS104*(1/(BA104*(1-CK104))-1/(AW104*CO104*(1-CS104))))/1000),4) | AJ104: =ROUND((AS104*(1/(BI104*(1-BY104))-1/(BE104*(1-CG104))))/1000*O104,4) | AK104: IL TRM v7 vol3 | AL104: 65, 66, 69 | AM104: 2020-05-01 | AN104: 2020-12-31 | AS104: 12000 | AT104: Allows for Capacity input in Tons; converts tons to BTUs | AU104: IL TRM v7 vol3 | AV104: 66 | AW104: 9.560606061 | AX104: HSPFee | AY104: per PY2018 Metadata WHE | BA104: 5.44 | BB104: HSPFexist | BC104: IL TRM v7 vol3 | BD104: 68 | BE104: =1.12*AB104-0.02*AB104^2 -> 13.813688 | BF104: EERee | BG104: Calculated value | BI104: 11 | BJ104: EERbase | BK104: IL TRM v7 vol3 | BL104: 70 | BM104: 14 | BN104: SEERbase | BO104: IL TRM v7 vol3 | BP104: 67 | BQ104: 11 | BR104: EERbase | BS104: IL TRM v7 vol3 | BT104: 70 | BU104: 8.2 | BV104: HSPFbase | BW104: IL TRM v7 vol3 | BX104: 68 | BY104: 0.1 | BZ104: Derating_Cool_Base | CA104: IL TRM v7 vol3 | CB104: 67 | CC104: =0.805*(BE104/AB104)+0.367 -> 0.973326 | CD104: SEERadj | CE104: IL TRM v7 vol3 | CF104: 69 (example) | CG104: 0.1 | CH104: Derating_Cool_Eff | CI104: IL TRM v7 vol3 | CJ104: 67 | CK104: 0.1 | CL104: Derating_Heat_Base | CM104: IL TRM v7 vol3 | CN104: 68 | CO104: 1.001 | CP104: HSPFadj | CQ104: IL TRM v7 vol3 | CR104: 69 (example) | CS104: 0.1 | CT104: Derating_Heat_Eff | CU104: IL TRM v7 vol3 | CV104: 68 | CW104: 0.03 | CX104: Societal Discount Rate | CY104: Evergy Standard | DA104: 1381 | DB104: First Cost $/ton | DC104: IL TRM v7 vol3 | DD104: 64 | DE104: 303 | DF104: One-time per-system labor cost | DG104: IL TRM v7 vol3 | DH104: 64 | DI104: 1518 | DJ104: Deferred cost savings | DK104: IL TRM v7 vol3 | DL104: 65 | DM104: 3.5 | DN104: Assumed average system tons | DO104: Tracking Data
A105: Heating, Cooling & Home Comfort | B105: ASHP SEER 17 - Early Replacement (future) | C105: 40.5 | D105: Single Family | E105: HVAC | G105: per ton | H105: 0 | I105: IL TRM v7 vol3 | J105: 64 | K105: 162.77 | L105: Calculated Value | N105: 0.2205555556 | O105: 0.72 | P105: IL TRM v7 vol3 | Q105: 65 | R105: 0.1778 | S105: Calculated Value | U105: 738 | V105: EFLHcool, from 2017 MO TRM Vol. 3 | W105: 85 | X105: 10 | Y105: IL TRM v7 vol3 | Z105: 64 | AA105: SEERee | AB105: 18.34 | AC105: per PY2018 Metadata WHE | AE105: =BN105 -> SEERbase | AF105: =BM105 -> 14 | AG105: IL TRM v7 vol3 | AH105: 67 | AI105: =ROUND(((U105*AS105*(1/(AF105*(1-BY105))-1/(AB105*CC105*(1-CG105))))/1000)+((BQ105*AS105*(1/(BA105*(1-CK105))-1/(AW105*CO105*(1-CS105))))/1000),4) | AJ105: =ROUND((AS105*(1/(BI105*(1-BY105))-1/(BE105*(1-CG105))))/1000*O105,4) | AK105: IL TRM v7 vol3 | AL105: 65, 66, 69 | AM105: 2021-01-01 | AS105: 12000 | AT105: Allows for Capacity input in Tons; converts tons to BTUs | AU105: IL TRM v7 vol3 | AV105: 66 | AW105: 9.560606061 | AX105: HSPFee | AY105: per PY2018 Metadata WHE | BA105: 5.54 | BB105: HSPFexist | BC105: IL TRM v7 vol3 | BD105: 68 | BE105: =1.12*AB105-0.02*AB105^2 -> 13.813688 | BF105: EERee | BG105: Calculated value | BI105: 11 | BJ105: EERbase | BK105: IL TRM v7 vol3 | BL105: 70 | BM105: 14 | BN105: SEERbase | BO105: IL TRM v7 vol3 | BP105: 67 | BQ105: 11 | BR105: EERbase | BS105: IL TRM v7 vol3 | BT105: 70 | BU105: 8.2 | BV105: HSPFbase | BW105: IL TRM v7 vol3 | BX105: 68 | BY105: 0.1 | BZ105: Derating_Cool_Base | CA105: IL TRM v7 vol3 | CB105: 67 | CC105: =0.805*(BE105/AB105)+0.367 -> 0.973326 | CD105: SEERadj | CE105: IL TRM v7 vol3 | CF105: 69 (example) | CG105: 0.1 | CH105: Derating_Cool_Eff | CI105: IL TRM v7 vol3 | CJ105: 67 | CK105: 0.1 | CL105: Derating_Heat_Base | CM105: IL TRM v7 vol3 | CN105: 68 | CO105: 1.001 | CP105: HSPFadj | CQ105: IL TRM v7 vol3 | CR105: 69 (example) | CS105: 0.1 | CT105: Derating_Heat_Eff | CU105: IL TRM v7 vol3 | CV105: 68 | CW105: 0.03 | CX105: Societal Discount Rate | CY105: Evergy Standard | DA105: 1381 | DB105: First Cost $/ton | DC105: IL TRM v7 vol3 | DD105: 64 | DE105: 303 | DF105: One-time per-system labor cost | DG105: IL TRM v7 vol3 | DH105: 64 | DI105: 1518 | DJ105: Deferred cost savings | DK105: IL TRM v7 vol3 | DL105: 65 | DM105: 3.5 | DN105: Assumed average system tons | DO105: Tracking Data
A106: Heating, Cooling & Home Comfort | B106: ASHP SEER 17 - Replace Electric Resistance Heat | C106: 41.3 | D106: Single Family | E106: HVAC | G106: per ton | H106: =724/3.5 -> 206.8571429 | I106: IL TRM v7 vol3 | J106: 64 | K106: 503.9911 | L106: Calculated Value | N106: =R106 -> 0.2613 | O106: 0.72 | P106: IL TRM v7 vol3 | Q106: 65 | R106: 0.2613 | S106: Calculated Value | U106: 738 | V106: EFLHcool, from 2017 MO TRM | W106: 85 | X106: 16 | Y106: IL TRM v7 vol3 | Z106: 64 | AA106: SEERee | AB106: 18.27 | AC106: per PY2018 Metadata WHE | AE106: SEERbase | AF106: 14 | AG106: IL TRM v7 vol3 | AH106: 66 | AI106: =ROUND(((U106*AS106*(1/(AF106*(1-BY106))-1/(AB106*CC106*(1-CG106))))/1000)+((BQ106*AS106*(1/(BA106*(1-CK106))-1/(AW106*CO106*(1-CS106))))/1000),4) | AJ106: =ROUND((AS106*(1/(BI106*(1-BY106))-1/(BE106*(1-CG106))))/1000*O106,4) | AK106: IL TRM v7 vol3 | AL106: 65, 69 | AM106: 2020-01-01 | AN106: 2020-04-30 | AS106: 12000 | AT106: Allows for Capacity input in Tons; converts tons to BTUs | AW106: 9.628571429 | AX106: HSPFee | AY106: per PY2018 Metadata WHE | BA106: 8.2 | BB106: HSPFbase | BC106: IL TRM v7 vol3 | BD106: 68 | BE106: 15.7 | BF106: EERee | BG106: Calculated per PY2018 Metadata WHE | BI106: 11 | BJ106: EERbase | BK106: IL TRM v7 vol3 | BL106: 70 | BM106: 738 | BN106: EFLHcool | BO106: EFLHcool, from 2017 MO TRM | BP106: 85 | BQ106: 1376 | BR106: EFLHheat | BS106: The EFLH Cooling and Heating hours are based on a EnergyStar study that was normalized (based on HDD and CDD) to Kansas City. This was for both AC and HP units. | BU106: 8.2 | BV106: HSPFbase | BW106: IL TRM v7 vol3 | BX106: 68 | BY106: 0.1 | BZ106: Derating_Cool_Base | CA106: IL TRM v7 vol3 | CB106: 67 | CC106: 1.011 | CD106: SEERadj | CE106: IL TRM v7 vol3 | CF106: 69 (example) | CG106: 0.1 | CH106: Derating_Cool_Eff | CI106: IL TRM v7 vol3 | CJ106: 67 | CK106: 0.1 | CL106: Derating_Heat_Base | CM106: IL TRM v7 vol3 | CN106: 68 | CO106: 1.001 | CP106: HSPFadj | CQ106: IL TRM v7 vol3 | CR106: 69 (example) | CS106: 0.1 | CT106: Derating_Heat_Eff | CU106: IL TRM v7 vol3 | CV106: 68
A107: Heating, Cooling & Home Comfort | B107: ASHP SEER 17 - Replace Electric Resistance Heat | C107: 41.4 | D107: Single Family | E107: HVAC | G107: per ton | H107: =724/3.5 -> 206.8571429 | I107: IL TRM v7 vol3 | J107: 64 | K107: 839.2184 | L107: Calculated Value | N107: =R107 -> 0.1764 | O107: 0.72 | P107: IL TRM v7 vol3 | Q107: 65 | R107: 0.1764 | S107: Calculated Value | U107: 738 | V107: EFLHcool, from 2017 MO TRM Vol. 3 | W107: 85 | X107: 16 | Y107: IL TRM v7 vol3 | Z107: 64 | AA107: SEERee | AB107: 18.27 | AC107: per PY2018 Metadata WHE | AE107: SEERbase | AF107: 9.3 | AG107: IL TRM v7 vol3 | AH107: 66 | AI107: =ROUND(((U107*AS107*(1/(AF107*(1-BY107))-1/(AB107*CC107*(1-CG107))))/1000)+((BQ107*AS107*(1/(BA107*(1-CK107))-1/(AW107*CO107*(1-CS107))))/1000),4) | AJ107: =ROUND((AS107*(1/(BI107*(1-BY107))-1/(BE107*(1-CG107))))/1000*O107,4) | AK107: IL TRM v7 vol3 | AL107: 65, 66, 69 | AM107: 2020-05-01 | AN107: 2020-12-31 | AS107: 12000 | AT107: Allows for Capacity input in Tons; converts tons to BTUs | AU107: IL TRM v7 vol3 | AV107: 66 | AW107: 9.628571429 | AX107: HSPFee | AY107: per PY2018 Metadata WHE | BA107: 8.2 | BB107: HSPFbase | BC107: IL TRM v7 vol3 | BD107: 68 | BE107: =1.12*AB107-0.02*AB107^2 -> 13.786542 | BF107: EERee | BG107: Calculated value | BI107: 11 | BJ107: EERbase | BK107: IL TRM v7 vol3 | BL107: 70 | BM107: 738 | BN107: EFLHcool | BO107: EFLHcool, from 2017 MO TRM Vol. 3 | BP107: 85 | BQ107: 1376 | BR107: EFLHheat | BS107: The EFLH Cooling and Heating hours are based on a EnergyStar study that was normalized (based on HDD and CDD) to Kansas City. This was for both AC and HP units. | BU107: 8.2 | BV107: HSPFbase | BW107: IL TRM v7 vol3 | BX107: 68 | BY107: 0.1 | BZ107: Derating_Cool_Base | CA107: IL TRM v7 vol3 | CB107: 67 | CC107: =0.805*(BE107/AB107)+0.367 -> 0.974453 | CD107: SEERadj | CE107: IL TRM v7 vol3 | CF107: 69 (example) | CG107: 0.1 | CH107: Derating_Cool_Eff | CI107: IL TRM v7 vol3 | CJ107: 67 | CK107: 0.1 | CL107: Derating_Heat_Base | CM107: IL TRM v7 vol3 | CN107: 68 | CO107: 1.001 | CP107: HSPFadj | CQ107: IL TRM v7 vol3 | CR107: 69 (example) | CS107: 0.1 | CT107: Derating_Heat_Eff | CU107: IL TRM v7 vol3 | CV107: 68
A108: Heating, Cooling & Home Comfort | B108: ASHP SEER 17 - Replace Electric Resistance Heat | C108: 41.5 | D108: Single Family | E108: HVAC | G108: per ton | H108: =724/3.5 -> 206.8571429 | I108: IL TRM v7 vol3 | J108: 64 | K108: 484.011 | L108: Calculated Value | N108: =R108 -> 0.1764 | O108: 0.72 | P108: IL TRM v7 vol3 | Q108: 65 | R108: 0.1764 | S108: Calculated Value | U108: 738 | V108: EFLHcool, from 2017 MO TRM Vol. 3 | W108: 85 | X108: 16 | Y108: IL TRM v7 vol3 | Z108: 64 | AA108: SEERee | AB108: 18.27 | AC108: per PY2018 Metadata WHE | AE108: SEERbase | AF108: 14 | AG108: IL TRM v7 vol3 | AH108: 66 | AI108: =ROUND(((U108*AS108*(1/(AF108*(1-BY108))-1/(AB108*CC108*(1-CG108))))/1000)+((BQ108*AS108*(1/(BA108*(1-CK108))-1/(AW108*CO108*(1-CS108))))/1000),4) | AJ108: =ROUND((AS108*(1/(BI108*(1-BY108))-1/(BE108*(1-CG108))))/1000*O108,4) | AK108: IL TRM v7 vol3 | AL108: 65, 66, 69 | AM108: 2021-01-01 | AS108: 12000 | AT108: Allows for Capacity input in Tons; converts tons to BTUs | AU108: IL TRM v7 vol3 | AV108: 66 | AW108: 9.628571429 | AX108: HSPFee | AY108: per PY2018 Metadata WHE | BA108: 8.2 | BB108: HSPFbase | BC108: IL TRM v7 vol3 | BD108: 68 | BE108: =1.12*AB108-0.02*AB108^2 -> 13.786542 | BF108: EERee | BG108: Calculated value | BI108: 11 | BJ108: EERbase | BK108: IL TRM v7 vol3 | BL108: 70 | BM108: 738 | BN108: EFLHcool | BO108: EFLHcool, from 2017 MO TRM Vol. 3 | BP108: 85 | BQ108: 1376 | BR108: EFLHheat | BS108: The EFLH Cooling and Heating hours are based on a EnergyStar study that was normalized (based on HDD and CDD) to Kansas City. This was for both AC and HP units. | BU108: 8.2 | BV108: HSPFbase | BW108: IL TRM v7 vol3 | BX108: 68 | BY108: 0.1 | BZ108: Derating_Cool_Base | CA108: IL TRM v7 vol3 | CB108: 67 | CC108: =0.805*(BE108/AB108)+0.367 -> 0.974453 | CD108: SEERadj | CE108: IL TRM v7 vol3 | CF108: 69 (example) | CG108: 0.1 | CH108: Derating_Cool_Eff | CI108: IL TRM v7 vol3 | CJ108: 67 | CK108: 0.1 | CL108: Derating_Heat_Base | CM108: IL TRM v7 vol3 | CN108: 68 | CO108: 1.001 | CP108: HSPFadj | CQ108: IL TRM v7 vol3 | CR108: 69 (example) | CS108: 0.1 | CT108: Derating_Heat_Eff | CU108: IL TRM v7 vol3 | CV108: 68
A109: Heating, Cooling & Home Comfort | B109: ASHP SEER 17 - Replace Electric Resistance Heat - Early Replacement | C109: 318.2 | D109: Single Family | E109: HVAC | G109: per ton | H109: =DA109+DE109/DM109-DI109*(1+CW109)^(-X109) -> 316.5560412 | I109: IL TRM v7 vol3 | J109: 64 | K109: 3990.5555 | L109: Calculated Value | N109: =R109 -> 0.585 | O109: 0.72 | P109: IL TRM v7 vol3 | Q109: 65 | R109: 0.585 | S109: Calculated Value | U109: 738 | V109: EFLHcool, from 2017 MO TRM | W109: 85 | X109: 6 | Y109: IL TRM v7 vol3 | Z109: 64 | AA109: SEERee | AB109: 18.34 | AC109: per PY2018 Metadata WHE | AE109: SEERexist | AF109: 9.3 | AG109: IL TRM v7 vol3 | AH109: 66 | AI109: =ROUND(((U109*AS109*(1/(AF109*(1-BY109))-1/(AB109*CC109*(1-CG109))))/1000)+((BQ109*AS109*(1/(BA109*(1-CK109))-1/(AW109*CO109*(1-CS109))))/1000),4) | AJ109: =ROUND((AS109*(1/(BI109*(1-BY109))-1/(BE109*(1-CG109))))/1000*O109,4) | AK109: IL TRM v7 vol3 | AL109: 65, 69 | AM109: 2020-01-01 | AS109: 12000 | AT109: Allows for Capacity input in Tons; converts tons to BTUs | AW109: 9.560606061 | AX109: HSPFee | AY109: per PY2018 Metadata WHE | BA109: 3.41 | BB109: HSPFexist | BC109: IL TRM v7 vol3 | BD109: 68 | BE109: =(-0.02*AB109^2)+(1.12*AB109) -> 13.813688 | BF109: EERee | BG109: Calculated per PY2018 Metadata WHE | BI109: 7.5 | BJ109: EERexist | BK109: IL TRM v7 vol3 | BL109: 70 | BM109: 738 | BN109: EFLHcool | BO109: EFLHcool, from 2017 MO TRM | BP109: 85 | BQ109: 1376 | BR109: EFLHheat | BS109: The EFLH Cooling and Heating hours are based on a EnergyStar study that was normalized (based on HDD and CDD) to Kansas City. This was for both AC and HP units. | BU109: 3.41 | BV109: HSPFexist | BW109: IL TRM v7 vol3 | BX109: 68 | BY109: 0.1 | BZ109: Derating_Cool_Base | CA109: IL TRM v7 vol3 | CB109: 67 | CC109: 1.011 | CD109: SEERadj | CE109: IL TRM v7 vol3 | CF109: 69 (example) | CG109: 0.1 | CH109: Derating_Cool_Eff | CI109: IL TRM v7 vol3 | CJ109: 67 | CK109: 0.1 | CL109: Derating_Heat_Base | CM109: IL TRM v7 vol3 | CN109: 68 | CO109: 1.001 | CP109: HSPFadj | CQ109: IL TRM v7 vol3 | CR109: 69 (example) | CS109: 0.1 | CT109: Derating_Heat_Eff | CU109: IL TRM v7 vol3 | CV109: 68 | CW109: 0.03 | CX109: Societal Discount Rate | CY109: Evergy Standard | DA109: 1381 | DB109: First Cost $/ton | DC109: IL TRM v7 vol3 | DD109: 64 | DE109: 724 | DF109: One-time per-system labor cost | DG109: IL TRM v7 vol3 | DH109: 64 | DI109: 1518 | DJ109: Deferred cost savings | DK109: IL TRM v7 vol3 | DL109: 65 | DM109: 3.5 | DN109: Assumed average system tons | DO109: Tracking Data
A110: Heating, Cooling & Home Comfort | B110: ASHP SEER 17 - Replace Electric Resistance Heat - Early Replacement (future) | C110: 319.2 | D110: Single Family | E110: HVAC | G110: per ton | H110: 0 | I110: IL TRM v7 vol3 | J110: 65 | K110: 492.4923 | L110: Calculated Value | N110: =R110 -> 0.1778 | O110: 0.72 | P110: IL TRM v7 vol3 | Q110: 65 | R110: 0.1778 | S110: Calculated Value | U110: 738 | V110: EFLHcool, from 2017 MO TRM | W110: 85 | X110: 10 | Y110: IL TRM v7 vol3 | Z110: 64 | AA110: SEERee | AB110: 18.34 | AC110: per PY2018 Metadata WHE | AE110: SEERbase | AF110: 14 | AG110: IL TRM v7 vol3 | AH110: 67 | AI110: =ROUND(((U110*AS110*(1/(AF110*(1-BY110))-1/(AB110*CC110*(1-CG110))))/1000)+((BQ110*AS110*(1/(BA110*(1-CK110))-1/(AW110*CO110*(1-CS110))))/1000),4) | AJ110: =ROUND((AS110*(1/(BI110*(1-BY110))-1/(BE110*(1-CG110))))/1000*O110,4) | AK110: IL TRM v7 vol3 | AL110: 65, 69 | AM110: 2020-01-01 | AS110: 12000 | AT110: Allows for Capacity input in Tons; converts tons to BTUs | AW110: 9.560606061 | AX110: HSPFee | AY110: per PY2018 Metadata WHE | BA110: 8.2 | BB110: HSPFbase | BC110: IL TRM v7 vol3 | BD110: 68 | BE110: =(-0.02*AB110^2)+(1.12*AB110) -> 13.813688 | BF110: EERee | BG110: Calculated per PY2018 Metadata WHE | BI110: 11 | BJ110: EERbase | BK110: IL TRM v7 vol3 | BL110: 70 | BM110: 738 | BN110: EFLHcool | BO110: EFLHcool, from 2017 MO TRM | BP110: 85 | BQ110: 1376 | BR110: EFLHheat | BS110: The EFLH Cooling and Heating hours are based on a EnergyStar study that was normalized (based on HDD and CDD) to Kansas City. This was for both AC and HP units. | BU110: 8.2 | BV110: HSPFbase | BW110: IL TRM v7 vol3 | BX110: 68 | BY110: 0.1 | BZ110: Derating_Cool_Base | CA110: IL TRM v7 vol3 | CB110: 67 | CC110: 1.011 | CD110: SEERadj | CE110: IL TRM v7 vol3 | CF110: 69 (example) | CG110: 0.1 | CH110: Derating_Cool_Eff | CI110: IL TRM v7 vol3 | CJ110: 67 | CK110: 0.1 | CL110: Derating_Heat_Base | CM110: IL TRM v7 vol3 | CN110: 68 | CO110: 1.001 | CP110: HSPFadj | CQ110: IL TRM v7 vol3 | CR110: 69 (example) | CS110: 0.1 | CT110: Derating_Heat_Eff | CU110: IL TRM v7 vol3 | CV110: 68 | CW110: 0.03 | CX110: Societal Discount Rate | CY110: Evergy Standard | DA110: 1381 | DB110: First Cost $/ton | DC110: IL TRM v7 vol3 | DD110: 64 | DE110: 724 | DF110: One-time per-system labor cost | DG110: IL TRM v7 vol3 | DH110: 64 | DI110: 1518 | DJ110: Deferred cost savings | DK110: IL TRM v7 vol3 | DL110: 65 | DM110: 3.5 | DN110: Assumed average system tons | DO110: Tracking Data
A111: Heating, Cooling & Home Comfort | B111: ASHP Dual-Speed Compressor | C111: 397 | D111: Single Family | E111: HVAC | G111: per ton | H111: =(1381*(AW111/12000)+438)/CK111 -> 1603.711864 | I111: IL TRM v6 vol3 | J111: 61 | K111: =ROUND(((AS111*AW111*(1/BA111-1/BE111))/1000/CK111)+((BI111*BM111*(1/BQ111-1/BU111))/1000/CO111),4) -> 275.5758 | L111: Calculated Value | N111: =R111/O111 -> 0.09388888889 | O111: 0.72 | P111: Calculated Value | R111: =ROUND((AW111*(1/BY111-1/CC111))/1000*CG111/CK111,4) -> 0.0676 | S111: Calculated Value | X111: 18 | Y111: IL TRM v6 vol3 | Z111: 61 | AA111: SEER | AB111: 16 | AC111: Goodman GSZC16 Indoor Units: CA*F3137*6A*+MBVC1200**-1A*+TX, G*VC80603B*C* | AE111: SEER | AF111: 14 | AG111: IL TRM v6 vol3 | AH111: 63 | AI111: =ROUND(((AS111*AW111*(1/BA111-1/BE111))/1000/CK111)+((BI111*BM111*(1/BQ111-1/BU111))/1000/CO111),4) | AJ111: =ROUND((AW111*(1/BY111-1/CC111))/1000*CG111/CK111,4) | AK111: IL TRM v6 vol3 | AL111: 62, 65 | AM111: 2020-01-01 | AS111: 1035 | AT111: FLH_cooling | AU111: IL TRM v6 vol3 | AV111: 63 | AW111: 23600 | AX111: Capacity_cooling | AY111: Goodman GSZC16 Indoor Units: CA*F3137*6A*+MBVC1200**-1A*+TX, G*VC80603B*C* | BA111: 14 | BB111: SEER_base | BC111: IL TRM v6 vol3 | BD111: 63 | BE111: 16 | BF111: SEER_ee | BG111: Goodman GSZC16 Indoor Units: CA*F3137*6A*+MBVC1200**-1A*+TX, G*VC80603B*C* | BI111: 1266 | BJ111: FLH_heat | BK111: IL TRM v6 vol3 | BL111: 64 | BM111: 22800 | BN111: Capacity_heating | BO111: Goodman GSZC16 Indoor Units: CA*F3137*6A*+MBVC1200**-1A*+TX, G*VC80603B*C* | BQ111: 8.2 | BR111: HSPF_base | BS111: IL TRM v6 vol3 | BT111: 64 | BU111: 9 | BV111: HSPF_ee | BW111: Goodman GSZC16 Indoor Units: CA*F3137*6A*+MBVC1200**-1A*+TX, G*VC80603B*C* | BY111: 11.8 | BZ111: EER_base | CA111: IL TRM v6 vol3 | CB111: 66 | CC111: 13 | CD111: EER_ee | CE111: Goodman GSZC16 Indoor Units: CA*F3137*6A*+MBVC1200**-1A*+TX, G*VC80603B*C* | CG111: 0.72 | CH111: CF | CI111: IL TRM v6 vol3 | CJ111: 66 | CK111: =AW111/12000 -> 1.966666667 | CL111: Cooling Capacity Tons | CM111: Goodman GSZC16 Indoor Units: CA*F3137*6A*+MBVC1200**-1A*+TX, G*VC80603B*C* | CO111: =BM111/12000 -> 1.9 | CP111: Heating Capacity Tons | CQ111: Goodman GSZC16 Indoor Units: CA*F3137*6A*+MBVC1200**-1A*+TX, G*VC80603B*C*
A112: Heating, Cooling & Home Comfort | B112: ASHP Variable-Speed Compressor | C112: 398 | D112: Single Family | E112: HVAC | G112: per ton | H112: =(1381*(AW112/12000)+724)/CK112 -> 1752.282051 | I112: IL TRM v6 vol3 | J112: 61 | K112: =ROUND(((AS112*AW112*(1/BA112-1/BE112))/1000/CK112)+((BI112*BM112*(1/BQ112-1/BU112))/1000/CO112),4) -> 629.1972 | L112: Calculated Value | N112: =R112/O112 -> 0.09388888889 | O112: 0.72 | P112: Calculated Value | R112: =ROUND((AW112*(1/BY112-1/CC112))/1000*CG112/CK112,4) -> 0.0676 | S112: Calculated Value | X112: 18 | Y112: IL TRM v6 vol3 | Z112: 61 | AA112: SEER | AB112: 21 | AC112: Daikin DZ20VC Inddor Units: CA*F3642*6D*+MBVC1200**-1A*+TXV | AE112: SEER | AF112: 14 | AG112: IL TRM v6 vol3 | AH112: 63 | AI112: =ROUND(((AS112*AW112*(1/BA112-1/BE112))/1000/CK112)+((BI112*BM112*(1/BQ112-1/BU112))/1000/CO112),4) | AJ112: =ROUND((AW112*(1/BY112-1/CC112))/1000*CG112/CK112,4) | AK112: IL TRM v6 vol3 | AL112: 62, 65 | AM112: 2020-01-01 | AS112: 1035 | AT112: FLH_cooling | AU112: IL TRM v6 vol3 | AV112: 63 | AW112: 23400 | AX112: Capacity_cooling | AY112: Daikin DZ20VC Inddor Units: CA*F3642*6D*+MBVC1200**-1A*+TXV | BA112: 14 | BB112: SEER_base | BC112: IL TRM v6 vol3 | BD112: 63 | BE112: 21 | BF112: SEER_ee | BG112: Daikin DZ20VC Inddor Units: CA*F3642*6D*+MBVC1200**-1A*+TXV | BI112: 1266 | BJ112: FLH_heat | BK112: IL TRM v6 vol3 | BL112: 64 | BM112: 23600 | BN112: Capacity_heating | BO112: Daikin DZ20VC Inddor Units: CA*F3642*6D*+MBVC1200**-1A*+TXV | BQ112: 8.2 | BR112: HSPF_base | BS112: IL TRM v6 vol3 | BT112: 64 | BU112: 10 | BV112: HSPF_ee | BW112: Daikin DZ20VC Inddor Units: CA*F3642*6D*+MBVC1200**-1A*+TXV | BY112: 11.8 | BZ112: EER_base | CA112: IL TRM v6 vol3 | CB112: 66 | CC112: 13 | CD112: EER_ee | CE112: Daikin DZ20VC Inddor Units: CA*F3642*6D*+MBVC1200**-1A*+TXV | CG112: 0.72 | CH112: CF | CI112: IL TRM v6 vol3 | CJ112: 66 | CK112: =AW112/12000 -> 1.95 | CL112: Cooling Capacity Tons | CM112: Daikin DZ20VC Inddor Units: CA*F3642*6D*+MBVC1200**-1A*+TXV | CO112: =BM112/12000 -> 1.966666667 | CP112: Heating Capacity Tons | CQ112: Daikin DZ20VC Inddor Units: CA*F3642*6D*+MBVC1200**-1A*+TXV
A113: Heating, Cooling & Home Comfort | B113: Furnace Filter Alarm | C113: 234.3 | D113: Single Family | E113: HVAC | F113: Kits | G113: per unit | H113: 2.8 | I113: Program Tracking Data | K113: =ROUND((AS113*BI113*AW113*BA113)+(AS113*BE113*AW113*BA113),4) -> 75.1527 | L113: Calculated Value | N113: =K113/U113 -> 0.04551950333 | O113: 0.647 | P113: PA TRM 2016 | Q113: 74 | R113: =ROUND(((AS113*BE113*AW113*BA113)/BE113)*O113,4) -> 0.023 | S113: Calculated Value | U113: 1651 | V113: MO TRM 2017 vol 3 | W113: 85 | X113: 14 | Y113: PA TRM 2016 | Z113: 73 | AA113: Furnace Filter Alarm | AE113: No Filter | AI113: =ROUND((AS113*BI113*AW113*BA113)+(AS113*BE113*AW113*BA113),4) | AJ113: =ROUND(((AS113*BE113*AW113*BA113)/BE113)*O113,4) | AK113: PA TRM 2016 | AL113: 73 | AM113: 2020-01-01 | AS113: 0.5 | AT113: Average motor full load electric demand | AU113: PA TRM 2016 | AV113: 74 | AW113: 0.15 | AX113: Efficiency Improvement | AY113: PA TRM 2016 | AZ113: 74 | BA113: 0.474 | BB113: ISR | BC113: PA TRM 2016 | BD113: 74 | BE113: 738 | BF113: EFLHcool | BG113: MO TRM | BH113: 85 | BI113: 1376 | BJ113: EFLHheat | BK113: The EFLH Cooling and Heating hours are based on a EnergyStar study that was normalized (based on HDD and CDD) to Kansas City. This was for both AC and HP units.
A114: Heating, Cooling & Home Comfort | B114: Indoor Coil Cleaning_SF:CAC | C114: 262.2 | D114: Single Family | E114: HVAC | G114: per measure | H114: 35 | I114: WI TRM 2017 | J114: 143 | K114: =ROUND(AW114*BA114/1000*(1/(BI114*BM114)-1/BI114),4) -> 148.1408 | L114: Calculated Value | N114: =BA114/1000*(1/(BE114*BM114)-1/BE114) -> 0.2855010263 | O114: 0.9 | P114: WI TRM 2017 | Q114: 144 | R114: =ROUND(N114*O114,4) -> 0.257 | S114: Calculated Value | X114: 3 | Y114: WI TRM 2017 | Z114: 144 | AA114: Coil cleaning of packaged air conditioning unit. | AC114: WI TRM 2017 | AD114: 143 | AE114: The baseline condition is an AC system with fouled condenser coils. | AG114: WI TRM 2017 | AH114: 143 | AI114: =ROUND(AW114*BA114/1000*(1/(BI114*BM114)-1/BI114),4) | AJ114: =ROUND(N114*O114,4) | AK114: WI TRM 2017 | AL114: 143, 144 | AM114: 2020-01-01 | AN114: 2020-12-31 | AW114: 564 | AX114: Equivalent Full Load Hours for Mechanical Cooling | AY114: IL TRM v6 vol3 | AZ114: 127 | BA114: 36000 | BB114: Unit Cooling Capacity in Btu/hour | BC114: Installed Equipment; actual value | BE114: =-0.02*BI114^2+1.12*BI114 -> 9.2 | BF114: EER | BG114: Installed Equipment; actual nameplate EER | BI114: 10 | BJ114: SEER | BK114: Installed Equipment; actual nameplate EER | BM114: 0.932 | BN114: Condenser coil fouling efficiency degradation factor | BO114: WI TRM 2017 | BP114: 144
A115: Heating, Cooling & Home Comfort | B115: Indoor Coil Cleaning_SF:CAC | C115: 262.3 | D115: Single Family | E115: HVAC | G115: per measure | H115: 35 | I115: WI TRM 2017 | J115: 143 | K115: =ROUND(AW115*BA115/1000*(1/(BI115)*BM115),4) -> 132.84 | L115: Calculated Value | N115: =BA115/1000*(1/(BE115*BM115)-1/BE115) -> 74.34782609 | O115: 0.68 | P115: IL TRM v7 vol3 | Q115: 127 | R115: =ROUND(BA115/1000*(1/(BE115)*BY115),4) -> 0.0783 | S115: Calculated Value | X115: 2 | Y115: IL TRM v7 vol3 | Z115: 127 | AA115: Coil cleaning of packaged air conditioning unit. | AC115: IL TRM v7 vol3 | AD115: 127 | AE115: The baseline condition is an AC system with fouled condenser coils. | AG115: IL TRM v7 vol3 | AH115: 127 | AI115: =ROUND(AW115*BA115/1000*(1/(BI115)*BM115),4) | AJ115: =ROUND(BA115/1000*(1/(BE115)*BY115),4) | AK115: IL TRM v7 vol3 | AL115: 128+ | AM115: 2021-01-01 | AW115: 738 | AX115: Equivalent Full Load Hours for Mechanical Cooling | AY115: MO TRM | AZ115: 122 | BA115: 36000 | BB115: Unit Cooling Capacity in Btu/hour | BC115: Installed Equipment; actual value | BE115: =-0.02*BI115^2+1.12*BI115 -> 9.2 | BF115: EER | BG115: IL TRM v7 vol3 | BH115: 130 | BI115: 10 | BJ115: SEER | BK115: IL TRM v7 vol3 | BL115: 128 | BM115: 0.05 | BN115: Mfe | BO115: IL TRM v7 vol3 | BP115: 128 | BY115: 0.02 | BZ115: MFD | CA115: IL TRM v7 vol3 | CB115: 130
A116: Heating, Cooling & Home Comfort | B116: Indoor Coil Cleaning_SF:ASHP | C116: 263.2 | D116: Single Family | E116: HVAC | G116: per measure | H116: 35 | I116: WI TRM 2017 | J116: 143 | K116: =ROUND(AW116*BA116/1000*(1/(BI116*BM116)-1/BI116),4) -> 148.1408 | L116: Calculated Value | N116: =BA116/1000*(1/(BE116*BM116)-1/BE116) -> 0.2855010263 | O116: 0.9 | P116: WI TRM 2017 | Q116: 144 | R116: =ROUND(N116*O116,4) -> 0.257 | S116: Calculated Value | X116: 3 | Y116: WI TRM 2017 | Z116: 144 | AA116: Coil cleaning of packaged air conditioning unit. | AC116: WI TRM 2017 | AD116: 143 | AE116: The baseline condition is an AC system with fouled condenser coils. | AG116: WI TRM 2017 | AH116: 143 | AI116: =ROUND(AW116*BA116/1000*(1/(BI116*BM116)-1/BI116),4) | AJ116: =ROUND(N116*O116,4) | AK116: WI TRM 2017 | AL116: 143, 144 | AM116: 2020-01-01 | AN116: 2020-12-31 | AW116: 564 | AX116: Equivalent Full Load Hours for Mechanical Cooling | AY116: IL TRM v6 vol3 | AZ116: 127 | BA116: 36000 | BB116: Unit Cooling Capacity in Btu/hour | BC116: Installed Equipment; actual value | BE116: =-0.02*BI116^2+1.12*BI116 -> 9.2 | BF116: EER | BG116: Installed Equipment; actual nameplate EER | BI116: 10 | BJ116: SEER | BK116: Installed Equipment; actual nameplate EER | BM116: 0.932 | BN116: Condenser coil fouling efficiency degradation factor | BO116: WI TRM 2017 | BP116: 144
A117: Heating, Cooling & Home Comfort | B117: Indoor Coil Cleaning_SF:ASHP | C117: 263.3 | D117: Single Family | E117: HVAC | G117: per measure | H117: 35 | I117: WI TRM 2017 | J117: 143 | K117: =ROUND(AW117*BA117/1000*(1/(BI117)*BM117)+BU117*BA117/1000*(1/(BQ117)*BM117),4) -> 497.0753 | L117: Calculated Value | N117: =BA117/1000*(1/(BE117*BM117)-1/BE117) -> 74.34782609 | O117: 0.7 | P117: IL TRM v7 vol3 | Q117: 127 | R117: =ROUND(BA117/1000*(1/(BE117)*BY117),4) -> 0.0783 | S117: Calculated Value | X117: 2 | Y117: IL TRM v7 vol3 | Z117: 127 | AA117: Coil cleaning of packaged air conditioning unit. | AC117: IL TRM v7 vol3 | AD117: 127 | AE117: The baseline condition is an AC system with fouled condenser coils. | AG117: IL TRM v7 vol3 | AH117: 127 | AI117: =ROUND(AW117*BA117/1000*(1/(BI117)*BM117)+BU117*BA117/1000*(1/(BQ117)*BM117),4) | AJ117: =ROUND(BA117/1000*(1/(BE117)*BY117),4) | AK117: IL TRM v7 vol3 | AL117: 128+ | AM117: 2021-01-01 | AW117: 738 | AX117: Equivalent Full Load Hours for Mechanical Cooling | AY117: MO TRM | AZ117: 122 | BA117: 36000 | BB117: Unit Cooling Capacity in Btu/hour | BC117: Installed Equipment; actual value | BE117: =-0.02*BI117^2+1.12*BI117 -> 9.2 | BF117: EER | BG117: IL TRM v7 vol3 | BH117: 130 | BI117: 10 | BJ117: SEER | BK117: IL TRM v7 vol3 | BL117: 128 | BM117: 0.05 | BN117: Mfe | BO117: IL TRM v7 vol3 | BP117: 128 | BQ117: 6.8 | BR117: HSPF_heating | BS117: IL TRM v7 vol3 | BU117: 1376 | BV117: EFLH_heating | BW117: Calculated based on Degree Day Conversion from IL TRM | BY117: 0.02 | BZ117: MFD | CA117: IL TRM v7 vol3 | CB117: 130
A118: Heating, Cooling & Home Comfort | B118: Outdoor Coil Cleaning_SF:CAC | C118: 264.2 | D118: Single Family | E118: HVAC | G118: per measure | H118: 35 | I118: WI TRM 2017 | J118: 143 | K118: =ROUND(AW118*BA118/1000*(1/(BI118*BM118)-1/BI118),4) -> 148.1408 | L118: Calculated Value | N118: =BA118/1000*(1/(BE118*BM118)-1/BE118) -> 0.2855010263 | O118: 0.9 | P118: WI TRM 2017 | Q118: 144 | R118: =ROUND(N118*O118,4) -> 0.257 | S118: Calculated Value | X118: 3 | Y118: WI TRM 2017 | Z118: 144 | AA118: Coil cleaning of packaged air conditioning unit. | AC118: WI TRM 2017 | AD118: 143 | AE118: The baseline condition is an AC system with fouled condenser coils. | AG118: WI TRM 2017 | AH118: 143 | AI118: =ROUND(AW118*BA118/1000*(1/(BI118*BM118)-1/BI118),4) | AJ118: =ROUND(N118*O118,4) | AK118: WI TRM 2017 | AL118: 143, 144 | AM118: 2020-01-01 | AN118: 2020-12-31 | AW118: 564 | AX118: Equivalent Full Load Hours for Mechanical Cooling | AY118: IL TRM v6 vol3 | AZ118: 127 | BA118: 36000 | BB118: Unit Cooling Capacity in Btu/hour | BC118: Installed Equipment; actual value | BE118: =-0.02*BI118^2+1.12*BI118 -> 9.2 | BF118: EER | BG118: Installed Equipment; actual nameplate EER | BI118: 10 | BJ118: SEER | BK118: Installed Equipment; actual nameplate EER | BM118: 0.932 | BN118: Condenser coil fouling efficiency degradation factor | BO118: WI TRM 2017 | BP118: 144
A119: Heating, Cooling & Home Comfort | B119: Outdoor Coil Cleaning_SF:CAC | C119: 264.3 | D119: Single Family | E119: HVAC | G119: per measure | H119: 35 | I119: WI TRM 2017 | J119: 143 | K119: =ROUND(AW119*BA119/1000*(1/(BI119)*BM119),4) -> 132.84 | L119: Calculated Value | N119: =BA119/1000*(1/(BE119*BM119)-1/BE119) -> 74.34782609 | O119: 0.68 | P119: IL TRM v7 vol3 | Q119: 127 | R119: =ROUND(BA119/1000*(1/(BE119)*BY119),4) -> 0.0783 | S119: Calculated Value | X119: 2 | Y119: IL TRM v7 vol3 | Z119: 127 | AA119: Coil cleaning of packaged air conditioning unit. | AC119: IL TRM v7 vol3 | AD119: 127 | AE119: The baseline condition is an AC system with fouled condenser coils. | AG119: IL TRM v7 vol3 | AH119: 127 | AI119: =ROUND(AW119*BA119/1000*(1/(BI119)*BM119),4) | AJ119: =ROUND(BA119/1000*(1/(BE119)*BY119),4) | AK119: IL TRM v7 vol3 | AL119: 128+ | AM119: 2021-01-01 | AW119: 738 | AX119: Equivalent Full Load Hours for Mechanical Cooling | AY119: MO TRM | AZ119: 122 | BA119: 36000 | BB119: Unit Cooling Capacity in Btu/hour | BC119: Installed Equipment; actual value | BE119: =-0.02*BI119^2+1.12*BI119 -> 9.2 | BF119: EER | BG119: IL TRM v7 vol3 | BH119: 130 | BI119: 10 | BJ119: SEER | BK119: IL TRM v7 vol3 | BL119: 128 | BM119: 0.05 | BN119: Mfe | BO119: IL TRM v7 vol3 | BP119: 128 | BY119: 0.02 | BZ119: MFD | CA119: IL TRM v7 vol3 | CB119: 130
A120: Heating, Cooling & Home Comfort | B120: Outdoor Coil Cleaning_SF:ASHP | C120: 265.2 | D120: Single Family | E120: HVAC | G120: per measure | H120: 35 | I120: WI TRM 2017 | J120: 143 | K120: =ROUND(AW120*BA120/1000*(1/(BI120*BM120)-1/BI120),4) -> 148.1408 | L120: Calculated Value | N120: =BA120/1000*(1/(BE120*BM120)-1/BE120) -> 0.2855010263 | O120: 0.9 | P120: WI TRM 2017 | Q120: 144 | R120: =ROUND(N120*O120,4) -> 0.257 | S120: Calculated Value | X120: 3 | Y120: WI TRM 2017 | Z120: 144 | AA120: Coil cleaning of packaged air conditioning unit. | AC120: WI TRM 2017 | AD120: 143 | AE120: The baseline condition is an AC system with fouled condenser coils. | AG120: WI TRM 2017 | AH120: 143 | AI120: =ROUND(AW120*BA120/1000*(1/(BI120*BM120)-1/BI120),4) | AJ120: =ROUND(N120*O120,4) | AK120: WI TRM 2017 | AL120: 143, 144 | AM120: 2020-01-01 | AN120: 2020-12-31 | AW120: 564 | AX120: Equivalent Full Load Hours for Mechanical Cooling | AY120: IL TRM v6 vol3 | AZ120: 127 | BA120: 36000 | BB120: Unit Cooling Capacity in Btu/hour | BC120: Installed Equipment; actual value | BE120: =-0.02*BI120^2+1.12*BI120 -> 9.2 | BF120: EER | BG120: Installed Equipment; actual nameplate EER | BI120: 10 | BJ120: SEER | BK120: Installed Equipment; actual nameplate EER | BM120: 0.932 | BN120: Condenser coil fouling efficiency degradation factor | BO120: WI TRM 2017 | BP120: 144
A121: Heating, Cooling & Home Comfort | B121: Outdoor Coil Cleaning_SF:ASHP | C121: 265.3 | D121: Single Family | E121: HVAC | G121: per measure | H121: 35 | I121: WI TRM 2017 | J121: 143 | K121: =ROUND(AW121*BA121/1000*(1/(BI121)*BM121)+BU121*BA121/1000*(1/(BQ121)*BM121),4) -> 497.0753 | L121: Calculated Value | N121: =BA121/1000*(1/(BE121*BM121)-1/BE121) -> 74.34782609 | O121: 0.7 | P121: IL TRM v7 vol3 | Q121: 127 | R121: =ROUND(BA121/1000*(1/(BE121)*BY121),4) -> 0.0783 | S121: Calculated Value | X121: 2 | Y121: IL TRM v7 vol3 | Z121: 127 | AA121: Coil cleaning of packaged air conditioning unit. | AC121: IL TRM v7 vol3 | AD121: 127 | AE121: The baseline condition is an AC system with fouled condenser coils. | AG121: IL TRM v7 vol3 | AH121: 127 | AI121: =ROUND(AW121*BA121/1000*(1/(BI121)*BM121)+BU121*BA121/1000*(1/(BQ121)*BM121),4) | AJ121: =ROUND(BA121/1000*(1/(BE121)*BY121),4) | AK121: IL TRM v7 vol3 | AL121: 128+ | AM121: 2021-01-01 | AW121: 738 | AX121: Equivalent Full Load Hours for Mechanical Cooling | AY121: MO TRM | AZ121: 122 | BA121: 36000 | BB121: Unit Cooling Capacity in Btu/hour | BC121: Installed Equipment; actual value | BE121: =-0.02*BI121^2+1.12*BI121 -> 9.2 | BF121: EER | BG121: IL TRM v7 vol3 | BH121: 130 | BI121: 10 | BJ121: SEER | BK121: IL TRM v7 vol3 | BL121: 128 | BM121: 0.05 | BN121: Mfe | BO121: IL TRM v7 vol3 | BP121: 128 | BQ121: 6.8 | BR121: HSPF_heating | BS121: IL TRM v7 vol3 | BU121: 1376 | BV121: EFLH_heating | BW121: Calculated based on Degree Day Conversion from IL TRM | BY121: 0.02 | BZ121: MFD | CA121: IL TRM v7 vol3 | CB121: 130
A122: Heating, Cooling & Home Comfort | B122: Refrigerant Charge Adjustment (RCA)_SF: CAC | C122: 266.2 | D122: Single Family | E122: HVAC | G122: per measure | H122: 175 | I122: IL TRM v5 vol3 | J122: 124 | K122: =ROUND((BM122*BA122*(1/BE122))/1000*AS122,4) -> 44.28 | L122: Calculated Value | N122: =K122/BM122 -> 0.06 | O122: 0.68 | P122: Calculated Value | R122: =ROUND(BA122*(1/BI122)/1000*AW122*O122,4) -> 0.0177 | S122: Calculated Value | X122: 2 | Y122: IL TRM v5 vol3 | Z122: 124 | AA122: Sub-measure of HVAC Maintenance and Tune-up | AC122: IL TRM v5 vol3 | AD122: 124 | AE122: The baseline condition is an AC system with incorrect refrigerant charge. | AG122: IL TRM v5 vol3 | AH122: 124 | AI122: =ROUND((BM122*BA122*(1/BE122))/1000*AS122,4) | AJ122: =ROUND(BA122*(1/BI122)/1000*AW122*O122,4) | AK122: IL TRM v5 vol3 | AL122: 125, 127 | AM122: 2020-01-01 | AN122: 2020-12-31 | AS122: 0.05 | AT122: MFe | AU122: IL TRM v5 vol3 | AV122: 125 | AW122: 0.02 | AX122: MFd | AY122: IL TRM v5 vol3 | AZ122: 127 | BA122: 12000 | BB122: Allows for Capacity input in Tons; converts tons to BTUs | BE122: 10 | BF122: SEERCAC | BG122: IL TRM v5 vol3 | BH122: 126 | BI122: 9.2 | BJ122: EER | BK122: IL TRM v5 vol3 | BL122: Calculated Value | BM122: 738 | BN122: EFLHcool | BO122: The EFLH Cooling and Heating hours are based on a EnergyStar study that was normalized (based on HDD and CDD) to Kansas City. This was for both AC and HP units. | BQ122: 1376 | BR122: EFLHheat | BS122: The EFLH Cooling and Heating hours are based on a EnergyStar study that was normalized (based on HDD and CDD) to Kansas City. This was for both AC and HP units.
A123: Heating, Cooling & Home Comfort | B123: Refrigerant Charge Adjustment (RCA)_SF: CAC | C123: 266.3 | D123: Single Family | E123: HVAC | G123: per measure | H123: 175 | I123: IL TRM v7 vol3 | J123: 127 | K123: =ROUND(AW123*BA123/1000*(1/(BI123)*BM123),4) -> 132.84 | L123: Calculated Value | N123: =BA123/1000*(1/(BE123*BM123)-1/BE123) -> 74.34782609 | O123: 0.68 | P123: IL TRM v7 vol3 | Q123: 127 | R123: =ROUND(BA123/1000*(1/(BE123)*BY123),4) -> 0.0783 | S123: Calculated Value | X123: 2 | Y123: IL TRM v7 vol3 | Z123: 127 | AA123: Coil cleaning of packaged air conditioning unit. | AC123: IL TRM v7 vol3 | AD123: 127 | AE123: The baseline condition is an AC system with fouled condenser coils. | AG123: IL TRM v7 vol3 | AH123: 127 | AI123: =ROUND(AW123*BA123/1000*(1/(BI123)*BM123),4) | AJ123: =ROUND(BA123/1000*(1/(BE123)*BY123),4) | AK123: IL TRM v7 vol3 | AL123: 128+ | AM123: 2021-01-01 | AW123: 738 | AX123: Equivalent Full Load Hours for Mechanical Cooling | AY123: MO TRM | AZ123: 122 | BA123: 36000 | BB123: Unit Cooling Capacity in Btu/hour | BC123: Installed Equipment; actual value | BE123: =-0.02*BI123^2+1.12*BI123 -> 9.2 | BF123: EER | BG123: IL TRM v7 vol3 | BH123: 130 | BI123: 10 | BJ123: SEER | BK123: IL TRM v7 vol3 | BL123: 128 | BM123: 0.05 | BN123: Mfe | BO123: IL TRM v7 vol3 | BP123: 128 | BY123: 0.02 | BZ123: MFD | CA123: IL TRM v7 vol3 | CB123: 130
A124: Heating, Cooling & Home Comfort | B124: Refrigerant Charge Adjustment (RCA)_SF: ASHP | C124: 267.2 | D124: Single Family | E124: HVAC | G124: per measure | H124: 175 | I124: IL TRM v5 vol3 | J124: 124 | K124: =ROUND((BQ124*BA124*(1/BE124))/1000*AS124+(BU124*BA124*(1/BM124))/1000*AS124,4) -> 165.6918 | L124: Calculated Value | N124: =K124/BQ124 -> 0.2245146341 | O124: 0.72 | P124: Calculated Value | R124: =ROUND(BA124*(1/BI124)/1000*AW124*O124,4) -> 0.0188 | S124: Calculated Value | X124: 2 | Y124: IL TRM v5 vol3 | Z124: 124 | AA124: Sub-measure of HVAC Maintenance and Tune-up | AC124: IL TRM v5 vol3 | AD124: 124 | AE124: The baseline condition is a heat pump system with incorrect refrigerant charge. | AG124: IL TRM v5 vol3 | AH124: 124 | AI124: =ROUND((BQ124*BA124*(1/BE124))/1000*AS124+(BU124*BA124*(1/BM124))/1000*AS124,4) | AJ124: =ROUND(BA124*(1/BI124)/1000*AW124*O124,4) | AK124: IL TRM v5 vol3 | AL124: 125, 127 | AM124: 2020-01-01 | AN124: 2020-12-31 | AS124: 0.05 | AT124: MFe | AU124: IL TRM v5 vol3 | AV124: 125 | AW124: 0.02 | AX124: MFd | AY124: IL TRM v5 vol3 | AZ124: 127 | BA124: 12000 | BB124: Allows for Capacity input in Tons; converts tons to BTUs | BE124: 10 | BF124: SEERASHP | BG124: IL TRM v5 vol3 | BH124: 126 | BI124: 9.2 | BJ124: EER | BK124: IL TRM v5 vol3 | BL124: Calculated Value | BM124: 6.8 | BN124: HSPFASHP | BO124: IL TRM v5 vol3 | BP124: 126 | BQ124: 738 | BR124: EFLHcool | BS124: The EFLH Cooling and Heating hours are based on a EnergyStar study that was normalized (based on HDD and CDD) to Kansas City. This was for both AC and HP units. | BU124: 1376 | BV124: EFLHheat | BW124: The EFLH Cooling and Heating hours are based on a EnergyStar study that was normalized (based on HDD and CDD) to Kansas City. This was for both AC and HP units.
A125: Heating, Cooling & Home Comfort | B125: Refrigerant Charge Adjustment (RCA)_SF: ASHP | C125: 267.3 | D125: Single Family | E125: HVAC | G125: per measure | H125: 175 | I125: IL TRM v7 vol3 | J125: 127 | K125: =ROUND(AW125*BA125/1000*(1/(BI125)*BM125)+BU125*BA125/1000*(1/(BQ125)*BM125),4) -> 497.0753 | L125: Calculated Value | N125: =BA125/1000*(1/(BE125*BM125)-1/BE125) -> 74.34782609 | O125: 0.7 | P125: IL TRM v7 vol3 | Q125: 127 | R125: =ROUND(BA125/1000*(1/(BE125)*BY125),4) -> 0.0783 | S125: Calculated Value | X125: 2 | Y125: IL TRM v7 vol3 | Z125: 127 | AA125: Coil cleaning of packaged air conditioning unit. | AC125: IL TRM v7 vol3 | AD125: 127 | AE125: The baseline condition is an AC system with fouled condenser coils. | AG125: IL TRM v7 vol3 | AH125: 127 | AI125: =ROUND(AW125*BA125/1000*(1/(BI125)*BM125)+BU125*BA125/1000*(1/(BQ125)*BM125),4) | AJ125: =ROUND(BA125/1000*(1/(BE125)*BY125),4) | AK125: IL TRM v7 vol3 | AL125: 128+ | AM125: 2021-01-01 | AW125: 738 | AX125: Equivalent Full Load Hours for Mechanical Cooling | AY125: MO TRM | AZ125: 122 | BA125: 36000 | BB125: Unit Cooling Capacity in Btu/hour | BC125: Installed Equipment; actual value | BE125: =-0.02*BI125^2+1.12*BI125 -> 9.2 | BF125: EER | BG125: IL TRM v7 vol3 | BH125: 130 | BI125: 10 | BJ125: SEER | BK125: IL TRM v7 vol3 | BL125: 128 | BM125: 0.05 | BN125: Mfe | BO125: IL TRM v7 vol3 | BP125: 128 | BQ125: 6.8 | BR125: HSPF_heating | BS125: IL TRM v7 vol3 | BU125: 1376 | BV125: EFLH_heating | BW125: Calculated based on Degree Day Conversion from IL TRM | BY125: 0.02 | BZ125: MFD | CA125: IL TRM v7 vol3 | CB125: 130
A126: Heating, Cooling & Home Comfort | B126: HVAC Maintenance and Tune-up_SF: CAC | C126: 238.2 | D126: Single Family | E126: HVAC | G126: per measure | H126: 175 | I126: IL TRM v7 vol3 | J126: 127 | K126: =ROUND(AS126*BE126*(1/AW126)/1000*BA126,4) -> 44.28 | L126: Calculated Value | N126: 0.0165 | O126: 0.68 | P126: IL TRM v7 vol3 | Q126: 127 | R126: =ROUND(AS126*(1/BI126)/1000*BM126*O126,4) -> 0.0177 | S126: Calculated Value | U126: 738 | V126: EFLHcool, from 2017 MO TRM | W126: 85 | X126: 2 | Y126: IL TRM v7 vol3 | Z126: 127 | AA126: Maintenance and Tune-up on CAC unit | AE126: AC unit that has not been serviced for at least 3 years | AG126: IL TRM v7 vol3 | AH126: 127 | AI126: =ROUND(AS126*BE126*(1/AW126)/1000*BA126,4) | AJ126: =ROUND(AS126*(1/BI126)/1000*BM126*O126,4) | AK126: IL TRM v7 vol3 | AL126: 129 | AM126: 2020-01-01 | AN126: 2020-12-31 | AS126: 12000 | AT126: Cooling capacity (1 ton) | AU126: IL TRM v7 vol3 | AV126: 128 | AW126: 10 | AX126: SEERcac | AY126: IL TRM v7 vol3 | AZ126: 128 | BA126: 0.05 | BB126: Maintenance Savings Factor | BC126: IL TRM v7 vol3 | BD126: 128 | BE126: 738 | BF126: EFLHcool, from 2017 MO TRM | BG126: 85 | BH126: 128 | BI126: =-0.02*AW126^2+1.12*AW126 -> 9.2 | BJ126: EER - calculated based on SEER | BK126: IL TRM v7 vol3 | BL126: 129 | BM126: 0.02 | BN126: Maintenance demand savings factor | BO126: IL TRM v7 vol3 | BP126: 130
A127: Heating, Cooling & Home Comfort | B127: HVAC Maintenance and Tune-up_SF: CAC | C127: 238.3 | D127: Single Family | E127: HVAC | G127: per measure | H127: 175 | I127: IL TRM v7 vol3 | J127: 127 | K127: =ROUND(AW127*BA127/1000*(1/(BI127)*BM127),4) -> 132.84 | L127: Calculated Value | N127: =BA127/1000*(1/(BE127*BM127)-1/BE127) -> 74.34782609 | O127: 0.68 | P127: IL TRM v7 vol3 | Q127: 127 | R127: =ROUND(BA127/1000*(1/(BE127)*BY127),4) -> 0.0783 | S127: Calculated Value | X127: 2 | Y127: IL TRM v7 vol3 | Z127: 127 | AA127: Coil cleaning of packaged air conditioning unit. | AC127: IL TRM v7 vol3 | AD127: 127 | AE127: The baseline condition is an AC system with fouled condenser coils. | AG127: IL TRM v7 vol3 | AH127: 127 | AI127: =ROUND(AW127*BA127/1000*(1/(BI127)*BM127),4) | AJ127: =ROUND(BA127/1000*(1/(BE127)*BY127),4) | AK127: IL TRM v7 vol3 | AL127: 128+ | AM127: 2021-01-01 | AW127: 738 | AX127: Equivalent Full Load Hours for Mechanical Cooling | AY127: MO TRM | AZ127: 122 | BA127: 36000 | BB127: Unit Cooling Capacity in Btu/hour | BC127: Installed Equipment; actual value | BE127: =-0.02*BI127^2+1.12*BI127 -> 9.2 | BF127: EER | BG127: IL TRM v7 vol3 | BH127: 130 | BI127: 10 | BJ127: SEER | BK127: IL TRM v7 vol3 | BL127: 128 | BM127: 0.05 | BN127: Mfe | BO127: IL TRM v7 vol3 | BP127: 128 | BY127: 0.02 | BZ127: MFD | CA127: IL TRM v7 vol3 | CB127: 130
A128: Heating, Cooling & Home Comfort | B128: GSHP - Early Replacement GSHP_SF: HVAC, replace ASHP | C128: 239.3 | D128: Single Family | E128: HVAC | G128: per unit | H128: 4859 | I128: IL TRM v7 vol3 | J128: 110 | K128: =ROUND(((BY128*AS128*(1/AF128)-(1/AB128))/1000)+((CC128*AS128*(1/AW128)-(1/(BA128*3.412)))/1000)+((BE128*BI128*(1/BM128)*BQ128)/1000),4) -> 6211.8058 | L128: Calculated Value | N128: =K128/U128 -> 8.41708103 | O128: 0.72 | P128: IL TRM v7 vol3 | Q128: 111 | R128: =ROUND(((AS128*(1/BU128)-(1/AB128))/1000)*O128,4) -> 1.0105 | S128: Calculated Value | U128: 738 | V128: EFLHcool, from 2017 MO TRM | W128: 85 | X128: 18 | Y128: IL TRM v7 vol3 | Z128: 110 | AA128: Part Load EER Efficiency of efficient GSHP unit | AB128: 23 | AC128: IL TRM v7 vol3 | AE128: SEER Efficiency of existing cooling unit = Actual, if available | AF128: 8.55 | AG128: IL TRM v7 vol3 | AH128: 113 | AI128: =ROUND(((BY128*AS128*(1/AF128)-(1/AB128))/1000)+((CC128*AS128*(1/AW128)-(1/(BA128*3.412)))/1000)+((BE128*BI128*(1/BM128)*BQ128)/1000),4) | AJ128: =ROUND(((AS128*(1/BU128)-(1/AB128))/1000)*O128,4) | AK128: IL TRM v7 vol3 | AL128: 111 | AM128: 2020-01-01 | AN128: 2020-04-30 | AS128: 12000 | AT128: Allows for Capacity input in Tons; converts tons to BTUs | AW128: 5.44 | AX128: HSPFexist = Heating System Performance Factor of existing heating system 5.44 for replacing ASHP 3.41 for replacing Electric Resistance Heat | AY128: IL TRM v7 vol3 | AZ128: 114 | BA128: 4.5 | BB128: COPpl = Part Load Coefficient of Performance, Actual installed value | BC128: This example value is the mean of values listed in ENERGY STAR criteria here: https://www.energystar.gov/index.cfm?c=most_efficient.me_geothermal_heat_pumps , https://data.energystar.gov/Active-Specifications/ENERGY-STAR-Most-Efficient-Geothermal-Heat-Pumps/4c82-7ysy . Ideally this value would come from the specs of the actual unit installed. | BD128: 116 | BE128: 1 | BF128: ElecDHW: = 1 if HW system is electric = 0 if HW system is not electric | BG128: IL TRM v7 vol3 | BH128: 114 | BI128: 0.44 | BJ128: %DHWdisplaced = Percentage of total DHW load the GSHP will provide. = Actual, if known = 0% if no desuperheater installed = 44% if desuperheater installed and actual is unknown | BK128: IL TRM v7 vol3 | BL128: 114 | BM128: 2.0005 | BN128: Efelec = Energy Factor of electric WH. = Actual, if known = 0.96 – (0.0003 * rated volume in gallons) for 55+ gallon DHW = 2.057 – (0.00113 * rated volume in gallons) for < 55 gallon DHW | BO128: IL TRM v7 vol3 | BP128: 115 | BQ128: 9732988.447 | BR128: GSHP Coefficient = GPD * Household * 365.25 * γWater * (Tout - Tin) | BS128: IL TRM v7 vol3 | BT128: 115 | BU128: 8.55 | BV128: Energy Efficiency Ratio of existing cooling unit = Actual, if available = 8.55 for replacing ASHP = 8.15 for replacing Central AC | BW128: IL TRM v7 vol3 | BX128: 116 | BY128: 738 | BZ128: EFLHcool | CA128: EFLHcool, from 2017 MO TRM | CB128: 85 | CC128: 1376 | CD128: EFLHheat | CE128: The EFLH Cooling and Heating hours are based on a EnergyStar study that was normalized (based on HDD and CDD) to Kansas City. This was for both AC and HP units.
A129: Heating, Cooling & Home Comfort | B129: GSHP - EER 23 Early Retirement GSHP_SF: HVAC | C129: 239.4 | D129: Single Family | E129: HVAC | G129: per ton | H129: 5064 | I129: Program Tracking Data | K129: =ROUND(((BY129*AS129*(1/AF129-1/AB129))/1000)+((CC129*AS129*(1/AW129-1/(BA129*3.412)))/1000)+((BE129*BI129*(1/BM129)*CG129*CK129*CO129*CS129*(CW129-DA129)*DE129)/BQ129),4) -> 3099.7097 | L129: Calculated Value | N129: 4.200148645 | O129: 0.72 | P129: IL TRM v7 vol3 | Q129: 111 | R129: 1.152 | S129: Calculated Value | U129: 738 | V129: EFLHcool, from 2017 MO TRM Vol. 3 | W129: 85 | X129: 25 | Y129: IL TRM v7 vol3 | Z129: 110 | AA129: Part Load EER Efficiency of efficient GSHP unit | AB129: 23 | AC129: Measure Definition | AE129: SEER Efficiency of existing cooling unit = Actual, if available | AF129: 9.3 | AG129: IL TRM v7 vol3 | AH129: 113 | AI129: =ROUND(((BY129*AS129*(1/AF129-1/AB129))/1000)+((CC129*AS129*(1/AW129-1/(BA129*3.412)))/1000)+((BE129*BI129*(1/BM129)*CG129*CK129*CO129*CS129*(CW129-DA129)*DE129)/BQ129),4) | AJ129: =ROUND(((AS129*(1/BU129)-(1/AB129))/1000)*O129,4) | AK129: IL TRM v7 vol3 | AL129: 111116 | AM129: 2020-05-01 | AN129: 2020-12-31 | AS129: 12000 | AT129: Allows for Capacity input in Tons; converts tons to BTUs | AW129: 5.54 | AX129: HSPFexist = Heating System Performance Factor of existing heating system 5.44 for replacing ASHP 3.41 for replacing Electric Resistance Heat | AY129: IL TRM v7 vol3 | AZ129: 114 | BA129: 4.5 | BB129: COPpl = Part Load Coefficient of Performance, Actual installed value | BC129: This example value is the mean of values listed in ENERGY STAR criteria here: https://www.energystar.gov/index.cfm?c=most_efficient.me_geothermal_heat_pumps , https://data.energystar.gov/Active-Specifications/ENERGY-STAR-Most-Efficient-Geothermal-Heat-Pumps/4c82-7ysy . Ideally this value would come from the specs of the actual unit installed. | BD129: 114 | BE129: 1 | BF129: ElecDHW: = 1 if HW system is electric = 0 if HW system is not electric | BG129: IL TRM v7 vol3 | BH129: 113 | BI129: 0.44 | BJ129: %DHWdisplaced = Percentage of total DHW load the GSHP will provide. = Actual, if known = 0% if no desuperheater installed = 44% if desuperheater installed and actual is unknown | BK129: IL TRM v7 vol3 | BL129: 114 | BM129: =2.057-0.00113*50 -> 2.0005 | BN129: Efelec = Energy Factor of electric WH. = Actual, if known = 0.96 – (0.0003 * rated volume in gallons) for 55+ gallon DHW = 2.057 – (0.00113 * rated volume in gallons) for < 55 gallon DHW | BO129: IL TRM v7 vol3 | BP129: 115 | BQ129: 3412 | BR129: Conversion from BTU to kWh | BS129: IL TRM v7 vol3 | BT129: 115 | BU129: 7.5 | BV129: Energy Efficiency Ratio of existing/baseline cooling unit | BW129: IL TRM v7 vol3 | BX129: 116 | BY129: 738 | BZ129: EFLHcool | CA129: MO TRM 2017 Vol 3 | CB129: 85 | CC129: 1376 | CD129: EFLHheat | CE129: The EFLH Cooling and Heating hours are based on a EnergyStar study that was normalized (based on HDD and CDD) to Kansas City. This was for both AC and HP units. | CG129: 17.6 | CH129: GPD | CI129: IL TRM v7 vol3 | CJ129: 115 | CK129: 2.56 | CL129: Household | CM129: IL TRM v7 vol3 | CN129: 115 | CO129: 365.25 | CP129: Days per year | CQ129: IL TRM v7 vol3 | CR129: 115 | CS129: 8.33 | CT129: Specific weight of water | CU129: IL TRM v7 vol3 | CV129: 115 | CW129: 125 | CX129: Tout | CY129: IL TRM v7 vol3 | CZ129: 115 | DA129: 54 | DB129: Tin | DC129: IL TRM v7 vol3 | DD129: 115 | DE129: 1 | DF129: Heat Capacity of Water | DG129: IL TRM v7 vol3 | DH129: 115
A130: Heating, Cooling & Home Comfort | B130: GSHP - EER 23 Early Retirement GSHP_SF: HVAC | C130: 239.5 | D130: Single Family | E130: HVAC | G130: per ton | H130: 5064 | I130: Program Tracking Data | K130: =ROUND(((BY130*AS130*(1/AF130-1/AB130))/1000)+((CC130*AS130*(1/AW130-1/(BA130*3.412)))/1000)+((BE130*BI130*(1/BM130)*CG130*CK130*CO130*CS130*(CW130-DA130)*DE130)/BQ130),4) -> 2907.9654 | L130: Calculated Value | N130: 3.94033252 | O130: 0.72 | P130: IL TRM v7 vol3 | Q130: 111 | R130: 1.152 | S130: Calculated Value | U130: 738 | V130: EFLHcool, from 2017 MO TRM Vol. 3 | W130: 85 | X130: 25 | Y130: IL TRM v7 vol3 | Z130: 110 | AA130: Part Load EER Efficiency of efficient GSHP unit | AB130: =3.412*BA130 -> 15.354 | AC130: IL TRM v7 vol3 | AD130: 111 | AE130: SEER Efficiency of existing cooling unit = Actual, if available | AF130: 9.3 | AG130: IL TRM v7 vol3 | AH130: 113 | AI130: =ROUND(((BY130*AS130*(1/AF130-1/AB130))/1000)+((CC130*AS130*(1/AW130-1/(BA130*3.412)))/1000)+((BE130*BI130*(1/BM130)*CG130*CK130*CO130*CS130*(CW130-DA130)*DE130)/BQ130),4) | AJ130: =ROUND(((AS130*(1/BU130)-(1/AB130))/1000)*O130,4) | AK130: IL TRM v7 vol3 | AL130: 111116 | AM130: 2021-01-01 | AS130: 12000 | AT130: Allows for Capacity input in Tons; converts tons to BTUs | AW130: 5.54 | AX130: HSPFexist = Heating System Performance Factor of existing heating system 5.44 for replacing ASHP 3.41 for replacing Electric Resistance Heat | AY130: IL TRM v7 vol3 | AZ130: 114 | BA130: 4.5 | BB130: COPpl = Part Load Coefficient of Performance, Actual installed value | BC130: This example value is the mean of values listed in ENERGY STAR criteria here: https://www.energystar.gov/index.cfm?c=most_efficient.me_geothermal_heat_pumps , https://data.energystar.gov/Active-Specifications/ENERGY-STAR-Most-Efficient-Geothermal-Heat-Pumps/4c82-7ysy . Ideally this value would come from the specs of the actual unit installed. | BD130: 114 | BE130: 1 | BF130: ElecDHW: = 1 if HW system is electric = 0 if HW system is not electric | BG130: IL TRM v7 vol3 | BH130: 113 | BI130: 0.44 | BJ130: %DHWdisplaced = Percentage of total DHW load the GSHP will provide. = Actual, if known = 0% if no desuperheater installed = 44% if desuperheater installed and actual is unknown | BK130: IL TRM v7 vol3 | BL130: 114 | BM130: =2.057-0.00113*50 -> 2.0005 | BN130: Efelec = Energy Factor of electric WH. = Actual, if known = 0.96 – (0.0003 * rated volume in gallons) for 55+ gallon DHW = 2.057 – (0.00113 * rated volume in gallons) for < 55 gallon DHW | BO130: IL TRM v7 vol3 | BP130: 115 | BQ130: 3412 | BR130: Conversion from BTU to kWh | BS130: IL TRM v7 vol3 | BT130: 115 | BU130: 7.5 | BV130: Energy Efficiency Ratio of existing/baseline cooling unit | BW130: IL TRM v7 vol3 | BX130: 116 | BY130: 738 | BZ130: EFLHcool | CA130: MO TRM 2017 Vol 3 | CB130: 85 | CC130: 1376 | CD130: EFLHheat | CE130: The EFLH Cooling and Heating hours are based on a EnergyStar study that was normalized (based on HDD and CDD) to Kansas City. This was for both AC and HP units. | CG130: 17.6 | CH130: GPD | CI130: IL TRM v7 vol3 | CJ130: 115 | CK130: 2.56 | CL130: Household | CM130: IL TRM v7 vol3 | CN130: 115 | CO130: 365.25 | CP130: Days per year | CQ130: IL TRM v7 vol3 | CR130: 115 | CS130: 8.33 | CT130: Specific weight of water | CU130: IL TRM v7 vol3 | CV130: 115 | CW130: 125 | CX130: Tout | CY130: IL TRM v7 vol3 | CZ130: 115 | DA130: 54 | DB130: Tin | DC130: IL TRM v7 vol3 | DD130: 115 | DE130: 1 | DF130: Heat Capacity of Water | DG130: IL TRM v7 vol3 | DH130: 115
A131: Heating, Cooling & Home Comfort | B131: GSHP - Replace at Fail GSHP_SF: HVAC | C131: 240.3 | D131: Single Family | E131: HVAC | G131: per unit | H131: 3200 | I131: IL TRM v7 vol3 | J131: 110 | K131: =ROUND(((BY131*AS131*(1/AF131)-(1/AB131))/1000)+((CC131*AS131*(1/AW131)-(1/(BA131*3.412)))/1000)+((BE131*BI131*(1/BM131)*BQ131)/1000),4) -> 4959.4716 | L131: Calculated Value | N131: 6.72015122 | O131: 0.72 | P131: IL TRM v7 vol3 | Q131: 111 | R131: 0.7322 | S131: Calculated Value | U131: 738 | V131: EFLHcool, from 2017 MO TRM | W131: 85 | X131: 18 | Y131: IL TRM v7 vol3 | Z131: 110 | AA131: Part Load EER Efficiency of efficient GSHP unit | AB131: 23 | AC131: IL TRM v7 vol3 | AE131: GSHP replacing Failed GSHP – 23 EER minimum (EER) | AF131: 11 | AG131: IL TRM v7 vol3 | AH131: 113 | AI131: =ROUND(((BY131*AS131*(1/AF131)-(1/AB131))/1000)+((CC131*AS131*(1/AW131)-(1/(BA131*3.412)))/1000)+((BE131*BI131*(1/BM131)*BQ131)/1000),4) | AJ131: =ROUND(((AS131*(1/BU131)-(1/AB131))/1000)*O131,4) | AK131: IL TRM v7 vol3 | AL131: 111 | AM131: 2020-01-01 | AN131: 2020-04-30 | AS131: 12000 | AT131: Allows for Capacity input in Tons; converts tons to BTUs | AW131: 8.2 | AX131: HSPFbase = Heating System Performance Factor of new replacement baseline heating system 8.2 for replacing ASHP 3.41 for replacing Electric Resistance Heat | AY131: IL TRM v7 vol3 | AZ131: 114 | BA131: 4.5 | BB131: COPpl = Part Load Coefficient of Performance, Actual installed value | BC131: This example value is the mean of values listed in ENERGY STAR criteria here: https://www.energystar.gov/index.cfm?c=most_efficient.me_geothermal_heat_pumps , https://data.energystar.gov/Active-Specifications/ENERGY-STAR-Most-Efficient-Geothermal-Heat-Pumps/4c82-7ysy . Ideally this value would come from the specs of the actual unit installed. | BD131: 116 | BE131: 1 | BF131: ElecDHW: = 1 if HW system is electric = 0 if HW system is not electric | BG131: IL TRM Version 7 Volume 5 | BH131: 114 | BI131: 0.44 | BJ131: %DHWdisplaced = Percentage of total DHW load the GSHP will provide. = Actual, if known = 0% if no desuperheater installed = 44% if desuperheater installed and actual is unknown | BK131: IL TRM Version 7 Volume 5 | BL131: 114 | BM131: 2.0005 | BN131: Efelec = Energy Factor of electric WH. = Actual, if known = 0.96 – (0.0003 * rated volume in gallons) for 55+ gallon DHW = 2.057 – (0.00113 * rated volume in gallons) for < 55 gallon DHW | BO131: IL TRM Version 7 Volume 5 | BP131: 115 | BQ131: 9732988.447 | BR131: GSHP Coefficient = GPD * Household * 365.25 * γWater * (Tout - Tin) | BS131: IL TRM v7 vol3 | BT131: 115 | BU131: 11.8 | BV131: EER Efficiency of new replacement ASHP | BW131: IL TRM v7 vol3 | BX131: 116 | BY131: 738 | BZ131: EFLHcool | CA131: EFLHcool, from 2017 MO TRM | CB131: 85 | CC131: 1376 | CD131: EFLHheat | CE131: The EFLH Cooling and Heating hours are based on a EnergyStar study that was normalized (based on HDD and CDD) to Kansas City. This was for both AC and HP units.
A132: Heating, Cooling & Home Comfort | B132: GSHP - EER 23_Replace at Fail / Time of Sale_SF: HVAC | C132: 240.4 | D132: Single Family | E132: HVAC | G132: per ton | H132: 1841 | I132: Program Tracking Data | K132: =ROUND(((BY132*AS132*(1/AF132-1/AB132))/1000)+((CC132*AS132*(1/AW132-1/(BA132*3.412)))/1000)+((BE132*BI132*(1/BM132)*CG132*CK132*CO132*CS132*(CW132-DA132)*DE132)/BQ132),4) -> 1813.1762 | L132: Calculated Value | N132: 2.45687832 | O132: 0.72 | P132: IL TRM v7 vol3 | Q132: 111 | R132: 0.7322 | S132: Calculated Value | U132: 738 | V132: EFLHcool, from 2017 MO TRM Vol. 3 | W132: 85 | X132: 25 | Y132: IL TRM v7 vol3 | Z132: 110 | AA132: Part Load EER Efficiency of efficient GSHP unit | AB132: 23 | AC132: Measure Definition | AE132: GSHP replacing Failed GSHP – 23 EER minimum (EER) | AF132: 14 | AG132: IL TRM v7 vol3 | AH132: 113 | AI132: =ROUND(((BY132*AS132*(1/AF132-1/AB132))/1000)+((CC132*AS132*(1/AW132-1/(BA132*3.412)))/1000)+((BE132*BI132*(1/BM132)*CG132*CK132*CO132*CS132*(CW132-DA132)*DE132)/BQ132),4) | AJ132: =ROUND(((AS132*(1/BU132)-(1/AB132))/1000)*O132,4) | AK132: IL TRM v7 vol3 | AL132: 111116 | AM132: 2020-05-01 | AN132: 2020-12-31 | AS132: 12000 | AT132: Allows for Capacity input in Tons; converts tons to BTUs | AW132: 8.2 | AX132: HSPFbase = Heating System Performance Factor of new replacement baseline heating system 8.2 for replacing ASHP 3.41 for replacing Electric Resistance Heat | AY132: IL TRM v7 vol3 | AZ132: 114 | BA132: 4.5 | BB132: COPpl = Part Load Coefficient of Performance, Actual installed value | BC132: This example value is the mean of values listed in ENERGY STAR criteria here: https://www.energystar.gov/index.cfm?c=most_efficient.me_geothermal_heat_pumps , https://data.energystar.gov/Active-Specifications/ENERGY-STAR-Most-Efficient-Geothermal-Heat-Pumps/4c82-7ysy . Ideally this value would come from the specs of the actual unit installed. | BD132: 114 | BE132: 1 | BF132: ElecDHW: = 1 if HW system is electric = 0 if HW system is not electric | BG132: IL TRM v7 vol3 | BH132: 113 | BI132: 0.44 | BJ132: %DHWdisplaced = Percentage of total DHW load the GSHP will provide. = Actual, if known = 0% if no desuperheater installed = 44% if desuperheater installed and actual is unknown | BK132: IL TRM v7 vol3 | BL132: 114 | BM132: =2.057-0.00113*50 -> 2.0005 | BN132: Efelec = Energy Factor of electric WH. = Actual, if known = 0.96 – (0.0003 * rated volume in gallons) for 55+ gallon DHW = 2.057 – (0.00113 * rated volume in gallons) for < 55 gallon DHW | BO132: IL TRM v7 vol3 | BP132: 115 | BQ132: 3412 | BR132: Conversion from BTU to kWh | BS132: IL TRM v7 vol3 | BT132: 115 | BU132: 11.8 | BV132: Energy Efficiency Ratio of existing/baseline cooling unit | BW132: IL TRM v7 vol3 | BX132: 116 | BY132: 738 | BZ132: EFLHcool | CA132: MO TRM 2017 Vol 3 | CB132: 85 | CC132: 1376 | CD132: EFLHheat | CE132: The EFLH Cooling and Heating hours are based on a EnergyStar study that was normalized (based on HDD and CDD) to Kansas City. This was for both AC and HP units. | CG132: 17.6 | CH132: GPD | CI132: IL TRM v7 vol3 | CJ132: 115 | CK132: 2.56 | CL132: Household | CM132: IL TRM v7 vol3 | CN132: 115 | CO132: 365.25 | CP132: Days per year | CQ132: IL TRM v7 vol3 | CR132: 115 | CS132: 8.33 | CT132: Specific weight of water | CU132: IL TRM v7 vol3 | CV132: 115 | CW132: 125 | CX132: Tout | CY132: IL TRM v7 vol3 | CZ132: 115 | DA132: 54 | DB132: Tin | DC132: IL TRM v7 vol3 | DD132: 115 | DE132: 1 | DF132: Heat Capacity of Water | DG132: IL TRM v7 vol3 | DH132: 115
A133: Heating, Cooling & Home Comfort | B133: GSHP - EER 23_Replace at Fail / Time of Sale_SF: HVAC | C133: 240.5 | D133: Single Family | E133: HVAC | G133: per ton | H133: 1841 | I133: Program Tracking Data | K133: =ROUND(((BY133*AS133*(1/AF133-1/AB133))/1000)+((CC133*AS133*(1/AW133-1/(BA133*3.412)))/1000)+((BE133*BI133*(1/BM133)*CG133*CK133*CO133*CS133*(CW133-DA133)*DE133)/BQ133),4) -> 1621.4319 | L133: Calculated Value | N133: 2.197062195 | O133: 0.72 | P133: IL TRM v7 vol3 | Q133: 111 | R133: 0.7322 | S133: Calculated Value | U133: 738 | V133: EFLHcool, from 2017 MO TRM Vol. 3 | W133: 85 | X133: 25 | Y133: IL TRM v7 vol3 | Z133: 110 | AA133: Part Load EER Efficiency of efficient GSHP unit | AB133: =3.412*BA133 -> 15.354 | AC133: IL TRM v7 vol3 | AD133: 111 | AE133: GSHP replacing Failed GSHP – 23 EER minimum (EER) | AF133: 14 | AG133: IL TRM v7 vol3 | AH133: 113 | AI133: =ROUND(((BY133*AS133*(1/AF133-1/AB133))/1000)+((CC133*AS133*(1/AW133-1/(BA133*3.412)))/1000)+((BE133*BI133*(1/BM133)*CG133*CK133*CO133*CS133*(CW133-DA133)*DE133)/BQ133),4) | AJ133: =ROUND(((AS133*(1/BU133)-(1/AB133))/1000)*O133,4) | AK133: IL TRM v7 vol3 | AL133: 111116 | AM133: 2021-01-01 | AS133: 12000 | AT133: Allows for Capacity input in Tons; converts tons to BTUs | AW133: 8.2 | AX133: HSPFbase = Heating System Performance Factor of new replacement baseline heating system 8.2 for replacing ASHP 3.41 for replacing Electric Resistance Heat | AY133: IL TRM v7 vol3 | AZ133: 114 | BA133: 4.5 | BB133: COPpl = Part Load Coefficient of Performance, Actual installed value | BC133: This example value is the mean of values listed in ENERGY STAR criteria here: https://www.energystar.gov/index.cfm?c=most_efficient.me_geothermal_heat_pumps , https://data.energystar.gov/Active-Specifications/ENERGY-STAR-Most-Efficient-Geothermal-Heat-Pumps/4c82-7ysy . Ideally this value would come from the specs of the actual unit installed. | BD133: 114 | BE133: 1 | BF133: ElecDHW: = 1 if HW system is electric = 0 if HW system is not electric | BG133: IL TRM v7 vol3 | BH133: 113 | BI133: 0.44 | BJ133: %DHWdisplaced = Percentage of total DHW load the GSHP will provide. = Actual, if known = 0% if no desuperheater installed = 44% if desuperheater installed and actual is unknown | BK133: IL TRM v7 vol3 | BL133: 114 | BM133: =2.057-0.00113*50 -> 2.0005 | BN133: Efelec = Energy Factor of electric WH. = Actual, if known = 0.96 – (0.0003 * rated volume in gallons) for 55+ gallon DHW = 2.057 – (0.00113 * rated volume in gallons) for < 55 gallon DHW | BO133: IL TRM v7 vol3 | BP133: 115 | BQ133: 3412 | BR133: Conversion from BTU to kWh | BS133: IL TRM v7 vol3 | BT133: 115 | BU133: 11.8 | BV133: Energy Efficiency Ratio of existing/baseline cooling unit | BW133: IL TRM v7 vol3 | BX133: 116 | BY133: 738 | BZ133: EFLHcool | CA133: MO TRM 2017 Vol 3 | CB133: 85 | CC133: 1376 | CD133: EFLHheat | CE133: The EFLH Cooling and Heating hours are based on a EnergyStar study that was normalized (based on HDD and CDD) to Kansas City. This was for both AC and HP units. | CG133: 17.6 | CH133: GPD | CI133: IL TRM v7 vol3 | CJ133: 115 | CK133: 2.56 | CL133: Household | CM133: IL TRM v7 vol3 | CN133: 115 | CO133: 365.25 | CP133: Days per year | CQ133: IL TRM v7 vol3 | CR133: 115 | CS133: 8.33 | CT133: Specific weight of water | CU133: IL TRM v7 vol3 | CV133: 115 | CW133: 125 | CX133: Tout | CY133: IL TRM v7 vol3 | CZ133: 115 | DA133: 54 | DB133: Tin | DC133: IL TRM v7 vol3 | DD133: 115 | DE133: 1 | DF133: Heat Capacity of Water | DG133: IL TRM v7 vol3 | DH133: 115
A134: Heating, Cooling & Home Comfort | B134: GSHP - AC + Early Replacement Electric Resistance Furnace_SF: HVAC | C134: 241.3 | D134: Single Family | E134: HVAC | G134: per unit | H134: 5250 | I134: IL TRM v7 vol3 | J134: 110 | K134: =ROUND(((BY134*AS134*(1/AF134)-(1/AB134))/1000)+((CC134*AS134*(1/AW134)-(1/(BA134*3.412)))/1000)+((BE134*BI134*(1/BM134)*BQ134)/1000),4) -> 8069.5767 | L134: Calculated Value | N134: 10.93438577 | O134: 0.72 | P134: IL TRM v7 vol3 | Q134: 111 | R134: 1.0601 | S134: Calculated Value | U134: 738 | V134: EFLHcool, from 2017 MO TRM | W134: 85 | X134: 18 | Y134: IL TRM v7 vol3 | Z134: 110 | AA134: Part Load EER Efficiency of efficient GSHP unit | AB134: 23 | AC134: IL TRM v7 vol3 | AE134: SEER Efficiency of existing cooling unit = Actual, if available | AF134: 8.15 | AG134: IL TRM v7 vol3 | AH134: 113 | AI134: =ROUND(((BY134*AS134*(1/AF134)-(1/AB134))/1000)+((CC134*AS134*(1/AW134)-(1/(BA134*3.412)))/1000)+((BE134*BI134*(1/BM134)*BQ134)/1000),4) | AJ134: =ROUND(((AS134*(1/BU134)-(1/AB134))/1000)*O134,4) | AK134: IL TRM v7 vol3 | AL134: 111 | AM134: 2020-01-01 | AN134: 2020-04-30 | AS134: 12000 | AT134: Allows for Capacity input in Tons; converts tons to BTUs | AW134: 3.41 | AX134: HSPFexist = Heating System Performance Factor of existing heating system 5.44 for replacing ASHP 3.41 for replacing Electric Resistance Heat | AY134: IL TRM v7 vol3 | AZ134: 114 | BA134: 4.5 | BB134: COPpl = Part Load Coefficient of Performance, Actual installed value | BC134: This example value is the mean of values listed in ENERGY STAR criteria here: https://www.energystar.gov/index.cfm?c=most_efficient.me_geothermal_heat_pumps , https://data.energystar.gov/Active-Specifications/ENERGY-STAR-Most-Efficient-Geothermal-Heat-Pumps/4c82-7ysy . Ideally this value would come from the specs of the actual unit installed. | BD134: 116 | BE134: 1 | BF134: ElecDHW: = 1 if HW system is electric = 0 if HW system is not electric | BG134: IL TRM Version 7 Volume 7 | BH134: 114 | BI134: 0.44 | BJ134: %DHWdisplaced = Percentage of total DHW load the GSHP will provide. = Actual, if known = 0% if no desuperheater installed = 44% if desuperheater installed and actual is unknown | BK134: IL TRM Version 7 Volume 7 | BL134: 114 | BM134: 2.0005 | BN134: Efelec = Energy Factor of electric WH. = Actual, if known = 0.96 – (0.0003 * rated volume in gallons) for 55+ gallon DHW = 2.057 – (0.00113 * rated volume in gallons) for < 55 gallon DHW | BO134: IL TRM Version 7 Volume 7 | BP134: 115 | BQ134: 9732988.447 | BR134: GSHP Coefficient = GPD * Household * 365.25 * γWater * (Tout - Tin) | BS134: IL TRM v7 vol3 | BT134: 115 | BU134: 8.15 | BV134: Energy Efficiency Ratio of existing cooling unit = Actual, if available = 8.55 for replacing ASHP = 8.15 for replacing Central AC | BW134: IL TRM v7 vol3 | BX134: 116 | BY134: 738 | BZ134: EFLHcool | CA134: EFLHcool, from 2017 MO TRM | CB134: 85 | CC134: 1376 | CD134: EFLHheat | CE134: The EFLH Cooling and Heating hours are based on a EnergyStar study that was normalized (based on HDD and CDD) to Kansas City. This was for both AC and HP units.
A135: Heating, Cooling & Home Comfort | B135: GSHP - EER 23_Early Retirement AC/Electric Furnace_SF: HVAC | C135: 241.4 | D135: Single Family | E135: HVAC | G135: per ton | H135: 5064 | I135: Program Tracking Data | K135: =ROUND(((BY135*AS135*(1/AF135-1/AB135))/1000)+((CC135*AS135*(1/AW135-1/(BA135*3.412)))/1000)+((BE135*BI135*(1/BM135)*CG135*CK135*CO135*CS135*(CW135-DA135)*DE135)/BQ135),4) -> 4961.4331 | L135: Calculated Value | N135: 6.722809079 | O135: 0.72 | P135: IL TRM v7 vol3 | Q135: 111 | R135: 1.152 | S135: Calculated Value | U135: 738 | V135: EFLHcool, from 2017 MO TRM Vol. 3 | W135: 85 | X135: 25 | Y135: IL TRM v7 vol3 | Z135: 110 | AA135: Part Load EER Efficiency of efficient GSHP unit | AB135: 23 | AC135: Measure Definition | AE135: SEER Efficiency of existing cooling unit = Actual, if available | AF135: 9.3 | AG135: IL TRM v7 vol3 | AH135: 113 | AI135: =cellformula(K135) -> =ROUND(((BY135*AS135*(1/AF135-1/AB135))/1000)+((CC135*AS135*(1/AW135-1/(BA135*3.412)))/1000)+((BE135*BI135*(1/BM135)*CG135*CK135*CO135*CS135*(CW135-DA135)*DE135)/BQ135),4) | AJ135: =cellformula(R135) -> =ROUND(((AS135*(1/BU135)-(1/AB135))/1000)*O135,4) | AK135: IL TRM v7 vol3 | AL135: 111116 | AM135: 2020-05-01 | AN135: 2020-12-31 | AS135: 12000 | AT135: Allows for Capacity input in Tons; converts tons to BTUs | AW135: 3.41 | AX135: HSPFexist = Heating System Performance Factor of existing heating system 5.44 for replacing ASHP 3.41 for replacing Electric Resistance Heat | AY135: IL TRM v7 vol3 | AZ135: 114 | BA135: 4.5 | BB135: COPpl = Part Load Coefficient of Performance, Actual installed value | BC135: This example value is the mean of values listed in ENERGY STAR criteria here: https://www.energystar.gov/index.cfm?c=most_efficient.me_geothermal_heat_pumps , https://data.energystar.gov/Active-Specifications/ENERGY-STAR-Most-Efficient-Geothermal-Heat-Pumps/4c82-7ysy . Ideally this value would come from the specs of the actual unit installed. | BD135: 114 | BE135: 1 | BF135: ElecDHW: = 1 if HW system is electric = 0 if HW system is not electric | BG135: IL TRM v7 vol3 | BH135: 113 | BI135: 0.44 | BJ135: %DHWdisplaced = Percentage of total DHW load the GSHP will provide. = Actual, if known = 0% if no desuperheater installed = 44% if desuperheater installed and actual is unknown | BK135: IL TRM v7 vol3 | BL135: 114 | BM135: =2.057-0.00113*50 -> 2.0005 | BN135: Efelec = Energy Factor of electric WH. = Actual, if known = 0.96 – (0.0003 * rated volume in gallons) for 55+ gallon DHW = 2.057 – (0.00113 * rated volume in gallons) for < 55 gallon DHW | BO135: IL TRM v7 vol3 | BP135: 115 | BQ135: 3412 | BR135: Conversion from BTU to kWh | BS135: IL TRM v7 vol3 | BT135: 115 | BU135: 7.5 | BV135: Energy Efficiency Ratio of existing/baseline cooling unit | BW135: IL TRM v7 vol3 | BX135: 116 | BY135: 738 | BZ135: EFLHcool | CA135: MO TRM 2017 Vol 3 | CB135: 85 | CC135: 1376 | CD135: EFLHheat | CE135: The EFLH Cooling and Heating hours are based on a EnergyStar study that was normalized (based on HDD and CDD) to Kansas City. This was for both AC and HP units. | CG135: 17.6 | CH135: GPD | CI135: IL TRM v7 vol3 | CJ135: 115 | CK135: 2.56 | CL135: Household | CM135: IL TRM v7 vol3 | CN135: 115 | CO135: 365.25 | CP135: Days per year | CQ135: IL TRM v7 vol3 | CR135: 115 | CS135: 8.33 | CT135: Specific weight of water | CU135: IL TRM v7 vol3 | CV135: 115 | CW135: 125 | CX135: Tout | CY135: IL TRM v7 vol3 | CZ135: 115 | DA135: 54 | DB135: Tin | DC135: IL TRM v7 vol3 | DD135: 115 | DE135: 1 | DF135: Heat Capacity of Water | DG135: IL TRM v7 vol3 | DH135: 115
A136: Heating, Cooling & Home Comfort | B136: GSHP - EER 23_Early Retirement AC/Electric Furnace_SF: HVAC | C136: 241.5 | D136: Single Family | E136: HVAC | G136: per ton | H136: 5064 | I136: Program Tracking Data | K136: =ROUND(((BY136*AS136*(1/AF136-1/AB136))/1000)+((CC136*AS136*(1/AW136-1/(BA136*3.412)))/1000)+((BE136*BI136*(1/BM136)*CG136*CK136*CO136*CS136*(CW136-DA136)*DE136)/BQ136),4) -> 4769.6887 | L136: Calculated Value | N136: 6.462992818 | O136: 0.72 | P136: IL TRM v7 vol3 | Q136: 111 | R136: 1.152 | S136: Calculated Value | U136: 738 | V136: EFLHcool, from 2017 MO TRM Vol. 3 | W136: 85 | X136: 25 | Y136: IL TRM v7 vol3 | Z136: 110 | AA136: Part Load EER Efficiency of efficient GSHP unit | AB136: =3.412*BA136 -> 15.354 | AC136: IL TRM v7 vol3 | AD136: 111 | AE136: SEER Efficiency of existing cooling unit = Actual, if available | AF136: 9.3 | AG136: IL TRM v7 vol3 | AH136: 113 | AI136: =ROUND(((BY136*AS136*(1/AF136-1/AB136))/1000)+((CC136*AS136*(1/AW136-1/(BA136*3.412)))/1000)+((BE136*BI136*(1/BM136)*CG136*CK136*CO136*CS136*(CW136-DA136)*DE136)/BQ136),4) | AJ136: =ROUND(((AS136*(1/BU136)-(1/AB136))/1000)*O136,4) | AK136: IL TRM v7 vol3 | AL136: 111116 | AM136: 2021-01-01 | AS136: 12000 | AT136: Allows for Capacity input in Tons; converts tons to BTUs | AW136: 3.41 | AX136: HSPFexist = Heating System Performance Factor of existing heating system 5.44 for replacing ASHP 3.41 for replacing Electric Resistance Heat | AY136: IL TRM v7 vol3 | AZ136: 114 | BA136: 4.5 | BB136: COPpl = Part Load Coefficient of Performance, Actual installed value | BC136: This example value is the mean of values listed in ENERGY STAR criteria here: https://www.energystar.gov/index.cfm?c=most_efficient.me_geothermal_heat_pumps , https://data.energystar.gov/Active-Specifications/ENERGY-STAR-Most-Efficient-Geothermal-Heat-Pumps/4c82-7ysy . Ideally this value would come from the specs of the actual unit installed. | BD136: 114 | BE136: 1 | BF136: ElecDHW: = 1 if HW system is electric = 0 if HW system is not electric | BG136: IL TRM v7 vol3 | BH136: 113 | BI136: 0.44 | BJ136: %DHWdisplaced = Percentage of total DHW load the GSHP will provide. = Actual, if known = 0% if no desuperheater installed = 44% if desuperheater installed and actual is unknown | BK136: IL TRM v7 vol3 | BL136: 114 | BM136: =2.057-0.00113*50 -> 2.0005 | BN136: Efelec = Energy Factor of electric WH. = Actual, if known = 0.96 – (0.0003 * rated volume in gallons) for 55+ gallon DHW = 2.057 – (0.00113 * rated volume in gallons) for < 55 gallon DHW | BO136: IL TRM v7 vol3 | BP136: 115 | BQ136: 3412 | BR136: Conversion from BTU to kWh | BS136: IL TRM v7 vol3 | BT136: 115 | BU136: 7.5 | BV136: Energy Efficiency Ratio of existing/baseline cooling unit | BW136: IL TRM v7 vol3 | BX136: 116 | BY136: 738 | BZ136: EFLHcool | CA136: MO TRM 2017 Vol 3 | CB136: 85 | CC136: 1376 | CD136: EFLHheat | CE136: The EFLH Cooling and Heating hours are based on a EnergyStar study that was normalized (based on HDD and CDD) to Kansas City. This was for both AC and HP units. | CG136: 17.6 | CH136: GPD | CI136: IL TRM v7 vol3 | CJ136: 115 | CK136: 2.56 | CL136: Household | CM136: IL TRM v7 vol3 | CN136: 115 | CO136: 365.25 | CP136: Days per year | CQ136: IL TRM v7 vol3 | CR136: 115 | CS136: 8.33 | CT136: Specific weight of water | CU136: IL TRM v7 vol3 | CV136: 115 | CW136: 125 | CX136: Tout | CY136: IL TRM v7 vol3 | CZ136: 115 | DA136: 54 | DB136: Tin | DC136: IL TRM v7 vol3 | DD136: 115 | DE136: 1 | DF136: Heat Capacity of Water | DG136: IL TRM v7 vol3 | DH136: 115
A137: Heating, Cooling & Home Comfort | B137: GSHP - AC + Replace at Fail Electric Resistance Furnace_SF: HVAC | C137: 242.3 | D137: Single Family | E137: HVAC | G137: per unit | H137: 4717 | I137: IL TRM v7 vol3 | J137: 110 | K137: =ROUND(((BY137*AS137*(1/AF137)-(1/AB137))/1000)+((CC137*AS137*(1/AW137)-(1/(BA137*3.412)))/1000)+((BE137*BI137*(1/BM137)*BQ137)/1000),4) -> 7788.0418 | L137: Calculated Value | N137: 10.55290217 | O137: 0.72 | P137: IL TRM v7 vol3 | Q137: 111 | R137: 0.7854 | S137: Calculated Value | U137: 738 | V137: EFLHcool, from 2017 MO TRM | W137: 85 | X137: 18 | Y137: IL TRM v7 vol3 | Z137: 110 | AA137: Part Load EER Efficiency of efficient GSHP unit | AB137: 23 | AC137: IL TRM v7 vol3 | AE137: GSHP replacing failed AC w/ electric furnace – 23 EER minimum (EER) | AF137: 11 | AG137: IL TRM v7 vol3 | AH137: 113 | AI137: =ROUND(((BY137*AS137*(1/AF137)-(1/AB137))/1000)+((CC137*AS137*(1/AW137)-(1/(BA137*3.412)))/1000)+((BE137*BI137*(1/BM137)*BQ137)/1000),4) | AJ137: =ROUND(((AS137*(1/BU137)-(1/AB137))/1000)*O137,4) | AK137: IL TRM v7 vol3 | AL137: 111 | AM137: 2020-01-01 | AN137: 2020-04-30 | AS137: 12000 | AT137: Allows for Capacity input in Tons; converts tons to BTUs | AW137: 3.41 | AX137: HSPFbase = Heating System Performance Factor of new replacement baseline heating system 8.2 for replacing ASHP 3.41 for replacing Electric Resistance Heat | AY137: IL TRM v7 vol3 | AZ137: 114 | BA137: 4.5 | BB137: COPpl = Part Load Coefficient of Performance, Actual installed value | BC137: This example value is the mean of values listed in ENERGY STAR criteria here: https://www.energystar.gov/index.cfm?c=most_efficient.me_geothermal_heat_pumps , https://data.energystar.gov/Active-Specifications/ENERGY-STAR-Most-Efficient-Geothermal-Heat-Pumps/4c82-7ysy . Ideally this value would come from the specs of the actual unit installed. | BD137: 116 | BE137: 1 | BF137: ElecDHW: = 1 if HW system is electric = 0 if HW system is not electric | BG137: IL TRM Version 7 Volume 9 | BH137: 114 | BI137: 0.44 | BJ137: %DHWdisplaced = Percentage of total DHW load the GSHP will provide. = Actual, if known = 0% if no desuperheater installed = 44% if desuperheater installed and actual is unknown | BK137: IL TRM Version 7 Volume 9 | BL137: 114 | BM137: 2.0005 | BN137: Efelec = Energy Factor of electric WH. = Actual, if known = 0.96 – (0.0003 * rated volume in gallons) for 55+ gallon DHW = 2.057 – (0.00113 * rated volume in gallons) for < 55 gallon DHW | BO137: IL TRM Version 7 Volume 9 | BP137: 115 | BQ137: 9732988.447 | BR137: GSHP Coefficient = GPD * Household * 365.25 * γWater * (Tout - Tin) | BS137: IL TRM v7 vol3 | BT137: 115 | BU137: 11 | BV137: EER Efficiency of new replacement Central AC | BW137: IL TRM v7 vol3 | BX137: 116 | BY137: 738 | BZ137: EFLHcool | CA137: EFLHcool, from 2017 MO TRM | CB137: 85 | CC137: 1376 | CD137: EFLHheat | CE137: The EFLH Cooling and Heating hours are based on a EnergyStar study that was normalized (based on HDD and CDD) to Kansas City. This was for both AC and HP units.
A138: Heating, Cooling & Home Comfort | B138: GSHP - ASHP + Early Replacement _SF: HVAC | C138: 243.3 | D138: Single Family | E138: HVAC | G138: per unit | H138: 5250 | I138: IL TRM v7 vol3 | J138: 110 | K138: =ROUND(((BY138*AS138*(1/AF138)-(1/AB138))/1000)+((CC138*AS138*(1/AW138)-(1/(BA138*3.412)))/1000)+((BE138*BI138*(1/BM138)*BQ138)/1000),4) -> 6211.8058 | L138: Calculated Value | N138: 8.41708103 | O138: 0.72 | P138: IL TRM v7 vol3 | Q138: 111 | R138: 1.0105 | S138: Calculated Value | U138: 738 | V138: EFLHcool, from 2017 MO TRM | W138: 85 | X138: 18 | Y138: IL TRM v7 vol3 | Z138: 110 | AA138: Part Load EER Efficiency of efficient GSHP unit | AB138: 23 | AC138: IL TRM v7 vol3 | AE138: SEER Efficiency of existing cooling unit = Actual, if available | AF138: 8.55 | AG138: IL TRM v7 vol3 | AH138: 113 | AI138: =ROUND(((BY138*AS138*(1/AF138)-(1/AB138))/1000)+((CC138*AS138*(1/AW138)-(1/(BA138*3.412)))/1000)+((BE138*BI138*(1/BM138)*BQ138)/1000),4) | AJ138: =ROUND(((AS138*(1/BU138)-(1/AB138))/1000)*O138,4) | AK138: IL TRM v7 vol3 | AL138: 111 | AM138: 2020-01-01 | AN138: 2020-04-30 | AS138: 12000 | AT138: Allows for Capacity input in Tons; converts tons to BTUs | AW138: 5.44 | AX138: HSPFexist = Heating System Performance Factor of existing heating system 5.44 for replacing ASHP 3.41 for replacing Electric Resistance Heat | AY138: IL TRM v7 vol3 | AZ138: 114 | BA138: 4.5 | BB138: COPpl = Part Load Coefficient of Performance, Actual installed value | BC138: This example value is the mean of values listed in ENERGY STAR criteria here: https://www.energystar.gov/index.cfm?c=most_efficient.me_geothermal_heat_pumps , https://data.energystar.gov/Active-Specifications/ENERGY-STAR-Most-Efficient-Geothermal-Heat-Pumps/4c82-7ysy . Ideally this value would come from the specs of the actual unit installed. | BD138: 116 | BE138: 1 | BF138: ElecDHW: = 1 if HW system is electric = 0 if HW system is not electric | BG138: IL TRM Version 7 Volume 11 | BH138: 114 | BI138: 0.44 | BJ138: %DHWdisplaced = Percentage of total DHW load the GSHP will provide. = Actual, if known = 0% if no desuperheater installed = 44% if desuperheater installed and actual is unknown | BK138: IL TRM Version 7 Volume 11 | BL138: 114 | BM138: 2.0005 | BN138: Efelec = Energy Factor of electric WH. = Actual, if known = 0.96 – (0.0003 * rated volume in gallons) for 55+ gallon DHW = 2.057 – (0.00113 * rated volume in gallons) for < 55 gallon DHW | BO138: IL TRM Version 7 Volume 11 | BP138: 115 | BQ138: 9732988.447 | BR138: GSHP Coefficient = GPD * Household * 365.25 * γWater * (Tout - Tin) | BS138: IL TRM v7 vol3 | BT138: 115 | BU138: 8.55 | BV138: Energy Efficiency Ratio of existing cooling unit = Actual, if available = 8.55 for replacing ASHP = 8.15 for replacing Central AC | BW138: IL TRM v7 vol3 | BX138: 116 | BY138: 738 | BZ138: EFLHcool | CA138: EFLHcool, from 2017 MO TRM | CB138: 85 | CC138: 1376 | CD138: EFLHheat | CE138: The EFLH Cooling and Heating hours are based on a EnergyStar study that was normalized (based on HDD and CDD) to Kansas City. This was for both AC and HP units.
A139: Heating, Cooling & Home Comfort | B139: GSHP - EER 23_Early Retirement ASHP_SF: HVAC | C139: 243.4 | D139: Single Family | E139: HVAC | G139: per ton | H139: 5064 | I139: Program Tracking Data | K139: =ROUND(((BY139*AS139*(1/AF139-1/AB139))/1000)+((CC139*AS139*(1/AW139-1/(BA139*3.412)))/1000)+((BE139*BI139*(1/BM139)*CG139*CK139*CO139*CS139*(CW139-DA139)*DE139)/BQ139),4) -> 3099.7097 | L139: Calculated Value | N139: 4.200148645 | O139: 0.72 | P139: IL TRM v7 vol3 | Q139: 111 | R139: 1.152 | S139: Calculated Value | U139: 738 | V139: EFLHcool, from 2017 MO TRM Vol. 3 | W139: 85 | X139: 25 | Y139: IL TRM v7 vol3 | Z139: 110 | AA139: Part Load EER Efficiency of efficient GSHP unit | AB139: 23 | AC139: Measure Definition | AE139: SEER Efficiency of existing cooling unit = Actual, if available | AF139: 9.3 | AG139: IL TRM v7 vol3 | AH139: 113 | AI139: =ROUND(((BY139*AS139*(1/AF139-1/AB139))/1000)+((CC139*AS139*(1/AW139-1/(BA139*3.412)))/1000)+((BE139*BI139*(1/BM139)*CG139*CK139*CO139*CS139*(CW139-DA139)*DE139)/BQ139),4) | AJ139: =ROUND(((AS139*(1/BU139)-(1/AB139))/1000)*O139,4) | AK139: IL TRM v7 vol3 | AL139: 111116 | AM139: 2020-05-01 | AN139: 2020-12-31 | AS139: 12000 | AT139: Allows for Capacity input in Tons; converts tons to BTUs | AW139: 5.54 | AX139: HSPFexist = Heating System Performance Factor of existing heating system 5.44 for replacing ASHP 3.41 for replacing Electric Resistance Heat | AY139: IL TRM v7 vol3 | AZ139: 114 | BA139: 4.5 | BB139: COPpl = Part Load Coefficient of Performance, Actual installed value | BC139: This example value is the mean of values listed in ENERGY STAR criteria here: https://www.energystar.gov/index.cfm?c=most_efficient.me_geothermal_heat_pumps , https://data.energystar.gov/Active-Specifications/ENERGY-STAR-Most-Efficient-Geothermal-Heat-Pumps/4c82-7ysy . Ideally this value would come from the specs of the actual unit installed. | BD139: 114 | BE139: 1 | BF139: ElecDHW: = 1 if HW system is electric = 0 if HW system is not electric | BG139: IL TRM v7 vol3 | BH139: 113 | BI139: 0.44 | BJ139: %DHWdisplaced = Percentage of total DHW load the GSHP will provide. = Actual, if known = 0% if no desuperheater installed = 44% if desuperheater installed and actual is unknown | BK139: IL TRM v7 vol3 | BL139: 114 | BM139: =2.057-0.00113*50 -> 2.0005 | BN139: Efelec = Energy Factor of electric WH. = Actual, if known = 0.96 – (0.0003 * rated volume in gallons) for 55+ gallon DHW = 2.057 – (0.00113 * rated volume in gallons) for < 55 gallon DHW | BO139: IL TRM v7 vol3 | BP139: 115 | BQ139: 3412 | BR139: Conversion from BTU to kWh | BS139: IL TRM v7 vol3 | BT139: 115 | BU139: 7.5 | BV139: Energy Efficiency Ratio of existing/baseline cooling unit | BW139: IL TRM v7 vol3 | BX139: 116 | BY139: 738 | BZ139: EFLHcool | CA139: MO TRM 2017 Vol 3 | CB139: 85 | CC139: 1376 | CD139: EFLHheat | CE139: The EFLH Cooling and Heating hours are based on a EnergyStar study that was normalized (based on HDD and CDD) to Kansas City. This was for both AC and HP units. | CG139: 17.6 | CH139: GPD | CI139: IL TRM v7 vol3 | CJ139: 115 | CK139: 2.56 | CL139: Household | CM139: IL TRM v7 vol3 | CN139: 115 | CO139: 365.25 | CP139: Days per year | CQ139: IL TRM v7 vol3 | CR139: 115 | CS139: 8.33 | CT139: Specific weight of water | CU139: IL TRM v7 vol3 | CV139: 115 | CW139: 125 | CX139: Tout | CY139: IL TRM v7 vol3 | CZ139: 115 | DA139: 54 | DB139: Tin | DC139: IL TRM v7 vol3 | DD139: 115 | DE139: 1 | DF139: Heat Capacity of Water | DG139: IL TRM v7 vol3 | DH139: 115
A140: Heating, Cooling & Home Comfort | B140: GSHP - EER 23_Early Retirement ASHP_SF: HVAC | C140: 243.5 | D140: Single Family | E140: HVAC | G140: per ton | H140: 5064 | I140: Program Tracking Data | K140: =ROUND(((BY140*AS140*(1/AF140-1/AB140))/1000)+((CC140*AS140*(1/AW140-1/(BA140*3.412)))/1000)+((BE140*BI140*(1/BM140)*CG140*CK140*CO140*CS140*(CW140-DA140)*DE140)/BQ140),4) -> 2907.9654 | L140: Calculated Value | N140: 3.94033252 | O140: 0.72 | P140: IL TRM v7 vol3 | Q140: 111 | R140: 1.152 | S140: Calculated Value | U140: 738 | V140: EFLHcool, from 2017 MO TRM Vol. 3 | W140: 85 | X140: 25 | Y140: IL TRM v7 vol3 | Z140: 110 | AA140: Part Load EER Efficiency of efficient GSHP unit | AB140: =3.412*BA140 -> 15.354 | AC140: IL TRM v7 vol3 | AD140: 111 | AE140: SEER Efficiency of existing cooling unit = Actual, if available | AF140: 9.3 | AG140: IL TRM v7 vol3 | AH140: 113 | AI140: =ROUND(((BY140*AS140*(1/AF140-1/AB140))/1000)+((CC140*AS140*(1/AW140-1/(BA140*3.412)))/1000)+((BE140*BI140*(1/BM140)*CG140*CK140*CO140*CS140*(CW140-DA140)*DE140)/BQ140),4) | AJ140: =ROUND(((AS140*(1/BU140)-(1/AB140))/1000)*O140,4) | AK140: IL TRM v7 vol3 | AL140: 111116 | AM140: 2021-01-01 | AS140: 12000 | AT140: Allows for Capacity input in Tons; converts tons to BTUs | AW140: 5.54 | AX140: HSPFexist = Heating System Performance Factor of existing heating system 5.44 for replacing ASHP 3.41 for replacing Electric Resistance Heat | AY140: IL TRM v7 vol3 | AZ140: 114 | BA140: 4.5 | BB140: COPpl = Part Load Coefficient of Performance, Actual installed value | BC140: This example value is the mean of values listed in ENERGY STAR criteria here: https://www.energystar.gov/index.cfm?c=most_efficient.me_geothermal_heat_pumps , https://data.energystar.gov/Active-Specifications/ENERGY-STAR-Most-Efficient-Geothermal-Heat-Pumps/4c82-7ysy . Ideally this value would come from the specs of the actual unit installed. | BD140: 114 | BE140: 1 | BF140: ElecDHW: = 1 if HW system is electric = 0 if HW system is not electric | BG140: IL TRM v7 vol3 | BH140: 113 | BI140: 0.44 | BJ140: %DHWdisplaced = Percentage of total DHW load the GSHP will provide. = Actual, if known = 0% if no desuperheater installed = 44% if desuperheater installed and actual is unknown | BK140: IL TRM v7 vol3 | BL140: 114 | BM140: =2.057-0.00113*50 -> 2.0005 | BN140: Efelec = Energy Factor of electric WH. = Actual, if known = 0.96 – (0.0003 * rated volume in gallons) for 55+ gallon DHW = 2.057 – (0.00113 * rated volume in gallons) for < 55 gallon DHW | BO140: IL TRM v7 vol3 | BP140: 115 | BQ140: 3412 | BR140: Conversion from BTU to kWh | BS140: IL TRM v7 vol3 | BT140: 115 | BU140: 7.5 | BV140: Energy Efficiency Ratio of existing/baseline cooling unit | BW140: IL TRM v7 vol3 | BX140: 116 | BY140: 738 | BZ140: EFLHcool | CA140: MO TRM 2017 Vol 3 | CB140: 85 | CC140: 1376 | CD140: EFLHheat | CE140: The EFLH Cooling and Heating hours are based on a EnergyStar study that was normalized (based on HDD and CDD) to Kansas City. This was for both AC and HP units. | CG140: 17.6 | CH140: GPD | CI140: IL TRM v7 vol3 | CJ140: 115 | CK140: 2.56 | CL140: Household | CM140: IL TRM v7 vol3 | CN140: 115 | CO140: 365.25 | CP140: Days per year | CQ140: IL TRM v7 vol3 | CR140: 115 | CS140: 8.33 | CT140: Specific weight of water | CU140: IL TRM v7 vol3 | CV140: 115 | CW140: 125 | CX140: Tout | CY140: IL TRM v7 vol3 | CZ140: 115 | DA140: 54 | DB140: Tin | DC140: IL TRM v7 vol3 | DD140: 115 | DE140: 1 | DF140: Heat Capacity of Water | DG140: IL TRM v7 vol3 | DH140: 115
A141: Heating, Cooling & Home Comfort | B141: Duct Repair and Sealing | C141: 278 | D141: Single Family | E141: HVAC | G141: per home (25% to 10%) | H141: 497.62 | I141: Program Tracking Data | K141: =ROUND(((((AS141-AW141)/AS141)*BA141*BE141*BI141)/1000/BM141)+(((((AS141-AW141)/AS141))*BQ141*BU141*BY141)/CC141/3412),4) -> 1218.8362 | L141: Calculated Value | O141: 0.466 | P141: Calculated Value | R141: =ROUND(((((AS141-AW141)/AS141)*BA141*BE141*BI141)/1000/BM141)/BA141*O141,8) -> 0.09117391 | S141: Calculated Value | X141: 20 | Y141: IL TRM v6 vol3 | Z141: 77 | AA141: Duct sealing using mastic sealant or metal tape | AE141: Unsealed/leaking ductwork | AI141: =ROUND(((((AS141-AW141)/AS141)*BA141*BE141*BI141)/1000/BM141)+(((((AS141-AW141)/AS141))*BQ141*BU141*BY141)/CC141/3412),4) | AJ141: =ROUND(((((AS141-AW141)/AS141)*BA141*BE141*BI141)/1000/BM141)/BA141*O141,8) | AK141: IL TRM v6 vol3 | AL141: 78 - 85 | AM141: 2020-01-01 | AS141: 0.92 | AT141: Deafter | AU141: IL TRM v6 vol3, example rating | AV141: 84 | AW141: 0.85 | AX141: Debefore | AY141: IL TRM v6 vol3, example rating | AZ141: 84 | BA141: 1035 | BB141: FLHcool | BC141: IL TRM v6 vol3 for Single Family Home | BD141: 83 | BE141: 36000 | BF141: CapacityCool | BG141: IL TRM v6 vol3, Example Rating | BH141: 82 | BI141: 1 | BJ141: TRFcool | BK141: IL TRM v6 vol3 | BL141: 83 | BM141: 14 | BN141: ηCool | BO141: IL TRM v6 vol3 for heat pumps after 2015 (assuming upgrades as part of program participation) | BP141: 83 | BQ141: 1266 | BR141: FLHheat | BS141: IL TRM v6 vol3 | BT141: 84 | BU141: 36000 | BV141: OutputCapacityHeat | BW141: IL TRM v6 vol3 | BY141: 1 | BZ141: TRFheat | CA141: IL TRM v6 vol3 | CB141: 84 | CC141: 1 | CD141: ηHeat | CE141: IL TRM v6 vol3 | CF141: 84
A142: Income-Eligible Multi-Family | B142: Screw In - LEDs (In-Unit) | C142: 53.4 | D142: Multi-Family | E142: Lighting | F142: Kits | G142: per lamp | H142: 3.93 | I142: Program Tracking Data | K142: =ROUND(($AF142-$AB142)/1000*$U142*$AS142*$BA142,4) -> 37.3133 | L142: Calculated Value | N142: =K142/U142 -> 0.03426382002 | O142: 0.128 | P142: IL TRM v7 vol3 | Q142: 274 | R142: =ROUND(($AF142-$AB142)/1000*O142*$AW142*$BA142,4) -> 0.0045 | S142: Calculated Value | U142: 1089 | V142: IL TRM v7 vol3 | W142: 271 | X142: 10 | Y142: IL TRM v7 vol3 | Z142: 268 | AA142: Screw In - LEDs | AB142: 9 | AC142: Program Tracking Data | AE142: 43 watts based on halogen equivalent to average of bulbs sold in program | AF142: 43 | AG142: Program Tracking Database | AI142: =ROUND(($AF142-$AB142)/1000*$U142*$AS142*$BA142,4) | AJ142: =ROUND(($AF142-$AB142)/1000*O142*$AW142*$BA142,4) | AK142: IL TRM v7 vol3 | AL142: 269, 273 | AM142: 2020-01-01 | AS142: 1.04 | AT142: Waste Heat Factor, Energy | AU142: IL TRM v7 vol3 - Multifamily in unit | AV142: 271 | AW142: 1.07 | AX142: Waste Heat Factor, Demand | AY142: IL TRM v7 vol3 - Multifamily in unit | AZ142: 273 | BA142: 0.969 | BB142: ISR | BC142: IL TRM v7 vol3 | BD142: 270
A143: Income-Eligible Multi-Family | B143: Low Flow Faucet Aerator-Bathroom | C143: 268.2 | D143: Multi-Family | E143: Hot Water | F143: Kits | G143: per unit | H143: 8 | I143: IL TRM v5 vol3 | J143: 174 | K143: =ROUND(((AF143-AB143)*AW143*BA143*365.25)*AS143*BE143,4) -> 66.7349 | L143: Calculated Value | N143: =K143/U143 -> 3.033404545 | O143: 0.022 | P143: IL TRM v5 vol3 | Q143: 179 | R143: =ROUND((((AF143-AB143)*AW143*BA143*365.25)*AS143*BE143)/U143*O143,4) -> 0.0667 | S143: Calculated Value | U143: 22 | V143: IL TRM v5 vol3 | W143: 179 | X143: 9 | Y143: IL TRM v5 vol3 | Z143: 174 | AA143: Low Flow (GPM) | AB143: 1 | AC143: Program Tracking Data | AE143: Standard (GPM) | AF143: 2.2 | AG143: Federal Baseline | AI143: =ROUND(((AF143-AB143)*AW143*BA143*365.25)*AS143*BE143,4) | AJ143: =ROUND((((AF143-AB143)*AW143*BA143*365.25)*AS143*BE143)/U143*O143,4) | AK143: IL TRM v5 vol3 | AL143: 175, 179 | AM143: 2020-01-01 | AN143: 2020-12-31 | AS143: 0.0795 | AT143: kWh per gallon hot water, bathroom | AU143: IL TRM v5 vol3 | AV143: 177 | AW143: =1.6*0.9/1.5 -> 0.96 | AX143: Faucet Coefficient, Bathroom: Minutes/day * Drain Factor / Faucets per Household | AY143: IL TRM v5 vol3 | AZ143: 176177 | BA143: 2.1 | BB143: Persons per household | BC143: IL TRM v5 vol3 | BD143: 176 | BE143: 0.95 | BF143: Installation Rate | BG143: IL TRM v5 vol3 | BH143: 178
A144: Income-Eligible Multi-Family | B144: Low Flow Faucet Aerator-Bathroom | C144: 268.3 | D144: Multi-Family | E144: Hot Water | F144: Kits | G144: per unit | H144: 8 | I144: IL TRM v7 vol3 | J144: 184 | K144: =ROUND(((AF144-AB144)*AW144*BA144*365.25)*AS144*BE144,4) -> 29.4746 | L144: Calculated Value | N144: =K144/U144 -> 1.339754545 | O144: 0.022 | P144: IL TRM v7 vol3 | Q144: 184 | R144: =ROUND((((AF144-AB144)*AW144*BA144*365.25)*AS144*BE144)/U144*O144,4) -> 0.0295 | S144: Calculated Value | U144: 22 | V144: IL TRM v7 vol3 | W144: 190 | X144: 10 | Y144: IL TRM v7 vol3 | Z144: 184 | AA144: Low Flow (GPM) | AB144: 1 | AC144: Program Tracking Data | AE144: Standard (GPM) | AF144: 1.53 | AG144: IL TRM v7 vol3 | AH144: 185 | AI144: =ROUND(((AF144-AB144)*AW144*BA144*365.25)*AS144*BE144,4) | AJ144: =ROUND((((AF144-AB144)*AW144*BA144*365.25)*AS144*BE144)/U144*O144,4) | AK144: IL TRM v7 vol3 | AL144: 185, 190 | AM144: 2021-01-01 | AS144: 0.0795 | AT144: kWh per gallon hot water, bathroom | AU144: IL TRM v7 vol3 | AV144: 188 | AW144: =1.6*0.9/1.5 -> 0.96 | AX144: Faucet Coefficient, Bathroom: Minutes/day * Drain Factor / Faucets per Household | AY144: IL TRM v7 vol3 | AZ144: 186, 187 | BA144: 2.1 | BB144: Persons per household | BC144: IL TRM v7 vol3 | BD144: 187 | BE144: 0.95 | BF144: Installation Rate | BG144: IL TRM v7 vol3 | BH144: 189
A145: Income-Eligible Multi-Family | B145: Low Flow Faucet Aerator-Kitchen | C145: 269.2 | D145: Multi-Family | E145: Hot Water | F145: Kits | G145: per unit | H145: 8 | I145: IL TRM v5 vol3 | J145: 174 | K145: =ROUND(((AF145-AB145)*AW145*BA145*365.25)*AS145*BE145,4) -> 159.7889 | L145: Calculated Value | N145: =K145/U145 -> 2.075180519 | O145: 0.022 | P145: IL TRM v5 vol3 | Q145: 179 | R145: =ROUND((((AF145-AB145)*AW145*BA145*365.25)*AS145*BE145)/U145*O145,4) -> 0.0457 | S145: Calculated Value | U145: 77 | V145: IL TRM v5 vol3 | W145: 179 | X145: 9 | Y145: IL TRM v5 vol3 | Z145: 174 | AA145: Low Flow (GPM) | AB145: 1.5 | AC145: Program Tracking Data | AE145: Standard (GPM) | AF145: 2.2 | AG145: Federal Baseline | AI145: =ROUND(((AF145-AB145)*AW145*BA145*365.25)*AS145*BE145,4) | AJ145: =ROUND((((AF145-AB145)*AW145*BA145*365.25)*AS145*BE145)/U145*O145,4) | AK145: IL TRM v5 vol3 | AL145: 175, 179 | AM145: 2020-01-01 | AN145: 2020-12-31 | AS145: 0.0969 | AT145: kWh per gallon hot water, kitchen | AU145: IL TRM v5 vol3 | AV145: 177 | AW145: =4.5*0.75/1 -> 3.375 | AX145: Faucet Coefficient, Kitchen | AY145: IL TRM v5 vol3 | AZ145: 176177 | BA145: 2.1 | BB145: Persons per household | BC145: IL TRM v5 vol3 | BD145: 176 | BE145: 0.91 | BF145: Installation Rate | BG145: IL TRM v5 vol3 | BH145: 178
A146: Income-Eligible Multi-Family | B146: Low Flow Faucet Aerator-Kitchen | C146: 269.3 | D146: Multi-Family | E146: Hot Water | F146: Kits | G146: per unit | H146: 8 | I146: IL TRM v7 vol3 | J146: 184 | K146: =ROUND(((AF146-AB146)*AW146*BA146*365.25)*AS146*BE146,4) -> 29.6751 | L146: Calculated Value | N146: =K146/U146 -> 0.353275 | O146: 0.022 | P146: IL TRM v7 vol3 | Q146: 184 | R146: =ROUND((((AF146-AB146)*AW146*BA146*365.25)*AS146*BE146)/U146*O146,4) -> 0.0078 | S146: Calculated Value | U146: 84 | V146: IL TRM v7 vol3 | W146: 190 | X146: 10 | Y146: IL TRM v7 vol3 | Z146: 184 | AA146: Low Flow (GPM) | AB146: 1.5 | AC146: Program Tracking Data | AE146: Standard (GPM) | AF146: 1.63 | AG146: IL TRM v7 vol3 | AH146: 185 | AI146: =ROUND(((AF146-AB146)*AW146*BA146*365.25)*AS146*BE146,4) | AJ146: =ROUND((((AF146-AB146)*AW146*BA146*365.25)*AS146*BE146)/U146*O146,4) | AK146: IL TRM v7 vol3 | AL146: 185, 190 | AM146: 2021-01-01 | AS146: 0.0969 | AT146: kWh per gallon hot water, kitchen | AU146: IL TRM v7 vol3 | AV146: 188 | AW146: =4.5*0.75/1 -> 3.375 | AX146: Faucet Coefficient, Kitchen | AY146: IL TRM v7 vol3 | AZ146: 186, 187 | BA146: 2.1 | BB146: Persons per household | BC146: IL TRM v7 vol3 | BD146: 187 | BE146: 0.91 | BF146: Installation Rate | BG146: IL TRM v7 vol3 | BH146: 189
A147: Income-Eligible Multi-Family | B147: Pipe Insulated | C147: 55.3 | D147: Multi-Family | E147: Hot Water | F147: Kits | G147: per unit | H147: 18 | I147: IL TRM v5 vol3 | J147: 160 | K147: =ROUND(((((AS147*PI()*BA147)/AF147) - ((AW147*PI()*BA147)/AB147))*BE147)/BI147/3412,4) -> 72.065 | L147: Calculated Value | N147: =K147/8766 -> 0.008220967374 | O147: 1 | P147: IL TRM v5 vol3 | Q147: 160 | R147: =ROUND(K147/8766,4) -> 0.0082 | S147: Calculated Value | U147: 8766 | V147: IL TRM v5 vol3 | W147: 161 | X147: 15 | Y147: IL TRM v5 vol3 | Z147: 160 | AA147: Efficient R-Value due to added insulation | AB147: =1+5 -> 6 | AC147: Program Tracking Data | AE147: R-Value of bare pipe | AF147: 1 | AG147: IL TRM v5 vol3 | AH147: 161 | AI147: =ROUND(((((AS147*PI()*BA147)/AF147) - ((AW147*PI()*BA147)/AB147))*BE147)/BI147/3412,4) | AJ147: =ROUND(K147/8766,4) | AK147: IL TRM v5 vol3 | AL147: 161162 | AM147: 2020-01-01 | AS147: =0.75/12 -> 0.0625 | AT147: Dbase = Pipe Diameter (ft) | AU147: IL TRM v5 vol3 | AV147: 161 | AW147: =(0.75+1*2)/12 -> 0.2291666667 | AX147: Dee = Updated Pipe Diameter, due to added insulation (ft) | AY147: IL TRM v5 vol3 | AZ147: 161 | BA147: 6 | BB147: Length of added pipe insulation | BC147: Program Tracking Data | BE147: =60*8766 -> 525960 | BF147: Pipe Insulated Coefficient 1 = ∆T * Hours = 60 * 8766 | BG147: IL TRM v5 vol3 | BH147: 161 | BI147: 0.98 | BJ147: Recovery efficiency of electric water heater | BK147: IL TRM v5 vol3 | BL147: 161
A148: Income-Eligible Multi-Family | B148: Low Flow Showerhead | C148: 56.3 | D148: Multi-Family | E148: Hot Water | F148: Kits | G148: per unit | H148: 12 | I148: IL TRM v5 vol3 | J148: 183 | K148: =ROUND(((AF148-AB148)*AW148*BA148*365.25)*AS148*BE148,4) -> 359.0933 | L148: Calculated Value | N148: =K148/U148 -> 1.447956855 | O148: 0.0278 | P148: IL TRM v5 vol3 | Q148: 183 | R148: =ROUND((((AF148-AB148)*AW148*BA148*365.25)*AS148*BE148)/U148*O148,4) -> 0.0403 | S148: Calculated Value | U148: 248 | V148: IL TRM v5 vol3 | W148: 187 | X148: 10 | Y148: IL TRM v5 vol3 | Z148: 183 | AA148: Low Flow (GPM) | AB148: 1.5 | AC148: Program Tracking Data | AE148: Standard (GPM) | AF148: 2.67 | AG148: IL TRM v5 vol3 | AH148: 184 | AI148: =ROUND(((AF148-AB148)*AW148*BA148*365.25)*AS148*BE148,4) | AJ148: =ROUND((((AF148-AB148)*AW148*BA148*365.25)*AS148*BE148)/U148*O148,4) | AK148: IL TRM v5 vol3 | AL148: 184186 | AM148: 2020-01-01 | AN148: 2020-12-31 | AS148: 0.117 | AT148: kWh per gallon hot water | AU148: IL TRM v5 vol3 | AV148: 185 | AW148: =7.8*0.6/1.3 -> 3.6 | AX148: Showerhead Coefficient: Minutes per day * Showers per day / Showers per household | AY148: IL TRM v5 vol3 | AZ148: 185 | BA148: 2.1 | BB148: Persons per household | BC148: IL TRM v5 vol3 | BD148: 185 | BE148: 0.95 | BF148: Installation Rate | BG148: IL TRM v5 vol3 | BH148: 186
A149: Income-Eligible Multi-Family | B149: Low Flow Showerhead | C149: 56.4 | D149: Multi-Family | E149: Hot Water | F149: Kits | G149: per unit | H149: 12 | I149: IL TRM v7 vol3 | J149: 193 | K149: =ROUND(((AF149-AB149)*AW149*BA149*365.25)*AS149*BE149,4) -> 227.1189 | L149: Calculated Value | N149: =K149/U149 -> 1.091917788 | O149: 0.0278 | P149: IL TRM v7 vol3 | Q149: 197 | R149: =ROUND((((AF149-AB149)*AW149*BA149*365.25)*AS149*BE149)/U149*O149,4) -> 0.0304 | S149: Calculated Value | U149: 208 | V149: IL TRM v7 vol3 | W149: 197 | X149: 10 | Y149: IL TRM v7 vol3 | Z149: 193 | AA149: Low Flow (GPM) | AB149: 1.5 | AC149: Program Tracking Data | AE149: Standard (GPM) | AF149: 2.24 | AG149: IL TRM v7 vol3 | AH149: 194 | AI149: =ROUND(((AF149-AB149)*AW149*BA149*365.25)*AS149*BE149,4) | AJ149: =ROUND((((AF149-AB149)*AW149*BA149*365.25)*AS149*BE149)/U149*O149,4) | AK149: IL TRM v7 vol3 | AL149: 194, 197 | AM149: 2021-01-01 | AS149: 0.117 | AT149: kWh per gallon hot water | AU149: IL TRM v7 vol3 | AV149: 196 | AW149: =7.8*0.6/1.3 -> 3.6 | AX149: Showerhead Coefficient: Minutes per day * Showers per day / Showers per household | AY149: IL TRM v7 vol3 | AZ149: 195 | BA149: 2.1 | BB149: Persons per household | BC149: IL TRM v7 vol3 | BD149: 195 | BE149: 0.95 | BF149: Installation Rate | BG149: IL TRM v7 vol3 | BH149: 196
A150: Income-Eligible Multi-Family | B150: Water Heater Tank Wrap | C150: 57.1 | D150: Multi-Family | E150: Hot Water | F150: Kits | G150: per unit | H150: 20 | I150: Program Tracking Data | K150: =ROUND((AS150/AW150-BA150/BE150)*BI150*BM150/BQ150/BU150,4) -> 134.0948 | L150: Calculated Value | N150: =ROUND(0.0153,4) -> 0.0153 | O150: 1 | P150: IL TRM v7 vol3 | Q150: 203 | R150: =ROUND(K150/U150,4) -> 0.0153 | S150: Calculated Value | U150: 8766 | V150: IL TRM v7 vol3 | W150: 204 | X150: 5 | Y150: IL TRM v7 vol3 | Z150: 203 | AA150: Water heater insulation increased from R12 to R22, 50gal | AC150: IL TRM v7 vol3 | AD150: 204 | AE150: R12, 50-gal water heater insulation (no wrap) | AG150: IL TRM v7 vol3 | AH150: 204 | AI150: =ROUND((AS150/AW150-BA150/BE150)*BI150*BM150/BQ150/BU150,4) | AJ150: =ROUND(K150/U150,4) | AK150: IL TRM v7 vol3 | AL150: 203, 205 | AM150: 2020-01-01 | AS150: 24.99 | AT150: Abase | AU150: IL TRM v7 vol3 | AV150: 204 | AW150: 12 | AX150: Rbase | AY150: IL TRM v7 vol3 | AZ150: 204 | BA150: 27.06 | BB150: Ainsul | BC150: IL TRM v7 vol3 | BD150: 204 | BE150: 22 | BF150: Rinsul | BG150: IL TRM v7 vol3 | BH150: 204 | BI150: 60 | BJ150: deltaT | BK150: IL TRM v7 vol3 | BL150: 204 | BM150: 8766 | BN150: Hours | BO150: IL TRM v7 vol3 | BP150: 204 | BQ150: 0.98 | BR150: eta DHW | BS150: IL TRM v7 vol3 | BT150: 204 | BU150: 3412 | BV150: Conversion from BTU to kWh | BW150: IL TRM v7 vol3 | BX150: 204
A151: Income-Eligible Multi-Family | B151: Smart Power Strip - Wh7-Plug | C151: 248.2 | D151: Multi-Family | E151: Electronics | F151: Kits | G151: per unit | H151: 26 | I151: Program Tracking Data | K151: =ROUND(103,4) -> 103 | L151: Calculated Value | N151: =K151/U151 -> 0.01444802918 | O151: 0.8 | P151: IL TRM v5 vol3 | Q151: 55 | R151: =ROUND(0.0115,4) -> 0.0115 | S151: Calculated Value | U151: 7129 | V151: IL TRM v5 vol3 | W151: 54 | X151: 7 | Y151: IL TRM v6 vol3 | Z151: 53 | AA151: Smart strip | AC151: IL TRM v6 vol3 | AD151: 53 | AE151: Standard outlet strip | AG151: IL TRM v6 vol3 | AH151: 53 | AI151: =ROUND(103,4) | AJ151: =ROUND(0.0115,4) | AK151: IL TRM v6 vol3 | AL151: 53 | AM151: 2020-01-01
A152: Income-Eligible Multi-Family | B152: LED Exit Sign | C152: 59.2 | D152: Multi-Family | E152: Lighting | F152: Common Area - DI | G152: per unit | H152: 30 | I152: IL TRM v5 vol3 | J152: 254 | K152: =ROUND((AF152-AB152)/1000*U152*AS152,4) -> 82.0498 | L152: Calculated Value | N152: =(AF152-AB152)/1000*AW152 -> 0.00963 | O152: 1 | P152: IL TRM v5 vol3 | Q152: 254 | R152: =ROUND(N152*O152,4) -> 0.0096 | S152: Calculated Value | U152: 8766 | V152: IL TRM v5 vol3 | W152: 255 | X152: 16 | Y152: IL TRM v5 vol3 | Z152: 254 | AA152: LED (watts) | AB152: 2 | AC152: IL TRM v5 vol3 | AD152: 255 | AE152: Fluorescent (watts) | AF152: 11 | AG152: IL TRM v5 vol3 | AH152: 255 | AI152: =ROUND((AF152-AB152)/1000*U152*AS152,4) | AJ152: =ROUND(N152*O152,4) | AK152: IL TRM v5 vol3 | AL152: 255256 | AM152: 2020-01-01 | AS152: 1.04 | AT152: Waste Heat Factor (energy) | AU152: IL TRM v5 vol3 | AV152: 255 | AW152: 1.07 | AX152: Waste Heat Factor (demand) | AY152: IL TRM v5 vol3 | AZ152: 256
A153: Income-Eligible Multi-Family | B153: High Bay Fluorescent Fixture w/ HE Electronic Ballast (T5 >4 lamps) | C153: 60.1 | D153: Multi-Family | E153: Lighting | F153: Common Area - DI | G153: per fixture | H153: 100 | I153: IL TRM v6 vol2 | J153: 413 | K153: =ROUND((AF153-AB153)/1000*U153*AS153,4) -> 701.0069 | L153: Calculated Value | N153: 0.21574 | O153: 0.66 | P153: IL TRM v6 vol2 | Q153: 412 | R153: =ROUND(N153*O153,4) -> 0.1424 | S153: Calculated Value | U153: 3088 | V153: IL TRM v6 vol2 | W153: 338 | X153: 15 | Y153: IL TRM v6 vol2 | Z153: 410 | AA153: High Bay - T5 >4 lamp | AB153: 295 | AC153: Program Tracking Database (weighted average( | AE153: Metal Halide (watts) | AF153: 456 | AG153: IL TRM v6 vol2 | AH153: 412 | AI153: =ROUND((AF153-AB153)/1000*U153*AS153,4) | AJ153: =ROUND(N153*O153,4) | AK153: IL TRM v6 vol2 | AL153: 411412 | AM153: 2020-01-01 | AN153: 2020-04-30 | AS153: 1.41 | AT153: Waste Heat Factor | AU153: IL TRM v6 vol2 | AV153: 337 (portfolio weighted average) | AW153: 1.34 | AX153: Waste Heat Factor | AY153: IL TRM v6 vol2 | AZ153: 337 (portfolio weighted average)
A154: Income-Eligible Multi-Family | B154: High Bay Fluorescent Fixture w/ HE Electronic Ballast (T5 >4 lamps) | C154: 60.2 | D154: Multi-Family | E154: Lighting | F154: Common Area - DI | G154: per fixture | H154: 100 | I154: IL TRM v6 vol2 | J154: 413 | K154: =ROUND((AF154-AB154)/1000*U154*AS154,4) -> 1266.5149 | L154: Calculated Value | N154: 0.23892 | O154: 0.64 | P154: IL TRM v6 vol2 | Q154: 338 | R154: =ROUND(N154*O154,4) -> 0.1529 | S154: Calculated Value | U154: 6138 | V154: IL TRM v6 vol2 | W154: 338 | X154: 15 | Y154: IL TRM v6 vol2 | Z154: 410 | AA154: High Bay - T5 >4 lamp | AB154: 295 | AC154: Program Tracking Database (weighted average) | AE154: Metal Halide (watts) | AF154: 476 | AG154: IL TRM v6 vol2 | AH154: 413 | AI154: =ROUND((AF154-AB154)/1000*U154*AS154,4) | AJ154: =ROUND(N154*O154,4) | AK154: IL TRM v6 vol2 | AL154: 411412 | AM154: 2020-05-01 | AS154: 1.14 | AT154: Waste Heat Factor | AU154: IL TRM v6 vol2 | AV154: 337 | AW154: 1.32 | AX154: Waste Heat Factor | AY154: IL TRM v6 vol2 | AZ154: 337
A155: Income-Eligible Multi-Family | B155: Low Wattage T8 Lamp | C155: 61.1 | D155: Multi-Family | E155: Lighting | F155: Common Area - DI | G155: per lamp | H155: 2 | I155: IL TRM v6 vol2 | J155: 358 | K155: =ROUND((AF155-AB155)/1000*U155*AS155,4) -> 21.1219 | L155: Calculated Value | N155: 0.00792 | O155: 0.66 | P155: IL TRM v6 vol2 | Q155: 354 | R155: =ROUND(N155*O155,4) -> 0.0052 | S155: Calculated Value | U155: 3088 | V155: IL TRM v6 vol2 | W155: 338 | X155: 10 | Y155: IL TRM v6 vol2 | Z155: 361 | AA155: Low Wattage T8 (watts) | AB155: 22 | AC155: IL TRM v6 vol2 | AD155: 358 | AE155: Standard T8 (watts) | AF155: 28 | AG155: IL TRM v6 vol2 | AH155: 358 | AI155: =ROUND((AF155-AB155)/1000*U155*AS155,4) | AJ155: =ROUND(N155*O155,4) | AK155: IL TRM v6 vol2 | AL155: 353354 | AM155: 2020-01-01 | AN155: 2020-04-30 | AS155: 1.14 | AT155: Waste Heat Factor, Energy | AU155: IL TRM v6 vol2 | AV155: 338 | AW155: 1.32 | AX155: Waste Heat Factor, Demand | AY155: IL TRM v6 vol2 | AZ155: 338
A156: Income-Eligible Multi-Family | B156: Low Wattage T8 Lamp | C156: 61.2 | D156: Multi-Family | E156: Lighting | F156: Common Area - DI | G156: per lamp | H156: 2 | I156: IL TRM v6 vol2 | J156: 358 | K156: =ROUND((AF156-AB156)/1000*U156*AS156,4) -> 41.9839 | L156: Calculated Value | N156: 0.00792 | O156: 0.62 | P156: IL TRM v6 vol2 | Q156: 338 | R156: =ROUND(N156*O156,4) -> 0.0049 | S156: Calculated Value | U156: 6138 | V156: IL TRM v6 vol2 | W156: 338 | X156: 15 | Y156: IL TRM v6 vol2 | Z156: 352 | AA156: Low Wattage T8 (watts) | AB156: 22 | AC156: IL TRM v6 vol2 | AD156: 358 | AE156: Standard T8 (watts) | AF156: 28 | AG156: IL TRM v6 vol2 | AH156: 358 | AI156: =ROUND((AF156-AB156)/1000*U156*AS156,4) | AJ156: =ROUND(N156*O156,4) | AK156: IL TRM v6 vol2 | AL156: 353354 | AM156: 2020-05-01 | AS156: 1.14 | AT156: Waste Heat Factor, Energy | AU156: IL TRM v6 vol2 | AV156: 338 | AW156: 1.32 | AX156: Waste Heat Factor, Demand | AY156: IL TRM v6 vol2 | AZ156: 338
A157: Income-Eligible Multi-Family | B157: LED Flood Light (<15W) (Exterior) | C157: 62.2 | D157: Multi-Family | E157: Lighting | F157: Common Area - DI | G157: per lamp | H157: 3.93 | I157: IL TRM v5 vol3 | J157: 265 | K157: =ROUND(($AF157-$AB157)/1000*$U157*$AS157*$BA157,4) -> 212.465 | L157: Calculated Value | N157: 0.04601 | O157: 0 | P157: IL TRM v6 vol2 | Q157: 338 | R157: =ROUND(($AF157-$AB157)/1000*$O157*$AW157*$BA157,4) -> 0 | U157: 4903 | V157: IL TRM v6 vol2 | W157: 338 | X157: 10 | Y157: IL TRM v6 vol2 | Z157: 374 | AA157: LED (watts) | AB157: 8.7 | AC157: Program Tracking Data | AE157: Metal Halide (watts) | AF157: 51.7 | AG157: IL TRM v6 vol2 | AH157: 364 | AI157: =ROUND(($AF157-$AB157)/1000*$U157*$AS157*$BA157,4) | AJ157: =ROUND(($AF157-$AB157)/1000*$O157*$AW157*$BA157,4) | AK157: IL TRM v6 vol2 | AL157: 364368 | AM157: 2020-01-01 | AS157: 1.04 | AT157: Waste Heat Factor (energy) | AU157: IL TRM v5 vol3 | AV157: 255 | AW157: 1.07 | AX157: Waste Heat Factor (demand) | AY157: IL TRM v5 vol3 | AZ157: 256 | BA157: 0.969 | BB157: ISR | BC157: IL TRM v5 vol3 | BD157: 260
A158: Income-Eligible Multi-Family | B158: Screw In - LEDs - Common Area (Interior) | C158: 249.2 | D158: Multi-Family | E158: Lighting | F158: Common Area - DI | G158: per lamp | H158: 3.93 | I158: IL TRM v5 vol3 | J158: 265 | K158: =ROUND(($AF158-$AB158)/1000*$U158*$AS158*$BA158,4) -> 29.5796 | L158: Calculated Value | N158: =K158/U158 -> 0.0349227863 | O158: 0.081 | P158: IL TRM v5 vol3 | Q158: 258 | R158: =ROUND(($AF158-$AB158)/1000*$O158*$AW158*$BA158,4) -> 0.003 | S158: Calculated Value | U158: 847 | V158: IL TRM v5 vol3 | W158: 208 | X158: 5 | Y158: IL TRM v5 vol3 | Z158: 205 | AA158: LED (watts) | AB158: 9 | AC158: Program Tracking Data | AE158: EISA tier 1 compliant Halogen (watts) | AF158: 43 | AG158: IL TRM v5 vol3 | AH158: 265 | AI158: =ROUND(($AF158-$AB158)/1000*$U158*$AS158*$BA158,4) | AJ158: =ROUND(($AF158-$AB158)/1000*$O158*$AW158*$BA158,4) | AK158: IL TRM v5 vol3 | AL158: 259263 | AM158: 2020-01-01 | AN158: 2020-04-30 | AS158: 1.06 | AT158: Waste Heat Factor (energy) | AU158: IL TRM v5 vol3 | AV158: 261 | AW158: 1.11 | AX158: Waste Heat Factor (demand) | AY158: IL TRM v5 vol3 | AZ158: 264 | BA158: 0.969 | BB158: ISR | BC158: IL TRM v5 vol3 | BD158: 260
A159: Income-Eligible Multi-Family | B159: Screw In - LEDs - Common Area (Interior) | C159: 249.3 | D159: Multi-Family | E159: Lighting | F159: Common Area - DI | G159: per lamp | H159: 1.45 | I159: Program Tracking Data | K159: =ROUND(($AF159-$AB159)/1000*$U159*$AS159*$BA159,4) -> 37.3133 | L159: Calculated Value | N159: =K159/U159 -> 0.03426382002 | O159: 0.128 | P159: IL TRM v7 vol3 - assumes Interior 9W bulb | Q159: 274 | R159: =ROUND(($AF159-$AB159)/1000*$O159*$AW159*$BA159,4) -> 0.0045 | S159: Calculated Value | U159: 1089 | V159: IL TRM v7 vol3 - assumes Interior 9W bulb | W159: 271 | X159: 10 | Y159: IL TRM v7 vol3 - assumes interior lighting | Z159: 268 | AA159: LED (watts) | AB159: 9 | AC159: Program Tracking Data | AE159: EISA tier 1 compliant Halogen (watts) | AF159: 43 | AG159: Program Tracking Database | AI159: =ROUND(($AF159-$AB159)/1000*$U159*$AS159*$BA159,4) | AJ159: =ROUND(($AF159-$AB159)/1000*$O159*$AW159*$BA159,4) | AK159: IL TRM v7 vol3 | AL159: 269, 273 | AM159: 2020-05-01 | AS159: 1.04 | AT159: Waste Heat Factor (energy) | AU159: IL TRM v7 vol3 - Multifamily in unit | AV159: 271 | AW159: 1.07 | AX159: Waste Heat Factor (demand) | AY159: IL TRM v7 vol3 - Multifamily in unit | AZ159: 273 | BA159: 0.969 | BB159: ISR | BC159: IL TRM v7 vol3 | BD159: 270
A160: Income-Eligible Multi-Family | B160: Screw In - LEDs - Common Area (Exterior) | C160: 250.2 | D160: Multi-Family | E160: Lighting | F160: Common Area - DI | G160: per lamp | H160: 3.93 | I160: IL TRM v5 vol3 | J160: 265 | K160: =ROUND(($AF160-$AB160)/1000*$U160*$AS160*$BA160,4) -> 81.5414 | L160: Calculated Value | N160: =K160/U160 -> 0.0329460202 | O160: 0.273 | P160: IL TRM v5 vol3 | Q160: 258 | R160: =ROUND(($AF160-$AB160)/1000*$O160*$AW160*$BA160,4) -> 0.009 | S160: Calculated Value | U160: 2475 | V160: IL TRM v5 vol3 | W160: 208 | X160: 5 | Y160: IL TRM v5 vol3 | Z160: 205 | AA160: LED (watts) | AB160: 9 | AC160: Program Tracking Data | AE160: EISA tier 1 compliant Halogen (watts) | AF160: 43 | AG160: IL TRM v5 vol3 | AH160: 265 | AI160: =ROUND(($AF160-$AB160)/1000*$U160*$AS160*$BA160,4) | AJ160: =ROUND(($AF160-$AB160)/1000*$O160*$AW160*$BA160,4) | AK160: IL TRM v5 vol3 | AL160: 259263 | AM160: 2020-01-01 | AN160: 2020-04-30 | AS160: 1 | AT160: Waste Heat Factor (energy) | AU160: IL TRM v5 vol3 | AV160: 261 | AW160: 1 | AX160: Waste Heat Factor (demand) | AY160: IL TRM v5 vol3 | AZ160: 264 | BA160: 0.969 | BB160: ISR | BC160: IL TRM v5 vol3 | BD160: 260
A161: Income-Eligible Multi-Family | B161: Screw In - LEDs - Common Area (Exterior) | C161: 250.3 | D161: Multi-Family | E161: Lighting | F161: Common Area - DI | G161: per lamp | H161: 1.45 | I161: Program Tracking Data | K161: =ROUND(($AF161-$AB161)/1000*$U161*$AS161*$BA161,4) -> 81.5414 | L161: Calculated Value | N161: =K161/U161 -> 0.0329460202 | O161: 0.273 | P161: IL TRM v7 vol3 | Q161: 274 | R161: =ROUND(($AF161-$AB161)/1000*$O161*$AW161*$BA161,4) -> 0.009 | S161: Calculated Value | U161: 2475 | V161: IL TRM v7 vol3 - Exterior | W161: 271 | X161: 6.1 | Y161: IL TRM v7 vol3 | Z161: 268 | AA161: LED (watts) | AB161: 9 | AC161: Program Tracking Data | AE161: EISA tier 1 compliant Halogen (watts) | AF161: 43 | AG161: Program Tracking Database | AI161: =ROUND(($AF161-$AB161)/1000*$U161*$AS161*$BA161,4) | AJ161: =ROUND(($AF161-$AB161)/1000*$O161*$AW161*$BA161,4) | AK161: IL TRM v7 vol3 | AL161: 269, 273 | AM161: 2020-05-01 | AS161: 1 | AT161: Waste Heat Factor (energy) | AU161: IL TRM v7 vol3 - exterior value | AV161: 271 | AW161: 1 | AX161: Waste Heat Factor (demand) | AY161: IL TRM v7 vol3 - Exterior | AZ161: 274 | BA161: 0.969 | BB161: ISR | BC161: IL TRM v7 vol3 | BD161: 270
A162: Income-Eligible Multi-Family | B162: Air Sealing (Infiltration reduction) - 30% MF LI DI electric furnace base/electric resistance | C162: 441 | D162: Multi-Family | E162: HVAC - Shell | G162: per sq ft (floor area) | H162: 0.12 | I162: Program tracking data, with 50% co-delivery costs shared with Spire Missouri | K162: =ROUND(0.285,4) -> 0.285 | L162: Calculated Value | O162: 0 | P162: Calculated Value | R162: =ROUND(O162*K162,4) -> 0 | S162: No cooling savings, no coincident savings | X162: 15 | Y162: MO TRM 2017 | Z162: 162 | AA162: air leaks are detected and sealed | AE162: air leaks | AI162: =ROUND(0.285,4) | AJ162: =ROUND(O162*K162,4) | AM162: 2020-01-01 | AN162: 2020-04-30 | AS162: 3263 | AT162: Square footage installed | AU162: PY2016 average
A163: Income-Eligible Multi-Family | B163: Air Sealing (Infiltration reduction) - 30% MF LI DI electric furnace base/electric resistance | C163: 441.1 | D163: Multi-Family | E163: HVAC - Shell | G163: per sq ft (floor area) | H163: 0.12 | I163: Program tracking data, with 50% co-delivery costs shared with Spire Missouri | K163: =ROUND((((AF163-AB163)/AS163)*AW163*AP163*BA163) / (BE163*BI163),4) -> 2524.7343 | L163: Calculated Value | O163: 0 | P163: Calculated Value | R163: =ROUND(O163*K163,4) -> 0 | S163: No cooling savings, no coincident savings | X163: 15 | Y163: MO TRM 2017 | Z163: 295 | AA163: Efficient CFM | AB163: 3139.44 | AC163: Calculated Value from Tracking Data | AE163: Baseline CFM | AF163: 4428.85 | AG163: Calculated Value from Tracking Data | AI163: =ROUND((((AF163-AB163)/AS163)*AW163*AP163*BA163) / (BE163*BI163),4) | AJ163: =ROUND(O163*K163,4) | AK163: MO TRM 2017 vol 2 | AL163: 165 | AM163: 2020-05-01 | AO163: 1445 | AP163: 5155 | AQ163: MO TRM and Navigant Analysis | AS163: 20 | AT163: N_heat for 1.5 story building in Kansas City, MO | AU163: MO TRM 2017 vol 2 | AV163: 165 | AW163: =60*24 -> 1440 | AX163: Convert CFM to cubic ft per day | AY163: MO TRM 2017 vol 2 | AZ163: 163 | BA163: 0.018 | BB163: Specific heat capacity of air | BC163: MO TRM 2017 vol 2 | BD163: 164 | BE163: 1 | BF163: Efficiency (effective COP estimate) of electric resistance heating from MO TRM | BG163: MO TRM 2017 vol 2 | BH163: 166 | BI163: 3412 | BJ163: Convert Btu to kWh | BK163: MO TRM 2017 vol 2 | BL163: 166
A164: Income-Eligible Multi-Family | B164: Air Sealing (Infiltration reduction) - 30% MF LI DI ASHP base- Heating Only | C164: 442 | D164: Multi-Family | E164: HVAC - Shell | G164: per sq ft (floor area) | H164: 0.12 | I164: Program tracking data, with 50% co-delivery costs shared with Spire Missouri | K164: =ROUND(0.208,4) -> 0.208 | L164: Calculated Value | O164: 0 | P164: Calculated Value | R164: =ROUND(O164*K164,4) -> 0 | S164: No cooling savings, no coincident savings | X164: 15 | Y164: MO TRM 2017 | Z164: 162 | AA164: air leaks are detected and sealed | AE164: air leaks | AI164: =ROUND(0.208,4) | AJ164: =ROUND(O164*K164,4) | AM164: 2020-01-01 | AN164: 2020-04-30 | AS164: 3263 | AT164: Square footage installed | AU164: PY2016 average
A165: Income-Eligible Multi-Family | B165: Air Sealing (Infiltration reduction) - 30% MF LI DI ASHP base- Heating Only | C165: 442.1 | D165: Multi-Family | E165: HVAC - Shell | G165: per sq ft (floor area) | H165: 0.12 | I165: Program tracking data, with 50% co-delivery costs shared with Spire Missouri | K165: =ROUND((((AF165-AB165)/AS165)*AW165*AP165*BA165) / (BE165*BI165),4) -> 1237.6149 | L165: Calculated Value | O165: 0 | P165: Calculated Value | R165: =ROUND(O165*K165,4) -> 0 | S165: No cooling savings, no coincident savings | X165: 15 | Y165: MO TRM 2017 | Z165: 295 | AA165: Efficient CFM | AB165: 3139.44 | AC165: Calculated Value from Tracking Data | AE165: Baseline CFM | AF165: 4428.85 | AG165: Calculated Value from Tracking Data | AI165: =ROUND((((AF165-AB165)/AS165)*AW165*AP165*BA165) / (BE165*BI165),4) | AJ165: =ROUND(O165*K165,4) | AK165: MO TRM 2017 vol 2 | AL165: 165 | AM165: 2020-05-01 | AO165: 1445 | AP165: 5155 | AQ165: MO TRM and Navigant Analysis | AS165: 20 | AT165: N_heat for 1.5 story building in Kansas City, MO | AU165: MO TRM 2017 vol 2 | AV165: 165 | AW165: =60*24 -> 1440 | AX165: Convert CFM to cubic ft per day | AY165: MO TRM 2017 vol 2 | AZ165: 163 | BA165: 0.018 | BB165: Specific heat capacity of air | BC165: MO TRM 2017 vol 2 | BD165: 164 | BE165: 2.04 | BF165: Efficiency (effective COP estimate) of ASHP, using "Heat Pump After 2015" from MO TRM | BG165: MO TRM 2017 vol 2 | BH165: 166 | BI165: 3412 | BJ165: Convert Btu to kWh | BK165: MO TRM 2017 vol 2 | BL165: 166
A166: Income-Eligible Multi-Family | B166: Air Sealing (Infiltration reduction) - 30% MF LI DI CAC or ASHP- Cooling Only | C166: 452 | D166: Multi-Family | E166: HVAC - Shell | G166: per sq ft (floor area) | H166: 0.12 | I166: Program tracking data, with 50% co-delivery costs shared with Spire Missouri | K166: =ROUND(0.043,4) -> 0.043 | L166: Calculated Value | O166: 0.0009474181 | P166: Calculated Value | R166: =ROUND(K166*O166,8) -> 4.074e-05 | S166: Calculated Value | X166: 15 | Y166: MO TRM 2017 | Z166: 162 | AA166: air leaks are detected and sealed | AE166: air leaks | AI166: =ROUND(0.043,4) | AJ166: =ROUND(K166*O166,8) | AM166: 2020-01-01 | AN166: 2020-04-30 | AS166: 3263 | AT166: Square footage installed | AU166: PY2016 average
A167: Income-Eligible Multi-Family | B167: Air Sealing (Infiltration reduction) - 30% MF LI DI CAC or ASHP- Cooling Only | C167: 452.1 | D167: Multi-Family | E167: HVAC - Shell | G167: per sq ft (floor area) | H167: 0.12 | I167: Program tracking data, with 50% co-delivery costs shared with Spire Missouri | K167: =ROUND((((AF167-AB167)/AS167)*AW167*AO167*BA167*BE167*BM167) / (BQ167*BI167),4) -> 373.6004 | L167: Calculated Value | O167: 0.0009474181 | P167: MO TRM 2017 | Q167: 167 | R167: =ROUND(K167*O167,8) -> 0.35395578 | S167: Calculated Value | U167: 738 | V167: EFLHcool, from 2017 MO TRM | W167: 122 | X167: 15 | Y167: MO TRM 2017 | Z167: 295 | AA167: Efficient CFM | AB167: 3139.44 | AC167: Calculated Value from Tracking Data | AE167: Baseline CFM | AF167: 4428.85 | AG167: Calculated Value from Tracking Data | AI167: =ROUND((((AF167-AB167)/AS167)*AW167*AO167*BA167*BE167*BM167) / (BQ167*BI167),4) | AJ167: =ROUND(K167*O167,8) | AK167: MO TRM 2017 vol 2 | AL167: 163, 167 | AM167: 2020-05-01 | AO167: 1445 | AP167: 5155 | AQ167: MO TRM and Navigant Analysis | AS167: 27.7 | AT167: N_cool for 1.5 story building in Kansas City, MO | AU167: MO TRM 2017 vol 2 | AV167: 163 | AW167: =60*24 -> 1440 | AX167: Convert CFM to cubic ft per day | AY167: MO TRM 2017 vol 2 | AZ167: 163 | BA167: 0.75 | BB167: DUA, discretionary use adjustment | BC167: MO TRM 2017 vol 2 | BD167: 164 | BE167: 0.018 | BF167: Specific heat capacity of air | BG167: MO TRM 2017 vol 2 | BH167: 164 | BI167: 14 | BJ167: Efficiency (SEER) of ASHP, using "Heat Pump After 1/1/2015" from MO TRM | BK167: MO TRM 2017 vol 2 | BL167: 164 | BM167: 4 | BN167: LM, latent multiplier to account for latent cooling demand | BO167: MO TRM 2017 vol 2 | BP167: 164 | BQ167: 1000 | BR167: Convert Btu to kBtu | BS167: MO TRM 2017 vol 2 | BT167: 164
A168: Income-Eligible Multi-Family | B168: Interior Directional LED Lamp replacing 50-70W Lamp | C168: 321 | D168: Multi-Family | E168: Lighting | G168: per lamp | H168: 1.65 | I168: IL TRM v7 vol3 | J168: 251 | K168: =ROUND((AF168-AB168)/1000*U168*AS168*BA168,4) -> 48.6547 | L168: Calculated Value | N168: =R168/O168 -> 0.05234375 | O168: 0.128 | P168: IL TRM v7 vol3 | Q168: 251 | R168: =ROUND((AF168-AB168)*AW168*BA168*O168/1000,4) -> 0.0067 | S168: Calculated Value | U168: 974 | V168: IL TRM v7 vol3 | W168: 255 | X168: 10 | Y168: IL TRM v7 vol3 | Z168: 250 | AA168: Interior Directional LED Lamp | AB168: 9.496 | AC168: IL TRM v7 vol3 | AD168: 253 | AE168: 50-70Watts Lamp | AF168: 60 | AG168: IL TRM v7 vol3 | AH168: 253 | AI168: =ROUND((AF168-AB168)/1000*U168*AS168*BA168,4) | AJ168: =ROUND((AF168-AB168)*AW168*BA168*O168/1000,4) | AK168: IL TRM v7 vol3 | AL168: 251, 259 | AM168: 2020-01-01 | AS168: 1.05 | AT168: Waste Heat Factor_Energy | AU168: IL TRM v7 vol3 | AV168: 255 | AW168: 1.1 | AX168: Waste Heat Factor_Demand | AY168: IL TRM v7 vol3 | AZ168: 259 | BA168: 0.942 | BB168: ISR | BC168: Navigant MEEIA Cycle 1 Research
A169: Income-Eligible Multi-Family | B169: Interior LED 2X4 Retrofit Kit replacing T8, T12 or T5/T5HO | C169: 322 | D169: Multi-Family | E169: Lighting | G169: per unit | H169: 26 | I169: IL TRM v7 vol3 | J169: 278 | K169: =ROUND((AF169-AB169)/1000*U169*AS169*BA169,4) -> 63.6796 | L169: Calculated Value | N169: 0.06875 | O169: 0.128 | P169: IL TRM v7 vol3 | Q169: 278 | R169: =ROUND((AF169-AB169)*AW169*BA169*O169/1000,4) -> 0.0088 | S169: Calculated Value | U169: 974 | V169: IL TRM v7 vol3 | W169: 255 | X169: 15 | Y169: IL TRM v7 vol3 | Z169: 277 | AA169: LED 2X4 Retrofit Kits | AB169: 22.4 | AC169: IL TRM v7 vol3 | AD169: 278 | AE169: 2x4 T8, T12 or T5 Fluorescents | AF169: 88.5 | AG169: IL TRM v7 vol3 | AH169: 278 | AI169: =ROUND((AF169-AB169)/1000*U169*AS169*BA169,4) | AJ169: =ROUND((AF169-AB169)*AW169*BA169*O169/1000,4) | AK169: IL TRM v7 vol3 | AL169: 278, 281 | AM169: 2020-01-01 | AS169: 1.05 | AT169: Waste Heat Factor_Energy | AU169: IL TRM v7 vol3 | AV169: 279 | AW169: 1.1 | AX169: Waste Heat Factor_Demand | AY169: IL TRM v7 vol3 | AZ169: 281 | BA169: 0.942 | BB169: ISR | BC169: Navigant MEEIA Cycle 1 Research
A170: Income-Eligible Multi-Family | B170: ECM Auto Fan Early Replacement - MF | C170: 390 | D170: Multi-Family | E170: Motor | G170: per unit | H170: 97 | I170: WI TRM 2018 | J170: 915 | K170: =ROUND(AS170*BE170*12*(1/AW170-1/BA170)*BM170+BQ170*BU170+BY170*CC170,4) -> 1084.7825 | L170: Calculated Value | N170: 0.8147058824 | O170: 0.68 | P170: WI TRM 2018 | Q170: 916 | R170: =ROUND(AS170*12*(1/CG170-1/CK170)*O170*BM170,4) -> 0.554 | S170: Calculated Value | X170: 6 | Y170: WI TRM 2018 - total is 18 years | Z170: 916 | AA170: ECM Blower Motor | AE170: Non-ECM Blower Motor | AI170: =ROUND(AS170*BE170*12*(1/AW170-1/BA170)*BM170+BQ170*BU170+BY170*CC170,4) | AJ170: =ROUND(AS170*12*(1/CG170-1/CK170)*O170*BM170,4) | AK170: WI TRM 2018 | AL170: 916 | AM170: 2020-01-01 | AS170: 2.425 | AT170: Air conditioner capacity in tons | AU170: WI TRM 2018 | AV170: 916 | AW170: 8.86 | AX170: SEERexist | AY170: This value is from IL TRM v6 vol3 but should be actual equipment SEER value. | BA170: 13 | BB170: SEERecm | BC170: WI TRM 2018 | BD170: 916 | BE170: 738 | BF170: FLH_cooling | BG170: MO TRM 2017 | BH170: 85 | BI170: 0.68 | BJ170: CF | BK170: WI TRM 2018 | BL170: 916 | BM170: 0.925 | BN170: Percentage of furnaces with AC | BO170: WI TRM 2018 | BP170: 916 | BQ170: 1376 | BR170: EFLHheat | BS170: The EFLH Cooling and Heating hours are based on a EnergyStar study that was normalized (based on HDD and CDD) to Kansas City. This was for both AC and HP units. | BU170: 0.116 | BV170: Energy savings in heating | BW170: WI TRM 2018 | BX170: 916 | BY170: 1020 | BZ170: Hours of fan-only operation | CA170: WI TRM 2018 | CB170: 916 | CC170: 0.207 | CD170: Energy savings in fan-only | CE170: WI TRM 2018 | CF170: 916 | CG170: =-0.02*AW170^2+1.12*AW170 -> 8.353208 | CH170: EERexist | CI170: Value Calculated from SEER | CK170: =-0.02*BA170^2+1.12*BA170 -> 11.18 | CL170: EERecm | CM170: Value Calculated from SEER
A171: Income-Eligible Multi-Family | B171: ECM Auto Fan Early Replacement (future) - MF | C171: 391 | D171: Multi-Family | E171: Motor | G171: per unit | H171: 0 | I171: WI TRM 2018 | J171: 915 | K171: =ROUND(AS171*BE171*12*(1/AW171-1/BA171)*BM171+BQ171*BU171+BY171*CC171,4) -> 498.0965 | L171: Calculated Value | N171: 0.1413235294 | O171: 0.68 | P171: WI TRM 2018 | Q171: 916 | R171: =ROUND(AS171*12*(1/CG171-1/CK171)*O171*BM171,4) -> 0.0961 | S171: Calculated Value | X171: 12 | Y171: WI TRM 2018 - total is 18 years | Z171: 916 | AA171: ECM Blower Motor | AE171: Non-ECM Blower Motor | AI171: =ROUND(AS171*BE171*12*(1/AW171-1/BA171)*BM171+BQ171*BU171+BY171*CC171,4) | AJ171: =ROUND(AS171*12*(1/CG171-1/CK171)*O171*BM171,4) | AK171: WI TRM 2018 | AL171: 916 | AM171: 2020-01-01 | AS171: 2.425 | AT171: Air conditioner capacity in tons | AU171: WI TRM 2018 | AV171: 916 | AW171: 12 | AX171: SEERbase | AY171: WI TRM 2018 | AZ171: 916 | BA171: 13 | BB171: SEERecm | BC171: WI TRM 2018 | BD171: 916 | BE171: 738 | BF171: FLH_cooling | BG171: MO TRM 2017 | BH171: 85 | BI171: 0.68 | BJ171: CF | BK171: WI TRM 2018 | BL171: 916 | BM171: 0.925 | BN171: Percentage of furnaces with AC | BO171: WI TRM 2018 | BP171: 916 | BQ171: 1376 | BR171: EFLHheat | BS171: The EFLH Cooling and Heating hours are based on a EnergyStar study that was normalized (based on HDD and CDD) to Kansas City. This was for both AC and HP units. | BU171: 0.116 | BV171: Energy savings in heating | BW171: WI TRM 2018 | BX171: 916 | BY171: 1020 | BZ171: Hours of fan-only operation | CA171: WI TRM 2018 | CB171: 916 | CC171: 0.207 | CD171: Energy savings in fan-only | CE171: WI TRM 2018 | CF171: 916 | CG171: =-0.02*AW171^2+1.12*AW171 -> 10.56 | CH171: EERbase | CI171: WI TRM 2018 | CJ171: 916 | CK171: =-0.02*BA171^2+1.12*BA171 -> 11.18 | CL171: EERecm | CM171: WI TRM 2018 | CN171: 916
